Workbook

Sheet GUIA PARA PREENCHIMENTO
A1: GUIA PARA PREENCHIMENTO
A3: 1 - Preencher apenas as guias azuis:
A5: 2 - Recomendamos preencher somente as células com fundo azul claro. As demais possuem fórmulas e sugerimos não alterá-las.

Sheet MODELO PROPOSTA
B2: MODELO DA PROPOSTA COMPLETA
B4: .
B5: I – FORMALIZAÇÃO
B7: PREGÃO ELETRÔNICO N. 92/22
B8: OBJETO: Prestação de serviços continuados de recepcionista e de apoio a eventos nas dependências da Câmara dos Deputados e, eventualmente, em outros locais do Distrito Federal, pelo período de trinta meses.
B9: LICITANTE: _____________________________________________________
B10: CNPJ: ________________________________________________________
B11: ENDEREÇO COMPLETO: _________________________________________
B12: TELEFONE:_____________________________________________________
B13: E-MAIL: ________________________________________________________
B15: Apresentamos nossa proposta para o item único da presente licitação, de acordo com as disposições do Edital.
B16: Decorre do conteúdo da presente proposta a explicitação do seguinte PREÇO DE JULGAMENTO PARA TRINTA MESES (GLOBAL) PARA O ITEM:
B17: =' RESUMO'!H94 -> 23198364.24
B18: =Extenso_Valor(B17) -> vinte e três milhões, cento e noventa e oito mil, trezentos e sessenta e quatro reais e vinte e quatro centavos
B20: (por extenso)
B22: No valor proposto estão incluídos todos os custos e todas as despesas, diretas e indiretas, para a execução dos serviços objeto da licitação, em conformidade com as especificações e demais condições e exigências constantes do Edital.
B23: Informamos que eventuais rubricas dispostas em Acordo ou Convenção Coletiva de Trabalho que não se relacionem ao custo direto da venda do serviço, tais como “Participação nos Resultados” e “Abono substitutivo de Participação nos Resultados”, serão consideradas nos custos indiretos da proposta.
B24: O prazo de validade da presente proposta é de ______ (por extenso) dias. (observado o disposto no Título 11 do Edital).
B26: Convenção coletiva de trabalho ou a norma coletiva a que estamos obrigados:
B27: Data-Base:
B28: Número do Registro SRT:
B29: Regime de tributação da empresa:
B30: Empresa é beneficiada pela desoneração da folha de pagamento instituída pela Lei n. 12.546, de 2001, alterada pela Lei n. 13.161, de 2015?
B31: Empresa adere ao PAT (Programa de Alimentação do Trabalhador)?
B32: (Se adere ao PAT): Os valores do auxílio-alimentação apresentados na presente proposta correspondem somente aos efetivamente pagos pela empresa aos empregados?
B34: DECLARAÇÕES
B36: A SEREM PRESTADAS SOMENTE NA HIPÓTESE DE LICITANTE MICROEMPRESA OU EMPRESA DE PEQUENO PORTE, EM CONFORMIDADE COM OS ARTIGOS 17, 18, 30 E 31 DA LEI COMPLEMENTAR N. 123, de 2006, E O ACÓRDÃO TCU 2798/2010-PLENÁRIO
B37: Declaramos que:
B38: a) em se tratando dos serviços vedados descritos no artigo 17 da Lei Complementar n. 123, de 2006, notadamente os descritos no inciso XII (cessão ou locação de mão de obra), ressalvados os serviços listados nos parágrafos 5o-B a 5o-E do artigo 18 da referida Lei, a proposta apresentada não contempla qualquer benefício tributário referente ao SIMPLES NACIONAL, conforme os subitens 5.7 e 5.8 do Edital;
B39: b) na hipótese de contratação desta Microempresa ou Empresa de Pequeno Porte inscrita no SIMPLES NACIONAL e executora de atividade vedada, ficamos sujeitos à exclusão obrigatória no SIMPLES NACIONAL a contar do mês seguinte ao da contratação, em consequência do que dispõem o artigo 17, inciso XII e o artigo 31, inciso II da Lei Complementar n, 123, de 2006, devendo entregar à Câmara dos Deputados, à título de comprovação, cópia de ofício – com comprovante de entrega e recebimento, que comunique a assinatura do contrato de prestação de serviços mediante cessão de mão de obra e encaminhado pela contratada à Receita Federal do Brasil até o último dia útil do mês subsequente ao da contratação, consoante artigo 30, § 1º, inciso II da Lei Complementar n. 123, de 2006.
B42: A SEREM PRESTADAS SOMENTE NA HIPÓTESE DE LICITANTE BENEFICIADA PELA DESONERAÇÃO DA FOLHA DE PAGAMENTO INSTITUÍDA PELA LEI N. 12.546, DE 2011, ALTERADA PELA LEI N. 13.161, DE 2015.
B44: Declaramos, sob as penas da Lei, que:
B45: a) recolhemos a contribuição previdenciária incidente sobre o valor da receita bruta, em substituição às contribuições previdenciárias incidentes sobre a folha de pagamento, previstas nos incisos I e III do caput do artigo 22 da Lei n. 8.212, de 24 de julho de 1991, na forma do caput do artigo 7º (ou 8º) da Lei n. 12.546, de 14 de dezembro de 2011, alterada pela Lei n. 13.161, de 31 de agosto de 2015;
B46: b) temos ciência que nossa manifestação, conforme alínea “a” anterior, será remetida à Receita Federal do Brasil e que, em caso de constatação de falsidade, estará sujeita às sanções administrativas cabíveis, sem prejuízo do encaminhamento dos documentos ao Ministério Público para apuração de eventual responsabilidade criminal desta declarante.
B49: É OBRIGATÓRIA A COMPROVAÇÃO A QUE SE REFERE O SUBITEM 5.9.4 DO TÍTULO 5 DO EDITAL.
B51: DADOS PARA ASSINATURA DO CONTRATO
B52: Nome do signatário
B53: Cargo
B54: Qualificação (CPF, naturalidade e domicílio)
B55: OBS.: O signatário deve possuir poderes de administração estabelecidos em contrato social e/ou possuir procuração com poderes para assinar contratos em nome da empresa. A documentação comprobatória deverá ser encaminhada quando da assinatura do contrato.
B58: Brasília, de de 2022.
B60: Assinatura do representante legal da empresa
B63: Nome do representante legal da empresa

Sheet Remunerações
B1: QUADRO DE REMUNERAÇÕES
C3: ITEM | D3: POSTO DE TRABALHO | E3: QUANTIDADE | F3: SALÁRIO | G3: ADICIONAL DE PERICULOSIDADE | H3: ADICIONAL DE INSALUBRIDADE | I3: ADICIONAL NOTURNO | J3: OUTROS | K3: SALÁRIO COM ADICIONAIS
D4: POSTO DE TRABALHO - EQUIPE DE TRABALHO
C5: 1 | D5: =HLOOKUP($C5,'Dados Gerais'!$D$5:$I$68,6) -> SUPERVISOR | E5: =HLOOKUP($C5,'Dados Gerais'!$D$5:$I$68,10) -> 2 | F5: =HLOOKUP($C5,'Dados Gerais'!$D$5:$I$68,8) -> 5177.57 | G5: =HLOOKUP($C5,'Dados Gerais'!$D$5:$I$68,25) -> 0 | H5: =HLOOKUP($C5,'Dados Gerais'!$D$5:$I$68,31) -> 0 | I5: =HLOOKUP($C5,'Dados Gerais'!$D$5:$I$68,46) -> 0 | J5: =HLOOKUP($C5,'Dados Gerais'!$D$5:$I$68,33) -> 0 | K5: =SUM(F5:J5) -> 5177.57 | M5: =E5*K5 -> 10355.14
C6: 2 | D6: =HLOOKUP($C6,'Dados Gerais'!$D$5:$I$68,6) -> RECEPCIONISTA BILINGUE | E6: =HLOOKUP($C6,'Dados Gerais'!$D$5:$I$68,10) -> 14 | F6: =HLOOKUP($C6,'Dados Gerais'!$D$5:$I$68,8) -> 4706.88 | G6: =HLOOKUP($C6,'Dados Gerais'!$D$5:$I$68,25) -> 0 | H6: =HLOOKUP($C6,'Dados Gerais'!$D$5:$I$68,31) -> 0 | I6: =HLOOKUP($C6,'Dados Gerais'!$D$5:$I$68,46) -> 0 | J6: =HLOOKUP($C6,'Dados Gerais'!$D$5:$I$68,33) -> 0 | K6: =SUM(F6:J6) -> 4706.88 | M6: =E6*K6 -> 65896.32
C7: 3 | D7: =HLOOKUP($C7,'Dados Gerais'!$D$5:$I$68,6) -> CERIMONIALISTA | E7: =HLOOKUP($C7,'Dados Gerais'!$D$5:$I$68,10) -> 6 | F7: =HLOOKUP($C7,'Dados Gerais'!$D$5:$I$68,8) -> 4706.88 | G7: =HLOOKUP($C7,'Dados Gerais'!$D$5:$I$68,25) -> 0 | H7: =HLOOKUP($C7,'Dados Gerais'!$D$5:$I$68,31) -> 0 | I7: =HLOOKUP($C7,'Dados Gerais'!$D$5:$I$68,46) -> 0 | J7: =HLOOKUP($C7,'Dados Gerais'!$D$5:$I$68,33) -> 0 | K7: 4706.88 | M7: 28241.28
C8: 4 | D8: =HLOOKUP($C8,'Dados Gerais'!$D$5:$I$68,6) -> RECEPCIONISTA | E8: =HLOOKUP($C8,'Dados Gerais'!$D$5:$I$68,10) -> 42 | F8: =HLOOKUP($C8,'Dados Gerais'!$D$5:$I$68,8) -> 3498.43 | G8: =HLOOKUP($C8,'Dados Gerais'!$D$5:$I$68,25) -> 0 | H8: =HLOOKUP($C8,'Dados Gerais'!$D$5:$I$68,31) -> 0 | I8: =HLOOKUP($C8,'Dados Gerais'!$D$5:$I$68,46) -> 0 | J8: =HLOOKUP($C8,'Dados Gerais'!$D$5:$I$68,33) -> 0 | K8: 3498.43 | M8: 146934.06
C9: 5 | D9: =HLOOKUP($C9,'Dados Gerais'!$D$5:$I$68,6) -> RECEPCIONISTA COM ADICIONAL DE INSALUBRIDADE | E9: =HLOOKUP($C9,'Dados Gerais'!$D$5:$I$68,10) -> 14 | F9: =HLOOKUP($C9,'Dados Gerais'!$D$5:$I$68,8) -> 3498.43 | G9: =HLOOKUP($C9,'Dados Gerais'!$D$5:$I$68,25) -> 0 | H9: =HLOOKUP($C9,'Dados Gerais'!$D$5:$I$68,31) -> 242.4 | I9: =HLOOKUP($C9,'Dados Gerais'!$D$5:$I$68,46) -> 0 | J9: =HLOOKUP($C9,'Dados Gerais'!$D$5:$I$68,33) -> 0 | K9: 3740.83 | M9: 52371.62
M10: 0
D11: TOTAL DE POSTOS | E11: =SUM(E5:E10) -> 78

Sheet RESUMO
B3: RESUMO - TOTAIS MENSAIS - FATURA ORDINÁRIA (SEM O 13º E SEM OS ITENS SOB DEMANDA)
C6: ITEM | D6: POSTO DE TRABALHO | E6: QUANTIDADE | F6: PREÇO UNIT (SEM O 13º) | G6: DESTAQUE DO 13º | H6: PREÇO POR EMPREGADO | I6: PREÇO TOTAL (MENSAL)
C7: 1 | D7: =HLOOKUP(C7,'Dados Gerais'!$D$5:$BE$10,6) -> SUPERVISOR | E7: =HLOOKUP(C7,'Dados Gerais'!$D$5:$BE$14,10) -> 2 | F7: ='1'!$E$116 -> 11823.61044 | G7: 0 | H7: =G7+F7 -> 11823.61044 | I7: =H7*E7 -> 23647.22088
C8: 2 | D8: =HLOOKUP(C8,'Dados Gerais'!$D$5:$BE$10,6) -> RECEPCIONISTA BILINGUE | E8: =HLOOKUP(C8,'Dados Gerais'!$D$5:$BE$14,10) -> 14 | F8: ='2'!$E$116 -> 10897.91272 | G8: 0 | H8: 10897.91272 | I8: 152570.7781
C9: 3 | D9: =HLOOKUP(C9,'Dados Gerais'!$D$5:$BE$10,6) -> CERIMONIALISTA | E9: =HLOOKUP(C9,'Dados Gerais'!$D$5:$BE$14,10) -> 6 | F9: ='3'!$E$116 -> 10897.91272 | G9: 0 | H9: 10897.91272 | I9: 65387.47632
C10: 4 | D10: =HLOOKUP(C10,'Dados Gerais'!$D$5:$BE$10,6) -> RECEPCIONISTA | E10: =HLOOKUP(C10,'Dados Gerais'!$D$5:$BE$14,10) -> 42 | F10: ='4'!$E$116 -> 8547.20056 | G10: 0 | H10: 8547.20056 | I10: 358982.4235
C11: 5 | D11: =HLOOKUP(C11,'Dados Gerais'!$D$5:$BE$10,6) -> RECEPCIONISTA COM ADICIONAL DE INSALUBRIDADE | E11: =HLOOKUP(C11,'Dados Gerais'!$D$5:$BE$14,10) -> 14 | F11: ='5'!$E$116 -> 9036.8514 | G11: 0 | H11: 9036.8514 | I11: 126515.9196
C12: 6 | D12: =HLOOKUP(C12,'Dados Gerais'!$D$5:$BE$10,6) -> RECEPCIONISTA BILINGUE PLANTONISTAS (12H/36H) | E12: =HLOOKUP(C12,'Dados Gerais'!$D$5:$BE$14,10) -> 0 | F12: ='6'!$E$116 -> 10541.967 | G12: 0 | H12: =G12+F12 -> 10541.967 | I12: =H12*E12 -> 0
D14: TOTAL MENSAL - SALÁRIOS | I14: =SUM(I7:I13) -> 727103.8184
B17: RESUMO - TOTAIS MENSAIS - DESTAQUE DO 13º SALÁRIO
C20: ITEM | D20: POSTO DE TRABALHO | E20: QUANTIDADE | F20: PREÇO UNIT (SEM O 13º) | G20: DESTAQUE DO 13º | H20: PREÇO POR EMPREGADO | I20: PREÇO TOTAL (MENSAL)
C21: 1 | D21: =HLOOKUP(C21,'Dados Gerais'!$D$5:$BE$10,6) -> SUPERVISOR | E21: =HLOOKUP(C21,'Dados Gerais'!$D$5:$BE$14,10) -> 2 | F21: 0 | G21: ='1'!$E$117 -> 773.48 | H21: =G21+F21 -> 773.48 | I21: =H21*E21 -> 1546.96
C22: 2 | D22: =HLOOKUP(C22,'Dados Gerais'!$D$5:$BE$10,6) -> RECEPCIONISTA BILINGUE | E22: =HLOOKUP(C22,'Dados Gerais'!$D$5:$BE$14,10) -> 14 | F22: 0 | G22: ='2'!$E$117 -> 703.17 | H22: =G22+F22 -> 703.17 | I22: 9844.38
C23: 3 | D23: =HLOOKUP(C23,'Dados Gerais'!$D$5:$BE$10,6) -> CERIMONIALISTA | E23: =HLOOKUP(C23,'Dados Gerais'!$D$5:$BE$14,10) -> 6 | F23: 0 | G23: ='3'!$E$117 -> 703.17 | H23: 703.17 | I23: 4219.02
C24: 4 | D24: =HLOOKUP(C24,'Dados Gerais'!$D$5:$BE$10,6) -> RECEPCIONISTA | E24: =HLOOKUP(C24,'Dados Gerais'!$D$5:$BE$14,10) -> 42 | F24: 0 | G24: ='4'!$E$117 -> 522.64 | H24: 522.64 | I24: 21950.88
C25: 5 | D25: =HLOOKUP(C25,'Dados Gerais'!$D$5:$BE$10,6) -> RECEPCIONISTA COM ADICIONAL DE INSALUBRIDADE | E25: =HLOOKUP(C25,'Dados Gerais'!$D$5:$BE$14,10) -> 14 | F25: 0 | G25: ='5'!$E$117 -> 558.86 | H25: 558.86 | I25: 7824.04
C26: 6 | D26: =HLOOKUP(C26,'Dados Gerais'!$D$5:$BE$10,6) -> RECEPCIONISTA BILINGUE PLANTONISTAS (12H/36H) | E26: =HLOOKUP(C26,'Dados Gerais'!$D$5:$BE$14,10) -> 0 | F26: 0 | G26: ='6'!$E$117 -> 703.17 | H26: =G26+F26 -> 703.17 | I26: =H26*E26 -> 0
D28: TOTAL MENSAL - DESTAQUE DO 13º | I28: =SUM(I21:I27) -> 45385.28
B31: RESUMO - TOTAIS MENSAIS - FATURA ORDINÁRIA TOTAL
C34: ITEM | D34: POSTO DE TRABALHO | E34: QUANTIDADE | F34: PREÇO UNIT (SEM O 13º) | G34: DESTAQUE DO 13º | H34: PREÇO POR EMPREGADO | I34: PREÇO TOTAL (MENSAL)
C35: 1 | D35: =HLOOKUP(C35,'Dados Gerais'!$D$5:$BE$10,6) -> SUPERVISOR | E35: =HLOOKUP(C35,'Dados Gerais'!$D$5:$BE$14,10) -> 2 | F35: =F7 -> 11823.61044 | G35: =G21 -> 773.48 | H35: =G35+F35 -> 12597.09044 | I35: =H35*E35 -> 25194.18088 | K35: =I35/$I$42 -> 0.03261428664 | L35: =$I$57*K35 -> 8.50743667
C36: 2 | D36: =HLOOKUP(C36,'Dados Gerais'!$D$5:$BE$10,6) -> RECEPCIONISTA BILINGUE | E36: =HLOOKUP(C36,'Dados Gerais'!$D$5:$BE$14,10) -> 14 | F36: 10897.91272 | G36: 703.17 | H36: 11601.08272 | I36: 162415.1581 | K36: 0.2102491264 | L36: 54.84348462
C37: 3 | D37: =HLOOKUP(C37,'Dados Gerais'!$D$5:$BE$10,6) -> CERIMONIALISTA | E37: =HLOOKUP(C37,'Dados Gerais'!$D$5:$BE$14,10) -> 6 | F37: 10897.91272 | G37: 703.17 | H37: 11601.08272 | I37: 69606.49632 | K37: 0.09010676845 | L37: 23.50435055
C38: 4 | D38: =HLOOKUP(C38,'Dados Gerais'!$D$5:$BE$10,6) -> RECEPCIONISTA | E38: =HLOOKUP(C38,'Dados Gerais'!$D$5:$BE$14,10) -> 42 | F38: 8547.20056 | G38: 522.64 | H38: 9069.84056 | I38: 380933.3035 | K38: 0.493124504 | L38: 128.6315269
C39: 5 | D39: =HLOOKUP(C39,'Dados Gerais'!$D$5:$BE$10,6) -> RECEPCIONISTA COM ADICIONAL DE INSALUBRIDADE | E39: =HLOOKUP(C39,'Dados Gerais'!$D$5:$BE$14,10) -> 14 | F39: 9036.8514 | G39: 558.86 | H39: 9595.7114 | I39: 134339.9596 | K39: 0.1739053145 | L39: 45.36320129
C40: 6 | D40: =HLOOKUP(C40,'Dados Gerais'!$D$5:$BE$10,6) -> RECEPCIONISTA BILINGUE PLANTONISTAS (12H/36H) | E40: =HLOOKUP(C40,'Dados Gerais'!$D$5:$BE$14,10) -> 0 | F40: 10541.967 | G40: 703.17 | H40: =G40+F40 -> 11245.137 | I40: =H40*E40 -> 0 | K40: 0 | L40: 0
D42: TOTAL MENSAL - SALÁRIOS | I42: =SUM(I35:I41) -> 772489.0984
C44: ITEM | D44: DESCRIÇÃO | I44: PREÇO TOTAL (MENSAL)
C45: EQUIP | D45: EQUIPAMENTOS NÃO RELACIONADOS DIRETAMENTE A UM POSTO DE TRABALHO | I45: 0
C46: HEXTRA | D46: HORAS EXTRAS (SOB DEMANDA) | I46: 0
C47: HNOT | D47: ADICIONAL DE HORAS NOTURNAS (SOB DEMANDA) | I47: 0
C48: SOBREAV | D48: HORAS DE SOBREAVISO (SOB DEMANDA) | I48: =SOBREAVISO!G42 -> 0
C49: SREP | D49: SISTEMA DE REGISTRO ELETRÔNICO DE PRESENÇA - SREP | I49: =SREP!$M$45 -> 260.85
C50: EPI - N.REL | D50: EQUIPAMENTOS DE PROTEÇÃO INDIVIDUAL NÃO RELACIONADOS DIRETAMENTE A UM POSTO DE TRABALHO | I50: ='Não Rel - EPI'!K11 -> 0
C51: UNIFORMES - N.REL | D51: UNIFORMES NÃO RELACIONADOS DIRETAMENTE A UM POSTO DE TRABALHO | I51: ='Não Rel - Uniformes'!K30 -> 0
C52: FERR - N.REL | D52: FERRAMENTAS NÃO RELACIONADAS DIRETAMENTE A UM POSTO DE TRABALHO | I52: ='Não Rel - Depr'!M71 -> 0
C53: MAT SOB DEMANDA | D53: MATERIAIS NÃO RELACIONADOS DIRETAMENTE A UM POSTO DE TRABALHO - AQUISIÇÃO SOB DEMANDA | I53: ='Não Rel - Mat Consumo'!L56 -> 0
C54: MAT CONS DURAVEL SOB DEMANDA | D54: MATERIAIS DE CONSUMO DURÁVEL NÃO RELACIONADOS DIRETAMENTE A UM POSTO DE TRABALHO - AQUISIÇÃO SOB DEMANDA | I54: ='Não Rel - Mat Cons Durável'!L42 -> 0
C55: EQ SOB DEMANDA | D55: SERVIÇOS NÃO RELACIONADOS DIRETAMENTE A UM POSTO DE TRABALHO - AQUISIÇÃO SOB DEMANDA | I55: ='Não Rel - Serviços'!K18 -> 0
D57: TOTAL MENSAL - ITENS SOB DEMANDA | I57: =SUM(I45:I56) -> 260.85 | K57: =(I57+I42)*12 -> 9272999.381
D59: TOTAL MENSAL - ITENS ORDINÁRIOS
D60: DESCRIÇÃO | H60: VALOR
D61: Postos de Trabalho - Inclusive 13º Salário | H61: =I42 -> 772489.0984
D62: Adicional de Horas Noturnas | H62: 0
D63: Sistema de Registro Eletrônico de Presença - SREP | H63: =I49 -> 260.85
D64: Equipamentos de Proteção Individual não relacionados diretamente a um posto de trabalho | H64: =I50 -> 0
D65: Uniformes não relacionados diretamente a um posto de trabalho | H65: 0
D66: Ferramentas não relacionadas diretamente a um posto de trabalho | H66: 0
G68: TOTAL MENSAL DA CONTRATAÇÃO - ITENS ORDINÁRIOS | H68: =SUM(H61:H67) -> 772749.9484
D70: TOTAL ANUAL - ITENS ORDINÁRIOS
G72: 12 x TOTAL MENSAL | H72: =H68*12 -> 9272999.381
D74: TOTAL MENSAL - ITENS SOB DEMANDA
D75: DESCRIÇÃO | H75: VALOR
D76: HORAS EXTRAS (SOB DEMANDA) | H76: =I46 -> 0
D77: ADICIONAL DE HORAS NOTURNAS (SOB DEMANDA) | H77: 528.8594735
H78: 0
D79: HORAS DE SOBREAVISO (SOB DEMANDA) | H79: 0
G81: TOTAL MENSAL DA CONTRATAÇÃO - ITENS SOB DEMANDA | H81: 528.8594735
D83: TOTAL ANUAL - ITENS SOB DEMANDA
G85: 12 x TOTAL MENSAL | H85: =H81*12 -> 6346.313682
D87: TOTAL ANUAL DA CONTRATAÇÃO
H89: =$H$85+$H$72 -> 9279345.694
D92: TOTAL GLOBAL DA CONTRATAÇÃO (30 MESES)
G94: 30 x TOTAL MENSAL | H94: =H89/12*30 -> 23198364.24
D100: =Extenso_Valor(H100) -> setecentos e setenta e três mil, duzentos e setenta e oito reais e oitenta e um centavos | H100: =H68+H81 -> 773278.8079
D102: =Extenso_Valor(H102) -> nove milhões, duzentos e setenta e nove mil, trezentos e quarenta e cinco reais e sessenta e nove centavos | H102: =$H$85+$H$72 -> 9279345.694

Sheet 1
B2: PLANILHA DE ESTIMATIVA DE CUSTOS
B3: Padrão IN 05/2017 e IN 07/2018 - MPDG
B5: 1 | D5: =HLOOKUP($B$5,'Dados Gerais'!$D$5:$BE$20,6) -> SUPERVISOR | E5: QUANTIDADE | F5: =HLOOKUP($B$5,'Dados Gerais'!$D$5:$BE$20,10) -> 2
B6: CCT | D6: =HLOOKUP($B$5,'Dados Gerais'!$D$5:$BE$20,15) -> SEAC/DF X SINDSERVIÇOS/DF 2022/2022 Nº DF000015/2021 | E6: DATA-BASE | F6: ='Dados Gerais'!E20 -> 2022-01-01
B8: MÓDULO 1 - COMPOSIÇÃO DA REMUNERAÇÃO | F8: Valor
C9: A | D9: Salário-Base | F9: =HLOOKUP($B$5,'Dados Gerais'!$D$5:$BE$20,8) -> 5177.57
C10: B | D10: Adicional de Periculosidade | F10: =HLOOKUP($B$5,'Dados Gerais'!$D$5:$BE$37,25) -> 0
C11: C | D11: Adicional de Insalubridade | F11: =HLOOKUP($B$5,'Dados Gerais'!$D$5:$BE$37,31) -> 0
C12: D | D12: Adicional Noturno | F12: =HLOOKUP($B$5,'Dados Gerais'!$D$5:$BE$50,46) -> 0 | H12: * Nota 1 - O Módulo 1 refere-se ao valor mensal devido ao empregado pela prestação do serviço no período de 12 meses.
C13: E | D13: Adicional de Hora Extra | F13: =HLOOKUP($B$5,'Dados Gerais'!$D$5:$BE$67,63) -> 0 | H13: * Nota 2 - O adicional de hora extra no feriado trabalhado foi suprimido pela Lei 13.467/17
C14: F | D14: Outros (especificar) | F14: =HLOOKUP($B$5,'Dados Gerais'!$D$5:$BE$59,33) -> 0 | H14: * Nota 3 - ART. 7º, § 2º, DA LEI Nº 605/49.Sendo mensalista o obreiro, o adicional noturno pago de forma fixa já é considerado integrado para os efeitos do pagamento do repouso semanal remunerado, nos termos do art. 7º, § 2º, da Lei nº 605/49.
D16: TOTAL DA REMUNERAÇÃO | F16: =SUM(F9:F14) -> 5177.57
B18: MÓDULO 2 - ENCARGOS E BENEFÍCIOS ANUAIS, MENSAIS E DIÁRIOS | E18: Percentuais | F18: Valor
B19: Submódulo 2.1 - 13º Salário, Férias e Adicional de Férias
C20: A | D20: 13º Salário - Calculado no Módulo 7 - Destacado | E20: 0 | F20: =ROUND(E20*F$16,2) -> 0 | H20: * Nota 1 - Provisiona-se, mensalmente, o proporcional a 1/11 dos valores referentes a gratificação natalina, férias e adicional de férias.
C21: B | D21: Adicional de Férias | E21: ='Encargos Sociais'!E30 -> 0.0303030303 | F21: =ROUND(E21*F$16,2) -> 156.9 | H21: * Nota 2 - O adicional de férias contido no Submódulo 2.1 corresponde a 1/3 da remuneração que, por sua vez, é dividida por 11 contome Nota 1.
B23: Submódulo 2.2 - Encargos Previdenciários (GPS), Fundo de Garantia por Tempo de Serviço (FGTS) e Outras Contribuições
C24: A | D24: INSS (art. 22, inciso I, Lei nº 8.212/91) | E24: ='Encargos Sociais'!E13 -> 0.2 | F24: =ROUND(E24*($F$16+$F$41+$F$73),2) -> 1181.78
C25: B | D25: Salário Educação (art. 3º, inciso I, Decreto nº 87.043/82) | E25: ='Encargos Sociais'!E14 -> 0.025 | F25: =ROUND(E25*($F$16+$F$41+$F$73),2) -> 147.72
C26: C | D26: SAT/RAT (art. 22, II, Lei 8.212/91 e Anexo V, Decreto 6.042/07) - Enquadramento 8211-3/00 | E26: ='Encargos Sociais'!E15 -> 0.03 | F26: 177.27
C27: D | D27: SESC ou SESI (art. 30, Lei nº 8.036/90 e art. 1º, Lei 8.154/90) | E27: ='Encargos Sociais'!E16 -> 0.015 | F27: 88.63
C28: E | D28: SENAI ou SENAC (Decreto nº 2.318/86) | E28: ='Encargos Sociais'!E17 -> 0.01 | F28: 59.09
C29: F | D29: SEBRAE (§ 3º, art. 8º, Lei 8.029/90, alterada pela Lei nº 8.154/90) | E29: ='Encargos Sociais'!E18 -> 0.006 | F29: 35.45
C30: G | D30: INCRA (art. 1º, I, Decreto Lei 1.146/70 e Lei 7.787, de 30/06/89) | E30: ='Encargos Sociais'!E19 -> 0.002 | F30: 11.82 | H30: * Nota 1 - Os percentuais dos encargos previdenciários, do FGTS e demais contribuições são estabelecidos por legislação vigente.
C31: H | D31: FGTS (Lei Complementar nº 110/01 e art. 30, Lei nº 8.036/90) | E31: ='Encargos Sociais'!E20 -> 0.08 | F31: 472.71 | H31: * Nota 2 - O SAT, a depender do grau de risco do serviço, irá variar entre 1%, para risco leve, de 2%, para risco médio, e de 3% para risco grave.
C32: I | D32: SECONCI (Convenções Coletivas de Trabalho da construção) | E32: ='Encargos Sociais'!E21 -> 0 | F32: 0 | H32: * Nota 3 - Os percentuais do Submódulo 2.2 incidem sobre o Módulo 1 e o Submódulo 2.1.
B34: Submódulo 2.3 - Benefícios Mensais e Diários
C35: A | D35: Auxílio Transporte | F35: =HLOOKUP($B$5,'Dados Gerais'!$D$5:$BE$93,82) -> 0
C36: B | D36: Auxílio Alimentação | F36: =HLOOKUP($B$5,'Dados Gerais'!$D$5:$BE$93,89) -> 836
C37: C | D37: Assistência Médica e Familiar | F37: =HLOOKUP($B$5,'Dados Gerais'!$D$5:$BE$101,97) -> 0
C38: D | D38: Outros (Seguro de vida e auxílio funeral e auxílio odontológico) | F38: =HLOOKUP($B$5,'Dados Gerais'!$D$5:$BE$118,114) -> 2.5 | H38: * Nota 1 - O valor informado deverá ser o custo real do benefício (descontado o valor eventualmente pago pelo empregado).
H39: * Nota 2 - Observar a previsão dos benefícios contidos em Acordos, Convenções e Dissídios Coletivos de Trabalho e o disposto no art. 6º da IN 5/2017
D40: QUADRO-RESUMO DO MÓDULO 2
D41: 2.1 - 13º Salário, Férias e Adicional de Férias - 13º Destacado - Calculado no Módulo 7 | E41: =SUM(E20:E21) -> 0.0303030303 | F41: =F20+F21 -> 156.9
D42: 2.2 - Encargos Previdenciários (GPS), Fundo de Garantia por Tempo de Serviço (FGTS) e Contribuições | E42: =SUM(E24:E32) -> 0.368 | F42: =SUM(F24:F32) -> 2174.47
D43: 2.3 - Benefícios Mensais e Diários | F43: =SUM(F35:F38) -> 838.5
D45: TOTAL DOS ENCARGOS E BENEFÍCIOS | F45: =SUM(F41:F43) -> 3169.87
B47: MÓDULO 3 - PREVISÃO PARA RESCISÃO | E47: Percentuais | F47: Valor
C48: A | D48: Aviso Prévio Indenizado (Art. 7º, inciso XXI, da CF/1988 e arts. 477, 487, §1º, e 491 da CLT) | E48: ='Encargos Sociais'!E35 -> 0.008333333333 | F48: =ROUND(E48*($F$16+$F$59),2) -> 47.07
C49: B | D49: Incidência do FGTS sobre o Aviso Prévio Indenizado (Súmula 305 TST) | E49: ='Encargos Sociais'!E36 -> 0.0006666666667 | F49: =ROUND(E49*($F$16+$F$59),2) -> 3.77 | H49: * Nota 1 - Adotou-se os parâmetros do estudo do STF (http://www.stf.jus.br/arquivo/cms/sobrestfestudosci/anexo/encargos_sociais_03102007.pdf), onde 5% do pessoal é demitido pelo empregador no decurso do contrato (para estes, considerou-se o aviso prévio indenizado). Desprezou-se as demissões por justa causa e os pedidos de demissão.
C50: C | D50: Multa do FGTS e Contribuição Social sobre o Aviso Prévio Indenizado (Art. 18, §1º, da Lei 8.036/1990 e art. 1º da LC nº 110/2001) | E50: ='Encargos Sociais'!E37 -> 0.001274074074 | F50: 7.2 | H50: * Nota 2 - No cálculo do percentual, considerou-se 36 dias, correspondendo à metade da duração média dos contratos (2 anos)
C51: D | D51: Aviso Prévio Trabalhado (Art. 488, parágrafo único, CLT) | E51: ='Encargos Sociais'!E38 -> 0.01203703704 | F51: 67.99 | H51: * Nota 3 - Incide sobre a Remuneração + 13º salário (1/12) + Férias (1/12) + Adicional de Férias (1/36) x 50% multa (40% para o empregado e 10% de contribuição social) x 8% FGTS
C52: E | D52: Incidência de GPS, FGTS e outras contribuições sobre o Aviso Prévio Trabalhado | E52: ='Encargos Sociais'!E39 -> 0.00442962963 | F52: 25.02 | H52: * Nota 4 - Os 95% restantes do cálculo, a um prazo médio de contrato de 4 anos. Assim, calcula-se 7 dias para o 1º ano de contrato e mais 3 dias para os 3 anos seguintes.
C53: F | D53: Multa do FGTS e Contribuição Social sobre o Aviso Prévio Trabalhado | E53: ='Encargos Sociais'!E40 -> 0.03050515556 | F53: 172.3
D55: TOTAL DE PREVISÃO PARA RESCISÃO | F55: =SUM(F48:F53) -> 323.35
B57: MÓDULO 4 - CUSTO DE REPOSIÇÃO DO PROFISSIONAL AUSENTE | E57: Percentuais | F57: Valor
B58: Submódulo 4.1 - Ausências Legais
C59: A | D59: Férias (Arts. 129 e 130, inc. I, da CLT) | E59: ='Encargos Sociais'!E24 -> 0.09090909091 | F59: =ROUND(E59*$F$16,2) -> 470.69 | H59: * Nota 1 - As alíneas “A” a “F” referem-se somente ao custo que será pago ao repositor pelos dias trabalhados quando da necessidade de substituir a mão de obra alocada na prestação do serviço.
C60: B | D60: Ausências Legais (Arts. 131 e 473 da CLT) | E60: ='Encargos Sociais'!E25 -> 0.007936507937 | F60: 41.09 | H60: * Nota 2 - Adotou-se a estimativa do SINAPI de 2 dias por ano.
C61: C | D61: Licença-Paternidade (Art. 7º, XIX, e art. 10, §1º, do ADCT, CF/1988 e Art. 1º, II, da Lei 11.770/2008) | E61: ='Encargos Sociais'!E26 -> 0.0008277777778 | F61: 4.29 | H61: * Nota 3 - Utilizada a proporção de 50% para homens, 5 dias de afastamento, e a probabilidade de um trabalhador requerer a Licença Paternidade em 5,22%, conforme SINAPI (citando dados da PNAD 2015)
C62: D | D62: Ausência por Acidente de Trabalho (Art. 131, III, da CLT) | E62: ='Encargos Sociais'!E27 -> 0.0008541666667 | F62: 4.42 | H62: * Nota 4 - Utilzada a estatística de 1,96% dos contribuintes beneficiados com a emissão do auxílio, conforme Anuário Estatístico da Previdência Social. Afastamento de 15 dias a cargo da empresa.
C63: E | D63: Afastamento Maternidade (Art. 71 da Lei nº 8.213/1991) | E63: ='Encargos Sociais'!E28 -> 0.003292592593 | F63: 17.05 | H63: * Nota 5 - Utilizada a proporção de 50% para mulheres, 180 dias de afastamento, e a probabilidade de uma trabalhadora requerer a Licença Maternidade em 4,91%, conforme SINAPI (citando dados do IBGE 2016)
C64: F | D64: Auxílio Enfermidade - Doença (Art. 59 da Lei nº 8.213/1991) | E64: ='Encargos Sociais'!E29 -> 0.007122222222 | F64: 36.88 | H64: * Nota 6 - Utilizada a estatística de 3,37% dos contribuintes beneficiados com o auxílio, conforme Anuário Estatístico da Previdência Social de 2015 (acrescidos de 2 dias ao ano, para os quais o trabalhador nem requer o benefício da Previdência - conforme SINAPI)
B66: Submódulo 4.2 - Intrajornada
C67: A | D67: Intervalo para repouso ou alimentação | E67: ='Encargos Sociais'!E32 -> 0 | F67: =ROUND(E67*$F$16,2) -> 0
D69: QUADRO-RESUMO DO MÓDULO 4 | F69: Valor
D70: 4.1 - Ausências Legais | E70: =SUM(E59:E64) -> 0.1109423581 | F70: =ROUND(E70*$F$16,2) -> 574.41
D71: 4.2 - Intrajornada | E71: =E67 -> 0 | F71: =ROUND(E71*$F$16,2) -> 0
D73: TOTAL DE PREVISÃO PARA RESCISÃO E INTERVALO INTRAJORNADA | F73: =SUM(F70:F71) -> 574.41
B75: MÓDULO 5 - INSUMOS DIVERSOS | F75: Valor
C76: A | D76: Uniformes - aquisição | F76: =Uniformes!M19/12 -> 259.31
C77: B | D77: Materiais de consumo relacionados ao posto - aquisição | F77: =ROUND(HLOOKUP(B5,'Mat Cons'!I11:DX13,3)/12,2) -> 0
C78: C | D78: Materiais permanentes relacionados ao posto - remuneração da sua depreciação / manutenção | F78: =HLOOKUP(B5,'Mat Perm'!Q11:EF13,3) -> 0
C79: D | D79: Equipamentos relacionados ao posto - remuneração da sua depreciação / manutenção | F79: =HLOOKUP(B5,'Equip Rel'!Q11:EF13,3) -> 0
C80: E | D80: Equipamentos de Proteção Individual - EPI - aquisição | F80: =ROUND(HLOOKUP(B5,EPI!I3:DX48,3)/12,2) -> 0
D82: TOTAL DE INSUMOS DIVERSOS | F82: =SUM(F76:F81) -> 259.31 | H82: * Nota - Valores mensais por empregado
B84: MÓDULO 6 - CUSTOS INDIRETOS, TRIBUTOS E LUCRO - BDI | E84: Percentuais | F84: Valor
C85: A | D85: Custos Indiretos | E85: =BDI!E6 -> 0.0357
C86: A.1 | D86: Administração Central | E86: =BDI!E7 -> 0.0303
C87: A.2 | D87: Seguros, Garantias e Riscos | E87: =BDI!E8 -> 0.0054
C88: B | D88: Lucro | E88: =BDI!E10 -> 0.0467
C89: C | D89: Tributos | E89: =SUM(E90:E91) -> 0.124
C90: C.1 | D90: Tributos Federais (COFINS, PIS e CPRB) | E90: =BDI!E18 -> 0.074
C91: C.2 | D91: Tributos Distritais (ISS) | E91: =BDI!E23 -> 0.05 | H91: * Nota - Utilizou-se o indicado pelo Sindicato da Arquitetura e da Engenharia (Sinaenco, 2008, p. 22), que adota um percentual redutor de 20% no cálculo dos custos tributários relativos às contribuições PIS e COFINS
C92: D | D92: Despesas Financeiras | E92: =BDI!E13 -> 0.005251960574
D94: TOTAL DE BDI | E94: =BDI!E26 -> 0.244 | F94: =E94*E102 -> 2319.10044
D96: QUADRO-RESUMO DO CUSTO MENSAL POR EMPREGADO - SEM O 13º | E96: Valor
D97: Módulo 1 - Composição da Remuneração | E97: =F16 -> 5177.57
D98: Módulo 2 - Encargos e Benefícios Anuais, Mensais e Diários | E98: =F45 -> 3169.87
D99: Módulo 3 - Provisão para Rescisão | E99: =F55 -> 323.35
D100: Módulo 4 - Custo de Reposição do Profissional Ausente | E100: =F73 -> 574.41
D101: Módulo 5 - Insumos Diversos | E101: =F82 -> 259.31
D102: SUBTOTAL (A+B+C+D+E) | E102: =SUM(E97:E101) -> 9504.51
D103: Módulo 6 - Custos Indiretos, Tributos e Lucro | E103: =F94 -> 2319.10044
D105: TOTAL DO POSTO | E105: =SUM(E102:E103) -> 11823.61044
B107: MÓDULO 7 - DESTAQUE DO MÓDULO 2 - 13º SALÁRIO | E107: Percentuais | F107: Valor
C108: A | D108: 13º Salário | E108: ='Encargos Sociais'!E31 -> 0.08333333333 | F108: =ROUND(E108*F$16,2) -> 431.46
C109: B | D109: Encargos Sociais sobre o 13º Salário - Taxa calculada no SUBMÓDULO 2.2 | E109: =SUM($E$24:$E$32) -> 0.368 | F109: =ROUND(E109*$F$108,2) -> 158.78 | H109: * Nota 1 - Provisiona-se, mensalmente, o proporcional a 1/12 dos valores referentes a gratificação natalina e adicional de férias.
C110: C | D110: Reincidência de férias sobre o 13º Salário | E110: =E59 -> 0.09090909091 | F110: =ROUND(E110*$F$108,2) -> 39.22
C111: D | D111: BDI sobre o 13º Salário - Taxa calculada no MÓDULO 6 | E111: =E94 -> 0.244 | F111: =ROUND(E111*($F$108+$F$109),2) -> 144.02
D113: TOTAL DO DESTAQUE DO 13º SALÁRIO | F113: =SUM(F108:F111) -> 773.48
D115: QUADRO-RESUMO DO CUSTO MENSAL POR EMPREGADO | E115: Valor
D116: Custo total - sem o 13º Salário | E116: =E105 -> 11823.61044
D117: Destaque do 13º Salário (valor mensal) | E117: =F113 -> 773.48
D119: TOTAL DO POSTO | E119: =E116+E117 -> 12597.09044

Sheet 2
B2: PLANILHA DE ESTIMATIVA DE CUSTOS
B3: Padrão IN 05/2017 e IN 07/2018 - MPDG
B5: 2 | D5: =HLOOKUP($B$5,'Dados Gerais'!$D$5:$BE$20,6) -> RECEPCIONISTA BILINGUE | E5: QUANTIDADE | F5: =HLOOKUP($B$5,'Dados Gerais'!$D$5:$BE$20,10) -> 14
B6: CCT | D6: =HLOOKUP($B$5,'Dados Gerais'!$D$5:$BE$20,15) -> SEAC/DF X SINDSERVIÇOS/DF 2022/2022 Nº DF000015/2021 | E6: DATA-BASE | F6: ='Dados Gerais'!E20 -> 2022-01-01
B8: MÓDULO 1 - COMPOSIÇÃO DA REMUNERAÇÃO | F8: Valor
C9: A | D9: Salário-Base | F9: =HLOOKUP($B$5,'Dados Gerais'!$D$5:$BE$20,8) -> 4706.88
C10: B | D10: Adicional de Periculosidade | F10: =HLOOKUP($B$5,'Dados Gerais'!$D$5:$BE$37,25) -> 0
C11: C | D11: Adicional de Insalubridade | F11: =HLOOKUP($B$5,'Dados Gerais'!$D$5:$BE$37,31) -> 0
C12: D | D12: Adicional Noturno | F12: =HLOOKUP($B$5,'Dados Gerais'!$D$5:$BE$50,46) -> 0 | H12: * Nota 1 - O Módulo 1 refere-se ao valor mensal devido ao empregado pela prestação do serviço no período de 12 meses.
C13: E | D13: Adicional de Hora Extra | F13: =HLOOKUP($B$5,'Dados Gerais'!$D$5:$BE$67,63) -> 0 | H13: * Nota 2 - O adicional de hora extra no feriado trabalhado foi suprimido pela Lei 13.467/17
C14: F | D14: Outros (especificar) | F14: =HLOOKUP($B$5,'Dados Gerais'!$D$5:$BE$59,33) -> 0 | H14: * Nota 3 - ART. 7º, § 2º, DA LEI Nº 605/49.Sendo mensalista o obreiro, o adicional noturno pago de forma fixa já é considerado integrado para os efeitos do pagamento do repouso semanal remunerado, nos termos do art. 7º, § 2º, da Lei nº 605/49.
D16: TOTAL DA REMUNERAÇÃO | F16: =SUM(F9:F14) -> 4706.88
B18: MÓDULO 2 - ENCARGOS E BENEFÍCIOS ANUAIS, MENSAIS E DIÁRIOS | E18: Percentuais | F18: Valor
B19: Submódulo 2.1 - 13º Salário, Férias e Adicional de Férias
C20: A | D20: 13º Salário - Calculado no Módulo 7 - Destacado | E20: 0 | F20: =ROUND(E20*F$16,2) -> 0 | H20: * Nota 1 - Provisiona-se, mensalmente, o proporcional a 1/11 dos valores referentes a gratificação natalina, férias e adicional de férias.
C21: B | D21: Adicional de Férias | E21: ='Encargos Sociais'!E30 -> 0.0303030303 | F21: =ROUND(E21*F$16,2) -> 142.63 | H21: * Nota 2 - O adicional de férias contido no Submódulo 2.1 corresponde a 1/3 da remuneração que, por sua vez, é dividida por 11 contome Nota 1.
B23: Submódulo 2.2 - Encargos Previdenciários (GPS), Fundo de Garantia por Tempo de Serviço (FGTS) e Outras Contribuições
C24: A | D24: INSS (art. 22, inciso I, Lei nº 8.212/91) | E24: ='Encargos Sociais'!E13 -> 0.2 | F24: =ROUND(E24*($F$16+$F$41+$F$73),2) -> 1074.34
C25: B | D25: Salário Educação (art. 3º, inciso I, Decreto nº 87.043/82) | E25: ='Encargos Sociais'!E14 -> 0.025 | F25: =ROUND(E25*($F$16+$F$41+$F$73),2) -> 134.29
C26: C | D26: SAT/RAT (art. 22, II, Lei 8.212/91 e Anexo V, Decreto 6.042/07) - Enquadramento 8211-3/00 | E26: ='Encargos Sociais'!E15 -> 0.03 | F26: 161.15
C27: D | D27: SESC ou SESI (art. 30, Lei nº 8.036/90 e art. 1º, Lei 8.154/90) | E27: ='Encargos Sociais'!E16 -> 0.015 | F27: 80.58
C28: E | D28: SENAI ou SENAC (Decreto nº 2.318/86) | E28: ='Encargos Sociais'!E17 -> 0.01 | F28: 53.72
C29: F | D29: SEBRAE (§ 3º, art. 8º, Lei 8.029/90, alterada pela Lei nº 8.154/90) | E29: ='Encargos Sociais'!E18 -> 0.006 | F29: 32.23
C30: G | D30: INCRA (art. 1º, I, Decreto Lei 1.146/70 e Lei 7.787, de 30/06/89) | E30: ='Encargos Sociais'!E19 -> 0.002 | F30: 10.74 | H30: * Nota 1 - Os percentuais dos encargos previdenciários, do FGTS e demais contribuições são estabelecidos por legislação vigente.
C31: H | D31: FGTS (Lei Complementar nº 110/01 e art. 30, Lei nº 8.036/90) | E31: ='Encargos Sociais'!E20 -> 0.08 | F31: 429.74 | H31: * Nota 2 - O SAT, a depender do grau de risco do serviço, irá variar entre 1%, para risco leve, de 2%, para risco médio, e de 3% para risco grave.
C32: I | D32: SECONCI (Convenções Coletivas de Trabalho da construção) | E32: ='Encargos Sociais'!E21 -> 0 | F32: 0 | H32: * Nota 3 - Os percentuais do Submódulo 2.2 incidem sobre o Módulo 1 e o Submódulo 2.1.
B34: Submódulo 2.3 - Benefícios Mensais e Diários
C35: A | D35: Auxílio Transporte | F35: =HLOOKUP($B$5,'Dados Gerais'!$D$5:$BE$93,82) -> 20.13
C36: B | D36: Auxílio Alimentação | F36: =HLOOKUP($B$5,'Dados Gerais'!$D$5:$BE$93,89) -> 836
C37: C | D37: Assistência Médica e Familiar | F37: =HLOOKUP($B$5,'Dados Gerais'!$D$5:$BE$101,97) -> 0
C38: D | D38: Outros (Seguro de vida e auxílio funeral e auxílio odontológico) | F38: =HLOOKUP($B$5,'Dados Gerais'!$D$5:$BE$118,114) -> 2.5 | H38: * Nota 1 - O valor informado deverá ser o custo real do benefício (descontado o valor eventualmente pago pelo empregado).
H39: * Nota 2 - Observar a previsão dos benefícios contidos em Acordos, Convenções e Dissídios Coletivos de Trabalho e o disposto no art. 6º da IN 5/2017
D40: QUADRO-RESUMO DO MÓDULO 2
D41: 2.1 - 13º Salário, Férias e Adicional de Férias - 13º Destacado - Calculado no Módulo 7 | E41: =SUM(E20:E21) -> 0.0303030303 | F41: =F20+F21 -> 142.63
D42: 2.2 - Encargos Previdenciários (GPS), Fundo de Garantia por Tempo de Serviço (FGTS) e Contribuições | E42: =SUM(E24:E32) -> 0.368 | F42: =SUM(F24:F32) -> 1976.79
D43: 2.3 - Benefícios Mensais e Diários | F43: =SUM(F35:F38) -> 858.63
D45: TOTAL DOS ENCARGOS E BENEFÍCIOS | F45: =SUM(F41:F43) -> 2978.05
B47: MÓDULO 3 - PREVISÃO PARA RESCISÃO | E47: Percentuais | F47: Valor
C48: A | D48: Aviso Prévio Indenizado (Art. 7º, inciso XXI, da CF/1988 e arts. 477, 487, §1º, e 491 da CLT) | E48: ='Encargos Sociais'!E35 -> 0.008333333333 | F48: =ROUND(E48*($F$16+$F$59),2) -> 42.79
C49: B | D49: Incidência do FGTS sobre o Aviso Prévio Indenizado (Súmula 305 TST) | E49: ='Encargos Sociais'!E36 -> 0.0006666666667 | F49: =ROUND(E49*($F$16+$F$59),2) -> 3.42 | H49: * Nota 1 - Adotou-se os parâmetros do estudo do STF (http://www.stf.jus.br/arquivo/cms/sobrestfestudosci/anexo/encargos_sociais_03102007.pdf), onde 5% do pessoal é demitido pelo empregador no decurso do contrato (para estes, considerou-se o aviso prévio indenizado). Desprezou-se as demissões por justa causa e os pedidos de demissão.
C50: C | D50: Multa do FGTS e Contribuição Social sobre o Aviso Prévio Indenizado (Art. 18, §1º, da Lei 8.036/1990 e art. 1º da LC nº 110/2001) | E50: ='Encargos Sociais'!E37 -> 0.001274074074 | F50: 6.54 | H50: * Nota 2 - No cálculo do percentual, considerou-se 36 dias, correspondendo à metade da duração média dos contratos (2 anos)
C51: D | D51: Aviso Prévio Trabalhado (Art. 488, parágrafo único, CLT) | E51: ='Encargos Sociais'!E38 -> 0.01203703704 | F51: 61.81 | H51: * Nota 3 - Incide sobre a Remuneração + 13º salário (1/12) + Férias (1/12) + Adicional de Férias (1/36) x 50% multa (40% para o empregado e 10% de contribuição social) x 8% FGTS
C52: E | D52: Incidência de GPS, FGTS e outras contribuições sobre o Aviso Prévio Trabalhado | E52: ='Encargos Sociais'!E39 -> 0.00442962963 | F52: 22.75 | H52: * Nota 4 - Os 95% restantes do cálculo, a um prazo médio de contrato de 4 anos. Assim, calcula-se 7 dias para o 1º ano de contrato e mais 3 dias para os 3 anos seguintes.
C53: F | D53: Multa do FGTS e Contribuição Social sobre o Aviso Prévio Trabalhado | E53: ='Encargos Sociais'!E40 -> 0.03050515556 | F53: 156.64
D55: TOTAL DE PREVISÃO PARA RESCISÃO | F55: =SUM(F48:F53) -> 293.95
B57: MÓDULO 4 - CUSTO DE REPOSIÇÃO DO PROFISSIONAL AUSENTE | E57: Percentuais | F57: Valor
B58: Submódulo 4.1 - Ausências Legais
C59: A | D59: Férias (Arts. 129 e 130, inc. I, da CLT) | E59: ='Encargos Sociais'!E24 -> 0.09090909091 | F59: =ROUND(E59*$F$16,2) -> 427.9 | H59: * Nota 1 - As alíneas “A” a “F” referem-se somente ao custo que será pago ao repositor pelos dias trabalhados quando da necessidade de substituir a mão de obra alocada na prestação do serviço.
C60: B | D60: Ausências Legais (Arts. 131 e 473 da CLT) | E60: ='Encargos Sociais'!E25 -> 0.007936507937 | F60: 37.36 | H60: * Nota 2 - Adotou-se a estimativa do SINAPI de 2 dias por ano.
C61: C | D61: Licença-Paternidade (Art. 7º, XIX, e art. 10, §1º, do ADCT, CF/1988 e Art. 1º, II, da Lei 11.770/2008) | E61: ='Encargos Sociais'!E26 -> 0.0008277777778 | F61: 3.9 | H61: * Nota 3 - Utilizada a proporção de 50% para homens, 5 dias de afastamento, e a probabilidade de um trabalhador requerer a Licença Paternidade em 5,22%, conforme SINAPI (citando dados da PNAD 2015)
C62: D | D62: Ausência por Acidente de Trabalho (Art. 131, III, da CLT) | E62: ='Encargos Sociais'!E27 -> 0.0008541666667 | F62: 4.02 | H62: * Nota 4 - Utilzada a estatística de 1,96% dos contribuintes beneficiados com a emissão do auxílio, conforme Anuário Estatístico da Previdência Social. Afastamento de 15 dias a cargo da empresa.
C63: E | D63: Afastamento Maternidade (Art. 71 da Lei nº 8.213/1991) | E63: ='Encargos Sociais'!E28 -> 0.003292592593 | F63: 15.5 | H63: * Nota 5 - Utilizada a proporção de 50% para mulheres, 180 dias de afastamento, e a probabilidade de uma trabalhadora requerer a Licença Maternidade em 4,91%, conforme SINAPI (citando dados do IBGE 2016)
C64: F | D64: Auxílio Enfermidade - Doença (Art. 59 da Lei nº 8.213/1991) | E64: ='Encargos Sociais'!E29 -> 0.007122222222 | F64: 33.52 | H64: * Nota 6 - Utilizada a estatística de 3,37% dos contribuintes beneficiados com o auxílio, conforme Anuário Estatístico da Previdência Social de 2015 (acrescidos de 2 dias ao ano, para os quais o trabalhador nem requer o benefício da Previdência - conforme SINAPI)
B66: Submódulo 4.2 - Intrajornada
C67: A | D67: Intervalo para repouso ou alimentação | E67: ='Encargos Sociais'!E32 -> 0 | F67: =ROUND(E67*$F$16,2) -> 0
D69: QUADRO-RESUMO DO MÓDULO 4 | F69: Valor
D70: 4.1 - Ausências Legais | E70: =SUM(E59:E64) -> 0.1109423581 | F70: =ROUND(E70*$F$16,2) -> 522.19
D71: 4.2 - Intrajornada | E71: =E67 -> 0 | F71: =ROUND(E71*$F$16,2) -> 0
D73: TOTAL DE PREVISÃO PARA RESCISÃO E INTERVALO INTRAJORNADA | F73: =SUM(F70:F71) -> 522.19
B75: MÓDULO 5 - INSUMOS DIVERSOS | F75: Valor
C76: A | D76: Uniformes - aquisição | F76: =Uniformes!M19/12 -> 259.31
C77: B | D77: Materiais de consumo relacionados ao posto - aquisição | F77: =ROUND(HLOOKUP(B5,'Mat Cons'!I11:DX13,3)/12,2) -> 0
C78: C | D78: Materiais permanentes relacionados ao posto - remuneração da sua depreciação / manutenção | F78: =HLOOKUP(B5,'Mat Perm'!Q11:EF13,3) -> 0
C79: D | D79: Equipamentos relacionados ao posto - remuneração da sua depreciação / manutenção | F79: =HLOOKUP(B5,'Equip Rel'!Q11:EF13,3) -> 0
C80: E | D80: Equipamentos de Proteção Individual - EPI - aquisição | F80: =ROUND(HLOOKUP(B5,EPI!I3:DX48,3)/12,2) -> 0
D82: TOTAL DE INSUMOS DIVERSOS | F82: =SUM(F76:F81) -> 259.31 | H82: * Nota - Valores mensais por empregado
B84: MÓDULO 6 - CUSTOS INDIRETOS, TRIBUTOS E LUCRO - BDI | E84: Percentuais | F84: Valor
C85: A | D85: Custos Indiretos | E85: =BDI!E6 -> 0.0357
C86: A.1 | D86: Administração Central | E86: =BDI!E7 -> 0.0303
C87: A.2 | D87: Seguros, Garantias e Riscos | E87: =BDI!E8 -> 0.0054
C88: B | D88: Lucro | E88: =BDI!E10 -> 0.0467
C89: C | D89: Tributos | E89: =SUM(E90:E91) -> 0.124
C90: C.1 | D90: Tributos Federais (COFINS, PIS e CPRB) | E90: =BDI!E18 -> 0.074
C91: C.2 | D91: Tributos Distritais (ISS) | E91: =BDI!E23 -> 0.05 | H91: * Nota - Utilizou-se o indicado pelo Sindicato da Arquitetura e da Engenharia (Sinaenco, 2008, p. 22), que adota um percentual redutor de 20% no cálculo dos custos tributários relativos às contribuições PIS e COFINS
C92: D | D92: Despesas Financeiras | E92: =BDI!E13 -> 0.005251960574
D94: TOTAL DE BDI | E94: =BDI!E26 -> 0.244 | F94: =E94*E102 -> 2137.53272
D96: QUADRO-RESUMO DO CUSTO MENSAL POR EMPREGADO - SEM O 13º | E96: Valor
D97: Módulo 1 - Composição da Remuneração | E97: =F16 -> 4706.88
D98: Módulo 2 - Encargos e Benefícios Anuais, Mensais e Diários | E98: =F45 -> 2978.05
D99: Módulo 3 - Provisão para Rescisão | E99: =F55 -> 293.95
D100: Módulo 4 - Custo de Reposição do Profissional Ausente | E100: =F73 -> 522.19
D101: Módulo 5 - Insumos Diversos | E101: =F82 -> 259.31
D102: SUBTOTAL (A+B+C+D+E) | E102: =SUM(E97:E101) -> 8760.38
D103: Módulo 6 - Custos Indiretos, Tributos e Lucro | E103: =F94 -> 2137.53272
D105: TOTAL DO POSTO | E105: =SUM(E102:E103) -> 10897.91272
B107: MÓDULO 7 - DESTAQUE DO MÓDULO 2 - 13º SALÁRIO | E107: Percentuais | F107: Valor
C108: A | D108: 13º Salário | E108: ='Encargos Sociais'!E31 -> 0.08333333333 | F108: =ROUND(E108*F$16,2) -> 392.24
C109: B | D109: Encargos Sociais sobre o 13º Salário - Taxa calculada no SUBMÓDULO 2.2 | E109: =SUM($E$24:$E$32) -> 0.368 | F109: =ROUND(E109*$F$108,2) -> 144.34 | H109: * Nota 1 - Provisiona-se, mensalmente, o proporcional a 1/12 dos valores referentes a gratificação natalina e adicional de férias.
C110: C | D110: Reincidência de férias sobre o 13º Salário | E110: =E59 -> 0.09090909091 | F110: =ROUND(E110*$F$108,2) -> 35.66
C111: D | D111: BDI sobre o 13º Salário - Taxa calculada no MÓDULO 6 | E111: =E94 -> 0.244 | F111: =ROUND(E111*($F$108+$F$109),2) -> 130.93
D113: TOTAL DO DESTAQUE DO 13º SALÁRIO | F113: =SUM(F108:F111) -> 703.17
D115: QUADRO-RESUMO DO CUSTO MENSAL POR EMPREGADO | E115: Valor
D116: Custo total - sem o 13º Salário | E116: =E105 -> 10897.91272
D117: Destaque do 13º Salário (valor mensal) | E117: =F113 -> 703.17
D119: TOTAL DO POSTO | E119: =E116+E117 -> 11601.08272

Sheet 3
B2: PLANILHA DE ESTIMATIVA DE CUSTOS
B3: Padrão IN 05/2017 e IN 07/2018 - MPDG
B5: 3 | D5: =HLOOKUP($B$5,'Dados Gerais'!$D$5:$BE$20,6) -> CERIMONIALISTA | E5: QUANTIDADE | F5: =HLOOKUP($B$5,'Dados Gerais'!$D$5:$BE$20,10) -> 6
B6: CCT | D6: =HLOOKUP($B$5,'Dados Gerais'!$D$5:$BE$20,15) -> SEAC/DF X SINDSERVIÇOS/DF 2022/2022 Nº DF000015/2021 | E6: DATA-BASE | F6: ='Dados Gerais'!E20 -> 2022-01-01
B8: MÓDULO 1 - COMPOSIÇÃO DA REMUNERAÇÃO | F8: Valor
C9: A | D9: Salário-Base | F9: =HLOOKUP($B$5,'Dados Gerais'!$D$5:$BE$20,8) -> 4706.88
C10: B | D10: Adicional de Periculosidade | F10: =HLOOKUP($B$5,'Dados Gerais'!$D$5:$BE$37,25) -> 0
C11: C | D11: Adicional de Insalubridade | F11: =HLOOKUP($B$5,'Dados Gerais'!$D$5:$BE$37,31) -> 0
C12: D | D12: Adicional Noturno | F12: =HLOOKUP($B$5,'Dados Gerais'!$D$5:$BE$50,46) -> 0 | H12: * Nota 1 - O Módulo 1 refere-se ao valor mensal devido ao empregado pela prestação do serviço no período de 12 meses.
C13: E | D13: Adicional de Hora Extra | F13: =HLOOKUP($B$5,'Dados Gerais'!$D$5:$BE$67,63) -> 0 | H13: * Nota 2 - O adicional de hora extra no feriado trabalhado foi suprimido pela Lei 13.467/17
C14: F | D14: Outros (especificar) | F14: =HLOOKUP($B$5,'Dados Gerais'!$D$5:$BE$59,33) -> 0 | H14: * Nota 3 - ART. 7º, § 2º, DA LEI Nº 605/49.Sendo mensalista o obreiro, o adicional noturno pago de forma fixa já é considerado integrado para os efeitos do pagamento do repouso semanal remunerado, nos termos do art. 7º, § 2º, da Lei nº 605/49.
D16: TOTAL DA REMUNERAÇÃO | F16: =SUM(F9:F14) -> 4706.88
B18: MÓDULO 2 - ENCARGOS E BENEFÍCIOS ANUAIS, MENSAIS E DIÁRIOS | E18: Percentuais | F18: Valor
B19: Submódulo 2.1 - 13º Salário, Férias e Adicional de Férias
C20: A | D20: 13º Salário - Calculado no Módulo 7 - Destacado | E20: 0 | F20: =ROUND(E20*F$16,2) -> 0 | H20: * Nota 1 - Provisiona-se, mensalmente, o proporcional a 1/11 dos valores referentes a gratificação natalina, férias e adicional de férias.
C21: B | D21: Adicional de Férias | E21: ='Encargos Sociais'!E30 -> 0.0303030303 | F21: =ROUND(E21*F$16,2) -> 142.63 | H21: * Nota 2 - O adicional de férias contido no Submódulo 2.1 corresponde a 1/3 da remuneração que, por sua vez, é dividida por 11 contome Nota 1.
B23: Submódulo 2.2 - Encargos Previdenciários (GPS), Fundo de Garantia por Tempo de Serviço (FGTS) e Outras Contribuições
C24: A | D24: INSS (art. 22, inciso I, Lei nº 8.212/91) | E24: ='Encargos Sociais'!E13 -> 0.2 | F24: =ROUND(E24*($F$16+$F$41+$F$73),2) -> 1074.34
C25: B | D25: Salário Educação (art. 3º, inciso I, Decreto nº 87.043/82) | E25: ='Encargos Sociais'!E14 -> 0.025 | F25: =ROUND(E25*($F$16+$F$41+$F$73),2) -> 134.29
C26: C | D26: SAT/RAT (art. 22, II, Lei 8.212/91 e Anexo V, Decreto 6.042/07) - Enquadramento 8211-3/00 | E26: ='Encargos Sociais'!E15 -> 0.03 | F26: 161.15
C27: D | D27: SESC ou SESI (art. 30, Lei nº 8.036/90 e art. 1º, Lei 8.154/90) | E27: ='Encargos Sociais'!E16 -> 0.015 | F27: 80.58
C28: E | D28: SENAI ou SENAC (Decreto nº 2.318/86) | E28: ='Encargos Sociais'!E17 -> 0.01 | F28: 53.72
C29: F | D29: SEBRAE (§ 3º, art. 8º, Lei 8.029/90, alterada pela Lei nº 8.154/90) | E29: ='Encargos Sociais'!E18 -> 0.006 | F29: 32.23
C30: G | D30: INCRA (art. 1º, I, Decreto Lei 1.146/70 e Lei 7.787, de 30/06/89) | E30: ='Encargos Sociais'!E19 -> 0.002 | F30: 10.74 | H30: * Nota 1 - Os percentuais dos encargos previdenciários, do FGTS e demais contribuições são estabelecidos por legislação vigente.
C31: H | D31: FGTS (Lei Complementar nº 110/01 e art. 30, Lei nº 8.036/90) | E31: ='Encargos Sociais'!E20 -> 0.08 | F31: 429.74 | H31: * Nota 2 - O SAT, a depender do grau de risco do serviço, irá variar entre 1%, para risco leve, de 2%, para risco médio, e de 3% para risco grave.
C32: I | D32: SECONCI (Convenções Coletivas de Trabalho da construção) | E32: ='Encargos Sociais'!E21 -> 0 | F32: 0 | H32: * Nota 3 - Os percentuais do Submódulo 2.2 incidem sobre o Módulo 1 e o Submódulo 2.1.
B34: Submódulo 2.3 - Benefícios Mensais e Diários
C35: A | D35: Auxílio Transporte | F35: =HLOOKUP($B$5,'Dados Gerais'!$D$5:$BE$93,82) -> 20.13
C36: B | D36: Auxílio Alimentação | F36: =HLOOKUP($B$5,'Dados Gerais'!$D$5:$BE$93,89) -> 836
C37: C | D37: Assistência Médica e Familiar | F37: =HLOOKUP($B$5,'Dados Gerais'!$D$5:$BE$101,97) -> 0
C38: D | D38: Outros (Seguro de vida e auxílio funeral e auxílio odontológico) | F38: =HLOOKUP($B$5,'Dados Gerais'!$D$5:$BE$118,114) -> 2.5 | H38: * Nota 1 - O valor informado deverá ser o custo real do benefício (descontado o valor eventualmente pago pelo empregado).
H39: * Nota 2 - Observar a previsão dos benefícios contidos em Acordos, Convenções e Dissídios Coletivos de Trabalho e o disposto no art. 6º da IN 5/2017
D40: QUADRO-RESUMO DO MÓDULO 2
D41: 2.1 - 13º Salário, Férias e Adicional de Férias - 13º Destacado - Calculado no Módulo 7 | E41: =SUM(E20:E21) -> 0.0303030303 | F41: =F20+F21 -> 142.63
D42: 2.2 - Encargos Previdenciários (GPS), Fundo de Garantia por Tempo de Serviço (FGTS) e Contribuições | E42: =SUM(E24:E32) -> 0.368 | F42: =SUM(F24:F32) -> 1976.79
D43: 2.3 - Benefícios Mensais e Diários | F43: =SUM(F35:F38) -> 858.63
D45: TOTAL DOS ENCARGOS E BENEFÍCIOS | F45: =SUM(F41:F43) -> 2978.05
B47: MÓDULO 3 - PREVISÃO PARA RESCISÃO | E47: Percentuais | F47: Valor
C48: A | D48: Aviso Prévio Indenizado (Art. 7º, inciso XXI, da CF/1988 e arts. 477, 487, §1º, e 491 da CLT) | E48: ='Encargos Sociais'!E35 -> 0.008333333333 | F48: =ROUND(E48*($F$16+$F$59),2) -> 42.79
C49: B | D49: Incidência do FGTS sobre o Aviso Prévio Indenizado (Súmula 305 TST) | E49: ='Encargos Sociais'!E36 -> 0.0006666666667 | F49: =ROUND(E49*($F$16+$F$59),2) -> 3.42 | H49: * Nota 1 - Adotou-se os parâmetros do estudo do STF (http://www.stf.jus.br/arquivo/cms/sobrestfestudosci/anexo/encargos_sociais_03102007.pdf), onde 5% do pessoal é demitido pelo empregador no decurso do contrato (para estes, considerou-se o aviso prévio indenizado). Desprezou-se as demissões por justa causa e os pedidos de demissão.
C50: C | D50: Multa do FGTS e Contribuição Social sobre o Aviso Prévio Indenizado (Art. 18, §1º, da Lei 8.036/1990 e art. 1º da LC nº 110/2001) | E50: ='Encargos Sociais'!E37 -> 0.001274074074 | F50: 6.54 | H50: * Nota 2 - No cálculo do percentual, considerou-se 36 dias, correspondendo à metade da duração média dos contratos (2 anos)
C51: D | D51: Aviso Prévio Trabalhado (Art. 488, parágrafo único, CLT) | E51: ='Encargos Sociais'!E38 -> 0.01203703704 | F51: 61.81 | H51: * Nota 3 - Incide sobre a Remuneração + 13º salário (1/12) + Férias (1/12) + Adicional de Férias (1/36) x 50% multa (40% para o empregado e 10% de contribuição social) x 8% FGTS
C52: E | D52: Incidência de GPS, FGTS e outras contribuições sobre o Aviso Prévio Trabalhado | E52: ='Encargos Sociais'!E39 -> 0.00442962963 | F52: 22.75 | H52: * Nota 4 - Os 95% restantes do cálculo, a um prazo médio de contrato de 4 anos. Assim, calcula-se 7 dias para o 1º ano de contrato e mais 3 dias para os 3 anos seguintes.
C53: F | D53: Multa do FGTS e Contribuição Social sobre o Aviso Prévio Trabalhado | E53: ='Encargos Sociais'!E40 -> 0.03050515556 | F53: 156.64
D55: TOTAL DE PREVISÃO PARA RESCISÃO | F55: =SUM(F48:F53) -> 293.95
B57: MÓDULO 4 - CUSTO DE REPOSIÇÃO DO PROFISSIONAL AUSENTE | E57: Percentuais | F57: Valor
B58: Submódulo 4.1 - Ausências Legais
C59: A | D59: Férias (Arts. 129 e 130, inc. I, da CLT) | E59: ='Encargos Sociais'!E24 -> 0.09090909091 | F59: =ROUND(E59*$F$16,2) -> 427.9 | H59: * Nota 1 - As alíneas “A” a “F” referem-se somente ao custo que será pago ao repositor pelos dias trabalhados quando da necessidade de substituir a mão de obra alocada na prestação do serviço.
C60: B | D60: Ausências Legais (Arts. 131 e 473 da CLT) | E60: ='Encargos Sociais'!E25 -> 0.007936507937 | F60: 37.36 | H60: * Nota 2 - Adotou-se a estimativa do SINAPI de 2 dias por ano.
C61: C | D61: Licença-Paternidade (Art. 7º, XIX, e art. 10, §1º, do ADCT, CF/1988 e Art. 1º, II, da Lei 11.770/2008) | E61: ='Encargos Sociais'!E26 -> 0.0008277777778 | F61: 3.9 | H61: * Nota 3 - Utilizada a proporção de 50% para homens, 5 dias de afastamento, e a probabilidade de um trabalhador requerer a Licença Paternidade em 5,22%, conforme SINAPI (citando dados da PNAD 2015)
C62: D | D62: Ausência por Acidente de Trabalho (Art. 131, III, da CLT) | E62: ='Encargos Sociais'!E27 -> 0.0008541666667 | F62: 4.02 | H62: * Nota 4 - Utilzada a estatística de 1,96% dos contribuintes beneficiados com a emissão do auxílio, conforme Anuário Estatístico da Previdência Social. Afastamento de 15 dias a cargo da empresa.
C63: E | D63: Afastamento Maternidade (Art. 71 da Lei nº 8.213/1991) | E63: ='Encargos Sociais'!E28 -> 0.003292592593 | F63: 15.5 | H63: * Nota 5 - Utilizada a proporção de 50% para mulheres, 180 dias de afastamento, e a probabilidade de uma trabalhadora requerer a Licença Maternidade em 4,91%, conforme SINAPI (citando dados do IBGE 2016)
C64: F | D64: Auxílio Enfermidade - Doença (Art. 59 da Lei nº 8.213/1991) | E64: ='Encargos Sociais'!E29 -> 0.007122222222 | F64: 33.52 | H64: * Nota 6 - Utilizada a estatística de 3,37% dos contribuintes beneficiados com o auxílio, conforme Anuário Estatístico da Previdência Social de 2015 (acrescidos de 2 dias ao ano, para os quais o trabalhador nem requer o benefício da Previdência - conforme SINAPI)
B66: Submódulo 4.2 - Intrajornada
C67: A | D67: Intervalo para repouso ou alimentação | E67: ='Encargos Sociais'!E32 -> 0 | F67: =ROUND(E67*$F$16,2) -> 0
D69: QUADRO-RESUMO DO MÓDULO 4 | F69: Valor
D70: 4.1 - Ausências Legais | E70: =SUM(E59:E64) -> 0.1109423581 | F70: =ROUND(E70*$F$16,2) -> 522.19
D71: 4.2 - Intrajornada | E71: =E67 -> 0 | F71: =ROUND(E71*$F$16,2) -> 0
D73: TOTAL DE PREVISÃO PARA RESCISÃO E INTERVALO INTRAJORNADA | F73: =SUM(F70:F71) -> 522.19
B75: MÓDULO 5 - INSUMOS DIVERSOS | F75: Valor
C76: A | D76: Uniformes - aquisição | F76: =Uniformes!M19/12 -> 259.31
C77: B | D77: Materiais de consumo relacionados ao posto - aquisição | F77: =ROUND(HLOOKUP(B5,'Mat Cons'!I11:DX13,3)/12,2) -> 0
C78: C | D78: Materiais permanentes relacionados ao posto - remuneração da sua depreciação / manutenção | F78: =HLOOKUP(B5,'Mat Perm'!Q11:EF13,3) -> 0
C79: D | D79: Equipamentos relacionados ao posto - remuneração da sua depreciação / manutenção | F79: =HLOOKUP(B5,'Equip Rel'!Q11:EF13,3) -> 0
C80: E | D80: Equipamentos de Proteção Individual - EPI - aquisição | F80: =ROUND(HLOOKUP(B5,EPI!I3:DX48,3)/12,2) -> 0
D82: TOTAL DE INSUMOS DIVERSOS | F82: =SUM(F76:F81) -> 259.31 | H82: * Nota - Valores mensais por empregado
B84: MÓDULO 6 - CUSTOS INDIRETOS, TRIBUTOS E LUCRO - BDI | E84: Percentuais | F84: Valor
C85: A | D85: Custos Indiretos | E85: =BDI!E6 -> 0.0357
C86: A.1 | D86: Administração Central | E86: =BDI!E7 -> 0.0303
C87: A.2 | D87: Seguros, Garantias e Riscos | E87: =BDI!E8 -> 0.0054
C88: B | D88: Lucro | E88: =BDI!E10 -> 0.0467
C89: C | D89: Tributos | E89: =SUM(E90:E91) -> 0.124
C90: C.1 | D90: Tributos Federais (COFINS, PIS e CPRB) | E90: =BDI!E18 -> 0.074
C91: C.2 | D91: Tributos Distritais (ISS) | E91: =BDI!E23 -> 0.05 | H91: * Nota - Utilizou-se o indicado pelo Sindicato da Arquitetura e da Engenharia (Sinaenco, 2008, p. 22), que adota um percentual redutor de 20% no cálculo dos custos tributários relativos às contribuições PIS e COFINS
C92: D | D92: Despesas Financeiras | E92: =BDI!E13 -> 0.005251960574
D94: TOTAL DE BDI | E94: =BDI!E26 -> 0.244 | F94: =E94*E102 -> 2137.53272
D96: QUADRO-RESUMO DO CUSTO MENSAL POR EMPREGADO - SEM O 13º | E96: Valor
D97: Módulo 1 - Composição da Remuneração | E97: =F16 -> 4706.88
D98: Módulo 2 - Encargos e Benefícios Anuais, Mensais e Diários | E98: =F45 -> 2978.05
D99: Módulo 3 - Provisão para Rescisão | E99: =F55 -> 293.95
D100: Módulo 4 - Custo de Reposição do Profissional Ausente | E100: =F73 -> 522.19
D101: Módulo 5 - Insumos Diversos | E101: =F82 -> 259.31
D102: SUBTOTAL (A+B+C+D+E) | E102: =SUM(E97:E101) -> 8760.38
D103: Módulo 6 - Custos Indiretos, Tributos e Lucro | E103: =F94 -> 2137.53272
D105: TOTAL DO POSTO | E105: =SUM(E102:E103) -> 10897.91272
B107: MÓDULO 7 - DESTAQUE DO MÓDULO 2 - 13º SALÁRIO | E107: Percentuais | F107: Valor
C108: A | D108: 13º Salário | E108: ='Encargos Sociais'!E31 -> 0.08333333333 | F108: =ROUND(E108*F$16,2) -> 392.24
C109: B | D109: Encargos Sociais sobre o 13º Salário - Taxa calculada no SUBMÓDULO 2.2 | E109: =SUM($E$24:$E$32) -> 0.368 | F109: =ROUND(E109*$F$108,2) -> 144.34 | H109: * Nota 1 - Provisiona-se, mensalmente, o proporcional a 1/12 dos valores referentes a gratificação natalina e adicional de férias.
C110: C | D110: Reincidência de férias sobre o 13º Salário | E110: =E59 -> 0.09090909091 | F110: =ROUND(E110*$F$108,2) -> 35.66
C111: D | D111: BDI sobre o 13º Salário - Taxa calculada no MÓDULO 6 | E111: =E94 -> 0.244 | F111: =ROUND(E111*($F$108+$F$109),2) -> 130.93
D113: TOTAL DO DESTAQUE DO 13º SALÁRIO | F113: =SUM(F108:F111) -> 703.17
D115: QUADRO-RESUMO DO CUSTO MENSAL POR EMPREGADO | E115: Valor
D116: Custo total - sem o 13º Salário | E116: =E105 -> 10897.91272
D117: Destaque do 13º Salário (valor mensal) | E117: =F113 -> 703.17
D119: TOTAL DO POSTO | E119: =E116+E117 -> 11601.08272

Sheet 4
B2: PLANILHA DE ESTIMATIVA DE CUSTOS
B3: Padrão IN 05/2017 e IN 07/2018 - MPDG
B5: 4 | D5: =HLOOKUP($B$5,'Dados Gerais'!$D$5:$BE$20,6) -> RECEPCIONISTA | E5: QUANTIDADE | F5: =HLOOKUP($B$5,'Dados Gerais'!$D$5:$BE$20,10) -> 42
B6: CCT | D6: =HLOOKUP($B$5,'Dados Gerais'!$D$5:$BE$20,15) -> SEAC/DF X SINDSERVIÇOS/DF 2022/2022 Nº DF000015/2021 | E6: DATA-BASE | F6: ='Dados Gerais'!E20 -> 2022-01-01
B8: MÓDULO 1 - COMPOSIÇÃO DA REMUNERAÇÃO | F8: Valor
C9: A | D9: Salário-Base | F9: =HLOOKUP($B$5,'Dados Gerais'!$D$5:$BE$20,8) -> 3498.43
C10: B | D10: Adicional de Periculosidade | F10: =HLOOKUP($B$5,'Dados Gerais'!$D$5:$BE$37,25) -> 0
C11: C | D11: Adicional de Insalubridade | F11: =HLOOKUP($B$5,'Dados Gerais'!$D$5:$BE$37,31) -> 0
C12: D | D12: Adicional Noturno | F12: =HLOOKUP($B$5,'Dados Gerais'!$D$5:$BE$50,46) -> 0 | H12: * Nota 1 - O Módulo 1 refere-se ao valor mensal devido ao empregado pela prestação do serviço no período de 12 meses.
C13: E | D13: Adicional de Hora Extra | F13: =HLOOKUP($B$5,'Dados Gerais'!$D$5:$BE$67,63) -> 0 | H13: * Nota 2 - O adicional de hora extra no feriado trabalhado foi suprimido pela Lei 13.467/17
C14: F | D14: Outros (especificar) | F14: =HLOOKUP($B$5,'Dados Gerais'!$D$5:$BE$59,33) -> 0 | H14: * Nota 3 - ART. 7º, § 2º, DA LEI Nº 605/49.Sendo mensalista o obreiro, o adicional noturno pago de forma fixa já é considerado integrado para os efeitos do pagamento do repouso semanal remunerado, nos termos do art. 7º, § 2º, da Lei nº 605/49.
D16: TOTAL DA REMUNERAÇÃO | F16: =SUM(F9:F14) -> 3498.43
B18: MÓDULO 2 - ENCARGOS E BENEFÍCIOS ANUAIS, MENSAIS E DIÁRIOS | E18: Percentuais | F18: Valor
B19: Submódulo 2.1 - 13º Salário, Férias e Adicional de Férias
C20: A | D20: 13º Salário - Calculado no Módulo 7 - Destacado | E20: 0 | F20: =ROUND(E20*F$16,2) -> 0 | H20: * Nota 1 - Provisiona-se, mensalmente, o proporcional a 1/11 dos valores referentes a gratificação natalina, férias e adicional de férias.
C21: B | D21: Adicional de Férias | E21: ='Encargos Sociais'!E30 -> 0.0303030303 | F21: =ROUND(E21*F$16,2) -> 106.01 | H21: * Nota 2 - O adicional de férias contido no Submódulo 2.1 corresponde a 1/3 da remuneração que, por sua vez, é dividida por 11 contome Nota 1.
B23: Submódulo 2.2 - Encargos Previdenciários (GPS), Fundo de Garantia por Tempo de Serviço (FGTS) e Outras Contribuições
C24: A | D24: INSS (art. 22, inciso I, Lei nº 8.212/91) | E24: ='Encargos Sociais'!E13 -> 0.2 | F24: =ROUND(E24*($F$16+$F$41+$F$73),2) -> 798.51
C25: B | D25: Salário Educação (art. 3º, inciso I, Decreto nº 87.043/82) | E25: ='Encargos Sociais'!E14 -> 0.025 | F25: =ROUND(E25*($F$16+$F$41+$F$73),2) -> 99.81
C26: C | D26: SAT/RAT (art. 22, II, Lei 8.212/91 e Anexo V, Decreto 6.042/07) - Enquadramento 8211-3/00 | E26: ='Encargos Sociais'!E15 -> 0.03 | F26: 119.78
C27: D | D27: SESC ou SESI (art. 30, Lei nº 8.036/90 e art. 1º, Lei 8.154/90) | E27: ='Encargos Sociais'!E16 -> 0.015 | F27: 59.89
C28: E | D28: SENAI ou SENAC (Decreto nº 2.318/86) | E28: ='Encargos Sociais'!E17 -> 0.01 | F28: 39.93
C29: F | D29: SEBRAE (§ 3º, art. 8º, Lei 8.029/90, alterada pela Lei nº 8.154/90) | E29: ='Encargos Sociais'!E18 -> 0.006 | F29: 23.96
C30: G | D30: INCRA (art. 1º, I, Decreto Lei 1.146/70 e Lei 7.787, de 30/06/89) | E30: ='Encargos Sociais'!E19 -> 0.002 | F30: 7.99 | H30: * Nota 1 - Os percentuais dos encargos previdenciários, do FGTS e demais contribuições são estabelecidos por legislação vigente.
C31: H | D31: FGTS (Lei Complementar nº 110/01 e art. 30, Lei nº 8.036/90) | E31: ='Encargos Sociais'!E20 -> 0.08 | F31: 319.4 | H31: * Nota 2 - O SAT, a depender do grau de risco do serviço, irá variar entre 1%, para risco leve, de 2%, para risco médio, e de 3% para risco grave.
C32: I | D32: SECONCI (Convenções Coletivas de Trabalho da construção) | E32: ='Encargos Sociais'!E21 -> 0 | F32: 0 | H32: * Nota 3 - Os percentuais do Submódulo 2.2 incidem sobre o Módulo 1 e o Submódulo 2.1.
B34: Submódulo 2.3 - Benefícios Mensais e Diários
C35: A | D35: Auxílio Transporte | F35: =HLOOKUP($B$5,'Dados Gerais'!$D$5:$BE$93,82) -> 92.63
C36: B | D36: Auxílio Alimentação | F36: =HLOOKUP($B$5,'Dados Gerais'!$D$5:$BE$93,89) -> 836
C37: C | D37: Assistência Médica e Familiar | F37: =HLOOKUP($B$5,'Dados Gerais'!$D$5:$BE$101,97) -> 0
C38: D | D38: Outros (Seguro de vida e auxílio funeral e auxílio odontológico) | F38: =HLOOKUP($B$5,'Dados Gerais'!$D$5:$BE$118,114) -> 2.5 | H38: * Nota 1 - O valor informado deverá ser o custo real do benefício (descontado o valor eventualmente pago pelo empregado).
H39: * Nota 2 - Observar a previsão dos benefícios contidos em Acordos, Convenções e Dissídios Coletivos de Trabalho e o disposto no art. 6º da IN 5/2017
D40: QUADRO-RESUMO DO MÓDULO 2
D41: 2.1 - 13º Salário, Férias e Adicional de Férias - 13º Destacado - Calculado no Módulo 7 | E41: =SUM(E20:E21) -> 0.0303030303 | F41: =F20+F21 -> 106.01
D42: 2.2 - Encargos Previdenciários (GPS), Fundo de Garantia por Tempo de Serviço (FGTS) e Contribuições | E42: =SUM(E24:E32) -> 0.368 | F42: =SUM(F24:F32) -> 1469.27
D43: 2.3 - Benefícios Mensais e Diários | F43: =SUM(F35:F38) -> 931.13
D45: TOTAL DOS ENCARGOS E BENEFÍCIOS | F45: =SUM(F41:F43) -> 2506.41
B47: MÓDULO 3 - PREVISÃO PARA RESCISÃO | E47: Percentuais | F47: Valor
C48: A | D48: Aviso Prévio Indenizado (Art. 7º, inciso XXI, da CF/1988 e arts. 477, 487, §1º, e 491 da CLT) | E48: ='Encargos Sociais'!E35 -> 0.008333333333 | F48: =ROUND(E48*($F$16+$F$59),2) -> 31.8
C49: B | D49: Incidência do FGTS sobre o Aviso Prévio Indenizado (Súmula 305 TST) | E49: ='Encargos Sociais'!E36 -> 0.0006666666667 | F49: =ROUND(E49*($F$16+$F$59),2) -> 2.54 | H49: * Nota 1 - Adotou-se os parâmetros do estudo do STF (http://www.stf.jus.br/arquivo/cms/sobrestfestudosci/anexo/encargos_sociais_03102007.pdf), onde 5% do pessoal é demitido pelo empregador no decurso do contrato (para estes, considerou-se o aviso prévio indenizado). Desprezou-se as demissões por justa causa e os pedidos de demissão.
C50: C | D50: Multa do FGTS e Contribuição Social sobre o Aviso Prévio Indenizado (Art. 18, §1º, da Lei 8.036/1990 e art. 1º da LC nº 110/2001) | E50: ='Encargos Sociais'!E37 -> 0.001274074074 | F50: 4.86 | H50: * Nota 2 - No cálculo do percentual, considerou-se 36 dias, correspondendo à metade da duração média dos contratos (2 anos)
C51: D | D51: Aviso Prévio Trabalhado (Art. 488, parágrafo único, CLT) | E51: ='Encargos Sociais'!E38 -> 0.01203703704 | F51: 45.94 | H51: * Nota 3 - Incide sobre a Remuneração + 13º salário (1/12) + Férias (1/12) + Adicional de Férias (1/36) x 50% multa (40% para o empregado e 10% de contribuição social) x 8% FGTS
C52: E | D52: Incidência de GPS, FGTS e outras contribuições sobre o Aviso Prévio Trabalhado | E52: ='Encargos Sociais'!E39 -> 0.00442962963 | F52: 16.91 | H52: * Nota 4 - Os 95% restantes do cálculo, a um prazo médio de contrato de 4 anos. Assim, calcula-se 7 dias para o 1º ano de contrato e mais 3 dias para os 3 anos seguintes.
C53: F | D53: Multa do FGTS e Contribuição Social sobre o Aviso Prévio Trabalhado | E53: ='Encargos Sociais'!E40 -> 0.03050515556 | F53: 116.42
D55: TOTAL DE PREVISÃO PARA RESCISÃO | F55: =SUM(F48:F53) -> 218.47
B57: MÓDULO 4 - CUSTO DE REPOSIÇÃO DO PROFISSIONAL AUSENTE | E57: Percentuais | F57: Valor
B58: Submódulo 4.1 - Ausências Legais
C59: A | D59: Férias (Arts. 129 e 130, inc. I, da CLT) | E59: ='Encargos Sociais'!E24 -> 0.09090909091 | F59: =ROUND(E59*$F$16,2) -> 318.04 | H59: * Nota 1 - As alíneas “A” a “F” referem-se somente ao custo que será pago ao repositor pelos dias trabalhados quando da necessidade de substituir a mão de obra alocada na prestação do serviço.
C60: B | D60: Ausências Legais (Arts. 131 e 473 da CLT) | E60: ='Encargos Sociais'!E25 -> 0.007936507937 | F60: 27.77 | H60: * Nota 2 - Adotou-se a estimativa do SINAPI de 2 dias por ano.
C61: C | D61: Licença-Paternidade (Art. 7º, XIX, e art. 10, §1º, do ADCT, CF/1988 e Art. 1º, II, da Lei 11.770/2008) | E61: ='Encargos Sociais'!E26 -> 0.0008277777778 | F61: 2.9 | H61: * Nota 3 - Utilizada a proporção de 50% para homens, 5 dias de afastamento, e a probabilidade de um trabalhador requerer a Licença Paternidade em 5,22%, conforme SINAPI (citando dados da PNAD 2015)
C62: D | D62: Ausência por Acidente de Trabalho (Art. 131, III, da CLT) | E62: ='Encargos Sociais'!E27 -> 0.0008541666667 | F62: 2.99 | H62: * Nota 4 - Utilzada a estatística de 1,96% dos contribuintes beneficiados com a emissão do auxílio, conforme Anuário Estatístico da Previdência Social. Afastamento de 15 dias a cargo da empresa.
C63: E | D63: Afastamento Maternidade (Art. 71 da Lei nº 8.213/1991) | E63: ='Encargos Sociais'!E28 -> 0.003292592593 | F63: 11.52 | H63: * Nota 5 - Utilizada a proporção de 50% para mulheres, 180 dias de afastamento, e a probabilidade de uma trabalhadora requerer a Licença Maternidade em 4,91%, conforme SINAPI (citando dados do IBGE 2016)
C64: F | D64: Auxílio Enfermidade - Doença (Art. 59 da Lei nº 8.213/1991) | E64: ='Encargos Sociais'!E29 -> 0.007122222222 | F64: 24.92 | H64: * Nota 6 - Utilizada a estatística de 3,37% dos contribuintes beneficiados com o auxílio, conforme Anuário Estatístico da Previdência Social de 2015 (acrescidos de 2 dias ao ano, para os quais o trabalhador nem requer o benefício da Previdência - conforme SINAPI)
B66: Submódulo 4.2 - Intrajornada
C67: A | D67: Intervalo para repouso ou alimentação | E67: ='Encargos Sociais'!E32 -> 0 | F67: =ROUND(E67*$F$16,2) -> 0
D69: QUADRO-RESUMO DO MÓDULO 4 | F69: Valor
D70: 4.1 - Ausências Legais | E70: =SUM(E59:E64) -> 0.1109423581 | F70: =ROUND(E70*$F$16,2) -> 388.12
D71: 4.2 - Intrajornada | E71: =E67 -> 0 | F71: =ROUND(E71*$F$16,2) -> 0
D73: TOTAL DE PREVISÃO PARA RESCISÃO E INTERVALO INTRAJORNADA | F73: =SUM(F70:F71) -> 388.12
B75: MÓDULO 5 - INSUMOS DIVERSOS | F75: Valor
C76: A | D76: Uniformes - aquisição | F76: =Uniformes!M19/12 -> 259.31
C77: B | D77: Materiais de consumo relacionados ao posto - aquisição | F77: =ROUND(HLOOKUP(B5,'Mat Cons'!I11:DX13,3)/12,2) -> 0
C78: C | D78: Materiais permanentes relacionados ao posto - remuneração da sua depreciação / manutenção | F78: =HLOOKUP(B5,'Mat Perm'!Q11:EF13,3) -> 0
C79: D | D79: Equipamentos relacionados ao posto - remuneração da sua depreciação / manutenção | F79: =HLOOKUP(B5,'Equip Rel'!Q11:EF13,3) -> 0
C80: E | D80: Equipamentos de Proteção Individual - EPI - aquisição | F80: =ROUND(HLOOKUP(B5,EPI!I3:DX48,3)/12,2) -> 0
D82: TOTAL DE INSUMOS DIVERSOS | F82: =SUM(F76:F81) -> 259.31 | H82: * Nota - Valores mensais por empregado
B84: MÓDULO 6 - CUSTOS INDIRETOS, TRIBUTOS E LUCRO - BDI | E84: Percentuais | F84: Valor
C85: A | D85: Custos Indiretos | E85: =BDI!E6 -> 0.0357
C86: A.1 | D86: Administração Central | E86: =BDI!E7 -> 0.0303
C87: A.2 | D87: Seguros, Garantias e Riscos | E87: =BDI!E8 -> 0.0054
C88: B | D88: Lucro | E88: =BDI!E10 -> 0.0467
C89: C | D89: Tributos | E89: =SUM(E90:E91) -> 0.124
C90: C.1 | D90: Tributos Federais (COFINS, PIS e CPRB) | E90: =BDI!E18 -> 0.074
C91: C.2 | D91: Tributos Distritais (ISS) | E91: =BDI!E23 -> 0.05 | H91: * Nota - Utilizou-se o indicado pelo Sindicato da Arquitetura e da Engenharia (Sinaenco, 2008, p. 22), que adota um percentual redutor de 20% no cálculo dos custos tributários relativos às contribuições PIS e COFINS
C92: D | D92: Despesas Financeiras | E92: =BDI!E13 -> 0.005251960574
D94: TOTAL DE BDI | E94: =BDI!E26 -> 0.244 | F94: =E94*E102 -> 1676.46056
D96: QUADRO-RESUMO DO CUSTO MENSAL POR EMPREGADO - SEM O 13º | E96: Valor
D97: Módulo 1 - Composição da Remuneração | E97: =F16 -> 3498.43
D98: Módulo 2 - Encargos e Benefícios Anuais, Mensais e Diários | E98: =F45 -> 2506.41
D99: Módulo 3 - Provisão para Rescisão | E99: =F55 -> 218.47
D100: Módulo 4 - Custo de Reposição do Profissional Ausente | E100: =F73 -> 388.12
D101: Módulo 5 - Insumos Diversos | E101: =F82 -> 259.31
D102: SUBTOTAL (A+B+C+D+E) | E102: =SUM(E97:E101) -> 6870.74
D103: Módulo 6 - Custos Indiretos, Tributos e Lucro | E103: =F94 -> 1676.46056
D105: TOTAL DO POSTO | E105: =SUM(E102:E103) -> 8547.20056
B107: MÓDULO 7 - DESTAQUE DO MÓDULO 2 - 13º SALÁRIO | E107: Percentuais | F107: Valor
C108: A | D108: 13º Salário | E108: ='Encargos Sociais'!E31 -> 0.08333333333 | F108: =ROUND(E108*F$16,2) -> 291.54
C109: B | D109: Encargos Sociais sobre o 13º Salário - Taxa calculada no SUBMÓDULO 2.2 | E109: =SUM($E$24:$E$32) -> 0.368 | F109: =ROUND(E109*$F$108,2) -> 107.29 | H109: * Nota 1 - Provisiona-se, mensalmente, o proporcional a 1/12 dos valores referentes a gratificação natalina e adicional de férias.
C110: C | D110: Reincidência de férias sobre o 13º Salário | E110: =E59 -> 0.09090909091 | F110: =ROUND(E110*$F$108,2) -> 26.5
C111: D | D111: BDI sobre o 13º Salário - Taxa calculada no MÓDULO 6 | E111: =E94 -> 0.244 | F111: =ROUND(E111*($F$108+$F$109),2) -> 97.31
D113: TOTAL DO DESTAQUE DO 13º SALÁRIO | F113: =SUM(F108:F111) -> 522.64
D115: QUADRO-RESUMO DO CUSTO MENSAL POR EMPREGADO | E115: Valor
D116: Custo total - sem o 13º Salário | E116: =E105 -> 8547.20056
D117: Destaque do 13º Salário (valor mensal) | E117: =F113 -> 522.64
D119: TOTAL DO POSTO | E119: =E116+E117 -> 9069.84056

Sheet 5
B2: PLANILHA DE ESTIMATIVA DE CUSTOS
B3: Padrão IN 05/2017 e IN 07/2018 - MPDG
B5: 5 | D5: =HLOOKUP($B$5,'Dados Gerais'!$D$5:$BE$20,6) -> RECEPCIONISTA COM ADICIONAL DE INSALUBRIDADE | E5: QUANTIDADE | F5: =HLOOKUP($B$5,'Dados Gerais'!$D$5:$BE$20,10) -> 14
B6: CCT | D6: =HLOOKUP($B$5,'Dados Gerais'!$D$5:$BE$20,15) -> SEAC/DF X SINDSERVIÇOS/DF 2022/2022 Nº DF000015/2021 | E6: DATA-BASE | F6: ='Dados Gerais'!E20 -> 2022-01-01
B8: MÓDULO 1 - COMPOSIÇÃO DA REMUNERAÇÃO | F8: Valor
C9: A | D9: Salário-Base | F9: =HLOOKUP($B$5,'Dados Gerais'!$D$5:$BE$20,8) -> 3498.43
C10: B | D10: Adicional de Periculosidade | F10: =HLOOKUP($B$5,'Dados Gerais'!$D$5:$BE$37,25) -> 0
C11: C | D11: Adicional de Insalubridade | F11: =HLOOKUP($B$5,'Dados Gerais'!$D$5:$BE$37,31) -> 242.4
C12: D | D12: Adicional Noturno | F12: =HLOOKUP($B$5,'Dados Gerais'!$D$5:$BE$50,46) -> 0 | H12: * Nota 1 - O Módulo 1 refere-se ao valor mensal devido ao empregado pela prestação do serviço no período de 12 meses.
C13: E | D13: Adicional de Hora Extra | F13: =HLOOKUP($B$5,'Dados Gerais'!$D$5:$BE$67,63) -> 0 | H13: * Nota 2 - O adicional de hora extra no feriado trabalhado foi suprimido pela Lei 13.467/17
C14: F | D14: Outros (especificar) | F14: =HLOOKUP($B$5,'Dados Gerais'!$D$5:$BE$59,33) -> 0 | H14: * Nota 3 - ART. 7º, § 2º, DA LEI Nº 605/49.Sendo mensalista o obreiro, o adicional noturno pago de forma fixa já é considerado integrado para os efeitos do pagamento do repouso semanal remunerado, nos termos do art. 7º, § 2º, da Lei nº 605/49.
D16: TOTAL DA REMUNERAÇÃO | F16: =SUM(F9:F14) -> 3740.83
B18: MÓDULO 2 - ENCARGOS E BENEFÍCIOS ANUAIS, MENSAIS E DIÁRIOS | E18: Percentuais | F18: Valor
B19: Submódulo 2.1 - 13º Salário, Férias e Adicional de Férias
C20: A | D20: 13º Salário - Calculado no Módulo 7 - Destacado | E20: 0 | F20: =ROUND(E20*F$16,2) -> 0 | H20: * Nota 1 - Provisiona-se, mensalmente, o proporcional a 1/11 dos valores referentes a gratificação natalina, férias e adicional de férias.
C21: B | D21: Adicional de Férias | E21: ='Encargos Sociais'!E30 -> 0.0303030303 | F21: =ROUND(E21*F$16,2) -> 113.36 | H21: * Nota 2 - O adicional de férias contido no Submódulo 2.1 corresponde a 1/3 da remuneração que, por sua vez, é dividida por 11 contome Nota 1.
B23: Submódulo 2.2 - Encargos Previdenciários (GPS), Fundo de Garantia por Tempo de Serviço (FGTS) e Outras Contribuições
C24: A | D24: INSS (art. 22, inciso I, Lei nº 8.212/91) | E24: ='Encargos Sociais'!E13 -> 0.2 | F24: =ROUND(E24*($F$16+$F$41+$F$73),2) -> 853.84
C25: B | D25: Salário Educação (art. 3º, inciso I, Decreto nº 87.043/82) | E25: ='Encargos Sociais'!E14 -> 0.025 | F25: =ROUND(E25*($F$16+$F$41+$F$73),2) -> 106.73
C26: C | D26: SAT/RAT (art. 22, II, Lei 8.212/91 e Anexo V, Decreto 6.042/07) - Enquadramento 8211-3/00 | E26: ='Encargos Sociais'!E15 -> 0.03 | F26: 128.08
C27: D | D27: SESC ou SESI (art. 30, Lei nº 8.036/90 e art. 1º, Lei 8.154/90) | E27: ='Encargos Sociais'!E16 -> 0.015 | F27: 64.04
C28: E | D28: SENAI ou SENAC (Decreto nº 2.318/86) | E28: ='Encargos Sociais'!E17 -> 0.01 | F28: 42.69
C29: F | D29: SEBRAE (§ 3º, art. 8º, Lei 8.029/90, alterada pela Lei nº 8.154/90) | E29: ='Encargos Sociais'!E18 -> 0.006 | F29: 25.62
C30: G | D30: INCRA (art. 1º, I, Decreto Lei 1.146/70 e Lei 7.787, de 30/06/89) | E30: ='Encargos Sociais'!E19 -> 0.002 | F30: 8.54 | H30: * Nota 1 - Os percentuais dos encargos previdenciários, do FGTS e demais contribuições são estabelecidos por legislação vigente.
C31: H | D31: FGTS (Lei Complementar nº 110/01 e art. 30, Lei nº 8.036/90) | E31: ='Encargos Sociais'!E20 -> 0.08 | F31: 341.54 | H31: * Nota 2 - O SAT, a depender do grau de risco do serviço, irá variar entre 1%, para risco leve, de 2%, para risco médio, e de 3% para risco grave.
C32: I | D32: SECONCI (Convenções Coletivas de Trabalho da construção) | E32: ='Encargos Sociais'!E21 -> 0 | F32: 0 | H32: * Nota 3 - Os percentuais do Submódulo 2.2 incidem sobre o Módulo 1 e o Submódulo 2.1.
B34: Submódulo 2.3 - Benefícios Mensais e Diários
C35: A | D35: Auxílio Transporte | F35: =HLOOKUP($B$5,'Dados Gerais'!$D$5:$BE$93,82) -> 92.63
C36: B | D36: Auxílio Alimentação | F36: =HLOOKUP($B$5,'Dados Gerais'!$D$5:$BE$93,89) -> 836
C37: C | D37: Assistência Médica e Familiar | F37: =HLOOKUP($B$5,'Dados Gerais'!$D$5:$BE$101,97) -> 0
C38: D | D38: Outros (Seguro de vida e auxílio funeral e auxílio odontológico) | F38: =HLOOKUP($B$5,'Dados Gerais'!$D$5:$BE$118,114) -> 2.5 | H38: * Nota 1 - O valor informado deverá ser o custo real do benefício (descontado o valor eventualmente pago pelo empregado).
H39: * Nota 2 - Observar a previsão dos benefícios contidos em Acordos, Convenções e Dissídios Coletivos de Trabalho e o disposto no art. 6º da IN 5/2017
D40: QUADRO-RESUMO DO MÓDULO 2
D41: 2.1 - 13º Salário, Férias e Adicional de Férias - 13º Destacado - Calculado no Módulo 7 | E41: =SUM(E20:E21) -> 0.0303030303 | F41: =F20+F21 -> 113.36
D42: 2.2 - Encargos Previdenciários (GPS), Fundo de Garantia por Tempo de Serviço (FGTS) e Contribuições | E42: =SUM(E24:E32) -> 0.368 | F42: =SUM(F24:F32) -> 1571.08
D43: 2.3 - Benefícios Mensais e Diários | F43: =SUM(F35:F38) -> 931.13
D45: TOTAL DOS ENCARGOS E BENEFÍCIOS | F45: =SUM(F41:F43) -> 2615.57
B47: MÓDULO 3 - PREVISÃO PARA RESCISÃO | E47: Percentuais | F47: Valor
C48: A | D48: Aviso Prévio Indenizado (Art. 7º, inciso XXI, da CF/1988 e arts. 477, 487, §1º, e 491 da CLT) | E48: ='Encargos Sociais'!E35 -> 0.008333333333 | F48: =ROUND(E48*($F$16+$F$59),2) -> 34.01
C49: B | D49: Incidência do FGTS sobre o Aviso Prévio Indenizado (Súmula 305 TST) | E49: ='Encargos Sociais'!E36 -> 0.0006666666667 | F49: =ROUND(E49*($F$16+$F$59),2) -> 2.72 | H49: * Nota 1 - Adotou-se os parâmetros do estudo do STF (http://www.stf.jus.br/arquivo/cms/sobrestfestudosci/anexo/encargos_sociais_03102007.pdf), onde 5% do pessoal é demitido pelo empregador no decurso do contrato (para estes, considerou-se o aviso prévio indenizado). Desprezou-se as demissões por justa causa e os pedidos de demissão.
C50: C | D50: Multa do FGTS e Contribuição Social sobre o Aviso Prévio Indenizado (Art. 18, §1º, da Lei 8.036/1990 e art. 1º da LC nº 110/2001) | E50: ='Encargos Sociais'!E37 -> 0.001274074074 | F50: 5.2 | H50: * Nota 2 - No cálculo do percentual, considerou-se 36 dias, correspondendo à metade da duração média dos contratos (2 anos)
C51: D | D51: Aviso Prévio Trabalhado (Art. 488, parágrafo único, CLT) | E51: ='Encargos Sociais'!E38 -> 0.01203703704 | F51: 49.12 | H51: * Nota 3 - Incide sobre a Remuneração + 13º salário (1/12) + Férias (1/12) + Adicional de Férias (1/36) x 50% multa (40% para o empregado e 10% de contribuição social) x 8% FGTS
C52: E | D52: Incidência de GPS, FGTS e outras contribuições sobre o Aviso Prévio Trabalhado | E52: ='Encargos Sociais'!E39 -> 0.00442962963 | F52: 18.08 | H52: * Nota 4 - Os 95% restantes do cálculo, a um prazo médio de contrato de 4 anos. Assim, calcula-se 7 dias para o 1º ano de contrato e mais 3 dias para os 3 anos seguintes.
C53: F | D53: Multa do FGTS e Contribuição Social sobre o Aviso Prévio Trabalhado | E53: ='Encargos Sociais'!E40 -> 0.03050515556 | F53: 124.49
D55: TOTAL DE PREVISÃO PARA RESCISÃO | F55: =SUM(F48:F53) -> 233.62
B57: MÓDULO 4 - CUSTO DE REPOSIÇÃO DO PROFISSIONAL AUSENTE | E57: Percentuais | F57: Valor
B58: Submódulo 4.1 - Ausências Legais
C59: A | D59: Férias (Arts. 129 e 130, inc. I, da CLT) | E59: ='Encargos Sociais'!E24 -> 0.09090909091 | F59: =ROUND(E59*$F$16,2) -> 340.08 | H59: * Nota 1 - As alíneas “A” a “F” referem-se somente ao custo que será pago ao repositor pelos dias trabalhados quando da necessidade de substituir a mão de obra alocada na prestação do serviço.
C60: B | D60: Ausências Legais (Arts. 131 e 473 da CLT) | E60: ='Encargos Sociais'!E25 -> 0.007936507937 | F60: 29.69 | H60: * Nota 2 - Adotou-se a estimativa do SINAPI de 2 dias por ano.
C61: C | D61: Licença-Paternidade (Art. 7º, XIX, e art. 10, §1º, do ADCT, CF/1988 e Art. 1º, II, da Lei 11.770/2008) | E61: ='Encargos Sociais'!E26 -> 0.0008277777778 | F61: 3.1 | H61: * Nota 3 - Utilizada a proporção de 50% para homens, 5 dias de afastamento, e a probabilidade de um trabalhador requerer a Licença Paternidade em 5,22%, conforme SINAPI (citando dados da PNAD 2015)
C62: D | D62: Ausência por Acidente de Trabalho (Art. 131, III, da CLT) | E62: ='Encargos Sociais'!E27 -> 0.0008541666667 | F62: 3.2 | H62: * Nota 4 - Utilzada a estatística de 1,96% dos contribuintes beneficiados com a emissão do auxílio, conforme Anuário Estatístico da Previdência Social. Afastamento de 15 dias a cargo da empresa.
C63: E | D63: Afastamento Maternidade (Art. 71 da Lei nº 8.213/1991) | E63: ='Encargos Sociais'!E28 -> 0.003292592593 | F63: 12.32 | H63: * Nota 5 - Utilizada a proporção de 50% para mulheres, 180 dias de afastamento, e a probabilidade de uma trabalhadora requerer a Licença Maternidade em 4,91%, conforme SINAPI (citando dados do IBGE 2016)
C64: F | D64: Auxílio Enfermidade - Doença (Art. 59 da Lei nº 8.213/1991) | E64: ='Encargos Sociais'!E29 -> 0.007122222222 | F64: 26.64 | H64: * Nota 6 - Utilizada a estatística de 3,37% dos contribuintes beneficiados com o auxílio, conforme Anuário Estatístico da Previdência Social de 2015 (acrescidos de 2 dias ao ano, para os quais o trabalhador nem requer o benefício da Previdência - conforme SINAPI)
B66: Submódulo 4.2 - Intrajornada
C67: A | D67: Intervalo para repouso ou alimentação | E67: ='Encargos Sociais'!E32 -> 0 | F67: =ROUND(E67*$F$16,2) -> 0
D69: QUADRO-RESUMO DO MÓDULO 4 | F69: Valor
D70: 4.1 - Ausências Legais | E70: =SUM(E59:E64) -> 0.1109423581 | F70: =ROUND(E70*$F$16,2) -> 415.02
D71: 4.2 - Intrajornada | E71: =E67 -> 0 | F71: =ROUND(E71*$F$16,2) -> 0
D73: TOTAL DE PREVISÃO PARA RESCISÃO E INTERVALO INTRAJORNADA | F73: =SUM(F70:F71) -> 415.02
B75: MÓDULO 5 - INSUMOS DIVERSOS | F75: Valor
C76: A | D76: Uniformes - aquisição | F76: =Uniformes!M19/12 -> 259.31
C77: B | D77: Materiais de consumo relacionados ao posto - aquisição | F77: =ROUND(HLOOKUP(B5,'Mat Cons'!I11:DX13,3)/12,2) -> 0
C78: C | D78: Materiais permanentes relacionados ao posto - remuneração da sua depreciação / manutenção | F78: =HLOOKUP(B5,'Mat Perm'!Q11:EF13,3) -> 0
C79: D | D79: Equipamentos relacionados ao posto - remuneração da sua depreciação / manutenção | F79: =HLOOKUP(B5,'Equip Rel'!Q11:EF13,3) -> 0
C80: E | D80: Equipamentos de Proteção Individual - EPI - aquisição | F80: =ROUND(HLOOKUP(B5,EPI!I3:DX48,3)/12,2) -> 0
D82: TOTAL DE INSUMOS DIVERSOS | F82: =SUM(F76:F81) -> 259.31 | H82: * Nota - Valores mensais por empregado
B84: MÓDULO 6 - CUSTOS INDIRETOS, TRIBUTOS E LUCRO - BDI | E84: Percentuais | F84: Valor
C85: A | D85: Custos Indiretos | E85: =BDI!E6 -> 0.0357
C86: A.1 | D86: Administração Central | E86: =BDI!E7 -> 0.0303
C87: A.2 | D87: Seguros, Garantias e Riscos | E87: =BDI!E8 -> 0.0054
C88: B | D88: Lucro | E88: =BDI!E10 -> 0.0467
C89: C | D89: Tributos | E89: =SUM(E90:E91) -> 0.124
C90: C.1 | D90: Tributos Federais (COFINS, PIS e CPRB) | E90: =BDI!E18 -> 0.074
C91: C.2 | D91: Tributos Distritais (ISS) | E91: =BDI!E23 -> 0.05 | H91: * Nota - Utilizou-se o indicado pelo Sindicato da Arquitetura e da Engenharia (Sinaenco, 2008, p. 22), que adota um percentual redutor de 20% no cálculo dos custos tributários relativos às contribuições PIS e COFINS
C92: D | D92: Despesas Financeiras | E92: =BDI!E13 -> 0.005251960574
D94: TOTAL DE BDI | E94: =BDI!E26 -> 0.244 | F94: =E94*E102 -> 1772.5014
D96: QUADRO-RESUMO DO CUSTO MENSAL POR EMPREGADO - SEM O 13º | E96: Valor
D97: Módulo 1 - Composição da Remuneração | E97: =F16 -> 3740.83
D98: Módulo 2 - Encargos e Benefícios Anuais, Mensais e Diários | E98: =F45 -> 2615.57
D99: Módulo 3 - Provisão para Rescisão | E99: =F55 -> 233.62
D100: Módulo 4 - Custo de Reposição do Profissional Ausente | E100: =F73 -> 415.02
D101: Módulo 5 - Insumos Diversos | E101: =F82 -> 259.31
D102: SUBTOTAL (A+B+C+D+E) | E102: =SUM(E97:E101) -> 7264.35
D103: Módulo 6 - Custos Indiretos, Tributos e Lucro | E103: =F94 -> 1772.5014
D105: TOTAL DO POSTO | E105: =SUM(E102:E103) -> 9036.8514
B107: MÓDULO 7 - DESTAQUE DO MÓDULO 2 - 13º SALÁRIO | E107: Percentuais | F107: Valor
C108: A | D108: 13º Salário | E108: ='Encargos Sociais'!E31 -> 0.08333333333 | F108: =ROUND(E108*F$16,2) -> 311.74
C109: B | D109: Encargos Sociais sobre o 13º Salário - Taxa calculada no SUBMÓDULO 2.2 | E109: =SUM($E$24:$E$32) -> 0.368 | F109: =ROUND(E109*$F$108,2) -> 114.72 | H109: * Nota 1 - Provisiona-se, mensalmente, o proporcional a 1/12 dos valores referentes a gratificação natalina e adicional de férias.
C110: C | D110: Reincidência de férias sobre o 13º Salário | E110: =E59 -> 0.09090909091 | F110: =ROUND(E110*$F$108,2) -> 28.34
C111: D | D111: BDI sobre o 13º Salário - Taxa calculada no MÓDULO 6 | E111: =E94 -> 0.244 | F111: =ROUND(E111*($F$108+$F$109),2) -> 104.06
D113: TOTAL DO DESTAQUE DO 13º SALÁRIO | F113: =SUM(F108:F111) -> 558.86
D115: QUADRO-RESUMO DO CUSTO MENSAL POR EMPREGADO | E115: Valor
D116: Custo total - sem o 13º Salário | E116: =E105 -> 9036.8514
D117: Destaque do 13º Salário (valor mensal) | E117: =F113 -> 558.86
D119: TOTAL DO POSTO | E119: =E116+E117 -> 9595.7114

Sheet 6
B2: PLANILHA DE ESTIMATIVA DE CUSTOS
B3: Padrão IN 05/2017 e IN 07/2018 - MPDG
B5: 6 | D5: =HLOOKUP($B$5,'Dados Gerais'!$D$5:$BE$20,6) -> RECEPCIONISTA BILINGUE PLANTONISTAS (12H/36H) | E5: QUANTIDADE | F5: =HLOOKUP($B$5,'Dados Gerais'!$D$5:$BE$20,10) -> 0
B6: CCT | D6: =HLOOKUP($B$5,'Dados Gerais'!$D$5:$BE$20,15) -> SEAC/DF X SINDSERVIÇOS/DF 2022/2022 Nº DF000015/2021 | E6: DATA-BASE | F6: ='Dados Gerais'!E20 -> 2022-01-01
B8: MÓDULO 1 - COMPOSIÇÃO DA REMUNERAÇÃO | F8: Valor
C9: A | D9: Salário-Base | F9: =HLOOKUP($B$5,'Dados Gerais'!$D$5:$BE$20,8) -> 4706.88
C10: B | D10: Adicional de Periculosidade | F10: =HLOOKUP($B$5,'Dados Gerais'!$D$5:$BE$37,25) -> 0
C11: C | D11: Adicional de Insalubridade | F11: =HLOOKUP($B$5,'Dados Gerais'!$D$5:$BE$37,31) -> 0
C12: D | D12: Adicional Noturno | F12: =HLOOKUP($B$5,'Dados Gerais'!$D$5:$BE$50,46) -> 0 | H12: * Nota 1 - O Módulo 1 refere-se ao valor mensal devido ao empregado pela prestação do serviço no período de 12 meses.
C13: E | D13: Adicional de Hora Extra | F13: =HLOOKUP($B$5,'Dados Gerais'!$D$5:$BE$67,63) -> 0 | H13: * Nota 2 - O adicional de hora extra no feriado trabalhado foi suprimido pela Lei 13.467/17
C14: F | D14: Outros (especificar) | F14: =HLOOKUP($B$5,'Dados Gerais'!$D$5:$BE$59,33) -> 0 | H14: * Nota 3 - ART. 7º, § 2º, DA LEI Nº 605/49.Sendo mensalista o obreiro, o adicional noturno pago de forma fixa já é considerado integrado para os efeitos do pagamento do repouso semanal remunerado, nos termos do art. 7º, § 2º, da Lei nº 605/49.
D16: TOTAL DA REMUNERAÇÃO | F16: =SUM(F9:F14) -> 4706.88
B18: MÓDULO 2 - ENCARGOS E BENEFÍCIOS ANUAIS, MENSAIS E DIÁRIOS | E18: Percentuais | F18: Valor
B19: Submódulo 2.1 - 13º Salário, Férias e Adicional de Férias
C20: A | D20: 13º Salário - Calculado no Módulo 7 - Destacado | E20: 0 | F20: =ROUND(E20*F$16,2) -> 0 | H20: * Nota 1 - Provisiona-se, mensalmente, o proporcional a 1/11 dos valores referentes a gratificação natalina, férias e adicional de férias.
C21: B | D21: Adicional de Férias | E21: ='Encargos Sociais'!E30 -> 0.0303030303 | F21: =ROUND(E21*F$16,2) -> 142.63 | H21: * Nota 2 - O adicional de férias contido no Submódulo 2.1 corresponde a 1/3 da remuneração que, por sua vez, é dividida por 11 contome Nota 1.
B23: Submódulo 2.2 - Encargos Previdenciários (GPS), Fundo de Garantia por Tempo de Serviço (FGTS) e Outras Contribuições
C24: A | D24: INSS (art. 22, inciso I, Lei nº 8.212/91) | E24: ='Encargos Sociais'!E13 -> 0.2 | F24: =ROUND(E24*($F$16+$F$41+$F$73),2) -> 1074.34
C25: B | D25: Salário Educação (art. 3º, inciso I, Decreto nº 87.043/82) | E25: ='Encargos Sociais'!E14 -> 0.025 | F25: =ROUND(E25*($F$16+$F$41+$F$73),2) -> 134.29
C26: C | D26: SAT/RAT (art. 22, II, Lei 8.212/91 e Anexo V, Decreto 6.042/07) - Enquadramento 8211-3/00 | E26: ='Encargos Sociais'!E15 -> 0.03 | F26: 161.15
C27: D | D27: SESC ou SESI (art. 30, Lei nº 8.036/90 e art. 1º, Lei 8.154/90) | E27: ='Encargos Sociais'!E16 -> 0.015 | F27: 80.58
C28: E | D28: SENAI ou SENAC (Decreto nº 2.318/86) | E28: ='Encargos Sociais'!E17 -> 0.01 | F28: 53.72
C29: F | D29: SEBRAE (§ 3º, art. 8º, Lei 8.029/90, alterada pela Lei nº 8.154/90) | E29: ='Encargos Sociais'!E18 -> 0.006 | F29: 32.23
C30: G | D30: INCRA (art. 1º, I, Decreto Lei 1.146/70 e Lei 7.787, de 30/06/89) | E30: ='Encargos Sociais'!E19 -> 0.002 | F30: 10.74 | H30: * Nota 1 - Os percentuais dos encargos previdenciários, do FGTS e demais contribuições são estabelecidos por legislação vigente.
C31: H | D31: FGTS (Lei Complementar nº 110/01 e art. 30, Lei nº 8.036/90) | E31: ='Encargos Sociais'!E20 -> 0.08 | F31: 429.74 | H31: * Nota 2 - O SAT, a depender do grau de risco do serviço, irá variar entre 1%, para risco leve, de 2%, para risco médio, e de 3% para risco grave.
C32: I | D32: SECONCI (Convenções Coletivas de Trabalho da construção) | E32: ='Encargos Sociais'!E21 -> 0 | F32: 0 | H32: * Nota 3 - Os percentuais do Submódulo 2.2 incidem sobre o Módulo 1 e o Submódulo 2.1.
B34: Submódulo 2.3 - Benefícios Mensais e Diários
C35: A | D35: Auxílio Transporte | F35: =HLOOKUP($B$5,'Dados Gerais'!$D$5:$BE$93,82) -> 0
C36: B | D36: Auxílio Alimentação | F36: =HLOOKUP($B$5,'Dados Gerais'!$D$5:$BE$93,89) -> 570
C37: C | D37: Assistência Médica e Familiar | F37: =HLOOKUP($B$5,'Dados Gerais'!$D$5:$BE$101,97) -> 0
C38: D | D38: Outros (Seguro de vida e auxílio funeral e auxílio odontológico) | F38: =HLOOKUP($B$5,'Dados Gerais'!$D$5:$BE$118,114) -> 2.5 | H38: * Nota 1 - O valor informado deverá ser o custo real do benefício (descontado o valor eventualmente pago pelo empregado).
H39: * Nota 2 - Observar a previsão dos benefícios contidos em Acordos, Convenções e Dissídios Coletivos de Trabalho e o disposto no art. 6º da IN 5/2017
D40: QUADRO-RESUMO DO MÓDULO 2
D41: 2.1 - 13º Salário, Férias e Adicional de Férias - 13º Destacado - Calculado no Módulo 7 | E41: =SUM(E20:E21) -> 0.0303030303 | F41: =F20+F21 -> 142.63
D42: 2.2 - Encargos Previdenciários (GPS), Fundo de Garantia por Tempo de Serviço (FGTS) e Contribuições | E42: =SUM(E24:E32) -> 0.368 | F42: =SUM(F24:F32) -> 1976.79
D43: 2.3 - Benefícios Mensais e Diários | F43: =SUM(F35:F38) -> 572.5
D45: TOTAL DOS ENCARGOS E BENEFÍCIOS | F45: =SUM(F41:F43) -> 2691.92
B47: MÓDULO 3 - PREVISÃO PARA RESCISÃO | E47: Percentuais | F47: Valor
C48: A | D48: Aviso Prévio Indenizado (Art. 7º, inciso XXI, da CF/1988 e arts. 477, 487, §1º, e 491 da CLT) | E48: ='Encargos Sociais'!E35 -> 0.008333333333 | F48: =ROUND(E48*($F$16+$F$59),2) -> 42.79
C49: B | D49: Incidência do FGTS sobre o Aviso Prévio Indenizado (Súmula 305 TST) | E49: ='Encargos Sociais'!E36 -> 0.0006666666667 | F49: =ROUND(E49*($F$16+$F$59),2) -> 3.42 | H49: * Nota 1 - Adotou-se os parâmetros do estudo do STF (http://www.stf.jus.br/arquivo/cms/sobrestfestudosci/anexo/encargos_sociais_03102007.pdf), onde 5% do pessoal é demitido pelo empregador no decurso do contrato (para estes, considerou-se o aviso prévio indenizado). Desprezou-se as demissões por justa causa e os pedidos de demissão.
C50: C | D50: Multa do FGTS e Contribuição Social sobre o Aviso Prévio Indenizado (Art. 18, §1º, da Lei 8.036/1990 e art. 1º da LC nº 110/2001) | E50: ='Encargos Sociais'!E37 -> 0.001274074074 | F50: 6.54 | H50: * Nota 2 - No cálculo do percentual, considerou-se 36 dias, correspondendo à metade da duração média dos contratos (2 anos)
C51: D | D51: Aviso Prévio Trabalhado (Art. 488, parágrafo único, CLT) | E51: ='Encargos Sociais'!E38 -> 0.01203703704 | F51: 61.81 | H51: * Nota 3 - Incide sobre a Remuneração + 13º salário (1/12) + Férias (1/12) + Adicional de Férias (1/36) x 50% multa (40% para o empregado e 10% de contribuição social) x 8% FGTS
C52: E | D52: Incidência de GPS, FGTS e outras contribuições sobre o Aviso Prévio Trabalhado | E52: ='Encargos Sociais'!E39 -> 0.00442962963 | F52: 22.75 | H52: * Nota 4 - Os 95% restantes do cálculo, a um prazo médio de contrato de 4 anos. Assim, calcula-se 7 dias para o 1º ano de contrato e mais 3 dias para os 3 anos seguintes.
C53: F | D53: Multa do FGTS e Contribuição Social sobre o Aviso Prévio Trabalhado | E53: ='Encargos Sociais'!E40 -> 0.03050515556 | F53: 156.64
D55: TOTAL DE PREVISÃO PARA RESCISÃO | F55: =SUM(F48:F53) -> 293.95
B57: MÓDULO 4 - CUSTO DE REPOSIÇÃO DO PROFISSIONAL AUSENTE | E57: Percentuais | F57: Valor
B58: Submódulo 4.1 - Ausências Legais
C59: A | D59: Férias (Arts. 129 e 130, inc. I, da CLT) | E59: ='Encargos Sociais'!E24 -> 0.09090909091 | F59: =ROUND(E59*$F$16,2) -> 427.9 | H59: * Nota 1 - As alíneas “A” a “F” referem-se somente ao custo que será pago ao repositor pelos dias trabalhados quando da necessidade de substituir a mão de obra alocada na prestação do serviço.
C60: B | D60: Ausências Legais (Arts. 131 e 473 da CLT) | E60: ='Encargos Sociais'!E25 -> 0.007936507937 | F60: 37.36 | H60: * Nota 2 - Adotou-se a estimativa do SINAPI de 2 dias por ano.
C61: C | D61: Licença-Paternidade (Art. 7º, XIX, e art. 10, §1º, do ADCT, CF/1988 e Art. 1º, II, da Lei 11.770/2008) | E61: ='Encargos Sociais'!E26 -> 0.0008277777778 | F61: 3.9 | H61: * Nota 3 - Utilizada a proporção de 50% para homens, 5 dias de afastamento, e a probabilidade de um trabalhador requerer a Licença Paternidade em 5,22%, conforme SINAPI (citando dados da PNAD 2015)
C62: D | D62: Ausência por Acidente de Trabalho (Art. 131, III, da CLT) | E62: ='Encargos Sociais'!E27 -> 0.0008541666667 | F62: 4.02 | H62: * Nota 4 - Utilzada a estatística de 1,96% dos contribuintes beneficiados com a emissão do auxílio, conforme Anuário Estatístico da Previdência Social. Afastamento de 15 dias a cargo da empresa.
C63: E | D63: Afastamento Maternidade (Art. 71 da Lei nº 8.213/1991) | E63: ='Encargos Sociais'!E28 -> 0.003292592593 | F63: 15.5 | H63: * Nota 5 - Utilizada a proporção de 50% para mulheres, 180 dias de afastamento, e a probabilidade de uma trabalhadora requerer a Licença Maternidade em 4,91%, conforme SINAPI (citando dados do IBGE 2016)
C64: F | D64: Auxílio Enfermidade - Doença (Art. 59 da Lei nº 8.213/1991) | E64: ='Encargos Sociais'!E29 -> 0.007122222222 | F64: 33.52 | H64: * Nota 6 - Utilizada a estatística de 3,37% dos contribuintes beneficiados com o auxílio, conforme Anuário Estatístico da Previdência Social de 2015 (acrescidos de 2 dias ao ano, para os quais o trabalhador nem requer o benefício da Previdência - conforme SINAPI)
B66: Submódulo 4.2 - Intrajornada
C67: A | D67: Intervalo para repouso ou alimentação | E67: ='Encargos Sociais'!E32 -> 0 | F67: =ROUND(E67*$F$16,2) -> 0
D69: QUADRO-RESUMO DO MÓDULO 4 | F69: Valor
D70: 4.1 - Ausências Legais | E70: =SUM(E59:E64) -> 0.1109423581 | F70: =ROUND(E70*$F$16,2) -> 522.19
D71: 4.2 - Intrajornada | E71: =E67 -> 0 | F71: =ROUND(E71*$F$16,2) -> 0
D73: TOTAL DE PREVISÃO PARA RESCISÃO E INTERVALO INTRAJORNADA | F73: =SUM(F70:F71) -> 522.19
B75: MÓDULO 5 - INSUMOS DIVERSOS | F75: Valor
C76: A | D76: Uniformes - aquisição | F76: =Uniformes!M19/12 -> 259.31
C77: B | D77: Materiais de consumo relacionados ao posto - aquisição | F77: =ROUND(HLOOKUP(B5,'Mat Cons'!I11:DX13,3)/12,2) -> 0
C78: C | D78: Materiais permanentes relacionados ao posto - remuneração da sua depreciação / manutenção | F78: =HLOOKUP(B5,'Mat Perm'!Q11:EF13,3) -> 0
C79: D | D79: Equipamentos relacionados ao posto - remuneração da sua depreciação / manutenção | F79: =HLOOKUP(B5,'Equip Rel'!Q11:EF13,3) -> 0
C80: E | D80: Equipamentos de Proteção Individual - EPI - aquisição | F80: =ROUND(HLOOKUP(B5,EPI!I3:DX48,3)/12,2) -> 0
D82: TOTAL DE INSUMOS DIVERSOS | F82: =SUM(F76:F81) -> 259.31 | H82: * Nota - Valores mensais por empregado
B84: MÓDULO 6 - CUSTOS INDIRETOS, TRIBUTOS E LUCRO - BDI | E84: Percentuais | F84: Valor
C85: A | D85: Custos Indiretos | E85: =BDI!E6 -> 0.0357
C86: A.1 | D86: Administração Central | E86: =BDI!E7 -> 0.0303
C87: A.2 | D87: Seguros, Garantias e Riscos | E87: =BDI!E8 -> 0.0054
C88: B | D88: Lucro | E88: =BDI!E10 -> 0.0467
C89: C | D89: Tributos | E89: =SUM(E90:E91) -> 0.124
C90: C.1 | D90: Tributos Federais (COFINS, PIS e CPRB) | E90: =BDI!E18 -> 0.074
C91: C.2 | D91: Tributos Distritais (ISS) | E91: =BDI!E23 -> 0.05 | H91: * Nota - Utilizou-se o indicado pelo Sindicato da Arquitetura e da Engenharia (Sinaenco, 2008, p. 22), que adota um percentual redutor de 20% no cálculo dos custos tributários relativos às contribuições PIS e COFINS
C92: D | D92: Despesas Financeiras | E92: =BDI!E13 -> 0.005251960574
D94: TOTAL DE BDI | E94: =BDI!E26 -> 0.244 | F94: =E94*E102 -> 2067.717
D96: QUADRO-RESUMO DO CUSTO MENSAL POR EMPREGADO - SEM O 13º | E96: Valor
D97: Módulo 1 - Composição da Remuneração | E97: =F16 -> 4706.88
D98: Módulo 2 - Encargos e Benefícios Anuais, Mensais e Diários | E98: =F45 -> 2691.92
D99: Módulo 3 - Provisão para Rescisão | E99: =F55 -> 293.95
D100: Módulo 4 - Custo de Reposição do Profissional Ausente | E100: =F73 -> 522.19
D101: Módulo 5 - Insumos Diversos | E101: =F82 -> 259.31
D102: SUBTOTAL (A+B+C+D+E) | E102: =SUM(E97:E101) -> 8474.25
D103: Módulo 6 - Custos Indiretos, Tributos e Lucro | E103: =F94 -> 2067.717
D105: TOTAL DO POSTO | E105: =SUM(E102:E103) -> 10541.967
B107: MÓDULO 7 - DESTAQUE DO MÓDULO 2 - 13º SALÁRIO | E107: Percentuais | F107: Valor
C108: A | D108: 13º Salário | E108: ='Encargos Sociais'!E31 -> 0.08333333333 | F108: =ROUND(E108*F$16,2) -> 392.24
C109: B | D109: Encargos Sociais sobre o 13º Salário - Taxa calculada no SUBMÓDULO 2.2 | E109: =SUM($E$24:$E$32) -> 0.368 | F109: =ROUND(E109*$F$108,2) -> 144.34 | H109: * Nota 1 - Provisiona-se, mensalmente, o proporcional a 1/12 dos valores referentes a gratificação natalina e adicional de férias.
C110: C | D110: Reincidência de férias sobre o 13º Salário | E110: =E59 -> 0.09090909091 | F110: =ROUND(E110*$F$108,2) -> 35.66
C111: D | D111: BDI sobre o 13º Salário - Taxa calculada no MÓDULO 6 | E111: =E94 -> 0.244 | F111: =ROUND(E111*($F$108+$F$109),2) -> 130.93
D113: TOTAL DO DESTAQUE DO 13º SALÁRIO | F113: =SUM(F108:F111) -> 703.17
D115: QUADRO-RESUMO DO CUSTO MENSAL POR EMPREGADO | E115: Valor
D116: Custo total - sem o 13º Salário | E116: =E105 -> 10541.967
D117: Destaque do 13º Salário (valor mensal) | E117: =F113 -> 703.17
D119: TOTAL DO POSTO | E119: =E116+E117 -> 11245.137

Sheet Dados Gerais
B3: INFORMAÇÕES DE ENTRADA
D5: 1 | E5: 2 | F5: 3 | G5: 4 | H5: 5 | I5: 6 | J5: 13 | K5: 14 | L5: 15 | M5: 16 | N5: 17 | O5: 18 | P5: 19 | Q5: 20 | R5: 21 | S5: 22 | T5: 23 | U5: 24 | V5: 25 | W5: 26 | X5: 27 | Y5: 28 | Z5: 29 | AA5: 30 | AB5: 31 | AC5: 32 | AD5: 33 | AE5: 34 | AF5: 35 | AG5: 36 | AH5: 37 | AI5: 38 | AJ5: 39 | AK5: 40 | AL5: 41 | AM5: 42 | AN5: 43 | AO5: 44 | AP5: 45 | AQ5: 46 | AR5: 47 | AS5: 48 | AT5: 49 | AU5: 50 | AV5: 51 | AW5: 52 | AX5: 53 | AY5: 54 | AZ5: 55 | BA5: 56 | BB5: 57 | BC5: 58 | BD5: 59 | BE5: 60
D6: CARGO 1 | E6: CARGO 2 | F6: CARGO 3 | G6: CARGO 4 | H6: CARGO 5 | I6: CARGO 6 | J6: CARGO 13 | K6: CARGO 14 | L6: CARGO 15 | M6: CARGO 16 | N6: CARGO 17 | O6: CARGO 18 | P6: CARGO 19 | Q6: CARGO 20 | R6: CARGO 21 | S6: CARGO 22 | T6: CARGO 23 | U6: CARGO 24 | V6: CARGO 25 | W6: CARGO 26 | X6: CARGO 27 | Y6: CARGO 28 | Z6: CARGO 29 | AA6: CARGO 30 | AB6: CARGO 31 | AC6: CARGO 32 | AD6: CARGO 33 | AE6: CARGO 34 | AF6: CARGO 35 | AG6: CARGO 36 | AH6: CARGO 37 | AI6: CARGO 38 | AJ6: CARGO 39 | AK6: CARGO 40 | AL6: CARGO 41 | AM6: CARGO 42 | AN6: CARGO 43 | AO6: CARGO 44 | AP6: CARGO 45 | AQ6: CARGO 46 | AR6: CARGO 47 | AS6: CARGO 48 | AT6: CARGO 49 | AU6: CARGO 50 | AV6: CARGO 51 | AW6: CARGO 52 | AX6: CARGO 53 | AY6: CARGO 54 | AZ6: CARGO 55 | BA6: CARGO 56 | BB6: CARGO 57 | BC6: CARGO 58 | BD6: CARGO 59 | BE6: CARGO 60
B7: INFORMAÇÕES BÁSICAS
B9: DESCRIÇÃO DOS POSTOS DE SERVIÇO
D10: SUPERVISOR | E10: RECEPCIONISTA BILINGUE | F10: CERIMONIALISTA | G10: RECEPCIONISTA | H10: RECEPCIONISTA COM ADICIONAL DE INSALUBRIDADE | I10: RECEPCIONISTA BILINGUE PLANTONISTAS (12H/36H)
B11: REMUNERAÇÕES
D12: 5177.57 | E12: 4706.88 | F12: 4706.88 | G12: 3498.43 | H12: 3498.43 | I12: 4706.88
B13: QUANTIDADE DE POSTOS
D14: 2 | E14: 14 | F14: 6 | G14: =33+9 -> 42 | H14: 14 | I14: 0
B15: JORNADA
C16: HORAS | D16: 200 | E16: 200 | F16: 200 | G16: 200 | H16: 200 | I16: 180
C17: DIAS/MÊS | D17: 22 | E17: 22 | F17: 22 | G17: 22 | H17: 22 | I17: 15
B18: CCT UTILIZADA
C19: SINDICATOS E REFERÊNCIA | D19: SEAC/DF X SINDSERVIÇOS/DF 2022/2022 Nº DF000015/2021 | E19: SEAC/DF X SINDSERVIÇOS/DF 2022/2022 Nº DF000015/2021 | F19: SEAC/DF X SINDSERVIÇOS/DF 2022/2022 Nº DF000015/2021 | G19: SEAC/DF X SINDSERVIÇOS/DF 2022/2022 Nº DF000015/2021 | H19: SEAC/DF X SINDSERVIÇOS/DF 2022/2022 Nº DF000015/2021 | I19: SEAC/DF X SINDSERVIÇOS/DF 2022/2022 Nº DF000015/2021
C20: DATA-BASE | D20: 2022-01-01 | E20: 2022-01-01 | F20: 2022-01-01 | G20: 2022-01-01 | H20: 2022-01-01 | I20: 2022-01-01
B22: ADICIONAIS LEGAIS E GRATIFICAÇÕES
B24: PERICULOSIDADE (PERCENTUAL)
D25: 0 | E25: 0 | F25: 0 | G25: 0 | H25: 0 | I25: 0
B26: BASE DE CÁLCULO DO ADICIONAL DE PERICULOSIDADE (SALÁRIO BÁSICO)
D27: =D12 -> 5177.57 | E27: =E12 -> 4706.88 | F27: 4706.88 | G27: 3498.43 | H27: =H12 -> 3498.43 | I27: 4706.88
B28: VALOR MENSAL DO ADICIONAL DE PERICULOSIDADE
D29: =ROUND(D25*D12,2) -> 0 | E29: =ROUND(E25*E12,2) -> 0 | F29: 0 | G29: =ROUND(G25*G12,2) -> 0 | H29: =ROUND(H25*H12,2) -> 0 | I29: =ROUND(I25*I12,2) -> 0
B30: INSALUBRIDADE (PERCENTUAL)
D31: 0 | E31: 0 | F31: 0 | G31: 0 | H31: 0.2 | I31: 0
B32: BASE DE CÁLCULO DO ADICIONAL DE INSALUBRIDADE (SALÁRIO MÍNIMO LEGAL)
D33: 1212 | E33: 1212 | F33: 1212 | G33: 1212 | H33: 1212 | I33: 1212
B34: VALOR MENSAL DO ADICIONAL DE INSALUBRIDADE
D35: =ROUND(D31*D12,2) -> 0 | E35: =ROUND(E31*E12,2) -> 0 | F35: 0 | G35: =ROUND(G31*G12,2) -> 0 | H35: =ROUND(H31*H33,2) -> 242.4 | I35: =ROUND(I31*I33,2) -> 0
B36: GRATIFICAÇÃO - VALOR MENSAL (R$)
D37: 0 | E37: 0 | F37: 0 | G37: 0 | H37: 0 | I37: 0
B39: ADICIONAL NOTURNO
B41: INCIDÊNCIA (PERCENTUAL)
D42: 0.225 | E42: 0.225 | F42: 0.225 | G42: 0.225 | H42: 0.225 | I42: 0.225
B43: HORAS REAIS POR DIA
D44: 0 | E44: 0 | F44: 0 | G44: 0 | H44: 0 | I44: 0
B45: HORAS FICTAS POR DIA
D46: =D44*8/8 -> 0 | E46: =E44*8/8 -> 0 | F46: 0 | G46: 0 | H46: =H44*8/8 -> 0 | I46: 0
B47: BASE DE CÁLCULO DO ADICIONAL NOTURNO (INCLUINDO ADICIONAIS E GRATIFICAÇÕES)
D48: =D12+D29+D35+D37 -> 5177.57 | E48: =E12+E29+E35+E37 -> 4706.88 | F48: =F12+F29+F35+F37 -> 4706.88 | G48: 3498.43 | H48: =H12+H29+H35+H37 -> 3740.83 | I48: 4706.88
B49: VALOR MENSAL DO ADICIONAL NOTURNO (HORA NORMAL + HORA REDUZIDA) - POR POSTO
D50: =ROUND(D46*D17*D42*D48/D16,2) -> 0 | E50: =ROUND(E46*E17*E42*E48/E16,2) -> 0 | F50: =ROUND(F46*F17*F42*F48/F16,2) -> 0 | G50: 0 | H50: =ROUND(H46*H17*H42*H48/H16,2) -> 0 | I50: 0
B52: ADICIONAL DE HORA EXTRA
B54: INCIDÊNCIA (PERCENTUAL 1)
D55: 0.5 | E55: 0.5 | F55: 0.5 | G55: 0.5 | H55: 0.5 | I55: 0.5
B56: HORAS EXTRAS POR MÊS (PERCENTUAL 1)
D57: 0 | E57: 0 | F57: 0 | G57: 0 | H57: 0 | I57: 0
B58: VALOR MENSAL DO ADICIONAL DE HORAS EXTRAS (PERCENTUAL 1) - POR POSTO
D59: =ROUND(D57*D55*D12/D16,2) -> 0 | E59: =ROUND(E57*E55*E12/E16,2) -> 0 | F59: 0 | G59: =ROUND(G57*G55*G12/G16,2) -> 0 | H59: =ROUND(H57*H55*H12/H16,2) -> 0 | I59: 0
B60: INCIDÊNCIA (PERCENTUAL 2)
D61: 1 | E61: 1 | F61: 1 | G61: 1 | H61: 1 | I61: 1
B62: HORAS EXTRAS POR MÊS (PERCENTUAL 2)
D63: 0 | E63: 0 | F63: 0 | G63: 0 | H63: 0 | I63: 0
B64: VALOR MENSAL DO ADICIONAL DE HORAS EXTRAS (PERCENTUAL 2) - POR POSTO
D65: =ROUND(D63*D61*D12/D16,2) -> 0 | E65: =ROUND(E63*E61*E12/E16,2) -> 0 | F65: 0 | G65: =ROUND(G63*G61*G12/G16,2) -> 0 | H65: =ROUND(H63*H61*H12/H16,2) -> 0 | I65: 0
B66: TOTAL MENSAL DOS ADICIONAIS DE HORAS EXTRAS - POR POSTO
D67: =D65+D59 -> 0 | E67: =E65+E59 -> 0 | F67: 0 | G67: =G65+G59 -> 0 | H67: =H65+H59 -> 0 | I67: 0
B69: BENEFÍCIOS COMUNS - AUXÍLIO TRANSPORTE
B71: DISTRIBUIÇÃO ESTIMADA DE PROCEDÊNCIA
C72: Cidade-satélite | D72: 0.68 | E72: 0.68 | F72: 0.68 | G72: 0.68 | H72: 0.68 | I72: 0.68
C73: Região do entorno | D73: 0.32 | E73: 0.32 | F73: 0.32 | G73: 0.32 | H73: 0.32 | I73: 0.32
C74: Esplanada - apenas para os que vêm do entorno | D74: =D73 -> 0.32 | E74: =E73 -> 0.32 | F74: =F73 -> 0.32 | G74: =G73 -> 0.32 | H74: =H73 -> 0.32 | I74: 0.32
B75: VALORES DOS VALES
C76: Cidade-satélite | D76: 5.5 | E76: 5.5 | F76: =E76 -> 5.5 | G76: 5.5 | H76: =F76 -> 5.5 | I76: 5.5
C77: Região do entorno | D77: 7.05 | E77: 7.05 | F77: 7.05 | G77: 7.05 | H77: 7.05 | I77: 7.05
C78: Esplanada | D78: 2.75 | E78: 2.75 | F78: 2.75 | G78: 2.75 | H78: 2.75 | I78: 2.75
B79: VALOR MENSAL BRUTO DE PAGAMENTO - POR POSTO
D80: =ROUND((D72*D76+D73*D77+D74*D78)*2*D17,2) -> 302.54 | E80: =ROUND((E72*E76+E73*E77+E74*E78)*2*E17,2) -> 302.54 | F80: =ROUND((F72*F76+F73*F77+F74*F78)*2*F17,2) -> 302.54 | G80: =ROUND((G72*G76+G73*G77+G74*G78)*2*G17,2) -> 302.54 | H80: =ROUND((H72*H76+H73*H77+H74*H78)*2*H17,2) -> 302.54 | I80: 206.28
B81: PERCENTUAL DE DESCONTO
D82: 0.06 | E82: 0.06 | F82: 0.06 | G82: 0.06 | H82: 0.06 | I82: 0.06
B83: VALOR MENSAL DO DESCONTO - POR POSTO
D84: =ROUND(D82*D12,2) -> 310.65 | E84: =ROUND(E82*E12,2) -> 282.41 | F84: =ROUND(F82*F12,2) -> 282.41 | G84: 209.91 | H84: =ROUND(H82*H12,2) -> 209.91 | I84: 282.41
B85: VALOR MENSAL LÍQUIDO DO VALE TRANSPORTE - POR POSTO
D86: =IF(D80>D84,D80-D84,0) -> 0 | E86: =IF(E80>E84,E80-E84,0) -> 20.13 | F86: =IF(F80>F84,F80-F84,0) -> 20.13 | G86: 92.63 | H86: =IF(H80>H84,H80-H84,0) -> 92.63 | I86: 0
D87: =D86*D14 -> 0 | E87: =E86*E14 -> 281.82 | F87: 2962.54 | G87: =G86*G14 -> 3890.46 | H87: =H86*H14 -> 1296.82 | I87: =I86*I14 -> 0
B88: BENEFÍCIOS COMUNS - AUXÍLIO ALIMENTAÇÃO
C90: VALOR CCT | D90: 38 | E90: 38 | F90: 38 | G90: 38 | H90: 38 | I90: 38
C91: VALOR CD | D91: 35 | E91: 35 | F91: 35 | G91: 35 | H91: 35 | I91: 35
B92: VALOR MENSAL DO AUXÍLIO ALIMENTAÇÃO - POR POSTO
D93: =ROUND(LARGE(D90:D91,1)*D17,2) -> 836 | E93: =ROUND(LARGE(E90:E91,1)*E17,2) -> 836 | F93: =ROUND(LARGE(F90:F91,1)*F17,2) -> 836 | G93: =ROUND(LARGE(G90:G91,1)*G17,2) -> 836 | H93: =ROUND(LARGE(H90:H91,1)*H17,2) -> 836 | I93: 570
D94: =D93*D14 -> 1672 | E94: =E93*E14 -> 11704 | F94: 10339.56 | G94: =G93*G14 -> 35112 | H94: =H93*H14 -> 11704 | I94: =I93*I14 -> 0
B95: BENEFÍCIOS ESPECIAIS - ASSISTÊNCIA MÉDICA E FAMILIAR
C97: OBRIGAÇÃO DE PAGTO x % CONTR. PATRONAL | D97: NÃO | E97: NÃO | F97: NÃO | G97: NÃO | H97: NÃO | I97: NÃO
C98: VALOR CCT
C99: VALOR MERCADO | D99: 0 | E99: 0 | F99: 0 | G99: 0 | H99: 0 | I99: 0
B100: VALOR MENSAL DO AUXÍLIO ESPECIAL - ASSISTÊNCIA MÉDICA E FAMILIAR - POR POSTO
D101: =IF(D97="SIM",ROUND(SMALL(D98:D99,1),2),0) -> 0 | E101: =IF(E97="SIM",ROUND(SMALL(E98:E99,1),2),0) -> 0 | F101: 0 | G101: 0 | H101: =IF(H97="SIM",ROUND(SMALL(H98:H99,1),2),0) -> 0 | I101: 0
B103: BENEFÍCIOS ESPECIAIS - SEGURO DE VIDA E AUXÍLIO-FUNERAL, AUX ODONT, AUX CRECHE
B105: SEGURO DE VIDA E AUXÍLIO FUNERAL
C106: OBRIGAÇÃO DE PAGTO | D106: SIM | E106: SIM | F106: SIM | G106: SIM | H106: SIM | I106: SIM
C107: VALOR CCT | D107: 2.5 | E107: 2.5 | F107: 2.5 | G107: 2.5 | H107: 2.5 | I107: 2.5
C108: VALOR MERCADO
B109: VALOR MENSAL DO AUXÍLIO ESPECIAL - SEGURO DE VIDA E AUXÍLIO FUNERAL - POR POSTO
D110: =IF(D106="SIM",ROUND(SMALL(D107:D108,1),2),0) -> 2.5 | E110: =IF(E106="SIM",ROUND(SMALL(E107:E108,1),2),0) -> 2.5 | F110: =IF(F106="SIM",ROUND(SMALL(F107:F108,1),2),0) -> 2.5 | G110: 2.5 | H110: =IF(H106="SIM",ROUND(SMALL(H107:H108,1),2),0) -> 2.5 | I110: 2.5
B111: AUXÍLIO ODONTOLÓGICO
C112: OBRIGAÇÃO DE PAGTO | D112: NÃO | E112: NÃO | F112: NÃO | G112: NÃO | H112: NÃO | I112: NÃO
C113: VALOR CCT | D113: 0 | E113: 0 | F113: 0 | G113: 0 | H113: 0 | I113: 0
C114: VALOR MERCADO | D114: 0 | E114: 0 | F114: 0 | G114: 0 | H114: 0 | I114: 0
B115: VALOR MENSAL DO AUXÍLIO ESPECIAL - SEGURO DE VIDA E AUX FUNERAL - POR POSTO
D116: =IF(D112="SIM",ROUND(SMALL(D113:D114,1),2)*D17,0) -> 0 | E116: =IF(E112="SIM",ROUND(SMALL(E113:E114,1),2)*E17,0) -> 0 | F116: 0 | G116: =IF(G112="SIM",ROUND(SMALL(G113:G114,1),2)*G17,0) -> 0 | H116: =IF(H112="SIM",ROUND(SMALL(H113:H114,1),2)*H17,0) -> 0 | I116: 0
B117: TOTAL MENSAL DOS AUXÍLIOS ESPECIAIS - POR POSTO
D118: =D116+D110 -> 2.5 | E118: =E116+E110 -> 2.5 | F118: =F116+F110 -> 2.5 | G118: =G116+G110 -> 2.5 | H118: =H116+H110 -> 2.5 | I118: 2.5

Sheet Encargos Sociais
B3: ENCARGOS SOCIAIS SOBRE A MÃO DE OBRA
E4: Percentuais
B6: Referência:
C7: SINAPI OUT/2018
B9: Categorias:
C10: TODAS
B12: GRUPO A: Encargos Sociais Básicos - Previdenciários (GPS), Fundo de Garantia por Tempo de Serviço (FGTS) e Outras Contribuições | E12: =ROUND(SUM(E13:E21),4) -> 0.368
C13: A | D13: INSS (art. 22, inciso I, Lei nº 8.212/91) | E13: 0.2
C14: B | D14: Salário Educação (art. 3º, inciso I, Decreto nº 87.043/82) | E14: 0.025
C15: C | D15: SAT/RAT (art. 22, II, Lei 8.212/91 e Anexo V, Decreto 6.042/07) - Enquadramento 8111-7/00 | E15: 0.03
C16: D | D16: SESC ou SESI (art. 30, Lei nº 8.036/90 e art. 1º, Lei 8.154/90) | E16: 0.015
C17: E | D17: SENAI ou SENAC (Decreto nº 2.318/86) | E17: 0.01
C18: F | D18: SEBRAE (§ 3º, art. 8º, Lei 8.029/90, alterada pela Lei nº 8.154/90) | E18: 0.006 | G18: * Nota 1 - Os percentuais dos encargos previdenciários, do FGTS e demais contribuições são estabelecidos por legislação vigente.
C19: G | D19: INCRA (art. 1º, I, Decreto Lei 1.146/70 e Lei 7.787, de 30/06/89) | E19: 0.002 | G19: * Nota 2 - O SAT, a depender do grau de risco do serviço, irá variar entre 1%, para risco leve, de 2%, para risco médio, e de 3% para risco grave.
C20: H | D20: FGTS (Lei Complementar nº 110/01 e art. 30, Lei nº 8.036/90) | E20: 0.08 | G20: * Nota 3 - Os percentuais do Submódulo 2.2 incidem sobre o Módulo 1, o Submódulo 2.1, o Módulo 3, o Módulo 4 e o Módulo 6.
C21: I | D21: SECONCI (Convenções Coletivas de Trabalho da construção) | E21: 0
B23: GRUPO B: Encargos Sociais Relacionados ao Custo de Reposição do Profissional Ausente - Ausências Legais | E23: =ROUND(SUM(E24:E32),4) -> 0.2246
C24: A | D24: Férias (Arts. 129 e 130, inc. I, da CLT) | E24: =1/11 -> 0.09090909091 | G24: * Nota 1 - As alíneas “A” a “F” referem-se somente ao custo que será pago ao repositor pelos dias trabalhados quando da necessidade de substituir a mão de obra alocada na prestação do serviço.
C25: B | D25: Ausências Legais (Arts. 131 e 473 da CLT) | E25: =2/252 -> 0.007936507937 | G25: * Nota 2 - Adotou-se a estimativa do SINAPI de 2 dias por ano. Em 252 dias úteis por ano.
C26: C | D26: Licença-Paternidade (Art. 7º, XIX, e art. 10, §1º, do ADCT, CF/1988 e Art. 1º, II, da Lei 11.770/2008) | E26: =(5/(30*12))*0.0596 -> 0.0008277777778 | G26: * Nota 3 - Utilizada a proporção de 50% para homens, 5 dias de afastamento, e a probabilidade de um trabalhador requerer a Licença Paternidade em 5,96%, conforme SINAPI (Anuário Estatístico da Previdência Social - 2017)
C27: D | D27: Ausência por Acidente de Trabalho (Art. 131, III, da CLT) | E27: =0.0205*15/360 -> 0.0008541666667 | G27: * Nota 4 - Utilzada a estatística de 2,05% dos contribuintes beneficiados com a emissão do auxílio, conforme Anuário Estatístico da Previdência Social. Afastamento de 15 dias a cargo da empresa.
C28: E | D28: Afastamento Maternidade (Art. 71 da Lei nº 8.213/1991) | E28: =0.0508*(120/360)*(30+30*4/3)/360 -> 0.003292592593 | G28: * Nota 5 - Utilizada a estimativa de 120 dias de afastamento, e a probabilidade de uma trabalhadora requerer a Licença Maternidade em 5,08%, conforme SINAPI (citando dados do IBGE 2017) - A própria previdência paga o benefício pelos 120 dias, contudo o empregador arca com o 13º e com as férias
C29: F | D29: Auxílio Enfermidade - Doença (Art. 59 da Lei nº 8.213/1991) | E29: =((0.0376*15)+2)/360 -> 0.007122222222 | G29: * Nota 6 - Utilizada a estatística de 3,76% dos contribuintes beneficiados com o auxílio, conforme Anuário Estatístico da Previdência Social de 2016 (acrescidos de 2 dias ao ano, para os quais o trabalhador nem requer o benefício da Previdência - conforme SINAPI)
C30: G | D30: Adicional de Férias (componente do Submódulo 2.1) | E30: =1/3*1/11 -> 0.0303030303 | G30: * Nota 7 - O adicional de férias contido no Submódulo 2.1 corresponde a 1/3 da remuneração que, por sua vez, é dividida por 11 contome Nota 1.
C31: H | D31: 13º Salário (destacado na planilha de custos) | E31: =1/12 -> 0.08333333333 | G31: * Nota 8 - Provisiona-se, mensalmente, o proporcional a 1/12 dos valores referentes a gratificação natalina e adicional de férias.
C32: I | D32: Intervalo para repouso ou alimentação (componente do Submódulo 4.2) | E32: 0
B34: GRUPO C: Encargos Sociais Relacionados à Previsão para Rescisão Trabalhista | E34: =ROUND(SUM(E35:E40),4) -> 0.0572
C35: A | D35: Aviso Prévio Indenizado (Art. 7º, inciso XXI, da CF/1988 e arts. 477, 487, §1º, e 491 da CLT) | E35: =0.1*30/360 -> 0.008333333333 | G35: * Nota 1 - Considerou-se demissões de 10% por ano para substituições, a um prazo estimado de contrato de 3 anos. Aviso prévio - 1º ano 30 dias. Considerou-se os 10% demitidos sem justa causa e recebendo aviso indenizado.
C36: B | D36: Incidência do FGTS sobre o Aviso Prévio Indenizado (Súmula 305 TST) | E36: =E20*E35 -> 0.0006666666667 | G36: * Nota 2 - No cálculo do percentual, considerou-se 36 dias, correspondendo à metade da duração média dos contratos (2 anos)
C37: C | D37: Multa do FGTS sobre o Aviso Prévio Indenizado (Art. 18, §1º, da Lei 8.036/1990) | E37: =(1+1/12+1/12+1/36)*0.4*E20*0.1/3 -> 0.001274074074 | G37: * Nota 3 - Incide sobre a Remuneração + 13º salário (1/12) + Férias (1/12) + Adicional de Férias (1/36) x 40% multa para o empregador x 8% FGTS x 10% do pessoal, uma vez a cada 3 anos
C38: D | D38: Aviso Prévio Trabalhado (Art. 488, parágrafo único, CLT) | E38: =((7+2*3)*100%/360)/3 -> 0.01203703704 | G38: * Nota 3 - Considerou-se demissões de 100% ao final do contrato, com um prazo médio estimado de 3 anos. Assim, calcula-se 7 dias para o 1º ano de contrato e mais 3 dias para os 2 anos seguintes. Total 13 dias.
C39: E | D39: Incidência de GPS, FGTS e outras contribuições sobre o Aviso Prévio Trabalhado | E39: =E38*E12 -> 0.00442962963
C40: F | D40: Multa do FGTS sobre o Aviso Prévio Trabalhado | E40: =(1+1/12+1/12+1/36)*0.4*E20*(1-0.2019) -> 0.03050515556 | G40: * Nota 4 - Incide sobre a Remuneração + 13º salário (1/12) + Férias (1/12) + Adicional de Férias (1/36) x 40% multa para o empregador x 8% FGTS
B42: GRUPO D: Reincidências | E42: =ROUND(SUM(E43:E43),4) -> 0.0827
C43: A | D43: Reincidência do Grupo A sobre o Grupo B | E43: =E12*E23 -> 0.0826528
D45: SOMATÓRIO - ENCARGOS SOCIAIS SOBRE A MÃO DE OBRA | E45: =E42+E34+E23+E12 -> 0.7325

Sheet BDI
B3: COMPOSIÇÃO DA TAXA DE CUSTOS INDIRETOS, TRIBUTOS E LUCRO - BDI
B4: APLICAÇÃO: MÃO DE OBRA, 13º, MATERIAIS, EPC E EQUIPAMENTO DE REGISTRO DE FREQUÊNCIA | E4: Percentuais
B6: Custos Indiretos da Contratada | E6: =SUM(E7:E8) -> 0.0357
C7: A | D7: Administração Central (despesas de gestão da empresa, escritório e treinamento de seu pessoal, e eventuais como máscaras obrigatórias) | E7: 0.0303 | G7: * Nota 1 - O Somatório da Administração Central com o Lucro deve ser inferior a 12%
C8: B | D8: Seguros, Garantias e Riscos (o risco foi majorado considerando não pagamento dos insumos componentes do custo do posto quando da ausência do mesmo) | E8: =0.34%+0.2% -> 0.0054 | G8: * Nota 2 - O risco previsto para o porte do contrato majorado em mais 0,20% devido ao não pagamento dos insumos componentes do custo do posto quando da ausência do mesmo.
B10: Lucro | E10: =SUM(E11:E11) -> 0.0467
C11: A | D11: Lucro Real sobre os Custos Administrados | E11: 0.0467
B13: Despesas Financeiras | E13: =E14 -> 0.005251960574
C14: A | D14: Cálculo Baseado no Prazo para a Restituição dos Desembolsos Realizados pelo Contratado e na Taxa de Retorno Arbitrada | E14: =(1+E16)^(E15/252)-1 -> 0.005251960574 | G14: * Nota 1 - DF = [(1+TR)^(DU/252)]/100
C15: A.1 | D15: Dias Úteis Considerados | E15: 11 | G15: * Nota 2 - Diferença de dias entre o desembolso, pelo contratado, e o pagamento, pela Câmara
C16: A.2 | D16: Taxa de Retorno | E16: 0.1275 | G16: * Nota 3 - A taxa sugerida é a meta da SELIC
B18: Impostos - Tributos Federais | E18: =SUM(E19:E21) -> 0.074
C19: A | D19: Contribuição para o Financiamento da Seguridade Social - COFINS | E19: =0.8*7.6% -> 0.0608 | G19: * Nota 1 - Redução de 20% considerando as deduções permitidas em Lei, conforme SENGE, citado pelo TCU - Acórdão 2622/2013
C20: B | D20: Programa de Integração Social - PIS | E20: =0.8*1.65% -> 0.0132 | G20: * Nota 2 - Redução de 20% considerando as deduções permitidas em Lei, conforme SENGE, citado pelo TCU - Acórdão 2622/2013
C21: C | D21: Contribuição Previdenciária sobre a Receita Bruta - CPRB | E21: 0 | G21: * Nota 3 - Lei 12.546/2011 - Verificar atualizações e setores beneficiados
B23: Impostos - Tributos Distritais | E23: =SUM(E24:E24) -> 0.05
C24: A | D24: Imposto sobre Serviço de Qualquer Natureza - ISS | E24: 0.05
D26: SOMATÓRIO - ENCARGOS SOCIAIS SOBRE A MÃO DE OBRA | E26: =ROUND((((1+E6)*(1+E10)*(1+E13)/(1-E18-E23))-1),4) -> 0.244 | G26: * Nota 1 - [(1+AC+SGR)*(1+L)*(1+DF)/(1-CONFINS-PIS-CPRB-ISS)]-1

Sheet Uniformes
C1: CÂMARA DOS DEPUTADOS
C2: DEPARTAMENTO TÉCNICO
B6: UNIFORMES - AQUISIÇÃO
C9: CATEGORIAS | I9: QUANTIDADE
C11: 1 | D11: =HLOOKUP($C11,'Dados Gerais'!$D$5:$BE$10,6) -> SUPERVISOR | I11: =HLOOKUP($C11,'Dados Gerais'!$D$5:$BE$14,10) -> 2
C12: 2 | D12: =HLOOKUP($C12,'Dados Gerais'!$D$5:$BE$10,6) -> RECEPCIONISTA BILINGUE | I12: =HLOOKUP($C12,'Dados Gerais'!$D$5:$BE$14,10) -> 14
C13: 3 | D13: =HLOOKUP($C13,'Dados Gerais'!$D$5:$BE$10,6) -> CERIMONIALISTA | I13: =HLOOKUP($C13,'Dados Gerais'!$D$5:$BE$14,10) -> 6
C14: 4 | D14: =HLOOKUP($C14,'Dados Gerais'!$D$5:$BE$10,6) -> RECEPCIONISTA | I14: =HLOOKUP($C14,'Dados Gerais'!$D$5:$BE$14,10) -> 42
C15: 5 | D15: =HLOOKUP($C15,'Dados Gerais'!$D$5:$BE$10,6) -> RECEPCIONISTA COM ADICIONAL DE INSALUBRIDADE | I15: =HLOOKUP($C15,'Dados Gerais'!$D$5:$BE$14,10) -> 14
C16: 6 | D16: =HLOOKUP($C16,'Dados Gerais'!$D$5:$BE$10,6) -> RECEPCIONISTA BILINGUE PLANTONISTAS (12H/36H) | I16: =HLOOKUP($C16,'Dados Gerais'!$D$5:$BE$14,10) -> 0
C19: ITEM | D19: DESCRIÇÃO | E19: QUANT ANUAL POR POSTO | F19: % ESTIMADO DE SEXO MASCULINO | G19: Nº DE POSTOS | H19: QUANT ANUAL TOTAL ESTIMADA | I19: VALOR | M19: =SUM(M20:M36) -> 3111.72 | N19: Valor estimado total por posto (anual)
C21: MASCULINOS | D21: Blazer em gabardine de primeira qualidade com elastano (tipo two way), cor cinza escuro. Padrão alfaiataria, forrado, frente entretelada, com ombreira, mangas longas em duas folhas, reforço de entretela nos revéis e nas golas; conforme modelo anexo. Medida: Por grade ou, no caso de pessoa com manequim fora do padrão, sob medida. | E21: 3 | F21: 0.5 | G21: =SUM(I11:I15) -> 78 | H21: =ROUNDUP(G21*F21*E21,0) -> 117 | I21: 179.63 | M21: =$H21*$I21/(SUM($I$11:$I$15)) -> 269.445
D22: Calça em gabardine de primeira qualidade com elastano (tipo two way), cor cinza escuro. Social, conforme modelo anexo, padrão alfaiataria, cós entretelado e forrado do mesmo tecido da calça, sem friso frontal, corte clássico, barras feitas na padronagem “à mão” confeccionadas por meio de máquina industrial. Dois bolsos traseiros embutidos e dois laterais modelo faca reforçados com vivos, oito passadores de cinto. Medida: por grade ou, no caso de pessoa com manequim fora do padrão, sob medida. | E22: 3 | F22: =F21 -> 0.5 | G22: =G21 -> 78 | H22: 117 | I22: 113.09 | M22: =$H22*$I22/(SUM($I$11:$I$15)) -> 169.635
D23: Camisa em tecido tricoline mista (70% algodão e 30% poliéster e gramatura aproximada 135g/m²). Padrão camisaria, manga longa, abotoamento frontal com um lado entretelado, golas e punhos entretelados, mangas e laterais fechadas com máquinas industriais e pregadeira de manga e fechadeira de braço, golas e punhos entretelados. Com o botão do colarinho embutido. Medida: por grade ou, no caso de pessoa com manequim fora do padrão, sob medida. | E23: 6 | F23: =F22 -> 0.5 | G23: =G22 -> 78 | H23: 234 | I23: 97.45 | M23: 292.35
D24: Gravata em poliéster. Modelo Tradicional. Medida de acordo com levantamento feito junto aos empregados. | E24: 3 | F24: =F23 -> 0.5 | G24: =G21 -> 78 | H24: 117 | I24: 37.45 | M24: 56.175
D25: Meia-social cano longo. Fina, em algodão. Modelo Tradicional. Medida de acordo com levantamento feito junto aos empregados. | E25: 12 | F25: =F24 -> 0.5 | G25: =G22 -> 78 | H25: 468 | I25: 15.95 | M25: 95.7
D26: Sapato social em couro natural legítimo, na cor preta, com cadarço, com a parte interna acolchoada e em couro. Palmilha em PU ultramacia ou em gel e sola antiderrapante. Medida de acordo com levantamento feito junto aos empregados. | E26: 4 | F26: =F25 -> 0.5 | G26: =G23 -> 78 | H26: 156 | I26: 94.63 | M26: 189.26
D27: Cinto social em couro natural legítimo, na cor preta, sem costura. Medida de acordo com levantamento feito junto aos empregados. | E27: 2 | F27: =F26 -> 0.5 | G27: =G26 -> 78 | H27: 78 | I27: 54.63 | M27: 54.63
C28: FEMININOS | D28: Blazer em gabardine de primeira qualidade com elastano (tipo two way), cor cinza escuro, sem gola e com fecho simples (sem abotoamento). Padrão alfaiataria, forrado, frente entretelada, com ombreira, mangas longas em duas folhas, reforço de entretela nos revéis, conforme modelo anexo. Medida: por grade ou, no caso de pessoa com manequim fora do padrão, sob medida. | E28: 2 | F28: =1-F21 -> 0.5 | G28: =G21 -> 78 | H28: 78 | I28: 207.18 | M28: 207.18
D29: Saia em gabardine de primeira qualidade com elastano (tipo two way), cor cinza escuro. Saia forrada, conforme modelo anexo, cobrindo os joelhos, cós entretelado e forrado do mesmo tecido da saia, sem passadores de cinto. Medida: por grade ou, no caso de pessoa com manequim fora do padrão, sob medida. | E29: 2 | F29: =F28 -> 0.5 | G29: =G28 -> 78 | H29: 78 | I29: 121.63 | M29: 121.63
D30: Calça em gabardine de primeira qualidade com elastano (tipo two way), cor cinza escuro. Social, conforme modelo anexo, padrão alfaiataria, cós entretelado e forrado do mesmo tecido da calça, sem friso frontal, corte clássico, barras feitas na padronagem “à mão” confeccionadas por meio de máquina industrial. Medida: por grade ou, no caso de pessoa com manequim fora do padrão, sob medida. | E30: 3 | F30: =F29 -> 0.5 | G30: =G29 -> 78 | H30: =ROUNDUP(G30*F30*E30,0) -> 117 | I30: 147.67 | M30: 221.505
D31: Camisa em crepe de seda, com gola laço, sem botões e mangas curtas, conforme modelo anexo. Medida: por grade ou, no caso de pessoa com manequim fora do padrão, sob medida. | E31: 8 | F31: 0.5 | G31: 78 | H31: 312 | I31: 154.45 | M31: 617.8
D32: Vestido em gabardine de primeira qualidade com elastano (tipo two way), cor cinza escuro. Forrado, conforme modelo anexo, cobrindo os joelhos. Medida: por grade ou, no caso de pessoa com manequim fora do padrão, sob medida. | E32: 2 | F32: 0.5 | G32: 78 | H32: 78 | I32: 218.73 | M32: 218.73
D33: Lenço com estampa exclusiva da Câmara dos Deputados, conforme desenho. | E33: 4 | F33: 0.5 | G33: 78 | H33: 156 | I33: 32.37 | M33: 64.74
D34: Meia calça fina com lycra, fio 15 (quinze) cor da pele. Medida de acordo com levantamento feito junto às empregadas. | E34: 24 | F34: 0.5 | G34: 78 | H34: 936 | I34: 23.97 | M34: 287.64
D35: Sapato social feminino em couro natural legítimo, na cor preta, tipo scarpin, modelo Usaflex ou similar linha comfort, com bico levemente redondo ou quadrado. Macio para oferecer o máximo de conforto, com a parte interna acolchoada. Palmilha em PU, ultramacia, que garante absorção de impacto e se molda aos pés. Salto bloco de até 5cm e sola antiderrapante. Tamanho de acordo com levantamento feito junto aos empregados. | E35: 4 | F35: 0.5 | G35: 78 | H35: =ROUNDUP(G35*F35*E35,0) -> 156 | I35: 122.65 | M35: 245.3
M36: 0

Sheet EPI (hidden)
B3: EQUIPAMENTOS DE PROTEÇÃO INDIVIDUAL - AQUISIÇÃO | I3: 1 | K3: =I3+1 -> 2 | M3: =K3+1 -> 3 | O3: =M3+1 -> 4 | Q3: =O3+1 -> 5 | S3: =Q3+1 -> 6 | U3: =S3+1 -> 7 | W3: =U3+1 -> 8 | Y3: =W3+1 -> 9 | AA3: =Y3+1 -> 10 | AC3: =AA3+1 -> 11 | AE3: =AC3+1 -> 12 | AG3: =AE3+1 -> 13 | AI3: =AG3+1 -> 14 | AK3: =AI3+1 -> 15 | AM3: =AK3+1 -> 16 | AO3: =AM3+1 -> 17 | AQ3: =AO3+1 -> 18 | AS3: =AQ3+1 -> 19 | AU3: =AS3+1 -> 20 | AW3: =AU3+1 -> 21 | AY3: =AW3+1 -> 22 | BA3: =AY3+1 -> 23 | BC3: =BA3+1 -> 24 | BE3: =BC3+1 -> 25 | BG3: =BE3+1 -> 26 | BI3: =BG3+1 -> 27 | BK3: =BI3+1 -> 28 | BM3: =BK3+1 -> 29 | BO3: =BM3+1 -> 30 | BQ3: =BO3+1 -> 31 | BS3: =BQ3+1 -> 32 | BU3: =BS3+1 -> 33 | BW3: =BU3+1 -> 34 | BY3: =BW3+1 -> 35 | CA3: =BY3+1 -> 36 | CC3: =CA3+1 -> 37 | CE3: =CC3+1 -> 38 | CG3: =CE3+1 -> 39 | CI3: =CG3+1 -> 40 | CK3: =CI3+1 -> 41 | CM3: =CK3+1 -> 42 | CO3: =CM3+1 -> 43 | CQ3: =CO3+1 -> 44 | CS3: =CQ3+1 -> 45 | CU3: =CS3+1 -> 46 | CW3: =CU3+1 -> 47 | CY3: =CW3+1 -> 48 | DA3: =CY3+1 -> 49 | DC3: =DA3+1 -> 50 | DE3: =DC3+1 -> 51 | DG3: =DE3+1 -> 52 | DI3: =DG3+1 -> 53 | DK3: =DI3+1 -> 54 | DM3: =DK3+1 -> 55 | DO3: =DM3+1 -> 56 | DQ3: =DO3+1 -> 57 | DS3: =DQ3+1 -> 58 | DU3: =DS3+1 -> 59 | DW3: =DU3+1 -> 60
I5: =ROUND(SUM(J4:J24),2) -> 0 | K5: =ROUND(SUM(L4:L24),2) -> 0 | M5: =ROUND(SUM(N4:N24),2) -> 0 | O5: =ROUND(SUM(P4:P24),2) -> 0 | Q5: =ROUND(SUM(R4:R24),2) -> 0 | S5: =ROUND(SUM(T4:T24),2) -> 0 | U5: =ROUND(SUM(V4:V24),2) -> 0 | W5: =ROUND(SUM(X4:X24),2) -> 0 | Y5: =ROUND(SUM(Z4:Z24),2) -> 0 | AA5: =ROUND(SUM(AB4:AB24),2) -> 0 | AC5: =ROUND(SUM(AD4:AD24),2) -> 0 | AE5: =ROUND(SUM(AF4:AF24),2) -> 0 | AG5: =ROUND(SUM(AH4:AH24),2) -> 0 | AI5: =ROUND(SUM(AJ4:AJ24),2) -> 0 | AK5: =ROUND(SUM(AL4:AL24),2) -> 0 | AM5: =ROUND(SUM(AN4:AN24),2) -> 0 | AO5: =ROUND(SUM(AP4:AP24),2) -> 0 | AQ5: =ROUND(SUM(AR4:AR24),2) -> 0 | AS5: =ROUND(SUM(AT4:AT24),2) -> 0 | AU5: =ROUND(SUM(AV4:AV24),2) -> 0 | AW5: =ROUND(SUM(AX4:AX24),2) -> 0 | AY5: =ROUND(SUM(AZ4:AZ24),2) -> 0 | BA5: =ROUND(SUM(BB4:BB24),2) -> 0 | BC5: =ROUND(SUM(BD4:BD24),2) -> 0 | BE5: =ROUND(SUM(BF4:BF24),2) -> 0 | BG5: =ROUND(SUM(BH4:BH24),2) -> 0 | BI5: =ROUND(SUM(BJ4:BJ24),2) -> 0 | BK5: =ROUND(SUM(BL4:BL24),2) -> 0 | BM5: =ROUND(SUM(BN4:BN24),2) -> 0 | BO5: =ROUND(SUM(BP4:BP24),2) -> 0 | BQ5: =ROUND(SUM(BR4:BR24),2) -> 0 | BS5: =ROUND(SUM(BT4:BT24),2) -> 0 | BU5: =ROUND(SUM(BV4:BV24),2) -> 0 | BW5: =ROUND(SUM(BX4:BX24),2) -> 0 | BY5: =ROUND(SUM(BZ4:BZ24),2) -> 0 | CA5: =ROUND(SUM(CB4:CB24),2) -> 0 | CC5: =ROUND(SUM(CD4:CD24),2) -> 0 | CE5: =ROUND(SUM(CF4:CF24),2) -> 0 | CG5: =ROUND(SUM(CH4:CH24),2) -> 0 | CI5: =ROUND(SUM(CJ4:CJ24),2) -> 0 | CK5: =ROUND(SUM(CL4:CL24),2) -> 0 | CM5: =ROUND(SUM(CN4:CN24),2) -> 0 | CO5: =ROUND(SUM(CP4:CP24),2) -> 0 | CQ5: =ROUND(SUM(CR4:CR24),2) -> 0 | CS5: =ROUND(SUM(CT4:CT24),2) -> 0 | CU5: =ROUND(SUM(CV4:CV24),2) -> 0 | CW5: =ROUND(SUM(CX4:CX24),2) -> 0 | CY5: =ROUND(SUM(CZ4:CZ24),2) -> 0 | DA5: =ROUND(SUM(DB4:DB24),2) -> 0 | DC5: =ROUND(SUM(DD4:DD24),2) -> 0 | DE5: =ROUND(SUM(DF4:DF24),2) -> 0 | DG5: =ROUND(SUM(DH4:DH24),2) -> 0 | DI5: =ROUND(SUM(DJ4:DJ24),2) -> 0 | DK5: =ROUND(SUM(DL4:DL24),2) -> 0 | DM5: =ROUND(SUM(DN4:DN24),2) -> 0 | DO5: =ROUND(SUM(DP4:DP24),2) -> 0 | DQ5: =ROUND(SUM(DR4:DR24),2) -> 0 | DS5: =ROUND(SUM(DT4:DT24),2) -> 0 | DU5: =ROUND(SUM(DV4:DV24),2) -> 0 | DW5: =ROUND(SUM(DX4:DX24),2) -> 0
C6: CATEGORIAS | F6: QUANTIDADE
I7: =IF($C7=I$3,1,0) -> 0 | K7: =IF($C7=K$3,1,0) -> 0 | M7: =IF($C7=M$3,1,0) -> 0 | O7: =IF($C7=O$3,1,0) -> 0 | Q7: =IF($C7=Q$3,1,0) -> 0 | S7: =IF($C7=S$3,1,0) -> 0 | U7: =IF($C7=U$3,1,0) -> 0 | W7: =IF($C7=W$3,1,0) -> 0 | Y7: =IF($C7=Y$3,1,0) -> 0 | AA7: =IF($C7=AA$3,1,0) -> 0 | AC7: =IF($C7=AC$3,1,0) -> 0 | AE7: =IF($C7=AE$3,1,0) -> 0 | AG7: =IF($C7=AG$3,1,0) -> 0 | AI7: =IF($C7=AI$3,1,0) -> 0 | AK7: =IF($C7=AK$3,1,0) -> 0 | AM7: =IF($C7=AM$3,1,0) -> 0 | AO7: =IF($C7=AO$3,1,0) -> 0 | AQ7: =IF($C7=AQ$3,1,0) -> 0 | AS7: =IF($C7=AS$3,1,0) -> 0
C8: 1 | D8: =HLOOKUP($C8,'Dados Gerais'!$D$5:$BE$10,6) -> SUPERVISOR | F8: =HLOOKUP($C8,'Dados Gerais'!$D$5:$BE$14,10) -> 2 | I8: 1 | K8: 0 | M8: 0 | O8: 0 | Q8: 0 | S8: 0 | U8: 0 | W8: 0 | Y8: 0 | AA8: 0 | AC8: 0 | AE8: 0 | AG8: 0 | AI8: 0 | AK8: 0 | AM8: 0 | AO8: 0 | AQ8: 0 | AS8: 0 | AU8: =IF($C8=AU$3,1,0) -> 0 | AW8: =IF($C8=AW$3,1,0) -> 0 | AY8: =IF($C8=AY$3,1,0) -> 0 | BA8: =IF($C8=BA$3,1,0) -> 0 | BC8: =IF($C8=BC$3,1,0) -> 0 | BE8: =IF($C8=BE$3,1,0) -> 0 | BG8: =IF($C8=BG$3,1,0) -> 0 | BI8: =IF($C8=BI$3,1,0) -> 0 | BK8: =IF($C8=BK$3,1,0) -> 0 | BM8: =IF($C8=BM$3,1,0) -> 0 | BO8: =IF($C8=BO$3,1,0) -> 0 | BQ8: =IF($C8=BQ$3,1,0) -> 0 | BS8: =IF($C8=BS$3,1,0) -> 0 | BU8: =IF($C8=BU$3,1,0) -> 0 | BW8: =IF($C8=BW$3,1,0) -> 0 | BY8: =IF($C8=BY$3,1,0) -> 0 | CA8: =IF($C8=CA$3,1,0) -> 0 | CC8: =IF($C8=CC$3,1,0) -> 0 | CE8: =IF($C8=CE$3,1,0) -> 0 | CG8: =IF($C8=CG$3,1,0) -> 0 | CI8: =IF($C8=CI$3,1,0) -> 0 | CK8: =IF($C8=CK$3,1,0) -> 0 | CM8: =IF($C8=CM$3,1,0) -> 0 | CO8: =IF($C8=CO$3,1,0) -> 0 | CQ8: =IF($C8=CQ$3,1,0) -> 0 | CS8: =IF($C8=CS$3,1,0) -> 0 | CU8: =IF($C8=CU$3,1,0) -> 0 | CW8: =IF($C8=CW$3,1,0) -> 0 | CY8: =IF($C8=CY$3,1,0) -> 0 | DA8: =IF($C8=DA$3,1,0) -> 0 | DC8: =IF($C8=DC$3,1,0) -> 0 | DE8: =IF($C8=DE$3,1,0) -> 0 | DG8: =IF($C8=DG$3,1,0) -> 0 | DI8: =IF($C8=DI$3,1,0) -> 0 | DK8: =IF($C8=DK$3,1,0) -> 0 | DM8: =IF($C8=DM$3,1,0) -> 0 | DO8: =IF($C8=DO$3,1,0) -> 0 | DQ8: =IF($C8=DQ$3,1,0) -> 0 | DS8: =IF($C8=DS$3,1,0) -> 0 | DU8: =IF($C8=DU$3,1,0) -> 0 | DW8: =IF($C8=DW$3,1,0) -> 0
C9: 2 | D9: =HLOOKUP($C9,'Dados Gerais'!$D$5:$BE$10,6) -> RECEPCIONISTA BILINGUE | F9: =HLOOKUP($C9,'Dados Gerais'!$D$5:$BE$14,10) -> 14 | I9: 0 | K9: 1 | M9: 0 | O9: 0 | Q9: 0 | S9: 0 | U9: 0 | W9: 0 | Y9: 0 | AA9: 0 | AC9: 0 | AE9: 0 | AG9: 0 | AI9: 0 | AK9: 0 | AM9: 0 | AO9: 0 | AQ9: 0 | AS9: 0 | AU9: 0 | AW9: 0 | AY9: 0 | BA9: 0 | BC9: 0 | BE9: 0 | BG9: 0 | BI9: 0 | BK9: 0 | BM9: 0 | BO9: 0 | BQ9: 0 | BS9: 0 | BU9: 0 | BW9: 0 | BY9: 0 | CA9: 0 | CC9: 0 | CE9: 0 | CG9: 0 | CI9: 0 | CK9: 0 | CM9: 0 | CO9: 0 | CQ9: 0 | CS9: 0 | CU9: 0 | CW9: 0 | CY9: 0 | DA9: 0 | DC9: 0 | DE9: 0 | DG9: 0 | DI9: 0 | DK9: 0 | DM9: 0 | DO9: 0 | DQ9: 0 | DS9: 0 | DU9: 0 | DW9: 0
C10: 3 | D10: =HLOOKUP($C10,'Dados Gerais'!$D$5:$BE$10,6) -> CERIMONIALISTA | F10: =HLOOKUP($C10,'Dados Gerais'!$D$5:$BE$14,10) -> 6 | I10: 0 | K10: 0 | M10: 1 | O10: 0 | Q10: 0 | S10: 0 | U10: 0 | W10: 0 | Y10: 0 | AA10: 0 | AC10: 0 | AE10: 0 | AG10: 0 | AI10: 0 | AK10: 0 | AM10: 0 | AO10: 0 | AQ10: 0 | AS10: 0 | AU10: 0 | AW10: 0 | AY10: 0 | BA10: 0 | BC10: 0 | BE10: 0 | BG10: 0 | BI10: 0 | BK10: 0 | BM10: 0 | BO10: 0 | BQ10: 0 | BS10: 0 | BU10: 0 | BW10: 0 | BY10: 0 | CA10: 0 | CC10: 0 | CE10: 0 | CG10: 0 | CI10: 0 | CK10: 0 | CM10: 0 | CO10: 0 | CQ10: 0 | CS10: 0 | CU10: 0 | CW10: 0 | CY10: 0 | DA10: 0 | DC10: 0 | DE10: 0 | DG10: 0 | DI10: 0 | DK10: 0 | DM10: 0 | DO10: 0 | DQ10: 0 | DS10: 0 | DU10: 0 | DW10: 0
C11: 4 | D11: =HLOOKUP($C11,'Dados Gerais'!$D$5:$BE$10,6) -> RECEPCIONISTA | F11: =HLOOKUP($C11,'Dados Gerais'!$D$5:$BE$14,10) -> 42 | I11: 0 | K11: 0 | M11: 0 | O11: 1 | Q11: 0 | S11: 0 | U11: 0 | W11: 0 | Y11: 0 | AA11: 0 | AC11: 0 | AE11: 0 | AG11: 0 | AI11: 0 | AK11: 0 | AM11: 0 | AO11: 0 | AQ11: 0 | AS11: 0 | AU11: 0 | AW11: 0 | AY11: 0 | BA11: 0 | BC11: 0 | BE11: 0 | BG11: 0 | BI11: 0 | BK11: 0 | BM11: 0 | BO11: 0 | BQ11: 0 | BS11: 0 | BU11: 0 | BW11: 0 | BY11: 0 | CA11: 0 | CC11: 0 | CE11: 0 | CG11: 0 | CI11: 0 | CK11: 0 | CM11: 0 | CO11: 0 | CQ11: 0 | CS11: 0 | CU11: 0 | CW11: 0 | CY11: 0 | DA11: 0 | DC11: 0 | DE11: 0 | DG11: 0 | DI11: 0 | DK11: 0 | DM11: 0 | DO11: 0 | DQ11: 0 | DS11: 0 | DU11: 0 | DW11: 0
C12: 5 | D12: =HLOOKUP($C12,'Dados Gerais'!$D$5:$BE$10,6) -> RECEPCIONISTA COM ADICIONAL DE INSALUBRIDADE | F12: =HLOOKUP($C12,'Dados Gerais'!$D$5:$BE$14,10) -> 14 | I12: 0 | K12: 0 | M12: 0 | O12: 0 | Q12: 1 | S12: 0 | U12: 0 | W12: 0 | Y12: 0 | AA12: 0 | AC12: 0 | AE12: 0 | AG12: 0 | AI12: 0 | AK12: 0 | AM12: 0 | AO12: 0 | AQ12: 0 | AS12: 0 | AU12: 0 | AW12: 0 | AY12: 0 | BA12: 0 | BC12: 0 | BE12: 0 | BG12: 0 | BI12: 0 | BK12: 0 | BM12: 0 | BO12: 0 | BQ12: 0 | BS12: 0 | BU12: 0 | BW12: 0 | BY12: 0 | CA12: 0 | CC12: 0 | CE12: 0 | CG12: 0 | CI12: 0 | CK12: 0 | CM12: 0 | CO12: 0 | CQ12: 0 | CS12: 0 | CU12: 0 | CW12: 0 | CY12: 0 | DA12: 0 | DC12: 0 | DE12: 0 | DG12: 0 | DI12: 0 | DK12: 0 | DM12: 0 | DO12: 0 | DQ12: 0 | DS12: 0 | DU12: 0 | DW12: 0
C13: 6 | D13: =HLOOKUP($C13,'Dados Gerais'!$D$5:$BE$10,6) -> RECEPCIONISTA BILINGUE PLANTONISTAS (12H/36H) | F13: =HLOOKUP($C13,'Dados Gerais'!$D$5:$BE$14,10) -> 0 | I13: 0 | K13: 0 | M13: 0 | O13: 0 | Q13: 0 | S13: 1 | U13: 0 | W13: 0 | Y13: 0 | AA13: 0 | AC13: 0 | AE13: 0 | AG13: 0 | AI13: 0 | AK13: 0 | AM13: 0 | AO13: 0 | AQ13: 0 | AS13: 0 | AU13: 0 | AW13: 0 | AY13: 0 | BA13: 0 | BC13: 0 | BE13: 0 | BG13: 0 | BI13: 0 | BK13: 0 | BM13: 0 | BO13: 0 | BQ13: 0 | BS13: 0 | BU13: 0 | BW13: 0 | BY13: 0 | CA13: 0 | CC13: 0 | CE13: 0 | CG13: 0 | CI13: 0 | CK13: 0 | CM13: 0 | CO13: 0 | CQ13: 0 | CS13: 0 | CU13: 0 | CW13: 0 | CY13: 0 | DA13: 0 | DC13: 0 | DE13: 0 | DG13: 0 | DI13: 0 | DK13: 0 | DM13: 0 | DO13: 0 | DQ13: 0 | DS13: 0 | DU13: 0 | DW13: 0
C14: 7 | D14: =HLOOKUP($C14,'Dados Gerais'!$D$5:$BE$10,6) -> RECEPCIONISTA BILINGUE PLANTONISTAS (12H/36H) | F14: =HLOOKUP($C14,'Dados Gerais'!$D$5:$BE$14,10) -> 0 | I14: 0 | K14: 0 | M14: 0 | O14: 0 | Q14: 0 | S14: 0 | U14: 1 | W14: 0 | Y14: 0 | AA14: 0 | AC14: 0 | AE14: 0 | AG14: 0 | AI14: 0 | AK14: 0 | AM14: 0 | AO14: 0 | AQ14: 0 | AS14: 0 | AU14: 0 | AW14: 0 | AY14: 0 | BA14: 0 | BC14: 0 | BE14: 0 | BG14: 0 | BI14: 0 | BK14: 0 | BM14: 0 | BO14: 0 | BQ14: 0 | BS14: 0 | BU14: 0 | BW14: 0 | BY14: 0 | CA14: 0 | CC14: 0 | CE14: 0 | CG14: 0 | CI14: 0 | CK14: 0 | CM14: 0 | CO14: 0 | CQ14: 0 | CS14: 0 | CU14: 0 | CW14: 0 | CY14: 0 | DA14: 0 | DC14: 0 | DE14: 0 | DG14: 0 | DI14: 0 | DK14: 0 | DM14: 0 | DO14: 0 | DQ14: 0 | DS14: 0 | DU14: 0 | DW14: 0
C15: 8 | D15: =HLOOKUP($C15,'Dados Gerais'!$D$5:$BE$10,6) -> RECEPCIONISTA BILINGUE PLANTONISTAS (12H/36H) | F15: =HLOOKUP($C15,'Dados Gerais'!$D$5:$BE$14,10) -> 0 | I15: 0 | K15: 0 | M15: 0 | O15: 0 | Q15: 0 | S15: 0 | U15: 0 | W15: 1 | Y15: 0 | AA15: 0 | AC15: 0 | AE15: 0 | AG15: 0 | AI15: 0 | AK15: 0 | AM15: 0 | AO15: 0 | AQ15: 0 | AS15: 0 | AU15: 0 | AW15: 0 | AY15: 0 | BA15: 0 | BC15: 0 | BE15: 0 | BG15: 0 | BI15: 0 | BK15: 0 | BM15: 0 | BO15: 0 | BQ15: 0 | BS15: 0 | BU15: 0 | BW15: 0 | BY15: 0 | CA15: 0 | CC15: 0 | CE15: 0 | CG15: 0 | CI15: 0 | CK15: 0 | CM15: 0 | CO15: 0 | CQ15: 0 | CS15: 0 | CU15: 0 | CW15: 0 | CY15: 0 | DA15: 0 | DC15: 0 | DE15: 0 | DG15: 0 | DI15: 0 | DK15: 0 | DM15: 0 | DO15: 0 | DQ15: 0 | DS15: 0 | DU15: 0 | DW15: 0
C16: 9 | D16: =HLOOKUP($C16,'Dados Gerais'!$D$5:$BE$10,6) -> RECEPCIONISTA BILINGUE PLANTONISTAS (12H/36H) | F16: =HLOOKUP($C16,'Dados Gerais'!$D$5:$BE$14,10) -> 0 | I16: 0 | K16: 0 | M16: 0 | O16: 0 | Q16: 0 | S16: 0 | U16: 0 | W16: 0 | Y16: 1 | AA16: 0 | AC16: 0 | AE16: 0 | AG16: 0 | AI16: 0 | AK16: 0 | AM16: 0 | AO16: 0 | AQ16: 0 | AS16: 0 | AU16: 0 | AW16: 0 | AY16: 0 | BA16: 0 | BC16: 0 | BE16: 0 | BG16: 0 | BI16: 0 | BK16: 0 | BM16: 0 | BO16: 0 | BQ16: 0 | BS16: 0 | BU16: 0 | BW16: 0 | BY16: 0 | CA16: 0 | CC16: 0 | CE16: 0 | CG16: 0 | CI16: 0 | CK16: 0 | CM16: 0 | CO16: 0 | CQ16: 0 | CS16: 0 | CU16: 0 | CW16: 0 | CY16: 0 | DA16: 0 | DC16: 0 | DE16: 0 | DG16: 0 | DI16: 0 | DK16: 0 | DM16: 0 | DO16: 0 | DQ16: 0 | DS16: 0 | DU16: 0 | DW16: 0
C17: 10 | D17: =HLOOKUP($C17,'Dados Gerais'!$D$5:$BE$10,6) -> RECEPCIONISTA BILINGUE PLANTONISTAS (12H/36H) | F17: =HLOOKUP($C17,'Dados Gerais'!$D$5:$BE$14,10) -> 0 | I17: 0 | K17: 0 | M17: 0 | O17: 0 | Q17: 0 | S17: 0 | U17: 0 | W17: 0 | Y17: 0 | AA17: 1 | AC17: 0 | AE17: 0 | AG17: 0 | AI17: 0 | AK17: 0 | AM17: 0 | AO17: 0 | AQ17: 0 | AS17: 0 | AU17: 0 | AW17: 0 | AY17: 0 | BA17: 0 | BC17: 0 | BE17: 0 | BG17: 0 | BI17: 0 | BK17: 0 | BM17: 0 | BO17: 0 | BQ17: 0 | BS17: 0 | BU17: 0 | BW17: 0 | BY17: 0 | CA17: 0 | CC17: 0 | CE17: 0 | CG17: 0 | CI17: 0 | CK17: 0 | CM17: 0 | CO17: 0 | CQ17: 0 | CS17: 0 | CU17: 0 | CW17: 0 | CY17: 0 | DA17: 0 | DC17: 0 | DE17: 0 | DG17: 0 | DI17: 0 | DK17: 0 | DM17: 0 | DO17: 0 | DQ17: 0 | DS17: 0 | DU17: 0 | DW17: 0
C18: 11 | D18: =HLOOKUP($C18,'Dados Gerais'!$D$5:$BE$10,6) -> RECEPCIONISTA BILINGUE PLANTONISTAS (12H/36H) | F18: =HLOOKUP($C18,'Dados Gerais'!$D$5:$BE$14,10) -> 0 | I18: 0 | K18: 0 | M18: 0 | O18: 0 | Q18: 0 | S18: 0 | U18: 0 | W18: 0 | Y18: 0 | AA18: 0 | AC18: 1 | AE18: 0 | AG18: 0 | AI18: 0 | AK18: 0 | AM18: 0 | AO18: 0 | AQ18: 0 | AS18: 0 | AU18: 0 | AW18: 0 | AY18: 0 | BA18: 0 | BC18: 0 | BE18: 0 | BG18: 0 | BI18: 0 | BK18: 0 | BM18: 0 | BO18: 0 | BQ18: 0 | BS18: 0 | BU18: 0 | BW18: 0 | BY18: 0 | CA18: 0 | CC18: 0 | CE18: 0 | CG18: 0 | CI18: 0 | CK18: 0 | CM18: 0 | CO18: 0 | CQ18: 0 | CS18: 0 | CU18: 0 | CW18: 0 | CY18: 0 | DA18: 0 | DC18: 0 | DE18: 0 | DG18: 0 | DI18: 0 | DK18: 0 | DM18: 0 | DO18: 0 | DQ18: 0 | DS18: 0 | DU18: 0 | DW18: 0
C19: 12 | D19: =HLOOKUP($C19,'Dados Gerais'!$D$5:$BE$10,6) -> RECEPCIONISTA BILINGUE PLANTONISTAS (12H/36H) | F19: =HLOOKUP($C19,'Dados Gerais'!$D$5:$BE$14,10) -> 0 | I19: 0 | K19: 0 | M19: 0 | O19: 0 | Q19: 0 | S19: 0 | U19: 0 | W19: 0 | Y19: 0 | AA19: 0 | AC19: 0 | AE19: 1 | AG19: 0 | AI19: 0 | AK19: 0 | AM19: 0 | AO19: 0 | AQ19: 0 | AS19: 0 | AU19: 0 | AW19: 0 | AY19: 0 | BA19: 0 | BC19: 0 | BE19: 0 | BG19: 0 | BI19: 0 | BK19: 0 | BM19: 0 | BO19: 0 | BQ19: 0 | BS19: 0 | BU19: 0 | BW19: 0 | BY19: 0 | CA19: 0 | CC19: 0 | CE19: 0 | CG19: 0 | CI19: 0 | CK19: 0 | CM19: 0 | CO19: 0 | CQ19: 0 | CS19: 0 | CU19: 0 | CW19: 0 | CY19: 0 | DA19: 0 | DC19: 0 | DE19: 0 | DG19: 0 | DI19: 0 | DK19: 0 | DM19: 0 | DO19: 0 | DQ19: 0 | DS19: 0 | DU19: 0 | DW19: 0
I20: 0 | K20: 0 | M20: 0 | O20: 0 | Q20: 0 | S20: 0 | U20: 0 | W20: 0 | Y20: 0 | AA20: 0 | AC20: 0 | AE20: 0 | AG20: 0 | AI20: 0 | AK20: 0 | AM20: 0 | AO20: 0 | AQ20: 0 | AS20: 0
C22: ITEM | D22: DESCRIÇÃO | E22: QUANT ANUAL POR POSTO | F22: VALOR
D24: Respirador purificador de ar tipo, peça semifacial filtrante para partículas (PFF2), com formato dobrável, solda ultrassônica em todo o seu perímetro. Fita elástica branca fixada nas laterais externas do respirador, perfazendo uma alça na para fixação na parte superior da cabeça e a outra na parte inferior, para fixação na altura da nuca do usuário. A parte superior externa da peça possui tira de material metálico moldável, utilizada para ajuste no septo nasal. Na face lateral do respirador existe um dispositivo de material plástico, dotado internamente de uma válvula de exalação. DEVERÁ APRESENTAR O SELO DE APROVAÇÃO DO INMETRO. Ref. 3M, Honeywell, Super Safety, Tayco, dentre outras. Obs: Enquanto durar a pandemia da Covid 19 as máscaras deverão ser fornecidas sem a válvula de exalação | E24: 0 | F24: 3.85 | J24: =IF(SUM(I$7:I$20)>0,$E24*$F24,0) -> 0 | L24: =IF(SUM(K$7:K$20)>0,$E24*$F24,0) -> 0 | N24: =IF(SUM(M$7:M$20)>0,$E24*$F24,0) -> 0 | P24: =IF(SUM(O$7:O$20)>0,$E24*$F24,0) -> 0 | R24: =IF(SUM(Q$7:Q$20)>0,$E24*$F24,0) -> 0 | T24: =IF(SUM(S$7:S$20)>0,$E24*$F24,0) -> 0 | V24: =IF(SUM(U$7:U$20)>0,$E24*$F24,0) -> 0 | X24: =IF(SUM(W$7:W$20)>0,$E24*$F24,0) -> 0 | Z24: =IF(SUM(Y$7:Y$20)>0,$E24*$F24,0) -> 0 | AB24: =IF(SUM(AA$7:AA$20)>0,$E24*$F24,0) -> 0 | AD24: =IF(SUM(AC$7:AC$20)>0,$E24*$F24,0) -> 0 | AF24: =IF(SUM(AE$7:AE$20)>0,$E24*$F24,0) -> 0 | AH24: =IF(SUM(AG$7:AG$20)>0,$E24*$F24,0) -> 0 | AJ24: =IF(SUM(AI$7:AI$20)>0,$E24*$F24,0) -> 0 | AL24: =IF(SUM(AK$7:AK$20)>0,$E24*$F24,0) -> 0 | AN24: =IF(SUM(AM$7:AM$20)>0,$E24*$F24,0) -> 0 | AP24: =IF(SUM(AO$7:AO$20)>0,$E24*$F24,0) -> 0 | AR24: =IF(SUM(AQ$7:AQ$20)>0,$E24*$F24,0) -> 0 | AT24: =IF(SUM(AS$7:AS$20)>0,$E24*$F24,0) -> 0 | AV24: =IF(SUM(AU$7:AU$20)>0,$E24*$F24,0) -> 0 | AX24: =IF(SUM(AW$7:AW$20)>0,$E24*$F24,0) -> 0 | AZ24: =IF(SUM(AY$7:AY$20)>0,$E24*$F24,0) -> 0 | BB24: =IF(SUM(BA$7:BA$20)>0,$E24*$F24,0) -> 0 | BD24: =IF(SUM(BC$7:BC$20)>0,$E24*$F24,0) -> 0 | BF24: =IF(SUM(BE$7:BE$20)>0,$E24*$F24,0) -> 0 | BH24: =IF(SUM(BG$7:BG$20)>0,$E24*$F24,0) -> 0 | BJ24: =IF(SUM(BI$7:BI$20)>0,$E24*$F24,0) -> 0 | BL24: =IF(SUM(BK$7:BK$20)>0,$E24*$F24,0) -> 0 | BN24: =IF(SUM(BM$7:BM$20)>0,$E24*$F24,0) -> 0 | BP24: =IF(SUM(BO$7:BO$20)>0,$E24*$F24,0) -> 0 | BR24: =IF(SUM(BQ$7:BQ$20)>0,$E24*$F24,0) -> 0 | BT24: =IF(SUM(BS$7:BS$20)>0,$E24*$F24,0) -> 0 | BV24: =IF(SUM(BU$7:BU$20)>0,$E24*$F24,0) -> 0 | BX24: =IF(SUM(BW$7:BW$20)>0,$E24*$F24,0) -> 0 | BZ24: =IF(SUM(BY$7:BY$20)>0,$E24*$F24,0) -> 0 | CB24: =IF(SUM(CA$7:CA$20)>0,$E24*$F24,0) -> 0 | CD24: =IF(SUM(CC$7:CC$20)>0,$E24*$F24,0) -> 0 | CF24: =IF(SUM(CE$7:CE$20)>0,$E24*$F24,0) -> 0 | CH24: =IF(SUM(CG$7:CG$20)>0,$E24*$F24,0) -> 0 | CJ24: =IF(SUM(CI$7:CI$20)>0,$E24*$F24,0) -> 0 | CL24: =IF(SUM(CK$7:CK$20)>0,$E24*$F24,0) -> 0 | CN24: =IF(SUM(CM$7:CM$20)>0,$E24*$F24,0) -> 0 | CP24: =IF(SUM(CO$7:CO$20)>0,$E24*$F24,0) -> 0 | CR24: =IF(SUM(CQ$7:CQ$20)>0,$E24*$F24,0) -> 0 | CT24: =IF(SUM(CS$7:CS$20)>0,$E24*$F24,0) -> 0 | CV24: =IF(SUM(CU$7:CU$20)>0,$E24*$F24,0) -> 0 | CX24: =IF(SUM(CW$7:CW$20)>0,$E24*$F24,0) -> 0 | CZ24: =IF(SUM(CY$7:CY$20)>0,$E24*$F24,0) -> 0 | DB24: =IF(SUM(DA$7:DA$20)>0,$E24*$F24,0) -> 0 | DD24: =IF(SUM(DC$7:DC$20)>0,$E24*$F24,0) -> 0 | DF24: =IF(SUM(DE$7:DE$20)>0,$E24*$F24,0) -> 0 | DH24: =IF(SUM(DG$7:DG$20)>0,$E24*$F24,0) -> 0 | DJ24: =IF(SUM(DI$7:DI$20)>0,$E24*$F24,0) -> 0 | DL24: =IF(SUM(DK$7:DK$20)>0,$E24*$F24,0) -> 0 | DN24: =IF(SUM(DM$7:DM$20)>0,$E24*$F24,0) -> 0 | DP24: =IF(SUM(DO$7:DO$20)>0,$E24*$F24,0) -> 0 | DR24: =IF(SUM(DQ$7:DQ$20)>0,$E24*$F24,0) -> 0 | DT24: =IF(SUM(DS$7:DS$20)>0,$E24*$F24,0) -> 0 | DV24: =IF(SUM(DU$7:DU$20)>0,$E24*$F24,0) -> 0 | DX24: =IF(SUM(DW$7:DW$20)>0,$E24*$F24,0) -> 0
J25: 0 | L25: 0 | N25: 0 | P25: 0 | R25: 0 | T25: =IF(SUM(S$7:S$20)>0,$E25*$F25,0) -> 0 | V25: 0 | X25: 0 | Z25: 0 | AB25: 0 | AD25: 0 | AF25: 0 | AH25: 0 | AJ25: 0 | AL25: 0 | AN25: 0 | AP25: 0 | AR25: 0 | AT25: 0 | AV25: 0 | AX25: 0 | AZ25: 0 | BB25: 0 | BD25: 0 | BF25: 0 | BH25: 0 | BJ25: 0 | BL25: 0 | BN25: 0 | BP25: 0 | BR25: 0 | BT25: 0 | BV25: 0 | BX25: 0 | BZ25: 0 | CB25: 0 | CD25: 0 | CF25: 0 | CH25: 0 | CJ25: 0 | CL25: 0 | CN25: 0 | CP25: 0 | CR25: 0 | CT25: 0 | CV25: 0 | CX25: 0 | CZ25: 0 | DB25: 0 | DD25: 0 | DF25: 0 | DH25: 0 | DJ25: 0 | DL25: 0 | DN25: 0 | DP25: 0 | DR25: 0 | DT25: 0 | DV25: 0 | DX25: 0
J26: 0 | L26: 0 | N26: 0 | P26: 0 | R26: 0 | T26: 0 | V26: 0 | X26: 0 | Z26: 0 | AB26: 0 | AD26: 0 | AF26: 0 | AH26: 0 | AJ26: 0 | AL26: 0 | AN26: 0 | AP26: 0 | AR26: 0 | AT26: 0 | AV26: 0 | AX26: 0 | AZ26: 0 | BB26: 0 | BD26: 0 | BF26: 0 | BH26: 0 | BJ26: 0 | BL26: 0 | BN26: 0 | BP26: 0 | BR26: 0 | BT26: 0 | BV26: 0 | BX26: 0 | BZ26: 0 | CB26: 0 | CD26: 0 | CF26: 0 | CH26: 0 | CJ26: 0 | CL26: 0 | CN26: 0 | CP26: 0 | CR26: 0 | CT26: 0 | CV26: 0 | CX26: 0 | CZ26: 0 | DB26: 0 | DD26: 0 | DF26: 0 | DH26: 0 | DJ26: 0 | DL26: 0 | DN26: 0 | DP26: 0 | DR26: 0 | DT26: 0 | DV26: 0 | DX26: 0
J27: 0 | L27: 0 | N27: 0 | P27: 0 | R27: 0 | T27: 0 | V27: 0 | X27: 0 | Z27: 0 | AB27: 0 | AD27: 0 | AF27: 0 | AH27: 0 | AJ27: 0 | AL27: 0 | AN27: 0 | AP27: 0 | AR27: 0 | AT27: 0 | AV27: 0 | AX27: 0 | AZ27: 0 | BB27: 0 | BD27: 0 | BF27: 0 | BH27: 0 | BJ27: 0 | BL27: 0 | BN27: 0 | BP27: 0 | BR27: 0 | BT27: 0 | BV27: 0 | BX27: 0 | BZ27: 0 | CB27: 0 | CD27: 0 | CF27: 0 | CH27: 0 | CJ27: 0 | CL27: 0 | CN27: 0 | CP27: 0 | CR27: 0 | CT27: 0 | CV27: 0 | CX27: 0 | CZ27: 0 | DB27: 0 | DD27: 0 | DF27: 0 | DH27: 0 | DJ27: 0 | DL27: 0 | DN27: 0 | DP27: 0 | DR27: 0 | DT27: 0 | DV27: 0 | DX27: 0
J28: 0 | L28: 0 | N28: 0 | P28: 0 | R28: 0 | T28: 0 | V28: 0 | X28: 0 | Z28: 0 | AB28: 0 | AD28: 0 | AF28: 0 | AH28: 0 | AJ28: 0 | AL28: 0 | AN28: 0 | AP28: 0 | AR28: 0 | AT28: 0 | AV28: 0 | AX28: 0 | AZ28: 0 | BB28: 0 | BD28: 0 | BF28: 0 | BH28: 0 | BJ28: 0 | BL28: 0 | BN28: 0 | BP28: 0 | BR28: 0 | BT28: 0 | BV28: 0 | BX28: 0 | BZ28: 0 | CB28: 0 | CD28: 0 | CF28: 0 | CH28: 0 | CJ28: 0 | CL28: 0 | CN28: 0 | CP28: 0 | CR28: 0 | CT28: 0 | CV28: 0 | CX28: 0 | CZ28: 0 | DB28: 0 | DD28: 0 | DF28: 0 | DH28: 0 | DJ28: 0 | DL28: 0 | DN28: 0 | DP28: 0 | DR28: 0 | DT28: 0 | DV28: 0 | DX28: 0
J29: 0 | L29: 0 | N29: 0 | P29: 0 | R29: 0 | T29: 0 | V29: 0 | X29: 0 | Z29: 0 | AB29: 0 | AD29: 0 | AF29: 0 | AH29: 0 | AJ29: 0 | AL29: 0 | AN29: 0 | AP29: 0 | AR29: 0 | AT29: 0 | AV29: 0 | AX29: 0 | AZ29: 0 | BB29: 0 | BD29: 0 | BF29: 0 | BH29: 0 | BJ29: 0 | BL29: 0 | BN29: 0 | BP29: 0 | BR29: 0 | BT29: 0 | BV29: 0 | BX29: 0 | BZ29: 0 | CB29: 0 | CD29: 0 | CF29: 0 | CH29: 0 | CJ29: 0 | CL29: 0 | CN29: 0 | CP29: 0 | CR29: 0 | CT29: 0 | CV29: 0 | CX29: 0 | CZ29: 0 | DB29: 0 | DD29: 0 | DF29: 0 | DH29: 0 | DJ29: 0 | DL29: 0 | DN29: 0 | DP29: 0 | DR29: 0 | DT29: 0 | DV29: 0 | DX29: 0
J30: 0 | L30: 0 | N30: 0 | P30: 0 | R30: 0 | T30: 0 | V30: 0 | X30: 0 | Z30: 0 | AB30: 0 | AD30: 0 | AF30: 0 | AH30: 0 | AJ30: 0 | AL30: 0 | AN30: 0 | AP30: 0 | AR30: 0 | AT30: 0 | AV30: 0 | AX30: 0 | AZ30: 0 | BB30: 0 | BD30: 0 | BF30: 0 | BH30: 0 | BJ30: 0 | BL30: 0 | BN30: 0 | BP30: 0 | BR30: 0 | BT30: 0 | BV30: 0 | BX30: 0 | BZ30: 0 | CB30: 0 | CD30: 0 | CF30: 0 | CH30: 0 | CJ30: 0 | CL30: 0 | CN30: 0 | CP30: 0 | CR30: 0 | CT30: 0 | CV30: 0 | CX30: 0 | CZ30: 0 | DB30: 0 | DD30: 0 | DF30: 0 | DH30: 0 | DJ30: 0 | DL30: 0 | DN30: 0 | DP30: 0 | DR30: 0 | DT30: 0 | DV30: 0 | DX30: 0
J31: 0 | L31: 0 | N31: 0 | P31: 0 | R31: 0 | T31: 0 | V31: 0 | X31: 0 | Z31: 0 | AB31: 0 | AD31: 0 | AF31: 0 | AH31: 0 | AJ31: 0 | AL31: 0 | AN31: 0 | AP31: 0 | AR31: 0 | AT31: 0 | AV31: 0 | AX31: 0 | AZ31: 0 | BB31: 0 | BD31: 0 | BF31: 0 | BH31: 0 | BJ31: 0 | BL31: 0 | BN31: 0 | BP31: 0 | BR31: 0 | BT31: 0 | BV31: 0 | BX31: 0 | BZ31: 0 | CB31: 0 | CD31: 0 | CF31: 0 | CH31: 0 | CJ31: 0 | CL31: 0 | CN31: 0 | CP31: 0 | CR31: 0 | CT31: 0 | CV31: 0 | CX31: 0 | CZ31: 0 | DB31: 0 | DD31: 0 | DF31: 0 | DH31: 0 | DJ31: 0 | DL31: 0 | DN31: 0 | DP31: 0 | DR31: 0 | DT31: 0 | DV31: 0 | DX31: 0
J32: 0 | L32: 0 | N32: 0 | P32: 0 | R32: 0 | T32: 0 | V32: 0 | X32: 0 | Z32: 0 | AB32: 0 | AD32: 0 | AF32: 0 | AH32: 0 | AJ32: 0 | AL32: 0 | AN32: 0 | AP32: 0 | AR32: 0 | AT32: 0 | AV32: 0 | AX32: 0 | AZ32: 0 | BB32: 0 | BD32: 0 | BF32: 0 | BH32: 0 | BJ32: 0 | BL32: 0 | BN32: 0 | BP32: 0 | BR32: 0 | BT32: 0 | BV32: 0 | BX32: 0 | BZ32: 0 | CB32: 0 | CD32: 0 | CF32: 0 | CH32: 0 | CJ32: 0 | CL32: 0 | CN32: 0 | CP32: 0 | CR32: 0 | CT32: 0 | CV32: 0 | CX32: 0 | CZ32: 0 | DB32: 0 | DD32: 0 | DF32: 0 | DH32: 0 | DJ32: 0 | DL32: 0 | DN32: 0 | DP32: 0 | DR32: 0 | DT32: 0 | DV32: 0 | DX32: 0
C34: CATEGORIAS | F34: QUANTIDADE
I35: =IF($C35=I$3,1,0) -> 0 | K35: =IF($C35=K$3,1,0) -> 0 | M35: =IF($C35=M$3,1,0) -> 0 | O35: =IF($C35=O$3,1,0) -> 0 | Q35: =IF($C35=Q$3,1,0) -> 0 | S35: =IF($C35=S$3,1,0) -> 0 | U35: =IF($C35=U$3,1,0) -> 0 | W35: =IF($C35=W$3,1,0) -> 0 | Y35: =IF($C35=Y$3,1,0) -> 0 | AA35: =IF($C35=AA$3,1,0) -> 0 | AC35: =IF($C35=AC$3,1,0) -> 0 | AE35: =IF($C35=AE$3,1,0) -> 0 | AG35: =IF($C35=AG$3,1,0) -> 0 | AI35: =IF($C35=AI$3,1,0) -> 0 | AK35: =IF($C35=AK$3,1,0) -> 0 | AM35: =IF($C35=AM$3,1,0) -> 0 | AO35: =IF($C35=AO$3,1,0) -> 0 | AQ35: =IF($C35=AQ$3,1,0) -> 0 | AS35: =IF($C35=AS$3,1,0) -> 0
D36: =HLOOKUP($C36,'Dados Gerais'!$D$5:$BE$10,6) ->  | F36: =HLOOKUP($C36,'Dados Gerais'!$D$5:$BE$14,10) ->  | I36: =IF($C36=I$3,1,0) -> 0 | J36: =IF($C36=J$3,1,0) -> 1 | K36: 0 | L36: 1 | M36: 0 | N36: 1 | O36: 0 | P36: 1 | Q36: 0 | R36: 1 | S36: 0 | T36: 1 | U36: 0 | V36: 1 | W36: 0 | X36: 1 | Y36: 0 | Z36: 1 | AA36: 0 | AB36: 1 | AC36: 0 | AD36: 1 | AE36: =IF($C36=AE$3,1,0) -> 0 | AF36: 1 | AG36: 0 | AH36: 1 | AI36: 0 | AJ36: 1 | AK36: 0 | AL36: 1 | AM36: 0 | AN36: 1 | AO36: 0 | AP36: 1 | AQ36: 0 | AR36: 1 | AS36: 0 | AT36: 1 | AU36: =IF($C36=AU$3,1,0) -> 0 | AV36: 1 | AW36: =IF($C36=AW$3,1,0) -> 0 | AX36: 1 | AY36: =IF($C36=AY$3,1,0) -> 0 | AZ36: 1 | BA36: =IF($C36=BA$3,1,0) -> 0 | BB36: 1 | BC36: =IF($C36=BC$3,1,0) -> 0 | BD36: 1 | BE36: =IF($C36=BE$3,1,0) -> 0 | BF36: 1 | BG36: =IF($C36=BG$3,1,0) -> 0 | BH36: 1 | BI36: =IF($C36=BI$3,1,0) -> 0 | BJ36: 1 | BK36: =IF($C36=BK$3,1,0) -> 0 | BL36: 1 | BM36: =IF($C36=BM$3,1,0) -> 0 | BN36: 1 | BO36: =IF($C36=BO$3,1,0) -> 0 | BP36: 1 | BQ36: =IF($C36=BQ$3,1,0) -> 0 | BR36: 1 | BS36: =IF($C36=BS$3,1,0) -> 0 | BT36: 1 | BU36: =IF($C36=BU$3,1,0) -> 0 | BV36: 1 | BW36: =IF($C36=BW$3,1,0) -> 0 | BX36: 1 | BY36: =IF($C36=BY$3,1,0) -> 0 | BZ36: 1 | CA36: =IF($C36=CA$3,1,0) -> 0 | CB36: 1 | CC36: =IF($C36=CC$3,1,0) -> 0 | CD36: 1 | CE36: =IF($C36=CE$3,1,0) -> 0 | CF36: 1 | CG36: =IF($C36=CG$3,1,0) -> 0 | CH36: 1 | CI36: =IF($C36=CI$3,1,0) -> 0 | CJ36: 1 | CK36: =IF($C36=CK$3,1,0) -> 0 | CL36: 1 | CM36: =IF($C36=CM$3,1,0) -> 0 | CN36: 1 | CO36: =IF($C36=CO$3,1,0) -> 0 | CP36: 1 | CQ36: =IF($C36=CQ$3,1,0) -> 0 | CR36: 1 | CS36: =IF($C36=CS$3,1,0) -> 0 | CT36: 1 | CU36: =IF($C36=CU$3,1,0) -> 0 | CV36: 1 | CW36: =IF($C36=CW$3,1,0) -> 0 | CX36: 1 | CY36: =IF($C36=CY$3,1,0) -> 0 | CZ36: 1 | DA36: =IF($C36=DA$3,1,0) -> 0 | DB36: 1 | DC36: =IF($C36=DC$3,1,0) -> 0 | DD36: 1 | DE36: =IF($C36=DE$3,1,0) -> 0 | DF36: 1 | DG36: =IF($C36=DG$3,1,0) -> 0 | DH36: 1 | DI36: =IF($C36=DI$3,1,0) -> 0 | DJ36: 1 | DK36: =IF($C36=DK$3,1,0) -> 0 | DL36: 1 | DM36: =IF($C36=DM$3,1,0) -> 0 | DN36: 1 | DO36: =IF($C36=DO$3,1,0) -> 0 | DP36: 1 | DQ36: =IF($C36=DQ$3,1,0) -> 0 | DR36: 1 | DS36: =IF($C36=DS$3,1,0) -> 0 | DT36: 1 | DU36: =IF($C36=DU$3,1,0) -> 0 | DV36: 1 | DW36: =IF($C36=DW$3,1,0) -> 0 | DX36: 1
I37: =IF($C37=I$3,1,0) -> 0 | K37: 0 | M37: 0 | O37: 0 | Q37: 0 | S37: 0 | U37: 0 | W37: 0 | Y37: 0 | AA37: 0 | AC37: 0 | AE37: =IF($C37=AE$3,1,0) -> 0 | AG37: 0 | AI37: 0 | AK37: 0 | AM37: 0 | AO37: 0 | AQ37: 0 | AS37: 0
C39: ITEM | D39: DESCRIÇÃO | E39: QUANT ANUAL POR POSTO | F39: VALOR
J41: =IF(SUM(I$35:I$37)>0,$E41*$F41,0) -> 0 | L41: =IF(SUM(K$35:K$37)>0,$E41*$F41,0) -> 0 | N41: =IF(SUM(M$35:M$37)>0,$E41*$F41,0) -> 0 | P41: =IF(SUM(O$35:O$37)>0,$E41*$F41,0) -> 0 | R41: =IF(SUM(Q$35:Q$37)>0,$E41*$F41,0) -> 0 | T41: =IF(SUM(S$35:S$37)>0,$E41*$F41,0) -> 0 | V41: =IF(SUM(U$35:U$37)>0,$E41*$F41,0) -> 0 | X41: =IF(SUM(W$35:W$37)>0,$E41*$F41,0) -> 0 | Z41: =IF(SUM(Y$35:Y$37)>0,$E41*$F41,0) -> 0 | AB41: =IF(SUM(AA$35:AA$37)>0,$E41*$F41,0) -> 0 | AD41: =IF(SUM(AC$35:AC$37)>0,$E41*$F41,0) -> 0 | AF41: =IF(SUM(AE$35:AE$37)>0,$E41*$F41,0) -> 0 | AH41: =IF(SUM(AG$35:AG$37)>0,$E41*$F41,0) -> 0 | AJ41: =IF(SUM(AI$35:AI$37)>0,$E41*$F41,0) -> 0 | AL41: =IF(SUM(AK$35:AK$37)>0,$E41*$F41,0) -> 0 | AN41: =IF(SUM(AM$35:AM$37)>0,$E41*$F41,0) -> 0 | AP41: =IF(SUM(AO$35:AO$37)>0,$E41*$F41,0) -> 0 | AR41: =IF(SUM(AQ$35:AQ$37)>0,$E41*$F41,0) -> 0 | AT41: =IF(SUM(AS$35:AS$37)>0,$E41*$F41,0) -> 0 | AV41: =IF(SUM(AU$35:AU$37)>0,$E41*$F41,0) -> 0 | AX41: =IF(SUM(AW$35:AW$37)>0,$E41*$F41,0) -> 0 | AZ41: =IF(SUM(AY$35:AY$37)>0,$E41*$F41,0) -> 0 | BB41: =IF(SUM(BA$35:BA$37)>0,$E41*$F41,0) -> 0 | BD41: =IF(SUM(BC$35:BC$37)>0,$E41*$F41,0) -> 0 | BF41: =IF(SUM(BE$35:BE$37)>0,$E41*$F41,0) -> 0 | BH41: =IF(SUM(BG$35:BG$37)>0,$E41*$F41,0) -> 0 | BJ41: =IF(SUM(BI$35:BI$37)>0,$E41*$F41,0) -> 0 | BL41: =IF(SUM(BK$35:BK$37)>0,$E41*$F41,0) -> 0 | BN41: =IF(SUM(BM$35:BM$37)>0,$E41*$F41,0) -> 0 | BP41: =IF(SUM(BO$35:BO$37)>0,$E41*$F41,0) -> 0 | BR41: =IF(SUM(BQ$35:BQ$37)>0,$E41*$F41,0) -> 0 | BT41: =IF(SUM(BS$35:BS$37)>0,$E41*$F41,0) -> 0 | BV41: =IF(SUM(BU$35:BU$37)>0,$E41*$F41,0) -> 0 | BX41: =IF(SUM(BW$35:BW$37)>0,$E41*$F41,0) -> 0 | BZ41: =IF(SUM(BY$35:BY$37)>0,$E41*$F41,0) -> 0 | CB41: =IF(SUM(CA$35:CA$37)>0,$E41*$F41,0) -> 0 | CD41: =IF(SUM(CC$35:CC$37)>0,$E41*$F41,0) -> 0 | CF41: =IF(SUM(CE$35:CE$37)>0,$E41*$F41,0) -> 0 | CH41: =IF(SUM(CG$35:CG$37)>0,$E41*$F41,0) -> 0 | CJ41: =IF(SUM(CI$35:CI$37)>0,$E41*$F41,0) -> 0 | CL41: =IF(SUM(CK$35:CK$37)>0,$E41*$F41,0) -> 0 | CN41: =IF(SUM(CM$35:CM$37)>0,$E41*$F41,0) -> 0 | CP41: =IF(SUM(CO$35:CO$37)>0,$E41*$F41,0) -> 0 | CR41: =IF(SUM(CQ$35:CQ$37)>0,$E41*$F41,0) -> 0 | CT41: =IF(SUM(CS$35:CS$37)>0,$E41*$F41,0) -> 0 | CV41: =IF(SUM(CU$35:CU$37)>0,$E41*$F41,0) -> 0 | CX41: =IF(SUM(CW$35:CW$37)>0,$E41*$F41,0) -> 0 | CZ41: =IF(SUM(CY$35:CY$37)>0,$E41*$F41,0) -> 0 | DB41: =IF(SUM(DA$35:DA$37)>0,$E41*$F41,0) -> 0 | DD41: =IF(SUM(DC$35:DC$37)>0,$E41*$F41,0) -> 0 | DF41: =IF(SUM(DE$35:DE$37)>0,$E41*$F41,0) -> 0 | DH41: =IF(SUM(DG$35:DG$37)>0,$E41*$F41,0) -> 0 | DJ41: =IF(SUM(DI$35:DI$37)>0,$E41*$F41,0) -> 0 | DL41: =IF(SUM(DK$35:DK$37)>0,$E41*$F41,0) -> 0 | DN41: =IF(SUM(DM$35:DM$37)>0,$E41*$F41,0) -> 0 | DP41: =IF(SUM(DO$35:DO$37)>0,$E41*$F41,0) -> 0 | DR41: =IF(SUM(DQ$35:DQ$37)>0,$E41*$F41,0) -> 0 | DT41: =IF(SUM(DS$35:DS$37)>0,$E41*$F41,0) -> 0 | DV41: =IF(SUM(DU$35:DU$37)>0,$E41*$F41,0) -> 0 | DX41: =IF(SUM(DW$35:DW$37)>0,$E41*$F41,0) -> 0
J42: 0 | L42: 0 | N42: 0 | P42: 0 | R42: 0 | T42: 0 | V42: 0 | X42: 0 | Z42: 0 | AB42: 0 | AD42: 0 | AF42: 0 | AH42: =IF(SUM(AG$35:AG$37)>0,$E42*$F42,0) -> 0 | AJ42: =IF(SUM(AI$35:AI$37)>0,$E42*$F42,0) -> 0 | AL42: =IF(SUM(AK$35:AK$37)>0,$E42*$F42,0) -> 0 | AN42: =IF(SUM(AM$35:AM$37)>0,$E42*$F42,0) -> 0 | AP42: =IF(SUM(AO$35:AO$37)>0,$E42*$F42,0) -> 0 | AR42: =IF(SUM(AQ$35:AQ$37)>0,$E42*$F42,0) -> 0 | AT42: =IF(SUM(AS$35:AS$37)>0,$E42*$F42,0) -> 0 | AV42: 0 | AX42: 0 | AZ42: 0 | BB42: 0 | BD42: 0 | BF42: 0 | BH42: 0 | BJ42: 0 | BL42: 0 | BN42: 0 | BP42: 0 | BR42: 0 | BT42: 0 | BV42: 0 | BX42: 0 | BZ42: 0 | CB42: 0 | CD42: 0 | CF42: 0 | CH42: 0 | CJ42: 0 | CL42: 0 | CN42: 0 | CP42: 0 | CR42: 0 | CT42: 0 | CV42: 0 | CX42: 0 | CZ42: 0 | DB42: 0 | DD42: 0 | DF42: 0 | DH42: 0 | DJ42: 0 | DL42: 0 | DN42: 0 | DP42: 0 | DR42: 0 | DT42: 0 | DV42: 0 | DX42: 0
J43: 0 | L43: 0 | N43: 0 | P43: 0 | R43: 0 | T43: 0 | V43: 0 | X43: 0 | Z43: 0 | AB43: 0 | AD43: 0 | AF43: 0 | AH43: =IF(SUM(AG$35:AG$37)>0,$E43*$F43,0) -> 0 | AJ43: =IF(SUM(AI$35:AI$37)>0,$E43*$F43,0) -> 0 | AL43: =IF(SUM(AK$35:AK$37)>0,$E43*$F43,0) -> 0 | AN43: =IF(SUM(AM$35:AM$37)>0,$E43*$F43,0) -> 0 | AP43: =IF(SUM(AO$35:AO$37)>0,$E43*$F43,0) -> 0 | AR43: =IF(SUM(AQ$35:AQ$37)>0,$E43*$F43,0) -> 0 | AT43: =IF(SUM(AS$35:AS$37)>0,$E43*$F43,0) -> 0 | AV43: 0 | AX43: 0 | AZ43: 0 | BB43: 0 | BD43: 0 | BF43: 0 | BH43: 0 | BJ43: 0 | BL43: 0 | BN43: 0 | BP43: 0 | BR43: 0 | BT43: 0 | BV43: 0 | BX43: 0 | BZ43: 0 | CB43: 0 | CD43: 0 | CF43: 0 | CH43: 0 | CJ43: 0 | CL43: 0 | CN43: 0 | CP43: 0 | CR43: 0 | CT43: 0 | CV43: 0 | CX43: 0 | CZ43: 0 | DB43: 0 | DD43: 0 | DF43: 0 | DH43: 0 | DJ43: 0 | DL43: 0 | DN43: 0 | DP43: 0 | DR43: 0 | DT43: 0 | DV43: 0 | DX43: 0
J44: 0 | L44: 0 | N44: 0 | P44: 0 | R44: 0 | T44: 0 | V44: 0 | X44: 0 | Z44: 0 | AB44: 0 | AD44: 0 | AF44: 0 | AH44: =IF(SUM(AG$35:AG$37)>0,$E44*$F44,0) -> 0 | AJ44: =IF(SUM(AI$35:AI$37)>0,$E44*$F44,0) -> 0 | AL44: =IF(SUM(AK$35:AK$37)>0,$E44*$F44,0) -> 0 | AN44: =IF(SUM(AM$35:AM$37)>0,$E44*$F44,0) -> 0 | AP44: =IF(SUM(AO$35:AO$37)>0,$E44*$F44,0) -> 0 | AR44: =IF(SUM(AQ$35:AQ$37)>0,$E44*$F44,0) -> 0 | AT44: =IF(SUM(AS$35:AS$37)>0,$E44*$F44,0) -> 0 | AV44: 0 | AX44: 0 | AZ44: 0 | BB44: 0 | BD44: 0 | BF44: 0 | BH44: 0 | BJ44: 0 | BL44: 0 | BN44: 0 | BP44: 0 | BR44: 0 | BT44: 0 | BV44: 0 | BX44: 0 | BZ44: 0 | CB44: 0 | CD44: 0 | CF44: 0 | CH44: 0 | CJ44: 0 | CL44: 0 | CN44: 0 | CP44: 0 | CR44: 0 | CT44: 0 | CV44: 0 | CX44: 0 | CZ44: 0 | DB44: 0 | DD44: 0 | DF44: 0 | DH44: 0 | DJ44: 0 | DL44: 0 | DN44: 0 | DP44: 0 | DR44: 0 | DT44: 0 | DV44: 0 | DX44: 0
J45: 0 | L45: 0 | N45: 0 | P45: 0 | R45: 0 | T45: 0 | V45: 0 | X45: 0 | Z45: 0 | AB45: 0 | AD45: 0 | AF45: 0 | AH45: =IF(SUM(AG$35:AG$37)>0,$E45*$F45,0) -> 0 | AJ45: =IF(SUM(AI$35:AI$37)>0,$E45*$F45,0) -> 0 | AL45: =IF(SUM(AK$35:AK$37)>0,$E45*$F45,0) -> 0 | AN45: =IF(SUM(AM$35:AM$37)>0,$E45*$F45,0) -> 0 | AP45: =IF(SUM(AO$35:AO$37)>0,$E45*$F45,0) -> 0 | AR45: =IF(SUM(AQ$35:AQ$37)>0,$E45*$F45,0) -> 0 | AT45: =IF(SUM(AS$35:AS$37)>0,$E45*$F45,0) -> 0 | AV45: 0 | AX45: 0 | AZ45: 0 | BB45: 0 | BD45: 0 | BF45: 0 | BH45: 0 | BJ45: 0 | BL45: 0 | BN45: 0 | BP45: 0 | BR45: 0 | BT45: 0 | BV45: 0 | BX45: 0 | BZ45: 0 | CB45: 0 | CD45: 0 | CF45: 0 | CH45: 0 | CJ45: 0 | CL45: 0 | CN45: 0 | CP45: 0 | CR45: 0 | CT45: 0 | CV45: 0 | CX45: 0 | CZ45: 0 | DB45: 0 | DD45: 0 | DF45: 0 | DH45: 0 | DJ45: 0 | DL45: 0 | DN45: 0 | DP45: 0 | DR45: 0 | DT45: 0 | DV45: 0 | DX45: 0
J46: 0 | L46: 0 | N46: 0 | P46: 0 | R46: 0 | T46: 0 | V46: 0 | X46: 0 | Z46: 0 | AB46: 0 | AD46: 0 | AF46: 0 | AH46: =IF(SUM(AG$35:AG$37)>0,$E46*$F46,0) -> 0 | AJ46: =IF(SUM(AI$35:AI$37)>0,$E46*$F46,0) -> 0 | AL46: =IF(SUM(AK$35:AK$37)>0,$E46*$F46,0) -> 0 | AN46: =IF(SUM(AM$35:AM$37)>0,$E46*$F46,0) -> 0 | AP46: =IF(SUM(AO$35:AO$37)>0,$E46*$F46,0) -> 0 | AR46: =IF(SUM(AQ$35:AQ$37)>0,$E46*$F46,0) -> 0 | AT46: =IF(SUM(AS$35:AS$37)>0,$E46*$F46,0) -> 0 | AV46: 0 | AX46: 0 | AZ46: 0 | BB46: 0 | BD46: 0 | BF46: 0 | BH46: 0 | BJ46: 0 | BL46: 0 | BN46: 0 | BP46: 0 | BR46: 0 | BT46: 0 | BV46: 0 | BX46: 0 | BZ46: 0 | CB46: 0 | CD46: 0 | CF46: 0 | CH46: 0 | CJ46: 0 | CL46: 0 | CN46: 0 | CP46: 0 | CR46: 0 | CT46: 0 | CV46: 0 | CX46: 0 | CZ46: 0 | DB46: 0 | DD46: 0 | DF46: 0 | DH46: 0 | DJ46: 0 | DL46: 0 | DN46: 0 | DP46: 0 | DR46: 0 | DT46: 0 | DV46: 0 | DX46: 0
J47: 0 | L47: 0 | N47: 0 | P47: 0 | R47: 0 | T47: 0 | V47: 0 | X47: 0 | Z47: 0 | AB47: 0 | AD47: 0 | AF47: 0 | AH47: =IF(SUM(AG$35:AG$37)>0,$E47*$F47,0) -> 0 | AJ47: =IF(SUM(AI$35:AI$37)>0,$E47*$F47,0) -> 0 | AL47: =IF(SUM(AK$35:AK$37)>0,$E47*$F47,0) -> 0 | AN47: =IF(SUM(AM$35:AM$37)>0,$E47*$F47,0) -> 0 | AP47: =IF(SUM(AO$35:AO$37)>0,$E47*$F47,0) -> 0 | AR47: =IF(SUM(AQ$35:AQ$37)>0,$E47*$F47,0) -> 0 | AT47: =IF(SUM(AS$35:AS$37)>0,$E47*$F47,0) -> 0 | AV47: 0 | AX47: 0 | AZ47: 0 | BB47: 0 | BD47: 0 | BF47: 0 | BH47: 0 | BJ47: 0 | BL47: 0 | BN47: 0 | BP47: 0 | BR47: 0 | BT47: 0 | BV47: 0 | BX47: 0 | BZ47: 0 | CB47: 0 | CD47: 0 | CF47: 0 | CH47: 0 | CJ47: 0 | CL47: 0 | CN47: 0 | CP47: 0 | CR47: 0 | CT47: 0 | CV47: 0 | CX47: 0 | CZ47: 0 | DB47: 0 | DD47: 0 | DF47: 0 | DH47: 0 | DJ47: 0 | DL47: 0 | DN47: 0 | DP47: 0 | DR47: 0 | DT47: 0 | DV47: 0 | DX47: 0
J48: 0 | L48: 0 | N48: 0 | P48: 0 | R48: 0 | T48: 0 | V48: 0 | X48: 0 | Z48: 0 | AB48: 0 | AD48: 0 | AF48: 0 | AH48: =IF(SUM(AG$35:AG$37)>0,$E48*$F48,0) -> 0 | AJ48: =IF(SUM(AI$35:AI$37)>0,$E48*$F48,0) -> 0 | AL48: =IF(SUM(AK$35:AK$37)>0,$E48*$F48,0) -> 0 | AN48: =IF(SUM(AM$35:AM$37)>0,$E48*$F48,0) -> 0 | AP48: =IF(SUM(AO$35:AO$37)>0,$E48*$F48,0) -> 0 | AR48: =IF(SUM(AQ$35:AQ$37)>0,$E48*$F48,0) -> 0 | AT48: =IF(SUM(AS$35:AS$37)>0,$E48*$F48,0) -> 0 | AV48: 0 | AX48: 0 | AZ48: 0 | BB48: 0 | BD48: 0 | BF48: 0 | BH48: 0 | BJ48: 0 | BL48: 0 | BN48: 0 | BP48: 0 | BR48: 0 | BT48: 0 | BV48: 0 | BX48: 0 | BZ48: 0 | CB48: 0 | CD48: 0 | CF48: 0 | CH48: 0 | CJ48: 0 | CL48: 0 | CN48: 0 | CP48: 0 | CR48: 0 | CT48: 0 | CV48: 0 | CX48: 0 | CZ48: 0 | DB48: 0 | DD48: 0 | DF48: 0 | DH48: 0 | DJ48: 0 | DL48: 0 | DN48: 0 | DP48: 0 | DR48: 0 | DT48: 0 | DV48: 0 | DX48: 0
I49: =SUMPRODUCT(#REF!,#REF!)*(#REF!+#REF!) ->  | J49: anual | L49: anual | N49: anual | P49: anual | R49: anual | T49: anual | V49: anual | X49: anual | Z49: anual | AB49: anual | AD49: anual | AF49: anual | AH49: anual | AJ49: anual | AL49: anual | AN49: anual | AP49: anual | AR49: anual | AT49: anual | AV49: anual | AX49: anual | AZ49: anual | BB49: anual | BD49: anual | BF49: anual | BH49: anual | BJ49: anual | BL49: anual | BN49: anual | BP49: anual | BR49: anual | BT49: anual | BV49: anual | BX49: anual | BZ49: anual | CB49: anual | CD49: anual | CF49: anual | CH49: anual | CJ49: anual | CL49: anual | CN49: anual | CP49: anual | CR49: anual | CT49: anual | CV49: anual | CX49: anual | CZ49: anual | DB49: anual | DD49: anual | DF49: anual | DH49: anual | DJ49: anual | DL49: anual | DN49: anual | DP49: anual | DR49: anual | DT49: anual | DV49: anual | DX49: anual
I50: =I49/12 ->  | J50: mensal | L50: mensal | N50: mensal | P50: mensal | R50: mensal | T50: mensal | V50: mensal | X50: mensal | Z50: mensal | AB50: mensal | AD50: mensal | AF50: mensal | AH50: mensal | AJ50: mensal | AL50: mensal | AN50: mensal | AP50: mensal | AR50: mensal | AT50: mensal | AV50: mensal | AX50: mensal | AZ50: mensal | BB50: mensal | BD50: mensal | BF50: mensal | BH50: mensal | BJ50: mensal | BL50: mensal | BN50: mensal | BP50: mensal | BR50: mensal | BT50: mensal | BV50: mensal | BX50: mensal | BZ50: mensal | CB50: mensal | CD50: mensal | CF50: mensal | CH50: mensal | CJ50: mensal | CL50: mensal | CN50: mensal | CP50: mensal | CR50: mensal | CT50: mensal | CV50: mensal | CX50: mensal | CZ50: mensal | DB50: mensal | DD50: mensal | DF50: mensal | DH50: mensal | DJ50: mensal | DL50: mensal | DN50: mensal | DP50: mensal | DR50: mensal | DT50: mensal | DV50: mensal | DX50: mensal
I51: =I50/11 ->  | J51: por posto | L51: por posto | N51: por posto | P51: por posto | R51: por posto | T51: por posto | V51: por posto | X51: por posto | Z51: por posto | AB51: por posto | AD51: por posto | AF51: por posto | AH51: por posto | AJ51: por posto | AL51: por posto | AN51: por posto | AP51: por posto | AR51: por posto | AT51: por posto | AV51: por posto | AX51: por posto | AZ51: por posto | BB51: por posto | BD51: por posto | BF51: por posto | BH51: por posto | BJ51: por posto | BL51: por posto | BN51: por posto | BP51: por posto | BR51: por posto | BT51: por posto | BV51: por posto | BX51: por posto | BZ51: por posto | CB51: por posto | CD51: por posto | CF51: por posto | CH51: por posto | CJ51: por posto | CL51: por posto | CN51: por posto | CP51: por posto | CR51: por posto | CT51: por posto | CV51: por posto | CX51: por posto | CZ51: por posto | DB51: por posto | DD51: por posto | DF51: por posto | DH51: por posto | DJ51: por posto | DL51: por posto | DN51: por posto | DP51: por posto | DR51: por posto | DT51: por posto | DV51: por posto | DX51: por posto

Sheet Equip Rel (hidden)
C1: CÂMARA DOS DEPUTADOS
C2: DEPARTAMENTO TÉCNICO
C3: Coordenação de Planejamento e Gestão
C5: Data: | D5: ='Dados Gerais'!#REF! -> 
C6: Processo: | D6: ='Dados Gerais'!#REF! -> 
C7: Objeto: | D7: ='Dados Gerais'!#REF! -> 
B11: EQUIPAMENTOS RELACIONADOS AO POSTO - PAGAMENTO DA DEPRECIAÇÃO / MANUTENÇÃO | Q11: 1 | S11: =Q11+1 -> 2 | U11: =S11+1 -> 3 | W11: =U11+1 -> 4 | Y11: =W11+1 -> 5 | AA11: =Y11+1 -> 6 | AC11: =AA11+1 -> 7 | AE11: =AC11+1 -> 8 | AG11: =AE11+1 -> 9 | AI11: =AG11+1 -> 10 | AK11: =AI11+1 -> 11 | AM11: =AK11+1 -> 12 | AO11: =AM11+1 -> 13 | AQ11: =AO11+1 -> 14 | AS11: =AQ11+1 -> 15 | AU11: =AS11+1 -> 16 | AW11: =AU11+1 -> 17 | AY11: =AW11+1 -> 18 | BA11: =AY11+1 -> 19 | BC11: =BA11+1 -> 20 | BE11: =BC11+1 -> 21 | BG11: =BE11+1 -> 22 | BI11: =BG11+1 -> 23 | BK11: =BI11+1 -> 24 | BM11: =BK11+1 -> 25 | BO11: =BM11+1 -> 26 | BQ11: =BO11+1 -> 27 | BS11: =BQ11+1 -> 28 | BU11: =BS11+1 -> 29 | BW11: =BU11+1 -> 30 | BY11: =BW11+1 -> 31 | CA11: =BY11+1 -> 32 | CC11: =CA11+1 -> 33 | CE11: =CC11+1 -> 34 | CG11: =CE11+1 -> 35 | CI11: =CG11+1 -> 36 | CK11: =CI11+1 -> 37 | CM11: =CK11+1 -> 38 | CO11: =CM11+1 -> 39 | CQ11: =CO11+1 -> 40 | CS11: =CQ11+1 -> 41 | CU11: =CS11+1 -> 42 | CW11: =CU11+1 -> 43 | CY11: =CW11+1 -> 44 | DA11: =CY11+1 -> 45 | DC11: =DA11+1 -> 46 | DE11: =DC11+1 -> 47 | DG11: =DE11+1 -> 48 | DI11: =DG11+1 -> 49 | DK11: =DI11+1 -> 50 | DM11: =DK11+1 -> 51 | DO11: =DM11+1 -> 52 | DQ11: =DO11+1 -> 53 | DS11: =DQ11+1 -> 54 | DU11: =DS11+1 -> 55 | DW11: =DU11+1 -> 56 | DY11: =DW11+1 -> 57 | EA11: =DY11+1 -> 58 | EC11: =EA11+1 -> 59 | EE11: =EC11+1 -> 60
Q13: =SUM(R12:R61) -> 0 | S13: =SUM(T12:T61) -> 0 | U13: =SUM(V12:V61) -> 0 | W13: =SUM(X12:X61) -> 0 | Y13: =SUM(Z12:Z61) -> 0 | AA13: =SUM(AB12:AB61) -> 0 | AC13: =SUM(AD12:AD61) -> 0 | AE13: =SUM(AF12:AF61) -> 0 | AG13: =SUM(AH12:AH61) -> 0 | AI13: =SUM(AJ12:AJ61) -> 0 | AK13: =SUM(AL12:AL61) -> 0 | AM13: =SUM(AN12:AN61) -> 0 | AO13: =SUM(AP12:AP61) -> 0 | AQ13: =SUM(AR12:AR61) -> 0 | AS13: =SUM(AT12:AT61) -> 0 | AU13: =SUM(AV12:AV61) -> 0 | AW13: =SUM(AX12:AX61) -> 0 | AY13: =SUM(AZ12:AZ61) -> 0 | BA13: =SUM(BB12:BB61) -> 0 | BC13: =SUM(BD12:BD61) -> 0 | BE13: =SUM(BF12:BF61) -> 0 | BG13: =SUM(BH12:BH61) -> 0 | BI13: =SUM(BJ12:BJ61) -> 0 | BK13: =SUM(BL12:BL61) -> 0 | BM13: =SUM(BN12:BN61) -> 0 | BO13: =SUM(BP12:BP61) -> 0 | BQ13: =SUM(BR12:BR61) -> 0 | BS13: =SUM(BT12:BT61) -> 0 | BU13: =SUM(BV12:BV61) -> 0 | BW13: =SUM(BX12:BX61) -> 0 | BY13: =SUM(BZ12:BZ61) -> 0 | CA13: =SUM(CB12:CB61) -> 0 | CC13: =SUM(CD12:CD61) -> 0 | CE13: =SUM(CF12:CF61) -> 0 | CG13: =SUM(CH12:CH61) -> 0 | CI13: =SUM(CJ12:CJ61) -> 0 | CK13: =SUM(CL12:CL61) -> 0 | CM13: =SUM(CN12:CN61) -> 0 | CO13: =SUM(CP12:CP61) -> 0 | CQ13: =SUM(CR12:CR61) -> 0 | CS13: =SUM(CT12:CT61) -> 0 | CU13: =SUM(CV12:CV61) -> 0 | CW13: =SUM(CX12:CX61) -> 0 | CY13: =SUM(CZ12:CZ61) -> 0 | DA13: =SUM(DB12:DB61) -> 0 | DC13: =SUM(DD12:DD61) -> 0 | DE13: =SUM(DF12:DF61) -> 0 | DG13: =SUM(DH12:DH61) -> 0 | DI13: =SUM(DJ12:DJ61) -> 0 | DK13: =SUM(DL12:DL61) -> 0 | DM13: =SUM(DN12:DN61) -> 0 | DO13: =SUM(DP12:DP61) -> 0 | DQ13: =SUM(DR12:DR61) -> 0 | DS13: =SUM(DT12:DT61) -> 0 | DU13: =SUM(DV12:DV61) -> 0 | DW13: =SUM(DX12:DX61) -> 0 | DY13: =SUM(DZ12:DZ61) -> 0 | EA13: =SUM(EB12:EB61) -> 0 | EC13: =SUM(ED12:ED61) -> 0 | EE13: =SUM(EF12:EF61) -> 0
C14: CATEGORIAS | E14: QUANTIDADE
Q15: =IF($C15=Q$11,1,0) -> 0 | S15: =IF($C15=S$11,1,0) -> 0 | U15: =IF($C15=U$11,1,0) -> 0 | W15: =IF($C15=W$11,1,0) -> 0 | Y15: =IF($C15=Y$11,1,0) -> 0 | AA15: =IF($C15=AA$11,1,0) -> 0 | AC15: =IF($C15=AC$11,1,0) -> 0 | AE15: =IF($C15=AE$11,1,0) -> 0 | AG15: =IF($C15=AG$11,1,0) -> 0 | AI15: =IF($C15=AI$11,1,0) -> 0 | AK15: =IF($C15=AK$11,1,0) -> 0 | AM15: =IF($C15=AM$11,1,0) -> 0 | AO15: =IF($C15=AO$11,1,0) -> 0 | AQ15: =IF($C15=AQ$11,1,0) -> 0 | AS15: =IF($C15=AS$11,1,0) -> 0 | AU15: =IF($C15=AU$11,1,0) -> 0 | AW15: =IF($C15=AW$11,1,0) -> 0 | AY15: =IF($C15=AY$11,1,0) -> 0 | BA15: =IF($C15=BA$11,1,0) -> 0 | BC15: =IF($C15=BC$11,1,0) -> 0 | BE15: =IF($C15=BE$11,1,0) -> 0 | BG15: =IF($C15=BG$11,1,0) -> 0 | BI15: =IF($C15=BI$11,1,0) -> 0 | BK15: =IF($C15=BK$11,1,0) -> 0 | BM15: =IF($C15=BM$11,1,0) -> 0 | BO15: =IF($C15=BO$11,1,0) -> 0 | BQ15: =IF($C15=BQ$11,1,0) -> 0 | BS15: =IF($C15=BS$11,1,0) -> 0 | BU15: =IF($C15=BU$11,1,0) -> 0 | BW15: =IF($C15=BW$11,1,0) -> 0 | BY15: =IF($C15=BY$11,1,0) -> 0 | CA15: =IF($C15=CA$11,1,0) -> 0 | CC15: =IF($C15=CC$11,1,0) -> 0 | CE15: =IF($C15=CE$11,1,0) -> 0 | CG15: =IF($C15=CG$11,1,0) -> 0 | CI15: =IF($C15=CI$11,1,0) -> 0 | CK15: =IF($C15=CK$11,1,0) -> 0 | CM15: =IF($C15=CM$11,1,0) -> 0 | CO15: =IF($C15=CO$11,1,0) -> 0 | CQ15: =IF($C15=CQ$11,1,0) -> 0 | CS15: =IF($C15=CS$11,1,0) -> 0 | CU15: =IF($C15=CU$11,1,0) -> 0 | CW15: =IF($C15=CW$11,1,0) -> 0 | CY15: =IF($C15=CY$11,1,0) -> 0 | DA15: =IF($C15=DA$11,1,0) -> 0 | DC15: =IF($C15=DC$11,1,0) -> 0 | DE15: =IF($C15=DE$11,1,0) -> 0 | DG15: =IF($C15=DG$11,1,0) -> 0 | DI15: =IF($C15=DI$11,1,0) -> 0 | DK15: =IF($C15=DK$11,1,0) -> 0 | DM15: =IF($C15=DM$11,1,0) -> 0 | DO15: =IF($C15=DO$11,1,0) -> 0 | DQ15: =IF($C15=DQ$11,1,0) -> 0 | DS15: =IF($C15=DS$11,1,0) -> 0 | DU15: =IF($C15=DU$11,1,0) -> 0 | DW15: =IF($C15=DW$11,1,0) -> 0 | DY15: =IF($C15=DY$11,1,0) -> 0 | EA15: =IF($C15=EA$11,1,0) -> 0 | EC15: =IF($C15=EC$11,1,0) -> 0 | EE15: =IF($C15=EE$11,1,0) -> 0
D16: =HLOOKUP($C16,'Dados Gerais'!$D$5:$BE$10,6) ->  | E16: =HLOOKUP($C16,'Dados Gerais'!$D$5:$BE$14,10) ->  | Q16: =IF($C16=Q$11,1,0) -> 0 | S16: =IF($C16=S$11,1,0) -> 0 | U16: =IF($C16=U$11,1,0) -> 0 | W16: =IF($C16=W$11,1,0) -> 0 | Y16: =IF($C16=Y$11,1,0) -> 0 | AA16: =IF($C16=AA$11,1,0) -> 0 | AC16: =IF($C16=AC$11,1,0) -> 0 | AE16: =IF($C16=AE$11,1,0) -> 0 | AG16: =IF($C16=AG$11,1,0) -> 0 | AI16: =IF($C16=AI$11,1,0) -> 0 | AK16: =IF($C16=AK$11,1,0) -> 0 | AM16: =IF($C16=AM$11,1,0) -> 0 | AO16: =IF($C16=AO$11,1,0) -> 0 | AQ16: =IF($C16=AQ$11,1,0) -> 0 | AS16: =IF($C16=AS$11,1,0) -> 0 | AU16: =IF($C16=AU$11,1,0) -> 0 | AW16: =IF($C16=AW$11,1,0) -> 0 | AY16: =IF($C16=AY$11,1,0) -> 0 | BA16: =IF($C16=BA$11,1,0) -> 0 | BC16: =IF($C16=BC$11,1,0) -> 0 | BE16: =IF($C16=BE$11,1,0) -> 0 | BG16: =IF($C16=BG$11,1,0) -> 0 | BI16: =IF($C16=BI$11,1,0) -> 0 | BK16: =IF($C16=BK$11,1,0) -> 0 | BM16: =IF($C16=BM$11,1,0) -> 0 | BO16: =IF($C16=BO$11,1,0) -> 0 | BQ16: =IF($C16=BQ$11,1,0) -> 0 | BS16: =IF($C16=BS$11,1,0) -> 0 | BU16: =IF($C16=BU$11,1,0) -> 0 | BW16: =IF($C16=BW$11,1,0) -> 0 | BY16: =IF($C16=BY$11,1,0) -> 0 | CA16: =IF($C16=CA$11,1,0) -> 0 | CC16: =IF($C16=CC$11,1,0) -> 0 | CE16: =IF($C16=CE$11,1,0) -> 0 | CG16: =IF($C16=CG$11,1,0) -> 0 | CI16: =IF($C16=CI$11,1,0) -> 0 | CK16: =IF($C16=CK$11,1,0) -> 0 | CM16: =IF($C16=CM$11,1,0) -> 0 | CO16: =IF($C16=CO$11,1,0) -> 0 | CQ16: =IF($C16=CQ$11,1,0) -> 0 | CS16: =IF($C16=CS$11,1,0) -> 0 | CU16: =IF($C16=CU$11,1,0) -> 0 | CW16: =IF($C16=CW$11,1,0) -> 0 | CY16: =IF($C16=CY$11,1,0) -> 0 | DA16: =IF($C16=DA$11,1,0) -> 0 | DC16: =IF($C16=DC$11,1,0) -> 0 | DE16: =IF($C16=DE$11,1,0) -> 0 | DG16: =IF($C16=DG$11,1,0) -> 0 | DI16: =IF($C16=DI$11,1,0) -> 0 | DK16: =IF($C16=DK$11,1,0) -> 0 | DM16: =IF($C16=DM$11,1,0) -> 0 | DO16: =IF($C16=DO$11,1,0) -> 0 | DQ16: =IF($C16=DQ$11,1,0) -> 0 | DS16: =IF($C16=DS$11,1,0) -> 0 | DU16: =IF($C16=DU$11,1,0) -> 0 | DW16: =IF($C16=DW$11,1,0) -> 0 | DY16: =IF($C16=DY$11,1,0) -> 0 | EA16: =IF($C16=EA$11,1,0) -> 0 | EC16: =IF($C16=EC$11,1,0) -> 0 | EE16: =IF($C16=EE$11,1,0) -> 0
Q17: =IF($C17=Q$11,1,0) -> 0 | S17: =IF($C17=S$11,1,0) -> 0 | U17: =IF($C17=U$11,1,0) -> 0 | W17: =IF($C17=W$11,1,0) -> 0 | Y17: =IF($C17=Y$11,1,0) -> 0 | AA17: =IF($C17=AA$11,1,0) -> 0 | AC17: =IF($C17=AC$11,1,0) -> 0 | AE17: =IF($C17=AE$11,1,0) -> 0 | AG17: =IF($C17=AG$11,1,0) -> 0 | AI17: =IF($C17=AI$11,1,0) -> 0 | AK17: =IF($C17=AK$11,1,0) -> 0 | AM17: =IF($C17=AM$11,1,0) -> 0 | AO17: =IF($C17=AO$11,1,0) -> 0 | AQ17: =IF($C17=AQ$11,1,0) -> 0 | AS17: =IF($C17=AS$11,1,0) -> 0 | AU17: =IF($C17=AU$11,1,0) -> 0 | AW17: =IF($C17=AW$11,1,0) -> 0 | AY17: =IF($C17=AY$11,1,0) -> 0 | BA17: =IF($C17=BA$11,1,0) -> 0 | BC17: =IF($C17=BC$11,1,0) -> 0 | BE17: =IF($C17=BE$11,1,0) -> 0 | BG17: =IF($C17=BG$11,1,0) -> 0 | BI17: =IF($C17=BI$11,1,0) -> 0 | BK17: =IF($C17=BK$11,1,0) -> 0 | BM17: =IF($C17=BM$11,1,0) -> 0 | BO17: =IF($C17=BO$11,1,0) -> 0 | BQ17: =IF($C17=BQ$11,1,0) -> 0 | BS17: =IF($C17=BS$11,1,0) -> 0 | BU17: =IF($C17=BU$11,1,0) -> 0 | BW17: =IF($C17=BW$11,1,0) -> 0 | BY17: =IF($C17=BY$11,1,0) -> 0 | CA17: =IF($C17=CA$11,1,0) -> 0 | CC17: =IF($C17=CC$11,1,0) -> 0 | CE17: =IF($C17=CE$11,1,0) -> 0 | CG17: =IF($C17=CG$11,1,0) -> 0 | CI17: =IF($C17=CI$11,1,0) -> 0 | CK17: =IF($C17=CK$11,1,0) -> 0 | CM17: =IF($C17=CM$11,1,0) -> 0 | CO17: =IF($C17=CO$11,1,0) -> 0 | CQ17: =IF($C17=CQ$11,1,0) -> 0 | CS17: =IF($C17=CS$11,1,0) -> 0 | CU17: =IF($C17=CU$11,1,0) -> 0 | CW17: =IF($C17=CW$11,1,0) -> 0 | CY17: =IF($C17=CY$11,1,0) -> 0 | DA17: =IF($C17=DA$11,1,0) -> 0 | DC17: =IF($C17=DC$11,1,0) -> 0 | DE17: =IF($C17=DE$11,1,0) -> 0 | DG17: =IF($C17=DG$11,1,0) -> 0 | DI17: =IF($C17=DI$11,1,0) -> 0 | DK17: =IF($C17=DK$11,1,0) -> 0 | DM17: =IF($C17=DM$11,1,0) -> 0 | DO17: =IF($C17=DO$11,1,0) -> 0 | DQ17: =IF($C17=DQ$11,1,0) -> 0 | DS17: =IF($C17=DS$11,1,0) -> 0 | DU17: =IF($C17=DU$11,1,0) -> 0 | DW17: =IF($C17=DW$11,1,0) -> 0 | DY17: =IF($C17=DY$11,1,0) -> 0 | EA17: =IF($C17=EA$11,1,0) -> 0 | EC17: =IF($C17=EC$11,1,0) -> 0 | EE17: =IF($C17=EE$11,1,0) -> 0
C19: PAGAMENTO DA DEPRECIAÇÃO
C20: ITEM | D20: DESCRIÇÃO | E20: QUANT ANUAL | F20: CONTA SIAFI | G20: VALOR DE AQ. | H20: % RESIDUAL | I20: VIDA ÚTIL | J20: DEP. MENSAL | K20: CUSTO TOTAL | L20: BDI (%) | M20: PREÇO TOTAL | N20: FONTE | O20: REFERÊNCIA
J22: =G22*(1-H22)/(I22*12) ->  | K22: =J22*E22 ->  | L22: =BDI!E26 -> 0.244 | M22: =ROUND(K22*(1+L22),2) ->  | N22: COTAÇÃO
C25: PAGAMENTO DA MANUTENÇÃO
C26: ITEM | D26: DESCRIÇÃO | H26: K (calculado) | I26: MENSAL DEPR. | J26: % MAN X DEP | K26: MENSAL MAN. | L26: BDI (%) | M26: PREÇO TOTAL
H28: =H35 -> 0.2395008 | I28: =M22 ->  | J28: =H28 -> 0.2395008 | K28: =I28*H28 ->  | L28: =L22 -> 0.244 | M28: =ROUND(K28*(1+L28),2) -> 
E30: K1 | F30: K2 | G30: K3 | H30: K4
E31: 1 | F31: 1 | G31: 0.8 | H31: 0.8
E32: K5 | F32: K6 | G32: K7 | H32: K8
E33: 1 | F33: 0.6 | G33: 0.5 | H33: 1.1
E34: K9 | F34: K10 | G34: K11 | H34: RESULTADO
D35: * a descrição de cada coeficiente segue abaixo | E35: 0.9 | F35: 0.9 | G35: 1.4 | H35: =E31*F31*G31*H31*E33*F33*G33*H33*E35*F35*G35 -> 0.2395008
C38: MATERIAL DE CONSUMO ASSOCIADO
C39: ITEM | D39: DESCRIÇÃO | H39: QUANTID/ANO | I39: UNIDADE | J39: VALOR DE AQ. | K39: MENSAL MAT | L39: BDI (%) | M39: PREÇO TOTAL
K41: =J41*H41/12 -> 0 | L41: =L28 -> 0.244 | M41: =ROUND(K41*(1+L41),2) -> 0
C44: MATERIAL DE CONSUMO ASSOCIADO
C45: ITEM | D45: DESCRIÇÃO | M45: PREÇO TOTAL
C47: 1 | D47: Componente DEPRECIAÇÃO - POR POSTO | M47: =M22 -> 
C48: 2 | D48: Componente MANUTENÇÃO - POR POSTO | M48: =M28 -> 
C49: 3 | D49: Componente MATERIAL DE CONSUMO ASSOCIADO - POR POSTO | M49: =M41 -> 0
L51: SOMATÓRIO TOTAL MENSAL - POR POSTO | M51: =SUM(M46:M50) ->  | R51: =IF(SUM(Q$15:Q$17)>0,$M51,0) -> 0 | T51: =IF(SUM(S$15:S$17)>0,$M51,0) -> 0 | V51: =IF(SUM(U$15:U$17)>0,$M51,0) -> 0 | X51: =IF(SUM(W$15:W$17)>0,$M51,0) -> 0 | Z51: =IF(SUM(Y$15:Y$17)>0,$M51,0) -> 0 | AB51: =IF(SUM(AA$15:AA$17)>0,$M51,0) -> 0 | AD51: =IF(SUM(AC$15:AC$17)>0,$M51,0) -> 0 | AF51: =IF(SUM(AE$15:AE$17)>0,$M51,0) -> 0 | AH51: =IF(SUM(AG$15:AG$17)>0,$M51,0) -> 0 | AJ51: =IF(SUM(AI$15:AI$17)>0,$M51,0) -> 0 | AL51: =IF(SUM(AK$15:AK$17)>0,$M51,0) -> 0 | AN51: =IF(SUM(AM$15:AM$17)>0,$M51,0) -> 0 | AP51: =IF(SUM(AO$15:AO$17)>0,$M51,0) -> 0 | AR51: =IF(SUM(AQ$15:AQ$17)>0,$M51,0) -> 0 | AT51: =IF(SUM(AS$15:AS$17)>0,$M51,0) -> 0 | AV51: =IF(SUM(AU$15:AU$17)>0,$M51,0) -> 0 | AX51: =IF(SUM(AW$15:AW$17)>0,$M51,0) -> 0 | AZ51: =IF(SUM(AY$15:AY$17)>0,$M51,0) -> 0 | BB51: =IF(SUM(BA$15:BA$17)>0,$M51,0) -> 0 | BD51: =IF(SUM(BC$15:BC$17)>0,$M51,0) -> 0 | BF51: =IF(SUM(BE$15:BE$17)>0,$M51,0) -> 0 | BH51: =IF(SUM(BG$15:BG$17)>0,$M51,0) -> 0 | BJ51: =IF(SUM(BI$15:BI$17)>0,$M51,0) -> 0 | BL51: =IF(SUM(BK$15:BK$17)>0,$M51,0) -> 0 | BN51: =IF(SUM(BM$15:BM$17)>0,$M51,0) -> 0 | BP51: =IF(SUM(BO$15:BO$17)>0,$M51,0) -> 0 | BR51: =IF(SUM(BQ$15:BQ$17)>0,$M51,0) -> 0 | BT51: =IF(SUM(BS$15:BS$17)>0,$M51,0) -> 0 | BV51: =IF(SUM(BU$15:BU$17)>0,$M51,0) -> 0 | BX51: =IF(SUM(BW$15:BW$17)>0,$M51,0) -> 0 | BZ51: =IF(SUM(BY$15:BY$17)>0,$M51,0) -> 0 | CB51: =IF(SUM(CA$15:CA$17)>0,$M51,0) -> 0 | CD51: =IF(SUM(CC$15:CC$17)>0,$M51,0) -> 0 | CF51: =IF(SUM(CE$15:CE$17)>0,$M51,0) -> 0 | CH51: =IF(SUM(CG$15:CG$17)>0,$M51,0) -> 0 | CJ51: =IF(SUM(CI$15:CI$17)>0,$M51,0) -> 0 | CL51: =IF(SUM(CK$15:CK$17)>0,$M51,0) -> 0 | CN51: =IF(SUM(CM$15:CM$17)>0,$M51,0) -> 0 | CP51: =IF(SUM(CO$15:CO$17)>0,$M51,0) -> 0 | CR51: =IF(SUM(CQ$15:CQ$17)>0,$M51,0) -> 0 | CT51: =IF(SUM(CS$15:CS$17)>0,$M51,0) -> 0 | CV51: =IF(SUM(CU$15:CU$17)>0,$M51,0) -> 0 | CX51: =IF(SUM(CW$15:CW$17)>0,$M51,0) -> 0 | CZ51: =IF(SUM(CY$15:CY$17)>0,$M51,0) -> 0 | DB51: =IF(SUM(DA$15:DA$17)>0,$M51,0) -> 0 | DD51: =IF(SUM(DC$15:DC$17)>0,$M51,0) -> 0 | DF51: =IF(SUM(DE$15:DE$17)>0,$M51,0) -> 0 | DH51: =IF(SUM(DG$15:DG$17)>0,$M51,0) -> 0 | DJ51: =IF(SUM(DI$15:DI$17)>0,$M51,0) -> 0 | DL51: =IF(SUM(DK$15:DK$17)>0,$M51,0) -> 0 | DN51: =IF(SUM(DM$15:DM$17)>0,$M51,0) -> 0 | DP51: =IF(SUM(DO$15:DO$17)>0,$M51,0) -> 0 | DR51: =IF(SUM(DQ$15:DQ$17)>0,$M51,0) -> 0 | DT51: =IF(SUM(DS$15:DS$17)>0,$M51,0) -> 0 | DV51: =IF(SUM(DU$15:DU$17)>0,$M51,0) -> 0 | DX51: =IF(SUM(DW$15:DW$17)>0,$M51,0) -> 0 | DZ51: =IF(SUM(DY$15:DY$17)>0,$M51,0) -> 0 | EB51: =IF(SUM(EA$15:EA$17)>0,$M51,0) -> 0 | ED51: =IF(SUM(EC$15:EC$17)>0,$M51,0) -> 0 | EF51: =IF(SUM(EE$15:EE$17)>0,$M51,0) -> 0
L52: SOMATÓRIO TOTAL ANUAL - POR POSTO | M52: =M51*12 -> 
C55: MATERIAL DE CONSUMO ASSOCIADO
C56: MEMÓRIA DE CÁLCULO DO COEFICIENTE DE CORRELAÇÃO MANUTENÇÃO X DEPRECIAÇÃO (K)
C58: JUSTIFICATIVAS | E58: TIPO | F58: K1 | H58: Condições de Trab | I58: K4 | K58: Tempo Vida (anos) | L58: K6 | N58: Temperatura | O58: K8
E59: Guindaste | F59: 0.5 | H59: Em espera | I59: 0.4 | K59: 1 | L59: 0.6 | N59: Muito quente (> 40º C) | O59: 1.3
C60: K1 | D60: Arbitrado 1 | E60: Caminhão-comum | F60: 0.8 | H60: Leves | I60: 0.8 | K60: 2 | L60: 0.7 | N60: Quente (30º a 40º C) | O60: 1.1
C61: K2 | D61: Considerado o operador médio | E61: Fora-de-estrada | F61: 1 | H61: Médias | I61: 1 | K61: 3 | L61: 0.8 | N61: Médio (10º a 30º C) | O61: 1
C62: K3 | D62: Consideradas ferramentas de primeira qualidade | E62: Carregadeira | F62: 1 | H62: Pesadas | I62: 1.4 | K62: 4 | L62: 0.9 | N62: Frio (< 10º C) | O62: 1.2
C63: K4 | D63: Consições leves | E63: Escavadeira | F63: 1.4 | H63: Severas | I63: 2 | K63: 5 | L63: 1
C64: K5 | D64: Considerando manutenção normal | E64: Motoescrêiper | F64: 1.1 | K64: 6 | L64: 1 | N64: Ritmo de Trabalho | O64: K9
C65: K6 | D65: Equipamentos novos | E65: Trator de esteira | F65: 1.2 | H65: Manutenção | I65: K5 | K65: 7 | L65: 1 | N65: Folgado | O65: 0.9
C66: K7 | D66: 220h por mês, 252 dias por ano | H66: Excelente | I66: 0.6 | K66: 8 | L66: 1.2 | N66: Médio | O66: 1
C67: K8 | D67: Clima quente, acima de 30º C | E67: Qualid do Operador | F67: K2 | H67: Boa | I67: 0.8 | K67: 9 | L67: 1.3 | N67: Com pressa | O67: 1.5
C68: K9 | D68: Ritmo de trabalho usualmente folgado | E68: Excelente | F68: 0.8 | H68: Média | I68: 1 | K68: 10 | L68: 1.4
C69: K10 | D69: Considerado o operador médio | E69: Boa | F69: 0.9 | H69: Ruim | I69: 1.5 | K69: 11 | L69: 2 | N69: Conh do Serviço | O69: K10
C70: K11 | D70: Foi considerada a opção de aluguel a terceiros, ainda que a simulação seja dos custos do contratado, contudo a execução dos serviços é em local de terceiros | E70: Média | F70: 1 | H70: Inexistente | I70: 3 | K70: 15 | L70: 2 | N70: Grande | O70: 0.8
E71: Ruim | F71: 1.2 | N71: Médio | O71: 0.9
E72: Péssima | F72: 2 | H72: Horas de Uso | I72: K7 | J72: 6000 | K72: 1 | N72: Pouco | O72: 1
H73: 1000 | I73: 0.5 | J73: 8000 | K73: 1.3
E74: Qualidade do Equip | F74: K3 | H74: 2000 | I74: 0.5 | J74: 10000 | K74: 1.6 | N74: Tipo do Serviço | O74: K11
E75: De primeira | F75: 0.8 | H75: 3000 | I75: 0.6 | J75: 12000 | K75: 1.9 | N75: Mina ou Pedreira | O75: 0.8
E76: Média | F76: 1 | H76: 4000 | I76: 0.7 | J76: 15000 | K76: 2.3 | N76: Construção Geral | O76: 1
E77: Ruim | F77: 1.5 | H77: 5000 | I77: 0.9 | J77: 20000 | K77: 3 | N77: Aluguel a Terceiros | O77: 1.4
E79: Fonte:
E80: MATTOS, Aldo Dórea. Como preparar orçamentos de obras. São Paulo: Pini, 2006. 281 p., il

Sheet Mat Cons (hidden)
C1: CÂMARA DOS DEPUTADOS
C2: DEPARTAMENTO TÉCNICO
C3: Coordenação de Planejamento e Gestão
C5: Data: | D5: ='Dados Gerais'!#REF! -> 
C6: Processo: | D6: ='Dados Gerais'!#REF! -> 
C7: Objeto: | D7: ='Dados Gerais'!#REF! -> 
B11: MATERIAIS DE CONSUMO RELACIONADOS AO POSTO - AQUISIÇÃO | I11: 1 | K11: =I11+1 -> 2 | M11: =K11+1 -> 3 | O11: =M11+1 -> 4 | Q11: =O11+1 -> 5 | S11: =Q11+1 -> 6 | U11: =S11+1 -> 7 | W11: =U11+1 -> 8 | Y11: =W11+1 -> 9 | AA11: =Y11+1 -> 10 | AC11: =AA11+1 -> 11 | AE11: =AC11+1 -> 12 | AG11: =AE11+1 -> 13 | AI11: =AG11+1 -> 14 | AK11: =AI11+1 -> 15 | AM11: =AK11+1 -> 16 | AO11: =AM11+1 -> 17 | AQ11: =AO11+1 -> 18 | AS11: =AQ11+1 -> 19 | AU11: =AS11+1 -> 20 | AW11: =AU11+1 -> 21 | AY11: =AW11+1 -> 22 | BA11: =AY11+1 -> 23 | BC11: =BA11+1 -> 24 | BE11: =BC11+1 -> 25 | BG11: =BE11+1 -> 26 | BI11: =BG11+1 -> 27 | BK11: =BI11+1 -> 28 | BM11: =BK11+1 -> 29 | BO11: =BM11+1 -> 30 | BQ11: =BO11+1 -> 31 | BS11: =BQ11+1 -> 32 | BU11: =BS11+1 -> 33 | BW11: =BU11+1 -> 34 | BY11: =BW11+1 -> 35 | CA11: =BY11+1 -> 36 | CC11: =CA11+1 -> 37 | CE11: =CC11+1 -> 38 | CG11: =CE11+1 -> 39 | CI11: =CG11+1 -> 40 | CK11: =CI11+1 -> 41 | CM11: =CK11+1 -> 42 | CO11: =CM11+1 -> 43 | CQ11: =CO11+1 -> 44 | CS11: =CQ11+1 -> 45 | CU11: =CS11+1 -> 46 | CW11: =CU11+1 -> 47 | CY11: =CW11+1 -> 48 | DA11: =CY11+1 -> 49 | DC11: =DA11+1 -> 50 | DE11: =DC11+1 -> 51 | DG11: =DE11+1 -> 52 | DI11: =DG11+1 -> 53 | DK11: =DI11+1 -> 54 | DM11: =DK11+1 -> 55 | DO11: =DM11+1 -> 56 | DQ11: =DO11+1 -> 57 | DS11: =DQ11+1 -> 58 | DU11: =DS11+1 -> 59 | DW11: =DU11+1 -> 60
I13: =ROUND(SUM(J12:J65),2) -> 0 | K13: =ROUND(SUM(L12:L65),2) -> 0 | M13: =ROUND(SUM(N12:N65),2) -> 0 | O13: =ROUND(SUM(P12:P65),2) -> 0 | Q13: =ROUND(SUM(R12:R65),2) -> 0 | S13: =ROUND(SUM(T12:T65),2) -> 0 | U13: =ROUND(SUM(V12:V65),2) -> 0 | W13: =ROUND(SUM(X12:X65),2) -> 0 | Y13: =ROUND(SUM(Z12:Z65),2) -> 0 | AA13: =ROUND(SUM(AB12:AB65),2) -> 0 | AC13: =ROUND(SUM(AD12:AD65),2) -> 0 | AE13: =ROUND(SUM(AF12:AF65),2) -> 0 | AG13: =ROUND(SUM(AH12:AH65),2) -> 0 | AI13: =ROUND(SUM(AJ12:AJ65),2) -> 0 | AK13: =ROUND(SUM(AL12:AL65),2) -> 0 | AM13: =ROUND(SUM(AN12:AN65),2) -> 0 | AO13: =ROUND(SUM(AP12:AP65),2) -> 0 | AQ13: =ROUND(SUM(AR12:AR65),2) -> 0 | AS13: =ROUND(SUM(AT12:AT65),2) -> 0 | AU13: =ROUND(SUM(AV12:AV65),2) -> 0 | AW13: =ROUND(SUM(AX12:AX65),2) -> 0 | AY13: =ROUND(SUM(AZ12:AZ65),2) -> 0 | BA13: =ROUND(SUM(BB12:BB65),2) -> 0 | BC13: =ROUND(SUM(BD12:BD65),2) -> 0 | BE13: =ROUND(SUM(BF12:BF65),2) -> 0 | BG13: =ROUND(SUM(BH12:BH65),2) -> 0 | BI13: =ROUND(SUM(BJ12:BJ65),2) -> 0 | BK13: =ROUND(SUM(BL12:BL65),2) -> 0 | BM13: =ROUND(SUM(BN12:BN65),2) -> 0 | BO13: =ROUND(SUM(BP12:BP65),2) -> 0 | BQ13: =ROUND(SUM(BR12:BR65),2) -> 0 | BS13: =ROUND(SUM(BT12:BT65),2) -> 0 | BU13: =ROUND(SUM(BV12:BV65),2) -> 0 | BW13: =ROUND(SUM(BX12:BX65),2) -> 0 | BY13: =ROUND(SUM(BZ12:BZ65),2) -> 0 | CA13: =ROUND(SUM(CB12:CB65),2) -> 0 | CC13: =ROUND(SUM(CD12:CD65),2) -> 0 | CE13: =ROUND(SUM(CF12:CF65),2) -> 0 | CG13: =ROUND(SUM(CH12:CH65),2) -> 0 | CI13: =ROUND(SUM(CJ12:CJ65),2) -> 0 | CK13: =ROUND(SUM(CL12:CL65),2) -> 0 | CM13: =ROUND(SUM(CN12:CN65),2) -> 0 | CO13: =ROUND(SUM(CP12:CP65),2) -> 0 | CQ13: =ROUND(SUM(CR12:CR65),2) -> 0 | CS13: =ROUND(SUM(CT12:CT65),2) -> 0 | CU13: =ROUND(SUM(CV12:CV65),2) -> 0 | CW13: =ROUND(SUM(CX12:CX65),2) -> 0 | CY13: =ROUND(SUM(CZ12:CZ65),2) -> 0 | DA13: =ROUND(SUM(DB12:DB65),2) -> 0 | DC13: =ROUND(SUM(DD12:DD65),2) -> 0 | DE13: =ROUND(SUM(DF12:DF65),2) -> 0 | DG13: =ROUND(SUM(DH12:DH65),2) -> 0 | DI13: =ROUND(SUM(DJ12:DJ65),2) -> 0 | DK13: =ROUND(SUM(DL12:DL65),2) -> 0 | DM13: =ROUND(SUM(DN12:DN65),2) -> 0 | DO13: =ROUND(SUM(DP12:DP65),2) -> 0 | DQ13: =ROUND(SUM(DR12:DR65),2) -> 0 | DS13: =ROUND(SUM(DT12:DT65),2) -> 0 | DU13: =ROUND(SUM(DV12:DV65),2) -> 0 | DW13: =ROUND(SUM(DX12:DX65),2) -> 0
C14: CATEGORIAS | F14: QUANTIDADE
I15: =IF($C15=I$11,1,0) -> 0
I16: 0 | K16: =IF($C16=K$11,1,0) -> 0 | M16: =IF($C16=M$11,1,0) -> 0 | O16: =IF($C16=O$11,1,0) -> 0 | Q16: =IF($C16=Q$11,1,0) -> 0 | S16: =IF($C16=S$11,1,0) -> 0 | U16: =IF($C16=U$11,1,0) -> 0 | W16: =IF($C16=W$11,1,0) -> 0 | Y16: =IF($C16=Y$11,1,0) -> 0 | AA16: =IF($C16=AA$11,1,0) -> 0 | AC16: =IF($C16=AC$11,1,0) -> 0 | AE16: =IF($C16=AE$11,1,0) -> 0 | AG16: =IF($C16=AG$11,1,0) -> 0 | AI16: =IF($C16=AI$11,1,0) -> 0 | AK16: =IF($C16=AK$11,1,0) -> 0 | AM16: =IF($C16=AM$11,1,0) -> 0 | AO16: =IF($C16=AO$11,1,0) -> 0 | AQ16: =IF($C16=AQ$11,1,0) -> 0 | AS16: =IF($C16=AS$11,1,0) -> 0 | AU16: =IF($C16=AU$11,1,0) -> 0 | AW16: =IF($C16=AW$11,1,0) -> 0 | AY16: =IF($C16=AY$11,1,0) -> 0 | BA16: =IF($C16=BA$11,1,0) -> 0 | BC16: =IF($C16=BC$11,1,0) -> 0 | BE16: =IF($C16=BE$11,1,0) -> 0 | BG16: =IF($C16=BG$11,1,0) -> 0 | BI16: =IF($C16=BI$11,1,0) -> 0 | BK16: =IF($C16=BK$11,1,0) -> 0 | BM16: =IF($C16=BM$11,1,0) -> 0 | BO16: =IF($C16=BO$11,1,0) -> 0 | BQ16: =IF($C16=BQ$11,1,0) -> 0 | BS16: =IF($C16=BS$11,1,0) -> 0 | BU16: =IF($C16=BU$11,1,0) -> 0 | BW16: =IF($C16=BW$11,1,0) -> 0 | BY16: =IF($C16=BY$11,1,0) -> 0 | CA16: =IF($C16=CA$11,1,0) -> 0 | CC16: =IF($C16=CC$11,1,0) -> 0 | CE16: =IF($C16=CE$11,1,0) -> 0 | CG16: =IF($C16=CG$11,1,0) -> 0 | CI16: =IF($C16=CI$11,1,0) -> 0 | CK16: =IF($C16=CK$11,1,0) -> 0 | CM16: =IF($C16=CM$11,1,0) -> 0 | CO16: =IF($C16=CO$11,1,0) -> 0 | CQ16: =IF($C16=CQ$11,1,0) -> 0 | CS16: =IF($C16=CS$11,1,0) -> 0 | CU16: =IF($C16=CU$11,1,0) -> 0 | CW16: =IF($C16=CW$11,1,0) -> 0 | CY16: =IF($C16=CY$11,1,0) -> 0 | DA16: =IF($C16=DA$11,1,0) -> 0 | DC16: =IF($C16=DC$11,1,0) -> 0 | DE16: =IF($C16=DE$11,1,0) -> 0 | DG16: =IF($C16=DG$11,1,0) -> 0 | DI16: =IF($C16=DI$11,1,0) -> 0 | DK16: =IF($C16=DK$11,1,0) -> 0 | DM16: =IF($C16=DM$11,1,0) -> 0 | DO16: =IF($C16=DO$11,1,0) -> 0 | DQ16: =IF($C16=DQ$11,1,0) -> 0 | DS16: =IF($C16=DS$11,1,0) -> 0 | DU16: =IF($C16=DU$11,1,0) -> 0 | DW16: =IF($C16=DW$11,1,0) -> 0
I17: 0 | K17: 0 | M17: 0 | O17: 0 | Q17: 0 | S17: 0 | U17: 0 | W17: 0 | Y17: 0 | AA17: 0 | AC17: 0 | AE17: 0 | AG17: 0 | AI17: 0 | AK17: 0 | AM17: 0 | AO17: 0 | AQ17: 0 | AS17: 0 | AU17: 0 | AW17: 0 | AY17: 0 | BA17: 0 | BC17: 0 | BE17: 0 | BG17: 0 | BI17: 0 | BK17: 0 | BM17: 0 | BO17: 0 | BQ17: 0 | BS17: 0 | BU17: 0 | BW17: 0 | BY17: 0 | CA17: 0 | CC17: 0 | CE17: 0 | CG17: 0 | CI17: 0 | CK17: 0 | CM17: 0 | CO17: 0 | CQ17: 0 | CS17: 0 | CU17: 0 | CW17: 0 | CY17: 0 | DA17: 0 | DC17: 0 | DE17: 0 | DG17: 0 | DI17: 0 | DK17: 0 | DM17: 0 | DO17: 0 | DQ17: 0 | DS17: 0 | DU17: 0 | DW17: 0
I18: 0 | K18: 0 | M18: 0 | O18: 0 | Q18: 0 | S18: 0 | U18: 0 | W18: 0 | Y18: 0 | AA18: 0 | AC18: 0 | AE18: 0 | AG18: 0 | AI18: 0 | AK18: 0 | AM18: 0 | AO18: 0 | AQ18: 0 | AS18: 0 | AU18: 0 | AW18: 0 | AY18: 0 | BA18: 0 | BC18: 0 | BE18: 0 | BG18: 0 | BI18: 0 | BK18: 0 | BM18: 0 | BO18: 0 | BQ18: 0 | BS18: 0 | BU18: 0 | BW18: 0 | BY18: 0 | CA18: 0 | CC18: 0 | CE18: 0 | CG18: 0 | CI18: 0 | CK18: 0 | CM18: 0 | CO18: 0 | CQ18: 0 | CS18: 0 | CU18: 0 | CW18: 0 | CY18: 0 | DA18: 0 | DC18: 0 | DE18: 0 | DG18: 0 | DI18: 0 | DK18: 0 | DM18: 0 | DO18: 0 | DQ18: 0 | DS18: 0 | DU18: 0 | DW18: 0
I19: 0 | K19: 0 | M19: 0 | O19: 0 | Q19: 0 | S19: 0 | U19: 0 | W19: 0 | Y19: 0 | AA19: 0 | AC19: 0 | AE19: 0 | AG19: 0 | AI19: 0 | AK19: 0 | AM19: 0 | AO19: 0 | AQ19: 0 | AS19: 0 | AU19: 0 | AW19: 0 | AY19: 0 | BA19: 0 | BC19: 0 | BE19: 0 | BG19: 0 | BI19: 0 | BK19: 0 | BM19: 0 | BO19: 0 | BQ19: 0 | BS19: 0 | BU19: 0 | BW19: 0 | BY19: 0 | CA19: 0 | CC19: 0 | CE19: 0 | CG19: 0 | CI19: 0 | CK19: 0 | CM19: 0 | CO19: 0 | CQ19: 0 | CS19: 0 | CU19: 0 | CW19: 0 | CY19: 0 | DA19: 0 | DC19: 0 | DE19: 0 | DG19: 0 | DI19: 0 | DK19: 0 | DM19: 0 | DO19: 0 | DQ19: 0 | DS19: 0 | DU19: 0 | DW19: 0
I20: 0 | K20: 0 | M20: 0 | O20: 0 | Q20: 0 | S20: 0 | U20: 0 | W20: 0 | Y20: 0 | AA20: 0 | AC20: 0 | AE20: 0 | AG20: 0 | AI20: 0 | AK20: 0 | AM20: 0 | AO20: 0 | AQ20: 0 | AS20: 0 | AU20: 0 | AW20: 0 | AY20: 0 | BA20: 0 | BC20: 0 | BE20: 0 | BG20: 0 | BI20: 0 | BK20: 0 | BM20: 0 | BO20: 0 | BQ20: 0 | BS20: 0 | BU20: 0 | BW20: 0 | BY20: 0 | CA20: 0 | CC20: 0 | CE20: 0 | CG20: 0 | CI20: 0 | CK20: 0 | CM20: 0 | CO20: 0 | CQ20: 0 | CS20: 0 | CU20: 0 | CW20: 0 | CY20: 0 | DA20: 0 | DC20: 0 | DE20: 0 | DG20: 0 | DI20: 0 | DK20: 0 | DM20: 0 | DO20: 0 | DQ20: 0 | DS20: 0 | DU20: 0 | DW20: 0
I21: 0 | K21: 0 | M21: 0 | O21: 0 | Q21: 0 | S21: 0 | U21: 0 | W21: 0 | Y21: 0 | AA21: 0 | AC21: 0 | AE21: 0 | AG21: 0 | AI21: 0 | AK21: 0 | AM21: 0 | AO21: 0 | AQ21: 0 | AS21: 0 | AU21: 0 | AW21: 0 | AY21: 0 | BA21: 0 | BC21: 0 | BE21: 0 | BG21: 0 | BI21: 0 | BK21: 0 | BM21: 0 | BO21: 0 | BQ21: 0 | BS21: 0 | BU21: 0 | BW21: 0 | BY21: 0 | CA21: 0 | CC21: 0 | CE21: 0 | CG21: 0 | CI21: 0 | CK21: 0 | CM21: 0 | CO21: 0 | CQ21: 0 | CS21: 0 | CU21: 0 | CW21: 0 | CY21: 0 | DA21: 0 | DC21: 0 | DE21: 0 | DG21: 0 | DI21: 0 | DK21: 0 | DM21: 0 | DO21: 0 | DQ21: 0 | DS21: 0 | DU21: 0 | DW21: 0
I22: 0
C24: ITEM | D24: DESCRIÇÃO | E24: QUANT ANUAL | F24: VALOR
J25: =IF(SUM(I$15:I$22)>0,$E25*$F25,0) -> 0 | L25: =IF(SUM(K$15:K$22)>0,$E25*$F25,0) -> 0 | N25: =IF(SUM(M$15:M$22)>0,$E25*$F25,0) -> 0 | P25: =IF(SUM(O$15:O$22)>0,$E25*$F25,0) -> 0 | R25: =IF(SUM(Q$15:Q$22)>0,$E25*$F25,0) -> 0 | T25: =IF(SUM(S$15:S$22)>0,$E25*$F25,0) -> 0 | V25: =IF(SUM(U$15:U$22)>0,$E25*$F25,0) -> 0 | X25: =IF(SUM(W$15:W$22)>0,$E25*$F25,0) -> 0 | Z25: =IF(SUM(Y$15:Y$22)>0,$E25*$F25,0) -> 0 | AB25: =IF(SUM(AA$15:AA$22)>0,$E25*$F25,0) -> 0 | AD25: =IF(SUM(AC$15:AC$22)>0,$E25*$F25,0) -> 0 | AF25: =IF(SUM(AE$15:AE$22)>0,$E25*$F25,0) -> 0 | AH25: =IF(SUM(AG$15:AG$22)>0,$E25*$F25,0) -> 0 | AJ25: =IF(SUM(AI$15:AI$22)>0,$E25*$F25,0) -> 0 | AL25: =IF(SUM(AK$15:AK$22)>0,$E25*$F25,0) -> 0 | AN25: =IF(SUM(AM$15:AM$22)>0,$E25*$F25,0) -> 0 | AP25: =IF(SUM(AO$15:AO$22)>0,$E25*$F25,0) -> 0 | AR25: =IF(SUM(AQ$15:AQ$22)>0,$E25*$F25,0) -> 0 | AT25: =IF(SUM(AS$15:AS$22)>0,$E25*$F25,0) -> 0 | AV25: =IF(SUM(AU$15:AU$22)>0,$E25*$F25,0) -> 0 | AX25: =IF(SUM(AW$15:AW$22)>0,$E25*$F25,0) -> 0 | AZ25: =IF(SUM(AY$15:AY$22)>0,$E25*$F25,0) -> 0 | BB25: =IF(SUM(BA$15:BA$22)>0,$E25*$F25,0) -> 0 | BD25: =IF(SUM(BC$15:BC$22)>0,$E25*$F25,0) -> 0 | BF25: =IF(SUM(BE$15:BE$22)>0,$E25*$F25,0) -> 0 | BH25: =IF(SUM(BG$15:BG$22)>0,$E25*$F25,0) -> 0 | BJ25: =IF(SUM(BI$15:BI$22)>0,$E25*$F25,0) -> 0 | BL25: =IF(SUM(BK$15:BK$22)>0,$E25*$F25,0) -> 0 | BN25: =IF(SUM(BM$15:BM$22)>0,$E25*$F25,0) -> 0 | BP25: =IF(SUM(BO$15:BO$22)>0,$E25*$F25,0) -> 0 | BR25: =IF(SUM(BQ$15:BQ$22)>0,$E25*$F25,0) -> 0 | BT25: =IF(SUM(BS$15:BS$22)>0,$E25*$F25,0) -> 0 | BV25: =IF(SUM(BU$15:BU$22)>0,$E25*$F25,0) -> 0 | BX25: =IF(SUM(BW$15:BW$22)>0,$E25*$F25,0) -> 0 | BZ25: =IF(SUM(BY$15:BY$22)>0,$E25*$F25,0) -> 0 | CB25: =IF(SUM(CA$15:CA$22)>0,$E25*$F25,0) -> 0 | CD25: =IF(SUM(CC$15:CC$22)>0,$E25*$F25,0) -> 0 | CF25: =IF(SUM(CE$15:CE$22)>0,$E25*$F25,0) -> 0 | CH25: =IF(SUM(CG$15:CG$22)>0,$E25*$F25,0) -> 0 | CJ25: =IF(SUM(CI$15:CI$22)>0,$E25*$F25,0) -> 0 | CL25: =IF(SUM(CK$15:CK$22)>0,$E25*$F25,0) -> 0 | CN25: =IF(SUM(CM$15:CM$22)>0,$E25*$F25,0) -> 0 | CP25: =IF(SUM(CO$15:CO$22)>0,$E25*$F25,0) -> 0 | CR25: =IF(SUM(CQ$15:CQ$22)>0,$E25*$F25,0) -> 0 | CT25: =IF(SUM(CS$15:CS$22)>0,$E25*$F25,0) -> 0 | CV25: =IF(SUM(CU$15:CU$22)>0,$E25*$F25,0) -> 0 | CX25: =IF(SUM(CW$15:CW$22)>0,$E25*$F25,0) -> 0 | CZ25: =IF(SUM(CY$15:CY$22)>0,$E25*$F25,0) -> 0 | DB25: =IF(SUM(DA$15:DA$22)>0,$E25*$F25,0) -> 0 | DD25: =IF(SUM(DC$15:DC$22)>0,$E25*$F25,0) -> 0 | DF25: =IF(SUM(DE$15:DE$22)>0,$E25*$F25,0) -> 0 | DH25: =IF(SUM(DG$15:DG$22)>0,$E25*$F25,0) -> 0 | DJ25: =IF(SUM(DI$15:DI$22)>0,$E25*$F25,0) -> 0 | DL25: =IF(SUM(DK$15:DK$22)>0,$E25*$F25,0) -> 0 | DN25: =IF(SUM(DM$15:DM$22)>0,$E25*$F25,0) -> 0 | DP25: =IF(SUM(DO$15:DO$22)>0,$E25*$F25,0) -> 0 | DR25: =IF(SUM(DQ$15:DQ$22)>0,$E25*$F25,0) -> 0 | DT25: =IF(SUM(DS$15:DS$22)>0,$E25*$F25,0) -> 0 | DV25: =IF(SUM(DU$15:DU$22)>0,$E25*$F25,0) -> 0 | DX25: =IF(SUM(DW$15:DW$22)>0,$E25*$F25,0) -> 0
J26: =IF(SUM(I$15:I$22)>0,$E26*$F26,0) -> 0 | L26: =IF(SUM(K$15:K$22)>0,$E26*$F26,0) -> 0 | N26: =IF(SUM(M$15:M$22)>0,$E26*$F26,0) -> 0 | P26: =IF(SUM(O$15:O$22)>0,$E26*$F26,0) -> 0 | R26: =IF(SUM(Q$15:Q$22)>0,$E26*$F26,0) -> 0 | T26: =IF(SUM(S$15:S$22)>0,$E26*$F26,0) -> 0 | V26: =IF(SUM(U$15:U$22)>0,$E26*$F26,0) -> 0 | X26: =IF(SUM(W$15:W$22)>0,$E26*$F26,0) -> 0 | Z26: =IF(SUM(Y$15:Y$22)>0,$E26*$F26,0) -> 0 | AB26: =IF(SUM(AA$15:AA$22)>0,$E26*$F26,0) -> 0 | AD26: =IF(SUM(AC$15:AC$22)>0,$E26*$F26,0) -> 0 | AF26: =IF(SUM(AE$15:AE$22)>0,$E26*$F26,0) -> 0 | AH26: =IF(SUM(AG$15:AG$22)>0,$E26*$F26,0) -> 0 | AJ26: =IF(SUM(AI$15:AI$22)>0,$E26*$F26,0) -> 0 | AL26: =IF(SUM(AK$15:AK$22)>0,$E26*$F26,0) -> 0 | AN26: =IF(SUM(AM$15:AM$22)>0,$E26*$F26,0) -> 0 | AP26: =IF(SUM(AO$15:AO$22)>0,$E26*$F26,0) -> 0 | AR26: =IF(SUM(AQ$15:AQ$22)>0,$E26*$F26,0) -> 0 | AT26: =IF(SUM(AS$15:AS$22)>0,$E26*$F26,0) -> 0 | AV26: =IF(SUM(AU$15:AU$22)>0,$E26*$F26,0) -> 0 | AX26: =IF(SUM(AW$15:AW$22)>0,$E26*$F26,0) -> 0 | AZ26: =IF(SUM(AY$15:AY$22)>0,$E26*$F26,0) -> 0 | BB26: =IF(SUM(BA$15:BA$22)>0,$E26*$F26,0) -> 0 | BD26: =IF(SUM(BC$15:BC$22)>0,$E26*$F26,0) -> 0 | BF26: =IF(SUM(BE$15:BE$22)>0,$E26*$F26,0) -> 0 | BH26: =IF(SUM(BG$15:BG$22)>0,$E26*$F26,0) -> 0 | BJ26: =IF(SUM(BI$15:BI$22)>0,$E26*$F26,0) -> 0 | BL26: =IF(SUM(BK$15:BK$22)>0,$E26*$F26,0) -> 0 | BN26: =IF(SUM(BM$15:BM$22)>0,$E26*$F26,0) -> 0 | BP26: =IF(SUM(BO$15:BO$22)>0,$E26*$F26,0) -> 0 | BR26: =IF(SUM(BQ$15:BQ$22)>0,$E26*$F26,0) -> 0 | BT26: =IF(SUM(BS$15:BS$22)>0,$E26*$F26,0) -> 0 | BV26: =IF(SUM(BU$15:BU$22)>0,$E26*$F26,0) -> 0 | BX26: =IF(SUM(BW$15:BW$22)>0,$E26*$F26,0) -> 0 | BZ26: =IF(SUM(BY$15:BY$22)>0,$E26*$F26,0) -> 0 | CB26: =IF(SUM(CA$15:CA$22)>0,$E26*$F26,0) -> 0 | CD26: =IF(SUM(CC$15:CC$22)>0,$E26*$F26,0) -> 0 | CF26: =IF(SUM(CE$15:CE$22)>0,$E26*$F26,0) -> 0 | CH26: =IF(SUM(CG$15:CG$22)>0,$E26*$F26,0) -> 0 | CJ26: =IF(SUM(CI$15:CI$22)>0,$E26*$F26,0) -> 0 | CL26: =IF(SUM(CK$15:CK$22)>0,$E26*$F26,0) -> 0 | CN26: =IF(SUM(CM$15:CM$22)>0,$E26*$F26,0) -> 0 | CP26: =IF(SUM(CO$15:CO$22)>0,$E26*$F26,0) -> 0 | CR26: =IF(SUM(CQ$15:CQ$22)>0,$E26*$F26,0) -> 0 | CT26: =IF(SUM(CS$15:CS$22)>0,$E26*$F26,0) -> 0 | CV26: =IF(SUM(CU$15:CU$22)>0,$E26*$F26,0) -> 0 | CX26: =IF(SUM(CW$15:CW$22)>0,$E26*$F26,0) -> 0 | CZ26: =IF(SUM(CY$15:CY$22)>0,$E26*$F26,0) -> 0 | DB26: =IF(SUM(DA$15:DA$22)>0,$E26*$F26,0) -> 0 | DD26: =IF(SUM(DC$15:DC$22)>0,$E26*$F26,0) -> 0 | DF26: =IF(SUM(DE$15:DE$22)>0,$E26*$F26,0) -> 0 | DH26: =IF(SUM(DG$15:DG$22)>0,$E26*$F26,0) -> 0 | DJ26: =IF(SUM(DI$15:DI$22)>0,$E26*$F26,0) -> 0 | DL26: =IF(SUM(DK$15:DK$22)>0,$E26*$F26,0) -> 0 | DN26: =IF(SUM(DM$15:DM$22)>0,$E26*$F26,0) -> 0 | DP26: =IF(SUM(DO$15:DO$22)>0,$E26*$F26,0) -> 0 | DR26: =IF(SUM(DQ$15:DQ$22)>0,$E26*$F26,0) -> 0 | DT26: =IF(SUM(DS$15:DS$22)>0,$E26*$F26,0) -> 0 | DV26: =IF(SUM(DU$15:DU$22)>0,$E26*$F26,0) -> 0 | DX26: =IF(SUM(DW$15:DW$22)>0,$E26*$F26,0) -> 0
J27: =IF(SUM(I$15:I$22)>0,$E27*$F27,0) -> 0 | L27: =IF(SUM(K$15:K$22)>0,$E27*$F27,0) -> 0 | N27: =IF(SUM(M$15:M$22)>0,$E27*$F27,0) -> 0 | P27: =IF(SUM(O$15:O$22)>0,$E27*$F27,0) -> 0 | R27: =IF(SUM(Q$15:Q$22)>0,$E27*$F27,0) -> 0 | T27: =IF(SUM(S$15:S$22)>0,$E27*$F27,0) -> 0 | V27: =IF(SUM(U$15:U$22)>0,$E27*$F27,0) -> 0 | X27: =IF(SUM(W$15:W$22)>0,$E27*$F27,0) -> 0 | Z27: =IF(SUM(Y$15:Y$22)>0,$E27*$F27,0) -> 0 | AB27: =IF(SUM(AA$15:AA$22)>0,$E27*$F27,0) -> 0 | AD27: =IF(SUM(AC$15:AC$22)>0,$E27*$F27,0) -> 0 | AF27: =IF(SUM(AE$15:AE$22)>0,$E27*$F27,0) -> 0 | AH27: =IF(SUM(AG$15:AG$22)>0,$E27*$F27,0) -> 0 | AJ27: =IF(SUM(AI$15:AI$22)>0,$E27*$F27,0) -> 0 | AL27: =IF(SUM(AK$15:AK$22)>0,$E27*$F27,0) -> 0 | AN27: =IF(SUM(AM$15:AM$22)>0,$E27*$F27,0) -> 0 | AP27: =IF(SUM(AO$15:AO$22)>0,$E27*$F27,0) -> 0 | AR27: =IF(SUM(AQ$15:AQ$22)>0,$E27*$F27,0) -> 0 | AT27: =IF(SUM(AS$15:AS$22)>0,$E27*$F27,0) -> 0 | AV27: =IF(SUM(AU$15:AU$22)>0,$E27*$F27,0) -> 0 | AX27: =IF(SUM(AW$15:AW$22)>0,$E27*$F27,0) -> 0 | AZ27: =IF(SUM(AY$15:AY$22)>0,$E27*$F27,0) -> 0 | BB27: =IF(SUM(BA$15:BA$22)>0,$E27*$F27,0) -> 0 | BD27: =IF(SUM(BC$15:BC$22)>0,$E27*$F27,0) -> 0 | BF27: =IF(SUM(BE$15:BE$22)>0,$E27*$F27,0) -> 0 | BH27: =IF(SUM(BG$15:BG$22)>0,$E27*$F27,0) -> 0 | BJ27: =IF(SUM(BI$15:BI$22)>0,$E27*$F27,0) -> 0 | BL27: =IF(SUM(BK$15:BK$22)>0,$E27*$F27,0) -> 0 | BN27: =IF(SUM(BM$15:BM$22)>0,$E27*$F27,0) -> 0 | BP27: =IF(SUM(BO$15:BO$22)>0,$E27*$F27,0) -> 0 | BR27: =IF(SUM(BQ$15:BQ$22)>0,$E27*$F27,0) -> 0 | BT27: =IF(SUM(BS$15:BS$22)>0,$E27*$F27,0) -> 0 | BV27: =IF(SUM(BU$15:BU$22)>0,$E27*$F27,0) -> 0 | BX27: =IF(SUM(BW$15:BW$22)>0,$E27*$F27,0) -> 0 | BZ27: =IF(SUM(BY$15:BY$22)>0,$E27*$F27,0) -> 0 | CB27: =IF(SUM(CA$15:CA$22)>0,$E27*$F27,0) -> 0 | CD27: =IF(SUM(CC$15:CC$22)>0,$E27*$F27,0) -> 0 | CF27: =IF(SUM(CE$15:CE$22)>0,$E27*$F27,0) -> 0 | CH27: =IF(SUM(CG$15:CG$22)>0,$E27*$F27,0) -> 0 | CJ27: =IF(SUM(CI$15:CI$22)>0,$E27*$F27,0) -> 0 | CL27: =IF(SUM(CK$15:CK$22)>0,$E27*$F27,0) -> 0 | CN27: =IF(SUM(CM$15:CM$22)>0,$E27*$F27,0) -> 0 | CP27: =IF(SUM(CO$15:CO$22)>0,$E27*$F27,0) -> 0 | CR27: =IF(SUM(CQ$15:CQ$22)>0,$E27*$F27,0) -> 0 | CT27: =IF(SUM(CS$15:CS$22)>0,$E27*$F27,0) -> 0 | CV27: =IF(SUM(CU$15:CU$22)>0,$E27*$F27,0) -> 0 | CX27: =IF(SUM(CW$15:CW$22)>0,$E27*$F27,0) -> 0 | CZ27: =IF(SUM(CY$15:CY$22)>0,$E27*$F27,0) -> 0 | DB27: =IF(SUM(DA$15:DA$22)>0,$E27*$F27,0) -> 0 | DD27: =IF(SUM(DC$15:DC$22)>0,$E27*$F27,0) -> 0 | DF27: =IF(SUM(DE$15:DE$22)>0,$E27*$F27,0) -> 0 | DH27: =IF(SUM(DG$15:DG$22)>0,$E27*$F27,0) -> 0 | DJ27: =IF(SUM(DI$15:DI$22)>0,$E27*$F27,0) -> 0 | DL27: =IF(SUM(DK$15:DK$22)>0,$E27*$F27,0) -> 0 | DN27: =IF(SUM(DM$15:DM$22)>0,$E27*$F27,0) -> 0 | DP27: =IF(SUM(DO$15:DO$22)>0,$E27*$F27,0) -> 0 | DR27: =IF(SUM(DQ$15:DQ$22)>0,$E27*$F27,0) -> 0 | DT27: =IF(SUM(DS$15:DS$22)>0,$E27*$F27,0) -> 0 | DV27: =IF(SUM(DU$15:DU$22)>0,$E27*$F27,0) -> 0 | DX27: =IF(SUM(DW$15:DW$22)>0,$E27*$F27,0) -> 0
J28: =IF(SUM(I$15:I$22)>0,$E28*$F28,0) -> 0 | L28: =IF(SUM(K$15:K$22)>0,$E28*$F28,0) -> 0 | N28: =IF(SUM(M$15:M$22)>0,$E28*$F28,0) -> 0 | P28: =IF(SUM(O$15:O$22)>0,$E28*$F28,0) -> 0 | R28: =IF(SUM(Q$15:Q$22)>0,$E28*$F28,0) -> 0 | T28: =IF(SUM(S$15:S$22)>0,$E28*$F28,0) -> 0 | V28: =IF(SUM(U$15:U$22)>0,$E28*$F28,0) -> 0 | X28: =IF(SUM(W$15:W$22)>0,$E28*$F28,0) -> 0 | Z28: =IF(SUM(Y$15:Y$22)>0,$E28*$F28,0) -> 0 | AB28: =IF(SUM(AA$15:AA$22)>0,$E28*$F28,0) -> 0 | AD28: =IF(SUM(AC$15:AC$22)>0,$E28*$F28,0) -> 0 | AF28: =IF(SUM(AE$15:AE$22)>0,$E28*$F28,0) -> 0 | AH28: =IF(SUM(AG$15:AG$22)>0,$E28*$F28,0) -> 0 | AJ28: =IF(SUM(AI$15:AI$22)>0,$E28*$F28,0) -> 0 | AL28: =IF(SUM(AK$15:AK$22)>0,$E28*$F28,0) -> 0 | AN28: =IF(SUM(AM$15:AM$22)>0,$E28*$F28,0) -> 0 | AP28: =IF(SUM(AO$15:AO$22)>0,$E28*$F28,0) -> 0 | AR28: =IF(SUM(AQ$15:AQ$22)>0,$E28*$F28,0) -> 0 | AT28: =IF(SUM(AS$15:AS$22)>0,$E28*$F28,0) -> 0 | AV28: =IF(SUM(AU$15:AU$22)>0,$E28*$F28,0) -> 0 | AX28: =IF(SUM(AW$15:AW$22)>0,$E28*$F28,0) -> 0 | AZ28: =IF(SUM(AY$15:AY$22)>0,$E28*$F28,0) -> 0 | BB28: =IF(SUM(BA$15:BA$22)>0,$E28*$F28,0) -> 0 | BD28: =IF(SUM(BC$15:BC$22)>0,$E28*$F28,0) -> 0 | BF28: =IF(SUM(BE$15:BE$22)>0,$E28*$F28,0) -> 0 | BH28: =IF(SUM(BG$15:BG$22)>0,$E28*$F28,0) -> 0 | BJ28: =IF(SUM(BI$15:BI$22)>0,$E28*$F28,0) -> 0 | BL28: =IF(SUM(BK$15:BK$22)>0,$E28*$F28,0) -> 0 | BN28: =IF(SUM(BM$15:BM$22)>0,$E28*$F28,0) -> 0 | BP28: =IF(SUM(BO$15:BO$22)>0,$E28*$F28,0) -> 0 | BR28: =IF(SUM(BQ$15:BQ$22)>0,$E28*$F28,0) -> 0 | BT28: =IF(SUM(BS$15:BS$22)>0,$E28*$F28,0) -> 0 | BV28: =IF(SUM(BU$15:BU$22)>0,$E28*$F28,0) -> 0 | BX28: =IF(SUM(BW$15:BW$22)>0,$E28*$F28,0) -> 0 | BZ28: =IF(SUM(BY$15:BY$22)>0,$E28*$F28,0) -> 0 | CB28: =IF(SUM(CA$15:CA$22)>0,$E28*$F28,0) -> 0 | CD28: =IF(SUM(CC$15:CC$22)>0,$E28*$F28,0) -> 0 | CF28: =IF(SUM(CE$15:CE$22)>0,$E28*$F28,0) -> 0 | CH28: =IF(SUM(CG$15:CG$22)>0,$E28*$F28,0) -> 0 | CJ28: =IF(SUM(CI$15:CI$22)>0,$E28*$F28,0) -> 0 | CL28: =IF(SUM(CK$15:CK$22)>0,$E28*$F28,0) -> 0 | CN28: =IF(SUM(CM$15:CM$22)>0,$E28*$F28,0) -> 0 | CP28: =IF(SUM(CO$15:CO$22)>0,$E28*$F28,0) -> 0 | CR28: =IF(SUM(CQ$15:CQ$22)>0,$E28*$F28,0) -> 0 | CT28: =IF(SUM(CS$15:CS$22)>0,$E28*$F28,0) -> 0 | CV28: =IF(SUM(CU$15:CU$22)>0,$E28*$F28,0) -> 0 | CX28: =IF(SUM(CW$15:CW$22)>0,$E28*$F28,0) -> 0 | CZ28: =IF(SUM(CY$15:CY$22)>0,$E28*$F28,0) -> 0 | DB28: =IF(SUM(DA$15:DA$22)>0,$E28*$F28,0) -> 0 | DD28: =IF(SUM(DC$15:DC$22)>0,$E28*$F28,0) -> 0 | DF28: =IF(SUM(DE$15:DE$22)>0,$E28*$F28,0) -> 0 | DH28: =IF(SUM(DG$15:DG$22)>0,$E28*$F28,0) -> 0 | DJ28: =IF(SUM(DI$15:DI$22)>0,$E28*$F28,0) -> 0 | DL28: =IF(SUM(DK$15:DK$22)>0,$E28*$F28,0) -> 0 | DN28: =IF(SUM(DM$15:DM$22)>0,$E28*$F28,0) -> 0 | DP28: =IF(SUM(DO$15:DO$22)>0,$E28*$F28,0) -> 0 | DR28: =IF(SUM(DQ$15:DQ$22)>0,$E28*$F28,0) -> 0 | DT28: =IF(SUM(DS$15:DS$22)>0,$E28*$F28,0) -> 0 | DV28: =IF(SUM(DU$15:DU$22)>0,$E28*$F28,0) -> 0 | DX28: =IF(SUM(DW$15:DW$22)>0,$E28*$F28,0) -> 0

Sheet Mat Perm (hidden)
C1: CÂMARA DOS DEPUTADOS
C2: DEPARTAMENTO TÉCNICO
C3: Coordenação de Planejamento e Gestão
C5: Data: | D5: ='Dados Gerais'!#REF! -> 
C6: Processo: | D6: ='Dados Gerais'!#REF! -> 
C7: Objeto: | D7: ='Dados Gerais'!#REF! -> 
B11: MATERIAIS PERMANENTES RELACIONADOS AO POSTO - PAGAMENTO DA DEPRECIAÇÃO / MANUTENÇÃO | Q11: 1 | S11: =Q11+1 -> 2 | U11: =S11+1 -> 3 | W11: =U11+1 -> 4 | Y11: =W11+1 -> 5 | AA11: =Y11+1 -> 6 | AC11: =AA11+1 -> 7 | AE11: =AC11+1 -> 8 | AG11: =AE11+1 -> 9 | AI11: =AG11+1 -> 10 | AK11: =AI11+1 -> 11 | AM11: =AK11+1 -> 12 | AO11: =AM11+1 -> 13 | AQ11: =AO11+1 -> 14 | AS11: =AQ11+1 -> 15 | AU11: =AS11+1 -> 16 | AW11: =AU11+1 -> 17 | AY11: =AW11+1 -> 18 | BA11: =AY11+1 -> 19 | BC11: =BA11+1 -> 20 | BE11: =BC11+1 -> 21 | BG11: =BE11+1 -> 22 | BI11: =BG11+1 -> 23 | BK11: =BI11+1 -> 24 | BM11: =BK11+1 -> 25 | BO11: =BM11+1 -> 26 | BQ11: =BO11+1 -> 27 | BS11: =BQ11+1 -> 28 | BU11: =BS11+1 -> 29 | BW11: =BU11+1 -> 30 | BY11: =BW11+1 -> 31 | CA11: =BY11+1 -> 32 | CC11: =CA11+1 -> 33 | CE11: =CC11+1 -> 34 | CG11: =CE11+1 -> 35 | CI11: =CG11+1 -> 36 | CK11: =CI11+1 -> 37 | CM11: =CK11+1 -> 38 | CO11: =CM11+1 -> 39 | CQ11: =CO11+1 -> 40 | CS11: =CQ11+1 -> 41 | CU11: =CS11+1 -> 42 | CW11: =CU11+1 -> 43 | CY11: =CW11+1 -> 44 | DA11: =CY11+1 -> 45 | DC11: =DA11+1 -> 46 | DE11: =DC11+1 -> 47 | DG11: =DE11+1 -> 48 | DI11: =DG11+1 -> 49 | DK11: =DI11+1 -> 50 | DM11: =DK11+1 -> 51 | DO11: =DM11+1 -> 52 | DQ11: =DO11+1 -> 53 | DS11: =DQ11+1 -> 54 | DU11: =DS11+1 -> 55 | DW11: =DU11+1 -> 56 | DY11: =DW11+1 -> 57 | EA11: =DY11+1 -> 58 | EC11: =EA11+1 -> 59 | EE11: =EC11+1 -> 60
Q13: =SUM(R12:R94) -> 0 | S13: =SUM(T12:T94) -> 0 | U13: =SUM(V12:V94) -> 0 | W13: =SUM(X12:X94) -> 0 | Y13: =SUM(Z12:Z94) -> 0 | AA13: =SUM(AB12:AB94) -> 0 | AC13: =SUM(AD12:AD94) -> 0 | AE13: =SUM(AF12:AF94) -> 0 | AG13: =SUM(AH12:AH94) -> 0 | AI13: =SUM(AJ12:AJ94) -> 0 | AK13: =SUM(AL12:AL94) -> 0 | AM13: =SUM(AN12:AN94) -> 0 | AO13: =SUM(AP12:AP94) -> 0 | AQ13: =SUM(AR12:AR94) -> 0 | AS13: =SUM(AT12:AT94) -> 0 | AU13: =SUM(AV12:AV94) -> 0 | AW13: =SUM(AX12:AX94) -> 0 | AY13: =SUM(AZ12:AZ94) -> 0 | BA13: =SUM(BB12:BB94) -> 0 | BC13: =SUM(BD12:BD94) -> 0 | BE13: =SUM(BF12:BF94) -> 0 | BG13: =SUM(BH12:BH94) -> 0 | BI13: =SUM(BJ12:BJ94) -> 0 | BK13: =SUM(BL12:BL94) -> 0 | BM13: =SUM(BN12:BN94) -> 0 | BO13: =SUM(BP12:BP94) -> 0 | BQ13: =SUM(BR12:BR94) -> 0 | BS13: =SUM(BT12:BT94) -> 0 | BU13: =SUM(BV12:BV94) -> 0 | BW13: =SUM(BX12:BX94) -> 0 | BY13: =SUM(BZ12:BZ94) -> 0 | CA13: =SUM(CB12:CB94) -> 0 | CC13: =SUM(CD12:CD94) -> 0 | CE13: =SUM(CF12:CF94) -> 0 | CG13: =SUM(CH12:CH94) -> 0 | CI13: =SUM(CJ12:CJ94) -> 0 | CK13: =SUM(CL12:CL94) -> 0 | CM13: =SUM(CN12:CN94) -> 0 | CO13: =SUM(CP12:CP94) -> 0 | CQ13: =SUM(CR12:CR94) -> 0 | CS13: =SUM(CT12:CT94) -> 0 | CU13: =SUM(CV12:CV94) -> 0 | CW13: =SUM(CX12:CX94) -> 0 | CY13: =SUM(CZ12:CZ94) -> 0 | DA13: =SUM(DB12:DB94) -> 0 | DC13: =SUM(DD12:DD94) -> 0 | DE13: =SUM(DF12:DF94) -> 0 | DG13: =SUM(DH12:DH94) -> 0 | DI13: =SUM(DJ12:DJ94) -> 0 | DK13: =SUM(DL12:DL94) -> 0 | DM13: =SUM(DN12:DN94) -> 0 | DO13: =SUM(DP12:DP94) -> 0 | DQ13: =SUM(DR12:DR94) -> 0 | DS13: =SUM(DT12:DT94) -> 0 | DU13: =SUM(DV12:DV94) -> 0 | DW13: =SUM(DX12:DX94) -> 0 | DY13: =SUM(DZ12:DZ94) -> 0 | EA13: =SUM(EB12:EB94) -> 0 | EC13: =SUM(ED12:ED94) -> 0 | EE13: =SUM(EF12:EF94) -> 0
C14: CATEGORIAS | E14: QUANTIDADE
Q15: =IF($C15=Q$11,1,0) -> 0 | S15: =IF($C15=S$11,1,0) -> 0 | U15: =IF($C15=U$11,1,0) -> 0 | W15: =IF($C15=W$11,1,0) -> 0 | Y15: =IF($C15=Y$11,1,0) -> 0 | AA15: =IF($C15=AA$11,1,0) -> 0 | AC15: =IF($C15=AC$11,1,0) -> 0 | AE15: =IF($C15=AE$11,1,0) -> 0 | AG15: =IF($C15=AG$11,1,0) -> 0 | AI15: =IF($C15=AI$11,1,0) -> 0 | AK15: =IF($C15=AK$11,1,0) -> 0 | AM15: =IF($C15=AM$11,1,0) -> 0 | AO15: =IF($C15=AO$11,1,0) -> 0 | AQ15: =IF($C15=AQ$11,1,0) -> 0 | AS15: =IF($C15=AS$11,1,0) -> 0 | AU15: =IF($C15=AU$11,1,0) -> 0 | AW15: =IF($C15=AW$11,1,0) -> 0 | AY15: =IF($C15=AY$11,1,0) -> 0 | BA15: =IF($C15=BA$11,1,0) -> 0 | BC15: =IF($C15=BC$11,1,0) -> 0 | BE15: =IF($C15=BE$11,1,0) -> 0 | BG15: =IF($C15=BG$11,1,0) -> 0 | BI15: =IF($C15=BI$11,1,0) -> 0 | BK15: =IF($C15=BK$11,1,0) -> 0 | BM15: =IF($C15=BM$11,1,0) -> 0 | BO15: =IF($C15=BO$11,1,0) -> 0 | BQ15: =IF($C15=BQ$11,1,0) -> 0 | BS15: =IF($C15=BS$11,1,0) -> 0 | BU15: =IF($C15=BU$11,1,0) -> 0 | BW15: =IF($C15=BW$11,1,0) -> 0 | BY15: =IF($C15=BY$11,1,0) -> 0 | CA15: =IF($C15=CA$11,1,0) -> 0 | CC15: =IF($C15=CC$11,1,0) -> 0 | CE15: =IF($C15=CE$11,1,0) -> 0 | CG15: =IF($C15=CG$11,1,0) -> 0 | CI15: =IF($C15=CI$11,1,0) -> 0 | CK15: =IF($C15=CK$11,1,0) -> 0 | CM15: =IF($C15=CM$11,1,0) -> 0 | CO15: =IF($C15=CO$11,1,0) -> 0 | CQ15: =IF($C15=CQ$11,1,0) -> 0 | CS15: =IF($C15=CS$11,1,0) -> 0 | CU15: =IF($C15=CU$11,1,0) -> 0 | CW15: =IF($C15=CW$11,1,0) -> 0 | CY15: =IF($C15=CY$11,1,0) -> 0 | DA15: =IF($C15=DA$11,1,0) -> 0 | DC15: =IF($C15=DC$11,1,0) -> 0 | DE15: =IF($C15=DE$11,1,0) -> 0 | DG15: =IF($C15=DG$11,1,0) -> 0 | DI15: =IF($C15=DI$11,1,0) -> 0 | DK15: =IF($C15=DK$11,1,0) -> 0 | DM15: =IF($C15=DM$11,1,0) -> 0 | DO15: =IF($C15=DO$11,1,0) -> 0 | DQ15: =IF($C15=DQ$11,1,0) -> 0 | DS15: =IF($C15=DS$11,1,0) -> 0 | DU15: =IF($C15=DU$11,1,0) -> 0 | DW15: =IF($C15=DW$11,1,0) -> 0 | DY15: =IF($C15=DY$11,1,0) -> 0 | EA15: =IF($C15=EA$11,1,0) -> 0 | EC15: =IF($C15=EC$11,1,0) -> 0 | EE15: =IF($C15=EE$11,1,0) -> 0
D16: =HLOOKUP($C16,'Dados Gerais'!$D$5:$BE$10,6) ->  | E16: =HLOOKUP($C16,'Dados Gerais'!$D$5:$BE$14,10) ->  | Q16: 0 | S16: 0 | U16: 0 | W16: 0 | Y16: 0 | AA16: 0 | AC16: 0 | AE16: 0 | AG16: 0 | AI16: 0 | AK16: 0 | AM16: 0 | AO16: 0 | AQ16: 0 | AS16: 0 | AU16: 0 | AW16: 0 | AY16: 0 | BA16: 0 | BC16: 0 | BE16: 0 | BG16: 0 | BI16: 0 | BK16: 0 | BM16: 0 | BO16: 0 | BQ16: 0 | BS16: 0 | BU16: 0 | BW16: 0 | BY16: 0 | CA16: 0 | CC16: 0 | CE16: 0 | CG16: 0 | CI16: 0 | CK16: 0 | CM16: 0 | CO16: 0 | CQ16: 0 | CS16: 0 | CU16: 0 | CW16: 0 | CY16: 0 | DA16: 0 | DC16: 0 | DE16: 0 | DG16: 0 | DI16: 0 | DK16: 0 | DM16: 0 | DO16: 0 | DQ16: 0 | DS16: 0 | DU16: 0 | DW16: 0 | DY16: 0 | EA16: 0 | EC16: 0 | EE16: 0
D17: =HLOOKUP($C17,'Dados Gerais'!$D$5:$BE$10,6) ->  | E17: =HLOOKUP($C17,'Dados Gerais'!$D$5:$BE$14,10) ->  | Q17: 0 | S17: 0 | U17: 0 | W17: 0 | Y17: 0 | AA17: 0 | AC17: 0 | AE17: 0 | AG17: 0 | AI17: 0 | AK17: 0 | AM17: 0 | AO17: 0 | AQ17: 0 | AS17: 0 | AU17: 0 | AW17: 0 | AY17: 0 | BA17: 0 | BC17: 0 | BE17: 0 | BG17: 0 | BI17: 0 | BK17: 0 | BM17: 0 | BO17: 0 | BQ17: 0 | BS17: 0 | BU17: 0 | BW17: 0 | BY17: 0 | CA17: 0 | CC17: 0 | CE17: 0 | CG17: 0 | CI17: 0 | CK17: 0 | CM17: 0 | CO17: 0 | CQ17: 0 | CS17: 0 | CU17: 0 | CW17: 0 | CY17: 0 | DA17: 0 | DC17: 0 | DE17: 0 | DG17: 0 | DI17: 0 | DK17: 0 | DM17: 0 | DO17: 0 | DQ17: 0 | DS17: 0 | DU17: 0 | DW17: 0 | DY17: 0 | EA17: 0 | EC17: 0 | EE17: 0
D18: =HLOOKUP($C18,'Dados Gerais'!$D$5:$BE$10,6) ->  | E18: =HLOOKUP($C18,'Dados Gerais'!$D$5:$BE$14,10) ->  | Q18: 0 | S18: 0 | U18: 0 | W18: 0 | Y18: 0 | AA18: 0 | AC18: 0 | AE18: 0 | AG18: 0 | AI18: 0 | AK18: 0 | AM18: 0 | AO18: 0 | AQ18: 0 | AS18: 0 | AU18: 0 | AW18: 0 | AY18: 0 | BA18: 0 | BC18: 0 | BE18: 0 | BG18: 0 | BI18: 0 | BK18: 0 | BM18: 0 | BO18: 0 | BQ18: 0 | BS18: 0 | BU18: 0 | BW18: 0 | BY18: 0 | CA18: 0 | CC18: 0 | CE18: 0 | CG18: 0 | CI18: 0 | CK18: 0 | CM18: 0 | CO18: 0 | CQ18: 0 | CS18: 0 | CU18: 0 | CW18: 0 | CY18: 0 | DA18: 0 | DC18: 0 | DE18: 0 | DG18: 0 | DI18: 0 | DK18: 0 | DM18: 0 | DO18: 0 | DQ18: 0 | DS18: 0 | DU18: 0 | DW18: 0 | DY18: 0 | EA18: 0 | EC18: 0 | EE18: 0
D19: =HLOOKUP($C19,'Dados Gerais'!$D$5:$BE$10,6) ->  | E19: =HLOOKUP($C19,'Dados Gerais'!$D$5:$BE$14,10) ->  | Q19: 0 | S19: 0 | U19: 0 | W19: 0 | Y19: 0 | AA19: 0 | AC19: 0 | AE19: 0 | AG19: 0 | AI19: 0 | AK19: 0 | AM19: 0 | AO19: 0 | AQ19: 0 | AS19: 0 | AU19: 0 | AW19: 0 | AY19: 0 | BA19: 0 | BC19: 0 | BE19: 0 | BG19: 0 | BI19: 0 | BK19: 0 | BM19: 0 | BO19: 0 | BQ19: 0 | BS19: 0 | BU19: 0 | BW19: 0 | BY19: 0 | CA19: 0 | CC19: 0 | CE19: 0 | CG19: 0 | CI19: 0 | CK19: 0 | CM19: 0 | CO19: 0 | CQ19: 0 | CS19: 0 | CU19: 0 | CW19: 0 | CY19: 0 | DA19: 0 | DC19: 0 | DE19: 0 | DG19: 0 | DI19: 0 | DK19: 0 | DM19: 0 | DO19: 0 | DQ19: 0 | DS19: 0 | DU19: 0 | DW19: 0 | DY19: 0 | EA19: 0 | EC19: 0 | EE19: 0
D20: =HLOOKUP($C20,'Dados Gerais'!$D$5:$BE$10,6) ->  | E20: =HLOOKUP($C20,'Dados Gerais'!$D$5:$BE$14,10) ->  | Q20: 0 | S20: 0 | U20: 0 | W20: 0 | Y20: 0 | AA20: 0 | AC20: 0 | AE20: 0 | AG20: 0 | AI20: 0 | AK20: 0 | AM20: 0 | AO20: 0 | AQ20: 0 | AS20: 0 | AU20: 0 | AW20: 0 | AY20: 0 | BA20: 0 | BC20: 0 | BE20: 0 | BG20: 0 | BI20: 0 | BK20: 0 | BM20: 0 | BO20: 0 | BQ20: 0 | BS20: 0 | BU20: 0 | BW20: 0 | BY20: 0 | CA20: 0 | CC20: 0 | CE20: 0 | CG20: 0 | CI20: 0 | CK20: 0 | CM20: 0 | CO20: 0 | CQ20: 0 | CS20: 0 | CU20: 0 | CW20: 0 | CY20: 0 | DA20: 0 | DC20: 0 | DE20: 0 | DG20: 0 | DI20: 0 | DK20: 0 | DM20: 0 | DO20: 0 | DQ20: 0 | DS20: 0 | DU20: 0 | DW20: 0 | DY20: 0 | EA20: 0 | EC20: 0 | EE20: 0
D21: =HLOOKUP($C21,'Dados Gerais'!$D$5:$BE$10,6) ->  | E21: =HLOOKUP($C21,'Dados Gerais'!$D$5:$BE$14,10) ->  | Q21: 0 | S21: 0 | U21: 0 | W21: 0 | Y21: 0 | AA21: 0 | AC21: 0 | AE21: 0 | AG21: 0 | AI21: 0 | AK21: 0 | AM21: 0 | AO21: 0 | AQ21: 0 | AS21: 0 | AU21: 0 | AW21: 0 | AY21: 0 | BA21: 0 | BC21: 0 | BE21: 0 | BG21: 0 | BI21: 0 | BK21: 0 | BM21: 0 | BO21: 0 | BQ21: 0 | BS21: 0 | BU21: 0 | BW21: 0 | BY21: 0 | CA21: 0 | CC21: 0 | CE21: 0 | CG21: 0 | CI21: 0 | CK21: 0 | CM21: 0 | CO21: 0 | CQ21: 0 | CS21: 0 | CU21: 0 | CW21: 0 | CY21: 0 | DA21: 0 | DC21: 0 | DE21: 0 | DG21: 0 | DI21: 0 | DK21: 0 | DM21: 0 | DO21: 0 | DQ21: 0 | DS21: 0 | DU21: 0 | DW21: 0 | DY21: 0 | EA21: 0 | EC21: 0 | EE21: 0
Q22: 0 | S22: 0 | U22: 0 | W22: 0 | Y22: 0 | AA22: 0 | AC22: 0 | AE22: 0 | AG22: 0 | AI22: 0 | AK22: 0 | AM22: 0 | AO22: 0 | AQ22: 0 | AS22: 0 | AU22: 0 | AW22: 0 | AY22: 0 | BA22: 0 | BC22: 0 | BE22: 0 | BG22: 0 | BI22: 0 | BK22: 0 | BM22: 0 | BO22: 0 | BQ22: 0 | BS22: 0 | BU22: 0 | BW22: 0 | BY22: 0 | CA22: 0 | CC22: 0 | CE22: 0 | CG22: 0 | CI22: 0 | CK22: 0 | CM22: 0 | CO22: 0 | CQ22: 0 | CS22: 0 | CU22: 0 | CW22: 0 | CY22: 0 | DA22: 0 | DC22: 0 | DE22: 0 | DG22: 0 | DI22: 0 | DK22: 0 | DM22: 0 | DO22: 0 | DQ22: 0 | DS22: 0 | DU22: 0 | DW22: 0 | DY22: 0 | EA22: 0 | EC22: 0 | EE22: 0
C24: PAGAMENTO DA DEPRECIAÇÃO
C25: ITEM | D25: DESCRIÇÃO | E25: QUANT ANUAL | F25: CONTA SIAFI | G25: VALOR DE AQ. | H25: % RESIDUAL | I25: VIDA ÚTIL | J25: DEP. MENSAL | K25: CUSTO TOTAL | L25: BDI (%) | M25: PREÇO TOTAL | N25: FONTE | O25: REFERÊNCIA
F27: 12311.01.09 | G27: 89.34 | H27: 0.1 | I27: 10 | J27: =G27*(1-H27)/(I27*12) -> 0.67005 | K27: =J27*E27 -> 0 | L27: =BDI!$E$26 -> 0.244 | M27: =ROUND(K27*(1+L27),2) -> 0 | N27: COTAÇÃO
F28: 12311.01.09 | G28: 39 | H28: 0.1 | I28: 10 | J28: =G28*(1-H28)/(I28*12) -> 0.2925 | K28: =J28*E28 -> 0 | L28: =BDI!$E$26 -> 0.244 | M28: =ROUND(K28*(1+L28),2) -> 0 | N28: COTAÇÃO
F29: 12311.01.09 | G29: 22.08 | H29: 0.1 | I29: 10 | J29: 0.1656 | K29: 0 | L29: =BDI!$E$26 -> 0.244 | M29: 0 | N29: COTAÇÃO
F30: 12311.01.09 | G30: 8.02 | H30: 0.1 | I30: 10 | J30: 0.06015 | K30: 0 | L30: =BDI!$E$26 -> 0.244 | M30: 0 | N30: COTAÇÃO
F31: 12311.01.09 | G31: 15.64 | H31: 0.1 | I31: 10 | J31: 0.1173 | K31: 0 | L31: =BDI!$E$26 -> 0.244 | M31: 0 | N31: COTAÇÃO
F32: 12311.01.09 | G32: 7.63 | H32: 0.1 | I32: 10 | J32: 0.057225 | K32: 0 | L32: =BDI!$E$26 -> 0.244 | M32: 0 | N32: COTAÇÃO
F33: 12311.01.09 | G33: 21.48 | H33: 0.1 | I33: 10 | J33: 0.1611 | K33: 0 | L33: =BDI!$E$26 -> 0.244 | M33: 0 | N33: COTAÇÃO
F34: 12311.01.09 | G34: 7.87 | H34: 0.1 | I34: 10 | J34: 0.059025 | K34: 0 | L34: =BDI!$E$26 -> 0.244 | M34: 0 | N34: COTAÇÃO
F35: 12311.01.09 | G35: 6.73 | H35: 0.1 | I35: 10 | J35: 0.050475 | K35: 0 | L35: =BDI!$E$26 -> 0.244 | M35: 0 | N35: COTAÇÃO
F36: 12311.01.09 | G36: 15.35 | H36: 0.1 | I36: 10 | J36: 0.115125 | K36: 0 | L36: =BDI!$E$26 -> 0.244 | M36: 0 | N36: COTAÇÃO
F37: 12311.01.09 | G37: 12.86 | H37: 0.1 | I37: 10 | J37: 0.09645 | K37: 0 | L37: =BDI!$E$26 -> 0.244 | M37: 0 | N37: COTAÇÃO
F38: 12311.01.09 | G38: 10.12 | H38: 0.1 | I38: 10 | J38: 0.0759 | K38: 0 | L38: =BDI!$E$26 -> 0.244 | M38: 0 | N38: COTAÇÃO
F39: 12311.01.09 | G39: 61.31 | H39: 0.1 | I39: 10 | J39: 0.459825 | K39: 0 | L39: =BDI!$E$26 -> 0.244 | M39: 0 | N39: COTAÇÃO
F40: 12311.01.09 | G40: 40.41 | H40: 0.1 | I40: 10 | J40: 0.303075 | K40: 0 | L40: =BDI!$E$26 -> 0.244 | M40: 0 | N40: COTAÇÃO
F41: 12311.01.09 | G41: 120.53 | H41: 0.1 | I41: 10 | J41: 0.903975 | K41: 0 | L41: =BDI!$E$26 -> 0.244 | M41: 0 | N41: COTAÇÃO
F42: 12311.01.09 | G42: 31.48 | H42: 0.1 | I42: 10 | J42: 0.2361 | K42: 0 | L42: =BDI!$E$26 -> 0.244 | M42: 0 | N42: COTAÇÃO
F43: 12311.01.09 | G43: 191.93 | H43: 0.1 | I43: 10 | J43: 1.439475 | K43: 0 | L43: =BDI!$E$26 -> 0.244 | M43: 0 | N43: COTAÇÃO
F44: 12311.01.09 | G44: 92.78 | H44: 0.1 | I44: 10 | J44: 0.69585 | K44: 0 | L44: =BDI!$E$26 -> 0.244 | M44: 0 | N44: COTAÇÃO
F45: 12311.01.09 | G45: 36.01 | H45: 0.1 | I45: 10 | J45: 0.270075 | K45: 0 | L45: =BDI!$E$26 -> 0.244 | M45: 0 | N45: COTAÇÃO
F46: 12311.01.09 | G46: 16.58 | H46: 0.1 | I46: 10 | J46: 0.12435 | K46: 0 | L46: =BDI!$E$26 -> 0.244 | M46: 0 | N46: COTAÇÃO
F47: 12311.01.09 | G47: 57.93 | H47: 0.1 | I47: 10 | J47: 0.434475 | K47: 0 | L47: =BDI!$E$26 -> 0.244 | M47: 0 | N47: COTAÇÃO
F48: 12311.01.09 | G48: 47.81 | H48: 0.1 | I48: 10 | J48: 0.358575 | K48: 0 | L48: =BDI!$E$26 -> 0.244 | M48: 0 | N48: COTAÇÃO
F49: 12311.01.09 | G49: 31.18 | H49: 0.1 | I49: 10 | J49: 0.23385 | K49: 0 | L49: =BDI!$E$26 -> 0.244 | M49: 0 | N49: COTAÇÃO
F50: 12311.01.09 | G50: 23.95 | H50: 0.1 | I50: 10 | J50: 0.179625 | K50: 0 | L50: =BDI!$E$26 -> 0.244 | M50: 0 | N50: COTAÇÃO
F51: 12311.01.09 | G51: 35.04 | H51: 0.1 | I51: 10 | J51: 0.2628 | K51: 0 | L51: =BDI!$E$26 -> 0.244 | M51: 0 | N51: COTAÇÃO
F52: 12311.01.09 | G52: 200.31 | H52: 0.1 | I52: 10 | J52: 1.502325 | K52: 0 | L52: =BDI!$E$26 -> 0.244 | M52: 0 | N52: COTAÇÃO
F53: 12311.01.09 | G53: 79.59 | H53: 0.1 | I53: 10 | J53: 0.596925 | K53: 0 | L53: =BDI!$E$26 -> 0.244 | M53: 0 | N53: COTAÇÃO
F54: 12311.01.09 | G54: 227.75 | H54: 0.1 | I54: 10 | J54: 1.708125 | K54: 0 | L54: =BDI!$E$26 -> 0.244 | M54: 0 | N54: COTAÇÃO
F55: 12311.01.09 | G55: 127.59 | H55: 0.1 | I55: 10 | J55: 0.956925 | K55: 0 | L55: =BDI!$E$26 -> 0.244 | M55: 0 | N55: COTAÇÃO
C58: PAGAMENTO DA MANUTENÇÃO
C59: ITEM | D59: DESCRIÇÃO | H59: K (calculado) | I59: MENSAL DEPR. | J59: % MAN X DEP | K59: MENSAL MAN. | L59: BDI (%) | M59: PREÇO TOTAL
H61: =H68 -> 0.424116 | I61: =SUM(M27:M55) -> 0 | J61: =H61 -> 0.424116 | K61: =I61*H61 -> 0 | L61: =L27 -> 0.244 | M61: =ROUND(K61*(1+L61),2) -> 0
E63: K1 | F63: K2 | G63: K3 | H63: K4
E64: 0.85 | F64: 1 | G64: 0.8 | H64: 1
E65: K5 | F65: K6 | G65: K7 | H65: K8
E66: 1 | F66: 0.6 | G66: 0.5 | H66: 1.1
E67: K9 | F67: K10 | G67: K11 | H67: RESULTADO
D68: * a descrição de cada coeficiente segue abaixo | E68: 1.5 | F68: 0.9 | G68: 1.4 | H68: =E64*F64*G64*H64*E66*F66*G66*H66*E68*F68*G68 -> 0.424116
C71: MATERIAL DE CONSUMO ASSOCIADO
C72: ITEM | D72: DESCRIÇÃO | H72: QUANTID/ANO | I72: UNIDADE | J72: VALOR DE AQ. | K72: MENSAL MAT | L72: BDI (%) | M72: PREÇO TOTAL
K74: =J74*H74/12 -> 0 | L74: =L61 -> 0.244 | M74: =ROUND(K74*(1+L74),2) -> 0
C77: MATERIAL DE CONSUMO ASSOCIADO
C78: ITEM | D78: DESCRIÇÃO | M78: PREÇO TOTAL
C80: 1 | D80: Componente DEPRECIAÇÃO - POR POSTO | M80: =I61 -> 0
C81: 2 | D81: Componente MANUTENÇÃO - POR POSTO | M81: =M61 -> 0
C82: 3 | D82: Componente MATERIAL DE CONSUMO ASSOCIADO - POR POSTO | M82: =M74 -> 0
L84: SOMATÓRIO TOTAL MENSAL - POR POSTO | M84: =SUM(M79:M83) -> 0 | R84: =IF(SUM(Q$15:Q$22)>0,$M84,0) -> 0 | T84: =IF(SUM(S$15:S$22)>0,$M84,0) -> 0 | V84: =IF(SUM(U$15:U$22)>0,$M84,0) -> 0 | X84: =IF(SUM(W$15:W$22)>0,$M84,0) -> 0 | Z84: =IF(SUM(Y$15:Y$22)>0,$M84,0) -> 0 | AB84: =IF(SUM(AA$15:AA$22)>0,$M84,0) -> 0 | AD84: =IF(SUM(AC$15:AC$22)>0,$M84,0) -> 0 | AF84: =IF(SUM(AE$15:AE$22)>0,$M84,0) -> 0 | AH84: =IF(SUM(AG$15:AG$22)>0,$M84,0) -> 0 | AJ84: =IF(SUM(AI$15:AI$22)>0,$M84,0) -> 0 | AL84: =IF(SUM(AK$15:AK$22)>0,$M84,0) -> 0 | AN84: =IF(SUM(AM$15:AM$22)>0,$M84,0) -> 0 | AP84: =IF(SUM(AO$15:AO$22)>0,$M84,0) -> 0 | AR84: =IF(SUM(AQ$15:AQ$22)>0,$M84,0) -> 0 | AT84: =IF(SUM(AS$15:AS$22)>0,$M84,0) -> 0 | AV84: =IF(SUM(AU$15:AU$22)>0,$M84,0) -> 0 | AX84: =IF(SUM(AW$15:AW$22)>0,$M84,0) -> 0 | AZ84: =IF(SUM(AY$15:AY$22)>0,$M84,0) -> 0 | BB84: =IF(SUM(BA$15:BA$22)>0,$M84,0) -> 0 | BD84: =IF(SUM(BC$15:BC$22)>0,$M84,0) -> 0 | BF84: =IF(SUM(BE$15:BE$22)>0,$M84,0) -> 0 | BH84: =IF(SUM(BG$15:BG$22)>0,$M84,0) -> 0 | BJ84: =IF(SUM(BI$15:BI$22)>0,$M84,0) -> 0 | BL84: =IF(SUM(BK$15:BK$22)>0,$M84,0) -> 0 | BN84: =IF(SUM(BM$15:BM$22)>0,$M84,0) -> 0 | BP84: =IF(SUM(BO$15:BO$22)>0,$M84,0) -> 0 | BR84: =IF(SUM(BQ$15:BQ$22)>0,$M84,0) -> 0 | BT84: =IF(SUM(BS$15:BS$22)>0,$M84,0) -> 0 | BV84: =IF(SUM(BU$15:BU$22)>0,$M84,0) -> 0 | BX84: =IF(SUM(BW$15:BW$22)>0,$M84,0) -> 0 | BZ84: =IF(SUM(BY$15:BY$22)>0,$M84,0) -> 0 | CB84: =IF(SUM(CA$15:CA$22)>0,$M84,0) -> 0 | CD84: =IF(SUM(CC$15:CC$22)>0,$M84,0) -> 0 | CF84: =IF(SUM(CE$15:CE$22)>0,$M84,0) -> 0 | CH84: =IF(SUM(CG$15:CG$22)>0,$M84,0) -> 0 | CJ84: =IF(SUM(CI$15:CI$22)>0,$M84,0) -> 0 | CL84: =IF(SUM(CK$15:CK$22)>0,$M84,0) -> 0 | CN84: =IF(SUM(CM$15:CM$22)>0,$M84,0) -> 0 | CP84: =IF(SUM(CO$15:CO$22)>0,$M84,0) -> 0 | CR84: =IF(SUM(CQ$15:CQ$22)>0,$M84,0) -> 0 | CT84: =IF(SUM(CS$15:CS$22)>0,$M84,0) -> 0 | CV84: =IF(SUM(CU$15:CU$22)>0,$M84,0) -> 0 | CX84: =IF(SUM(CW$15:CW$22)>0,$M84,0) -> 0 | CZ84: =IF(SUM(CY$15:CY$22)>0,$M84,0) -> 0 | DB84: =IF(SUM(DA$15:DA$22)>0,$M84,0) -> 0 | DD84: =IF(SUM(DC$15:DC$22)>0,$M84,0) -> 0 | DF84: =IF(SUM(DE$15:DE$22)>0,$M84,0) -> 0 | DH84: =IF(SUM(DG$15:DG$22)>0,$M84,0) -> 0 | DJ84: =IF(SUM(DI$15:DI$22)>0,$M84,0) -> 0 | DL84: =IF(SUM(DK$15:DK$22)>0,$M84,0) -> 0 | DN84: =IF(SUM(DM$15:DM$22)>0,$M84,0) -> 0 | DP84: =IF(SUM(DO$15:DO$22)>0,$M84,0) -> 0 | DR84: =IF(SUM(DQ$15:DQ$22)>0,$M84,0) -> 0 | DT84: =IF(SUM(DS$15:DS$22)>0,$M84,0) -> 0 | DV84: =IF(SUM(DU$15:DU$22)>0,$M84,0) -> 0 | DX84: =IF(SUM(DW$15:DW$22)>0,$M84,0) -> 0 | DZ84: =IF(SUM(DY$15:DY$22)>0,$M84,0) -> 0 | EB84: =IF(SUM(EA$15:EA$22)>0,$M84,0) -> 0 | ED84: =IF(SUM(EC$15:EC$22)>0,$M84,0) -> 0 | EF84: =IF(SUM(EE$15:EE$22)>0,$M84,0) -> 0
L85: SOMATÓRIO TOTAL ANUAL - POR POSTO | M85: =M84*12 -> 0
C88: MATERIAL DE CONSUMO ASSOCIADO
C89: MEMÓRIA DE CÁLCULO DO COEFICIENTE DE CORRELAÇÃO MANUTENÇÃO X DEPRECIAÇÃO (K)
C91: JUSTIFICATIVAS | E91: TIPO | F91: K1 | H91: Condições de Trab | I91: K4 | K91: Tempo Vida (anos) | L91: K6 | N91: Temperatura | O91: K8
E92: Guindaste | F92: 0.5 | H92: Em espera | I92: 0.4 | K92: 1 | L92: 0.6 | N92: Muito quente (> 40º C) | O92: 1.3
C93: K1 | D93: Considerado o valor médio de 0,85 | E93: Caminhão-comum | F93: 0.8 | H93: Leves | I93: 0.8 | K93: 2 | L93: 0.7 | N93: Quente (30º a 40º C) | O93: 1.1
C94: K2 | D94: Considerado o operador médio | E94: Fora-de-estrada | F94: 1 | H94: Médias | I94: 1 | K94: 3 | L94: 0.8 | N94: Médio (10º a 30º C) | O94: 1
C95: K3 | D95: Consideradas ferramentas de primeira qualidade | E95: Carregadeira | F95: 1 | H95: Pesadas | I95: 1.4 | K95: 4 | L95: 0.9 | N95: Frio (< 10º C) | O95: 1.2
C96: K4 | D96: Há todo o tipo de trabalho, foi considerado o valor médio | E96: Escavadeira | F96: 1.4 | H96: Severas | I96: 2 | K96: 5 | L96: 1
C97: K5 | D97: Considerando manutenção normal | E97: Motoescrêiper | F97: 1.1 | K97: 6 | L97: 1 | N97: Ritmo de Trabalho | O97: K9
C98: K6 | D98: Equipamentos novos | E98: Trator de esteira | F98: 1.2 | H98: Manutenção | I98: K5 | K98: 7 | L98: 1 | N98: Folgado | O98: 0.9
C99: K7 | D99: 220h por mês, 252 dias por ano | H99: Excelente | I99: 0.6 | K99: 8 | L99: 1.2 | N99: Médio | O99: 1
C100: K8 | D100: Clima quente, acima de 30º C | E100: Qualid do Operador | F100: K2 | H100: Boa | I100: 0.8 | K100: 9 | L100: 1.3 | N100: Com pressa | O100: 1.5
C101: K9 | D101: Ritmo de trabalho usualmente com pressa | E101: Excelente | F101: 0.8 | H101: Média | I101: 1 | K101: 10 | L101: 1.4
C102: K10 | D102: Considerado o operador médio | E102: Boa | F102: 0.9 | H102: Ruim | I102: 1.5 | K102: 11 | L102: 2 | N102: Conh do Serviço | O102: K10
C103: K11 | D103: Foi considerada a opção de aluguel a terceiros, ainda que a simulação seja dos custos do contratado, contudo a execução dos serviços é em local de terceiros | E103: Média | F103: 1 | H103: Inexistente | I103: 3 | K103: 15 | L103: 2 | N103: Grande | O103: 0.8
E104: Ruim | F104: 1.2 | N104: Médio | O104: 0.9
E105: Péssima | F105: 2 | H105: Horas de Uso | I105: K7 | J105: 6000 | K105: 1 | N105: Pouco | O105: 1
H106: 1000 | I106: 0.5 | J106: 8000 | K106: 1.3
E107: Qualidade do Equip | F107: K3 | H107: 2000 | I107: 0.5 | J107: 10000 | K107: 1.6 | N107: Tipo do Serviço | O107: K11
E108: De primeira | F108: 0.8 | H108: 3000 | I108: 0.6 | J108: 12000 | K108: 1.9 | N108: Mina ou Pedreira | O108: 0.8
E109: Média | F109: 1 | H109: 4000 | I109: 0.7 | J109: 15000 | K109: 2.3 | N109: Construção Geral | O109: 1
E110: Ruim | F110: 1.5 | H110: 5000 | I110: 0.9 | J110: 20000 | K110: 3 | N110: Aluguel a Terceiros | O110: 1.4
E112: Fonte:
E113: MATTOS, Aldo Dórea. Como preparar orçamentos de obras. São Paulo: Pini, 2006. 281 p., il

Sheet SREP
B3: SISTEMA DE REGISTRO ELETRÔNICO DE PRESENÇA - SREP
C6: PAGAMENTO DA DEPRECIAÇÃO
C7: ITEM | D7: DESCRIÇÃO | E7: QUANT ANUAL | F7: CONTA SIAFI | G7: VALOR DE AQ. | H7: % RESIDUAL | I7: VIDA ÚTIL | J7: DEP. MENSAL | K7: CUSTO TOTAL | L7: BDI (%) | M7: PREÇO TOTAL | N7: FONTE | O7: REFERÊNCIA
C9: 1 | D9: Equipamento de Registro Eletrônico de Ponto, de parede, com teclado externo e leitor biométrico, em conformidade com a Portaria 1.510/2009 do MT | E9: 2 | F9: 12311.01.24 (máquinas e equip eletrônicos) | G9: 1277.48 | H9: 0.1 | I9: 10 | J9: =G9*(1-H9)/(I9*12) -> 9.5811 | K9: =J9*E9 -> 19.1622 | L9: =BDI!E26 -> 0.244 | M9: =ROUND(K9*(1+L9),2) -> 23.84 | N9: COTAÇÃO
C12: PAGAMENTO DA MANUTENÇÃO
C13: ITEM | D13: DESCRIÇÃO | H13: K (calculado) | I13: MENSAL DEPR. | J13: % MAN X DEP | K13: MENSAL MAN. | L13: BDI (%) | M13: PREÇO TOTAL
C15: 2 | D15: Todos os itens | H15: =H22 -> 1.90003968 | I15: =K9 -> 19.1622 | J15: =H15 -> 1.90003968 | K15: =I15*H15 -> 36.40894036 | L15: =L9 -> 0.244 | M15: =ROUND(K15*(1+L15),2) -> 45.29
E17: K1 | F17: K2 | G17: K3 | H17: K4
E18: 0.85 | F18: 1 | G18: 0.8 | H18: 1.4
E19: K5 | F19: K6 | G19: K7 | H19: K8
E20: 1 | F20: 0.6 | G20: 1.6 | H20: 1.1
E21: K9 | F21: K10 | G21: K11 | H21: RESULTADO
D22: * a descrição de cada coeficiente segue abaixo | E22: 1.5 | F22: 0.9 | G22: 1.4 | H22: =E18*F18*G18*H18*E20*F20*G20*H20*E22*F22*G22 -> 1.90003968
C25: PAGAMENTO DO SOFTWARE
C26: ITEM | D26: DESCRIÇÃO | H26: QUANTIDADE | I26: UNIDADE | J26: VALOR DE AQ. | K26: UNIT. MENSAL | L26: BDI (%) | M26: PREÇO TOTAL
C28: 3 | D28: Software Ponto Secullum 4 - manutenção e suporte técnico com backup - Web Nuvem - Mensalidade 278 usuários | H28: 1 | I28: Licença/mês | J28: 115.79 | K28: =J28*H28 -> 115.79 | L28: =L34 -> 0.244 | M28: =ROUND(K28*(1+L28),2) -> 144.04 | N28: COTAÇÃO
C31: MATERIAL DE CONSUMO ASSOCIADO
C32: ITEM | D32: DESCRIÇÃO | H32: QUANTID/ANO | I32: UNIDADE | J32: VALOR DE AQ. | K32: MENSAL MAT | L32: BDI (%) | M32: PREÇO TOTAL
C34: 4 | D34: Bobina térmica específica para o registrador eletrônico de ponto, com papel termossensível, superfície de impressão externa ao rolo, durabilidade de impressão mínima de 5 anos e comprimento mínimo de 300m | E34: * estimado um gasto anual de 16 bobinas | H34: =ROUNDUP(SUM(' RESUMO'!E7:E11)*4*22*12*0.05/300,0) -> 14 | I34: Bobina | J34: 32.85 | K34: =J34*H34/12 -> 38.325 | L34: =L15 -> 0.244 | M34: =ROUND(K34*(1+L34),2) -> 47.68 | N34: COTAÇÃO
C37: MATERIAL DE CONSUMO ASSOCIADO
C38: ITEM | D38: DESCRIÇÃO | M38: PREÇO TOTAL
C40: 1 | D40: Componente DEPRECIAÇÃO | M40: =M9 -> 23.84
C41: 2 | D41: Componente MANUTENÇÃO | M41: =M15 -> 45.29
C42: 3 | D42: Componente SOFTWARE | M42: =M28 -> 144.04
C43: 4 | D43: Componente MATERIAL DE CONSUMO ASSOCIADO | M43: =M34 -> 47.68
L45: SOMATÓRIO TOTAL MENSAL | M45: =SUM(M39:M44) -> 260.85
L46: SOMATÓRIO TOTAL ANUAL | M46: =M45*12 -> 3130.2
C49: MATERIAL DE CONSUMO ASSOCIADO
C50: MEMÓRIA DE CÁLCULO DO COEFICIENTE DE CORRELAÇÃO MANUTENÇÃO X DEPRECIAÇÃO (K)
C52: JUSTIFICATIVAS | E52: TIPO | F52: K1 | H52: Condições de Trab | I52: K4 | K52: Tempo Vida (anos) | L52: K6 | N52: Temperatura | O52: K8
E53: Guindaste | F53: 0.5 | H53: Em espera | I53: 0.4 | K53: 1 | L53: 0.6 | N53: Muito quente (> 40º C) | O53: 1.3
C54: K1 | D54: Considerado o valor médio de 0,85 | E54: Caminhão-comum | F54: 0.8 | H54: Leves | I54: 0.8 | K54: 2 | L54: 0.7 | N54: Quente (30º a 40º C) | O54: 1.1
C55: K2 | D55: Considerado o operador médio | E55: Fora-de-estrada | F55: 1 | H55: Médias | I55: 1 | K55: 3 | L55: 0.8 | N55: Médio (10º a 30º C) | O55: 1
C56: K3 | D56: Consideradas ferramentas de primeira qualidade | E56: Carregadeira | F56: 1 | H56: Pesadas | I56: 1.4 | K56: 4 | L56: 0.9 | N56: Frio (< 10º C) | O56: 1.2
C57: K4 | D57: Há todo o tipo de trabalho, foi considerado condições pesadas | E57: Escavadeira | F57: 1.4 | H57: Severas | I57: 2 | K57: 5 | L57: 1
C58: K5 | D58: Considerando manutenção normal | E58: Motoescrêiper | F58: 1.1 | K58: 6 | L58: 1 | N58: Ritmo de Trabalho | O58: K9
C59: K6 | D59: Equipamentos novos | E59: Trator de esteira | F59: 1.2 | H59: Manutenção | I59: K5 | K59: 7 | L59: 1 | N59: Folgado | O59: 0.9
C60: K7 | D60: 44h por dia, 252 dias por ano | H60: Excelente | I60: 0.6 | K60: 8 | L60: 1.2 | N60: Médio | O60: 1
C61: K8 | D61: Clima quente, acima de 30º C | E61: Qualid do Operador | F61: K2 | H61: Boa | I61: 0.8 | K61: 9 | L61: 1.3 | N61: Com pressa | O61: 1.5
C62: K9 | D62: Ritmo de trabalho usualmente com pressa | E62: Excelente | F62: 0.8 | H62: Média | I62: 1 | K62: 10 | L62: 1.4
C63: K10 | D63: Considerado o operador médio | E63: Boa | F63: 0.9 | H63: Ruim | I63: 1.5 | K63: 11 | L63: 2 | N63: Conh do Serviço | O63: K10
C64: K11 | D64: Foi considerada a opção de aluguel a terceiros, ainda que a simulação seja dos custos do contratado, contudo a execução dos serviços é em local de terceiros | E64: Média | F64: 1 | H64: Inexistente | I64: 3 | K64: 15 | L64: 2 | N64: Grande | O64: 0.8
E65: Ruim | F65: 1.2 | N65: Médio | O65: 0.9
E66: Péssima | F66: 2 | H66: Horas de Uso | I66: K7 | J66: 6000 | K66: 1 | N66: Pouco | O66: 1
H67: 1000 | I67: 0.5 | J67: 8000 | K67: 1.3
E68: Qualidade do Equip | F68: K3 | H68: 2000 | I68: 0.5 | J68: 10000 | K68: 1.6 | N68: Tipo do Serviço | O68: K11
E69: De primeira | F69: 0.8 | H69: 3000 | I69: 0.6 | J69: 12000 | K69: 1.9 | N69: Mina ou Pedreira | O69: 0.8
E70: Média | F70: 1 | H70: 4000 | I70: 0.7 | J70: 15000 | K70: 2.3 | N70: Construção Geral | O70: 1
E71: Ruim | F71: 1.5 | H71: 5000 | I71: 0.9 | J71: 20000 | K71: 3 | N71: Aluguel a Terceiros | O71: 1.4
E73: Fonte:
E74: MATTOS, Aldo Dórea. Como preparar orçamentos de obras. São Paulo: Pini, 2006. 281 p., il

Sheet Não Rel - EPI (hidden)
B4: EPIS NÃO RELACIONADOS DIRETAMENTE A UM POSTO DE TRABALHO - AQUISIÇÃO
D7: ITEM | E7: DESCRIÇÃO | F7: QUANT ANUAL | G7: UNIDADE | H7: CUSTO UNITÁRIO | I7: CUSTO ANUAL | J7: BDI (%) | K7: PREÇO TOTAL | L7: FONTE
D9: 1 | E9: Respirador purificador de ar tipo, peça semifacial filtrante para partículas (PFF2), com formato dobrável, solda ultrassônica em todo o seu perímetro. Fita elástica branca fixada nas laterais externas do respirador, perfazendo uma alça na para fixação na parte superior da cabeça e a outra na parte inferior, para fixação na altura da nuca do usuário. A parte superior externa da peça possui tira de material metálico moldável, utilizada para ajuste no septo nasal. Na face lateral do respirador existe um dispositivo de material plástico, dotado internamente de uma válvula de exalação. DEVERÁ APRESENTAR O SELO DE APROVAÇÃO DO INMETRO. Ref. 3M Obs: Enquanto durar a pandemia da Covid 19 as máscaras deverão ser fornecidas sem a válvula de exalação | G9: UND | H9: 3.36 | I9: =H9*F9 -> 0 | J9: =BDI!$E$26 -> 0.244 | K9: =ROUND(I9*(1+J9),2) -> 0 | L9: COTAÇÃO
J11: SOMATÓRIO TOTAL MENSAL | K11: =K12/12 -> 0
J12: SOMATÓRIO TOTAL ANUAL | K12: =SUM(K8:K10) -> 0 | N12: =SUM($I$9:$I$9) -> 0 | O12: por ano sem bdi

Sheet Não Rel - Uniformes (hidden)
C1: CÂMARA DOS DEPUTADOS
C2: DEPARTAMENTO TÉCNICO
C3: Coordenação de Planejamento e Gestão
C5: Data: | D5: ='Dados Gerais'!#REF! -> 
C6: Processo: | D6: ='Dados Gerais'!#REF! -> 
C7: Objeto: | D7: ='Dados Gerais'!#REF! -> 
B11: UNIFORMES NÃO RELACIONADOS DIRETAMENTE A UM POSTO DE TRABALHO - AQUISIÇÃO
D14: ITEM | E14: DESCRIÇÃO | F14: QUANT ANUAL | G14: UNIDADE | H14: CUSTO UNITÁRIO | I14: CUSTO ANUAL | J14: BDI (%) | K14: PREÇO TOTAL | L14: FONTE
C16: ANALISTA DE INFRAESTRUTURA DE TI SÊNIOR E MASTER
D17: 1 | E17: Terno preto modelo Slim em tecido risca de giz (Blazer e calça social e/ou saia social na altura do joelho) | F17: 4 | G17: UND | I17: =H17*F17 -> 0 | J17: =BDI!$E$26 -> 0.244 | K17: =ROUND(I17*(1+J17),2) -> 0 | L17: COTAÇÃO
D18: 2 | E18: Camisa azul, 40% algodão, 60% poliéster | F18: 12 | G18: UND | I18: =H18*F18 -> 0 | J18: =BDI!$E$26 -> 0.244 | K18: 0 | L18: COTAÇÃO
D19: 3 | E19: Sapato social preto | F19: 4 | G19: UND | I19: 0 | J19: =BDI!$E$26 -> 0.244 | K19: 0 | L19: COTAÇÃO
D20: 4 | E20: Meia social cor preta para os homens e meia calça cor preta fio 40 para as mulheres | F20: 12 | G20: UND | I20: 0 | J20: =BDI!$E$26 -> 0.244 | K20: 0 | L20: COTAÇÃO
D21: 5 | E21: Cinto preto | F21: 4 | G21: UND | I21: 0 | J21: =BDI!$E$26 -> 0.244 | K21: 0 | L21: COTAÇÃO
D22: 6 | E22: Gravata com zíper listrada com tonalidades em azul | F22: 8 | G22: UND | I22: 0 | J22: =BDI!$E$26 -> 0.244 | K22: 0 | L22: COTAÇÃO
C24: TÉCNICO INSTALADOR DE CABEAMENTO E TÉCNICO DE MANUTENÇÃO DE INFRAESTRUTURA DE REDE
D25: 1 | E25: Camisa gola polo cor preta, 100% algodão (manga curta) | F25: 144 | G25: UND | I25: =H25*F25 -> 0 | J25: =BDI!$E$26 -> 0.244 | K25: =ROUND(I25*(1+J25),2) -> 0 | L25: COTAÇÃO
D26: 2 | E26: Calça jeans azul escuro | F26: 72 | G26: UND | I26: 0 | J26: =BDI!$E$26 -> 0.244 | K26: =ROUND(I26*(1+J26),2) -> 0 | L26: COTAÇÃO
D27: 3 | E27: Meia social preta | F27: 180 | G27: UND | I27: 0 | J27: =BDI!$E$26 -> 0.244 | K27: =ROUND(I27*(1+J27),2) -> 0 | L27: COTAÇÃO
D28: 4 | E28: Cinto preto | F28: 36 | G28: UND | I28: 0 | J28: =BDI!$E$26 -> 0.244 | K28: =ROUND(I28*(1+J28),2) -> 0 | L28: COTAÇÃO
J30: SOMATÓRIO TOTAL MENSAL | K30: =K31/12 -> 0
J31: SOMATÓRIO TOTAL ANUAL | K31: =SUM(K15:K29) -> 0 | N31: =SUM($I$17:$I$28) -> 0 | O31: por ano sem bdi
K35: =K31/K37 -> 0
K37: 13714257.99

Sheet Não Rel - Depr (hidden)
C1: CÂMARA DOS DEPUTADOS
C2: DEPARTAMENTO TÉCNICO
C3: Coordenação de Planejamento e Gestão
C5: Data: | D5: ='Dados Gerais'!#REF! -> 
C6: Processo: | D6: ='Dados Gerais'!#REF! -> 
C7: Objeto: | D7: ='Dados Gerais'!#REF! -> 
B11: EQUIPAMENTOS NÃO RELACIONADOS DIRETAMENTE A UM POSTO DE TRABALHO - PAGAMENTO DA DEPRECIAÇÃO / MANUTENÇÃO
C14: PAGAMENTO DA DEPRECIAÇÃO
C15: ITEM | D15: DESCRIÇÃO | E15: QUANT ANUAL | F15: CONTA SIAFI | G15: VALOR DE AQ. | H15: % RESIDUAL | I15: VIDA ÚTIL | J15: DEP. MENSAL | K15: CUSTO TOTAL | L15: BDI (%) | M15: PREÇO TOTAL | N15: FONTE | O15: REFERÊNCIA
C17: 1 | D17: GUIA PASSA FIO RESISTENTE DE AÇO | E17: 23 | F17: 12311.01.25 | H17: 0.1 | I17: 10 | J17: =G17*(1-H17)/(I17*12) -> 0 | K17: =J17*E17 -> 0 | L17: =BDI!$E$26 -> 0.244 | M17: =ROUND(K17*(1+L17),2) -> 0 | N17: COTAÇÃO
C18: 2 | D18: ALICATE UNIVERSAL 8 | E18: 23 | F18: 12311.01.25 | H18: 0.1 | I18: 10 | J18: 0 | K18: 0 | L18: =BDI!$E$26 -> 0.244 | M18: 0 | N18: COTAÇÃO
C19: 3 | D19: ALICATE DE BICO MEIO-CANA LONGO COM CORTE “7.1/2” | E19: 23 | F19: 12311.01.25 | H19: 0.1 | I19: 10 | J19: 0 | K19: 0 | L19: =BDI!$E$26 -> 0.244 | M19: 0 | N19: COTAÇÃO
C20: 4 | D20: ALICATE DE CORTE DIAGONAL “6” | E20: 23 | F20: 12311.01.25 | H20: 0.1 | I20: 10 | J20: 0 | K20: 0 | L20: =BDI!$E$26 -> 0.244 | M20: 0 | N20: COTAÇÃO
C21: 5 | D21: ALICATE DE CORTE DIAGONAL “4” | E21: 23 | F21: 12311.01.25 | H21: 0.1 | I21: 10 | J21: 0 | K21: 0 | L21: =BDI!$E$26 -> 0.244 | M21: 0 | N21: COTAÇÃO
C22: 6 | D22: CHAVE DE FENDA “1/4.6” | E22: 23 | F22: 12311.01.25 | H22: 0.1 | I22: 10 | J22: 0 | K22: 0 | L22: =BDI!$E$26 -> 0.244 | M22: 0 | N22: COTAÇÃO
C23: 7 | D23: CHAVE DE FENDA “1/8.3” | E23: 23 | F23: 12311.01.25 | H23: 0.1 | I23: 10 | J23: 0 | K23: 0 | L23: =BDI!$E$26 -> 0.244 | M23: 0 | N23: COTAÇÃO
C24: 8 | D24: CHAVE PHILLIPS “1/4.6” | E24: 23 | F24: 12311.01.25 | H24: 0.1 | I24: 10 | J24: 0 | K24: 0 | L24: =BDI!$E$26 -> 0.244 | M24: 0 | N24: COTAÇÃO
C25: 9 | D25: CHAVE PHILLIPS “1/8.3” | E25: 23 | F25: 12311.01.25 | H25: 0.1 | I25: 10 | J25: 0 | K25: 0 | L25: =BDI!$E$26 -> 0.244 | M25: 0 | N25: COTAÇÃO
C26: 10 | D26: TESTE DE LED UTP/RJ45 | E26: 23 | F26: 12311.01.25 | H26: 0.1 | I26: 10 | J26: 0 | K26: 0 | L26: =BDI!$E$26 -> 0.244 | M26: 0 | N26: COTAÇÃO
C27: 11 | D27: ALICATE DE CRIMPAGEM RJ-45 PARA CABO DE CATEGORIA 5E 6 AMP | E27: 23 | F27: 12311.01.25 | H27: 0.1 | I27: 10 | J27: 0 | K27: 0 | L27: =BDI!$E$26 -> 0.244 | M27: 0 | N27: COTAÇÃO
C28: 12 | D28: ALICATE DE CRIMPAGEM RJ-45 PARA CABO DE CATEGORIA 5E 6 | E28: 23 | F28: 12311.01.25 | H28: 0.1 | I28: 10 | J28: =G28*(1-H28)/(I28*12) -> 0 | K28: =J28*E28 -> 0 | L28: =BDI!$E$26 -> 0.244 | M28: =ROUND(K28*(1+L28),2) -> 0 | N28: COTAÇÃO
C29: 13 | D29: ALICATE DE CRIMPAGEM RÁPIDA PREMIUM - PARA TOMADAS AMP RJ45 | E29: 23 | F29: 12311.01.25 | H29: 0.1 | I29: 10 | J29: 0 | K29: 0 | L29: =BDI!$E$26 -> 0.244 | M29: 0 | N29: COTAÇÃO
C30: 14 | D30: ALICATE DE CRIMPAGEM RÁPIDA PREMIUM - PARA TOMADAS FURUKAWA RJ-45 | E30: 23 | F30: 12311.01.25 | H30: 0.1 | I30: 10 | J30: 0 | K30: 0 | L30: =BDI!$E$26 -> 0.244 | M30: 0 | N30: COTAÇÃO
C31: 15 | D31: ALICATE PUNCH DOWN (SOCO BAIXO) PARA 1 VIA | E31: 23 | F31: 12311.01.25 | H31: 0.1 | I31: 10 | J31: 0 | K31: 0 | L31: =BDI!$E$26 -> 0.244 | M31: 0 | N31: COTAÇÃO
C32: 16 | D32: ALICATE PUNCH DOWN (SOCO BAIXO) PARA 8 VIAS | E32: 23 | F32: 12311.01.25 | H32: 0.1 | I32: 10 | J32: 0 | K32: 0 | L32: =BDI!$E$26 -> 0.244 | M32: 0 | N32: COTAÇÃO
C33: 17 | D33: DECAPADOR DE CABOS UTP | E33: 23 | F33: 12311.01.25 | H33: 0.1 | I33: 10 | J33: 0 | K33: 0 | L33: =BDI!$E$26 -> 0.244 | M33: 0 | N33: COTAÇÃO
C34: 18 | D34: TESTE DE LED UTP/RJ45 (PROLAN 500 SPARTEC, IDEAL, MINIPA) | E34: 23 | F34: 12311.01.25 | H34: 0.1 | I34: 10 | J34: 0 | K34: 0 | L34: =BDI!$E$26 -> 0.244 | M34: 0 | N34: COTAÇÃO
C35: 19 | D35: ESTILETE COM LÂMINA 18MM | E35: 23 | F35: 12311.01.25 | H35: 0.1 | I35: 10 | J35: 0 | K35: 0 | L35: =BDI!$E$26 -> 0.244 | M35: 0 | N35: COTAÇÃO
C36: 20 | D36: LANTERNA LED DE MÃO COM BATERIA RECARREGÁVEL | E36: 23 | F36: 12311.01.25 | H36: 0.1 | I36: 10 | J36: 0 | K36: 0 | L36: =BDI!$E$26 -> 0.244 | M36: 0 | N36: COTAÇÃO
C37: 21 | D37: MALA DE FERRAMENTAS | E37: 23 | F37: 12311.01.25 | H37: 0.1 | I37: 10 | J37: 0 | K37: 0 | L37: =BDI!$E$26 -> 0.244 | M37: 0 | N37: COTAÇÃO
C38: 22 | D38: POWER METER – MEDIDOR DE POTÊNCIA ÓPTICA | E38: 23 | F38: 12311.01.25 | H38: 0.1 | I38: 10 | J38: 0 | K38: 0 | L38: =BDI!$E$26 -> 0.244 | M38: 0 | N38: COTAÇÃO
C39: 23 | D39: CANETA LASER PARA FIBRAS ÓPTICAS DE 10KM OU SUPERIOR IDENTIFICADOR VISUAL DE FALHAS | E39: 23 | F39: 12311.01.25 | H39: 0.1 | I39: 10 | J39: 0 | K39: 0 | L39: =BDI!$E$26 -> 0.244 | M39: 0 | N39: COTAÇÃO
C40: 24 | D40: KIT CANETAS PARA LIMPEZA FIBRA ÓPTICA 2.3mm E 1.25mm | E40: 23 | F40: 12311.01.25 | H40: 0.1 | I40: 10 | J40: 0 | K40: 0 | L40: =BDI!$E$26 -> 0.244 | M40: 0 | N40: COTAÇÃO
C41: 25 | D41: PARAFUSADEIRA/FURADEIRA Capacidades: Aço 13mm, Madeira 36mm, Concreto 13mm. Impactos por minuto: Alta 0 – 21.000, Baixa 0 – 6.000 Rotações por minuto: Alta 0-1.400, Baixa 0 – 400 Torque máximo: J. Rígida / J.Flexível 42/24 N.m Dimensões (C x L x A) 239 x 79 x 240mm Peso: 1.7kg Bateria: 18V | E41: 23 | F41: 12311.01.25 | H41: 0.1 | I41: 10 | J41: 0 | K41: 0 | L41: =BDI!$E$26 -> 0.244 | M41: 0 | N41: COTAÇÃO
C42: 26 | D42: MULTÍMETRO DIGITAL MINIPA | E42: 23 | F42: 12311.01.25 | H42: 0.1 | I42: 10 | J42: 0 | K42: 0 | L42: =BDI!$E$26 -> 0.244 | M42: 0 | N42: COTAÇÃO
C45: PAGAMENTO DA MANUTENÇÃO
C46: ITEM | D46: DESCRIÇÃO | H46: K (calculado) | I46: MENSAL DEPR. | J46: % MAN X DEP | K46: MENSAL MAN. | L46: BDI (%) | M46: PREÇO TOTAL
D48: Todos os itens | H48: =H55 -> 0.3817044 | I48: =SUM(M17:M42) -> 0 | J48: =H48 -> 0.3817044 | K48: =I48*H48 -> 0 | L48: =BDI!E26 -> 0.244 | M48: =ROUND(K48*(1+L48),2) -> 0
E50: K1 | F50: K2 | G50: K3 | H50: K4
E51: 0.85 | F51: 0.9 | G51: 0.8 | H51: 1
E52: K5 | F52: K6 | G52: K7 | H52: K8
E53: 1 | F53: 0.6 | G53: 0.5 | H53: 1.1
E54: K9 | F54: K10 | G54: K11 | H54: RESULTADO
D55: * a descrição de cada coeficiente segue abaixo | E55: 1.5 | F55: 0.9 | G55: 1.4 | H55: =E51*F51*G51*H51*E53*F53*G53*H53*E55*F55*G55 -> 0.3817044
C58: MATERIAL DE CONSUMO ASSOCIADO
C59: ITEM | D59: DESCRIÇÃO | H59: QUANTID/ANO | I59: UNIDADE | J59: VALOR DE AQ. | K59: MENSAL MAT | L59: BDI (%) | M59: PREÇO TOTAL
K61: =J61*H61/12 -> 0 | L61: =BDI!E26 -> 0.244 | M61: =ROUND(K61*(1+L61),2) -> 0
C64: MATERIAL DE CONSUMO ASSOCIADO
C65: ITEM | D65: DESCRIÇÃO | M65: PREÇO TOTAL
C67: 1 | D67: Componente DEPRECIAÇÃO | M67: =I48 -> 0
C68: 2 | D68: Componente MANUTENÇÃO | M68: =M48 -> 0
C69: 3 | D69: Componente MATERIAL DE CONSUMO ASSOCIADO | M69: =M61 -> 0
L71: SOMATÓRIO TOTAL MENSAL | M71: =SUM(M66:M70) -> 0
L72: SOMATÓRIO TOTAL ANUAL | M72: =M71*12 -> 0
C75: MATERIAL DE CONSUMO ASSOCIADO
C76: MEMÓRIA DE CÁLCULO DO COEFICIENTE DE CORRELAÇÃO MANUTENÇÃO X DEPRECIAÇÃO (K)
C78: JUSTIFICATIVAS | E78: TIPO | F78: K1 | H78: Condições de Trab | I78: K4 | K78: Tempo Vida (anos) | L78: K6 | N78: Temperatura | O78: K8
E79: Guindaste | F79: 0.5 | H79: Em espera | I79: 0.4 | K79: 1 | L79: 0.6 | N79: Muito quente (> 40º C) | O79: 1.3
C80: K1 | D80: Considerado o valor médio de 0,85 | E80: Caminhão-comum | F80: 0.8 | H80: Leves | I80: 0.8 | K80: 2 | L80: 0.7 | N80: Quente (30º a 40º C) | O80: 1.1
C81: K2 | D81: Considerado o operador bom | E81: Fora-de-estrada | F81: 1 | H81: Médias | I81: 1 | K81: 3 | L81: 0.8 | N81: Médio (10º a 30º C) | O81: 1
C82: K3 | D82: Consideradas ferramentas de primeira qualidade | E82: Carregadeira | F82: 1 | H82: Pesadas | I82: 1.4 | K82: 4 | L82: 0.9 | N82: Frio (< 10º C) | O82: 1.2
C83: K4 | D83: Há todo o tipo de trabalho, foi considerado o valor médio | E83: Escavadeira | F83: 1.4 | H83: Severas | I83: 2 | K83: 5 | L83: 1
C84: K5 | D84: Considerando manutenção normal | E84: Motoescrêiper | F84: 1.1 | K84: 6 | L84: 1 | N84: Ritmo de Trabalho | O84: K9
C85: K6 | D85: Equipamentos novos | E85: Trator de esteira | F85: 1.2 | H85: Manutenção | I85: K5 | K85: 7 | L85: 1 | N85: Folgado | O85: 0.9
C86: K7 | D86: 220h por mês, 252 dias por ano | H86: Excelente | I86: 0.6 | K86: 8 | L86: 1.2 | N86: Médio | O86: 1
C87: K8 | D87: Clima quente, acima de 30º C | E87: Qualid do Operador | F87: K2 | H87: Boa | I87: 0.8 | K87: 9 | L87: 1.3 | N87: Com pressa | O87: 1.5
C88: K9 | D88: Ritmo de trabalho usualmente com pressa | E88: Excelente | F88: 0.8 | H88: Média | I88: 1 | K88: 10 | L88: 1.4
C89: K10 | D89: Considerado o operador médio | E89: Boa | F89: 0.9 | H89: Ruim | I89: 1.5 | K89: 11 | L89: 2 | N89: Conh do Serviço | O89: K10
C90: K11 | D90: Foi considerada a opção de aluguel a terceiros, ainda que a simulação seja dos custos do contratado, contudo a execução dos serviços é em local de terceiros | E90: Média | F90: 1 | H90: Inexistente | I90: 3 | K90: 15 | L90: 2 | N90: Grande | O90: 0.8
E91: Ruim | F91: 1.2 | N91: Médio | O91: 0.9
E92: Péssima | F92: 2 | H92: Horas de Uso | I92: K7 | J92: 6000 | K92: 1 | N92: Pouco | O92: 1
H93: 1000 | I93: 0.5 | J93: 8000 | K93: 1.3
E94: Qualidade do Equip | F94: K3 | H94: 2000 | I94: 0.5 | J94: 10000 | K94: 1.6 | N94: Tipo do Serviço | O94: K11
E95: De primeira | F95: 0.8 | H95: 3000 | I95: 0.6 | J95: 12000 | K95: 1.9 | N95: Mina ou Pedreira | O95: 0.8
E96: Média | F96: 1 | H96: 4000 | I96: 0.7 | J96: 15000 | K96: 2.3 | N96: Construção Geral | O96: 1
E97: Ruim | F97: 1.5 | H97: 5000 | I97: 0.9 | J97: 20000 | K97: 3 | N97: Aluguel a Terceiros | O97: 1.4
E99: Fonte:
E100: MATTOS, Aldo Dórea. Como preparar orçamentos de obras. São Paulo: Pini, 2006. 281 p., il
M105: =M72/M107 -> 0
M107: 13714257.99

Sheet Not. Demanda
B3: ADICIONAL NOTURNO SOB DEMANDA
C6: CATEGORIAS | G6: HORAS / MÊS | H6: % NOTURNA
C8: 2 | D8: =HLOOKUP($C8,'Dados Gerais'!$D$5:$BE$10,6) -> RECEPCIONISTA BILINGUE | G8: =2*2*2*52/12 -> 34.66666667 | H8: 0.225
C9: 3 | D9: =HLOOKUP($C9,'Dados Gerais'!$D$5:$BE$10,6) -> CERIMONIALISTA | G9: =G8 -> 34.66666667 | H9: =H8 -> 0.225
C10: 4 | D10: =HLOOKUP($C10,'Dados Gerais'!$D$5:$BE$10,6) -> RECEPCIONISTA | G10: =G9 -> 34.66666667 | H10: =H9 -> 0.225
C13: AJUSTE DE HORAS FICTAS | E13: AJUSTE H.NOT | F13: HORA NORMAL | G13: H.FICTAS/MÊS | H13: H.ÚTEIS/MÊS
C15: 2 | D15: =HLOOKUP($C15,'Dados Gerais'!$D$5:$BE$10,6) -> RECEPCIONISTA BILINGUE | E15: 60 | F15: 60 | G15: =G8*(F15/E15) -> 34.66666667 | H15: 220
C16: 3 | D16: =HLOOKUP($C16,'Dados Gerais'!$D$5:$BE$10,6) -> CERIMONIALISTA | E16: 60 | F16: 60 | G16: =G9*(F16/E16) -> 34.66666667 | H16: =H15 -> 220
C17: 4 | D17: =HLOOKUP($C17,'Dados Gerais'!$D$5:$BE$10,6) -> RECEPCIONISTA | E17: 60 | F17: 60 | G17: =G10*(F17/E17) -> 34.66666667 | H17: =H16 -> 220
C20: VALOR DO ADICIONAL NOTURNO | F20: SALÁRIO MÊS | G20: VL.H.NORMAL | H20: ADIC.H.FICTAS
C22: 2 | D22: =HLOOKUP($C22,'Dados Gerais'!$D$5:$BE$10,6) -> RECEPCIONISTA BILINGUE | F22: =HLOOKUP(C22,'Dados Gerais'!$D$5:$J$12,8,0) -> 4706.88 | G22: =F22/H15 -> 21.39490909 | H22: =G22*(H8) -> 4.813854545
C23: 3 | D23: =HLOOKUP($C23,'Dados Gerais'!$D$5:$BE$10,6) -> CERIMONIALISTA | F23: =HLOOKUP(C23,'Dados Gerais'!$D$5:$J$12,8,0) -> 4706.88 | G23: =F23/H16 -> 21.39490909 | H23: =G23*(H9) -> 4.813854545
C24: 4 | D24: =HLOOKUP($C24,'Dados Gerais'!$D$5:$BE$10,6) -> RECEPCIONISTA | F24: =HLOOKUP(C24,'Dados Gerais'!$D$5:$J$12,8,0) -> 3498.43 | G24: =F24/H17 -> 15.90195455 | H24: =G24*(H10) -> 3.577939773
C27: RESUMO DO ADICIONAL NOTURNO SOB DEMANDA
C28: TOTAIS MENSAIS | G28: PREÇO MENSAL
C30: 4 | D30: =HLOOKUP($C30,'Dados Gerais'!$D$5:$BE$10,6) -> RECEPCIONISTA | G30: =H22*G15 -> 166.8802909
C31: 6 | D31: =HLOOKUP($C31,'Dados Gerais'!$D$5:$BE$10,6) -> RECEPCIONISTA BILINGUE PLANTONISTAS (12H/36H) | G31: =H23*G16 -> 166.8802909
C32: 8 | D32: =HLOOKUP($C32,'Dados Gerais'!$D$5:$BE$10,6) -> RECEPCIONISTA BILINGUE PLANTONISTAS (12H/36H) | G32: =H24*G17 -> 124.0352455
F34: SOMATÓRIO TOTAL MENSAL | G34: =SUM(G30:G32) -> 457.7958273
F35: SOMATÓRIO TOTAL ANUAL | G35: =G34*12 -> 5493.549927
C38: ENCARGOS SOCIAIS E BDI SOBRE ADICIONAL NOTURNO SOB DEMANDA
C39: TOTAIS MENSAIS | F39: PERCENTUAIS | G39: PREÇO MENSAL
D41: ENCARGOS SOCIAIS | F41: ='Encargos Sociais'!$E$45 -> 0.7325 | G41: =F41*G34 -> 335.3354435
D42: BDI | F42: =BDI!$E$26 -> 0.244 | G42: =F42*(G34+G41) -> 193.5240301
F44: SOMATÓRIO TOTAL MENSAL | G44: =SUM(G41:G43) -> 528.8594735
F45: SOMATÓRIO TOTAL ANUAL | G45: =G44*12 -> 6346.313682
C48: VALOR TOTAL ADICIONAL NOTURNO SOB DEMANDA (COM ENCARGOS SOCIAIS E BDI INCLUSOS)
F52: SOMATÓRIO TOTAL MENSAL | G52: =G34+G44 -> 986.6553008
F53: SOMATÓRIO TOTAL ANUAL | G53: =G52*12 -> 11839.86361

Sheet SOBREAVISO (hidden)
B3: HORAS DE SOBREAVISO SOB DEMANDA
C6: CATEGORIAS | G6: HORAS / MÊS | H6: % NOTURNA
C8: 11 | D8: =HLOOKUP($C8,'Dados Gerais'!$D$5:$BE$10,6) -> RECEPCIONISTA BILINGUE PLANTONISTAS (12H/36H) | G8: 1195 | H8: =1/3 -> 0.3333333333
C9: 12 | D9: =HLOOKUP($C9,'Dados Gerais'!$D$5:$BE$10,6) -> RECEPCIONISTA BILINGUE PLANTONISTAS (12H/36H) | G9: 220 | H9: =H8 -> 0.3333333333
C12: VALOR DO SOBREAVISO | F12: SALÁRIO MÊS | G12: VL.H.NORMAL | H12: ADIC.H.FICTAS
C14: 11 | D14: =HLOOKUP($C14,'Dados Gerais'!$D$5:$BE$10,6) -> RECEPCIONISTA BILINGUE PLANTONISTAS (12H/36H) | F14: =HLOOKUP(C14,'Dados Gerais'!$D$5:$J$12,8,0) ->  | G14: =F14/220 ->  | H14: =G14*(H8) ->  | J14: =G14/3 -> 
C15: 12 | D15: =HLOOKUP($C15,'Dados Gerais'!$D$5:$BE$10,6) -> RECEPCIONISTA BILINGUE PLANTONISTAS (12H/36H) | F15: =HLOOKUP(C15,'Dados Gerais'!$D$5:$J$12,8,0) ->  | G15: =F15/220 ->  | H15: =G15*(H9) ->  | J15: =G15/3 -> 
C18: RESUMO DO SOBREAVISO SOB DEMANDA
C19: TOTAIS MENSAIS | G19: PREÇO MENSAL
D21: =HLOOKUP($C21,'Dados Gerais'!$D$5:$BE$10,6) -> 
D22: =HLOOKUP($C22,'Dados Gerais'!$D$5:$BE$10,6) -> 
F24: SOMATÓRIO TOTAL MENSAL | G24: =SUM(G21:G22) -> 0
F25: SOMATÓRIO TOTAL ANUAL | G25: =G24*12 -> 0
C28: ENCARGOS SOCIAIS E BDI SOBRE SOBREAVISO SOB DEMANDA
C29: TOTAIS MENSAIS | F29: PERCENTUAIS | G29: PREÇO MENSAL
D31: ENCARGOS SOCIAIS | F31: ='Encargos Sociais'!$E$45 -> 0.7325 | G31: =F31*G24 -> 0
D32: BDI | F32: =BDI!$E$26 -> 0.244 | G32: =F32*(G24+G31) -> 0
F34: SOMATÓRIO TOTAL MENSAL | G34: =SUM(G31:G33) -> 0
F35: SOMATÓRIO TOTAL ANUAL | G35: =G34*12 -> 0
C38: VALOR TOTAL SOBREAVISO SOB DEMANDA (COM ENCARGOS SOCIAIS E BDI INCLUSOS)
F42: SOMATÓRIO TOTAL MENSAL | G42: =G24+G34 -> 0
F43: SOMATÓRIO TOTAL ANUAL | G43: =G42*12 -> 0

Sheet plano de saúde (hidden)
B2: 532.86
B3: 418.82
B4: 299.69
B5: 224.33
B6: 223.17
B7: 214.69
B8: 214.69
B9: 204.16
B10: 200.74
B11: 200.74
B12: 199.9
B13: 198.02
B14: 197.14
B15: 190.91
B16: 188.95
B17: 181
B18: 176.05
B19: 175.8
B20: 168.95
B21: 168.81
B22: 161.76
B23: 160.48
B24: 158.8
B25: 157.71
B26: 156.71
B27: 156.71
B28: 156.7
B29: 153.64
B30: 150
B31: 149.43
B32: 148.82
B33: 138.15
B34: 117.37
B35: 98
B36: 97.45
A37: média | B37: =AVERAGE(B2:B36) -> 192.6042857

Sheet Horas extras_Demanda (hidden)
C1: CÂMARA DOS DEPUTADOS
C2: DEPARTAMENTO TÉCNICO
C3: Coordenação de Planejamento e Gestão
C5: Data: | D5: ='Dados Gerais'!#REF! -> 
C6: Processo: | D6: ='Dados Gerais'!#REF! -> 
C7: Objeto: | D7: ='Dados Gerais'!#REF! -> 
B11: HORAS EXTRAORDINÁRIAS SOB DEMANDA
C14: CATEGORIAS (HORAS EXTRAS EM DIAS COMUNS E SÁBADOS) | G14: HORAS / MÊS | H14: % HORA EXTRA
C16: 11 | D16: =HLOOKUP($C16,'Dados Gerais'!$D$5:$BE$10,6) -> RECEPCIONISTA BILINGUE PLANTONISTAS (12H/36H) | H16: 1.5
C17: 12 | D17: =HLOOKUP($C17,'Dados Gerais'!$D$5:$BE$10,6) -> RECEPCIONISTA BILINGUE PLANTONISTAS (12H/36H) | H17: 1.5
C20: VALOR DA HORA EXTRA (DIAS COMUNS E SÁBADOS) | E20: SALÁRIO MÊS | F20: H.ÚTEIS/MÊS | G20: VL.H.NORMAL | H20: VL.H.EXTRA
C22: 11 | D22: =HLOOKUP($C22,'Dados Gerais'!$D$5:$BE$10,6) -> RECEPCIONISTA BILINGUE PLANTONISTAS (12H/36H) | E22: =HLOOKUP($C22,'Dados Gerais'!$D$5:$J$12,8,0) ->  | F22: =HLOOKUP(C22,'Dados Gerais'!$D$5:$J$16,12,0) ->  | G22: =E22/F22 ->  | H22: =G22*(H16) -> 
C23: 12 | D23: =HLOOKUP($C23,'Dados Gerais'!$D$5:$BE$10,6) -> RECEPCIONISTA BILINGUE PLANTONISTAS (12H/36H) | E23: =HLOOKUP($C23,'Dados Gerais'!$D$5:$J$12,8,0) ->  | F23: =HLOOKUP(C23,'Dados Gerais'!$D$5:$J$16,12,0) ->  | G23: =E23/F23 ->  | H23: =G23*(H17) -> 
C26: CATEGORIAS (HORAS EXTRAS EM DOMINGOS E FERIADOS) | G26: HORAS / MÊS | H26: % HORA EXTRA
C28: 11 | D28: =HLOOKUP($C28,'Dados Gerais'!$D$5:$BE$10,6) -> RECEPCIONISTA BILINGUE PLANTONISTAS (12H/36H) | H28: 2
C29: 12 | D29: =HLOOKUP($C29,'Dados Gerais'!$D$5:$BE$10,6) -> RECEPCIONISTA BILINGUE PLANTONISTAS (12H/36H) | H29: 2
C32: VALOR DA HORA EXTRA (DOMINGOS E FERIADOS) | E32: SALÁRIO MÊS | F32: H.ÚTEIS/MÊS | G32: VL.H.NORMAL | H32: VL.H.EXTRA
C34: 11 | D34: =HLOOKUP($C34,'Dados Gerais'!$D$5:$BE$10,6) -> RECEPCIONISTA BILINGUE PLANTONISTAS (12H/36H) | E34: =HLOOKUP($C34,'Dados Gerais'!$D$5:$J$12,8,0) ->  | F34: =HLOOKUP(C34,'Dados Gerais'!$D$5:$J$16,12,0) ->  | G34: =E34/F34 ->  | H34: =G34*(H28) -> 
C35: 12 | D35: =HLOOKUP($C35,'Dados Gerais'!$D$5:$BE$10,6) -> RECEPCIONISTA BILINGUE PLANTONISTAS (12H/36H) | E35: =HLOOKUP($C35,'Dados Gerais'!$D$5:$J$12,8,0) ->  | F35: =HLOOKUP(C35,'Dados Gerais'!$D$5:$J$16,12,0) ->  | G35: =E35/F35 ->  | H35: =G35*(H29) -> 
C38: RESUMO DO ADICIONAL DE HORA EXTRA
C39: TOTAIS MENSAIS | E39: DIAS COMUNS E SÁBADOS | F39: DOMINGOS E FERIADO | G39: PREÇO MENSAL
C41: 11 | D41: =HLOOKUP($C41,'Dados Gerais'!$D$5:$BE$10,6) -> RECEPCIONISTA BILINGUE PLANTONISTAS (12H/36H) | E41: =$G$16*$H$22 ->  | F41: =$H$34*$G$28 ->  | G41: =F41+E41 -> 
C42: 12 | D42: =HLOOKUP($C42,'Dados Gerais'!$D$5:$BE$10,6) -> RECEPCIONISTA BILINGUE PLANTONISTAS (12H/36H) | E42: =$G$17*$H$23 ->  | F42: =$H$35*$G$29 ->  | G42: =F42+E42 -> 
F44: SOMATÓRIO TOTAL MENSAL | G44: =SUM(G41:G42) -> 
F45: SOMATÓRIO TOTAL ANUAL | G45: =G44*12 -> 
C48: VALOR DO AUXÍLIO TRANSPORTE (HORA EXTRA) | E48: QTDE PESSOAS | F48: DIAS | G48: VL.AUX.TRANS. | H48: VL.MENSAL
C50: 11 | D50: =HLOOKUP($C50,'Dados Gerais'!$D$5:$BE$10,6) -> RECEPCIONISTA BILINGUE PLANTONISTAS (12H/36H) | E50: 6 | F50: 2 | G50: =HLOOKUP($C$50,'Dados Gerais'!$D$5:$I$86,82,FALSE)/HLOOKUP($C$50,'Dados Gerais'!$D$5:$I$17,13,FALSE) ->  | H50: =E50*F50*2*G50 -> 
C51: 12 | D51: =HLOOKUP($C51,'Dados Gerais'!$D$5:$BE$10,6) -> RECEPCIONISTA BILINGUE PLANTONISTAS (12H/36H) | E51: 3 | F51: 2 | G51: =HLOOKUP($C$51,'Dados Gerais'!$D$5:$I$86,82,FALSE)/HLOOKUP($C$51,'Dados Gerais'!$D$5:$I$17,13,FALSE) ->  | H51: =E51*F51*2*G51 -> 
C54: VALOR DO AUXÍLIO ALIMENTAÇÃO (HORA EXTRA) | E54: QTDE PESSOAS | F54: DIAS | G54: VL.AUX.ALIM. | H54: VL.MENSAL
C56: 11 | D56: =HLOOKUP($C56,'Dados Gerais'!$D$5:$BE$10,6) -> RECEPCIONISTA BILINGUE PLANTONISTAS (12H/36H) | E56: 6 | F56: =F50 -> 2 | H56: =E56*F56*G56 -> 0
C57: 12 | D57: =HLOOKUP($C57,'Dados Gerais'!$D$5:$BE$10,6) -> RECEPCIONISTA BILINGUE PLANTONISTAS (12H/36H) | E57: 3 | F57: =F51 -> 2 | H57: =E57*F57*G57 -> 0
C60: ENCARGOS SOCIAIS AUXÍLIOS TRANSPORTE E ALIMENTAÇÃO E BDI SOBRE HORA EXTRA
C61: TOTAIS MENSAIS | F61: PERCENTUAIS | G61: PREÇO MENSAL
D63: ENCARGOS SOCIAIS | F63: ='Encargos Sociais'!$E$45 -> 0.7325 | G63: =F63*G44 -> 
D64: AUXÍLIO TRANSPORTE | G64: =$H$50+$H$51 -> 
D65: AUXÍLIO ALIMENTAÇÃO | G65: =$H$56+$H$57 -> 0
D66: BDI | F66: =BDI!$E$26 -> 0.244 | G66: =F66*(G44+G63+G64+G65) -> 
F68: SOMATÓRIO TOTAL MENSAL | G68: =SUM(G63:G67) -> 
F69: SOMATÓRIO TOTAL ANUAL | G69: =G68*12 -> 
C72: VALOR TOTAL ADICIONAL HORA EXTRA SOB DEMANDA
F76: SOMATÓRIO TOTAL MENSAL | G76: =G44+G68 -> 
F77: SOMATÓRIO TOTAL ANUAL | G77: =G76*12 -> 

Sheet Não Rel - Mat Consumo (hidden)
C1: CÂMARA DOS DEPUTADOS
C2: DEPARTAMENTO TÉCNICO
C3: Coordenação de Planejamento e Gestão
C5: Data: | D5: ='Dados Gerais'!#REF! -> 
C6: Processo: | D6: ='Dados Gerais'!#REF! -> 
C7: Objeto: | D7: ='Dados Gerais'!#REF! -> 
B11: MATERIAIS NÃO RELACIONADOS DIRETAMENTE A UM POSTO DE TRABALHO - AQUISIÇÃO SOB DEMANDA
C14: ITEM | D14: CÓDIGO | E14: DESCRIÇÃO | F14: QUANT MENSAL | G14: QUANT ANUAL | H14: UNIDADE | I14: CUSTO UNITÁRIO | J14: CUSTO TOTAL | K14: BDI (%) | L14: PREÇO TOTAL | M14: FONTE | N14: REFERÊNCIA
C16: 1 | J16: =I16*G16 -> 0 | K16: =BDI!E26 -> 0.244 | L16: =ROUND(J16*(1+K16),2) -> 0 | M16: Cotação
C17: 2 | J17: =I17*G17 -> 0 | K17: =K16 -> 0.244 | L17: =ROUND(J17*(1+K17),2) -> 0 | M17: Cotação
C18: 3 | J18: 0 | K18: =K17 -> 0.244 | L18: 0 | M18: Cotação
C19: 4 | J19: 0 | K19: 0.244 | L19: 0 | M19: Cotação
C20: 5 | J20: 0 | K20: 0.244 | L20: 0 | M20: Cotação
C21: 6 | J21: 0 | K21: 0.244 | L21: 0 | M21: Cotação
C22: 7 | J22: 0 | K22: 0.244 | L22: 0 | M22: Cotação
C23: 8 | J23: 0 | K23: 0.244 | L23: 0 | M23: Cotação
C24: 9 | J24: 0 | K24: 0.244 | L24: 0 | M24: Cotação
C25: 10 | J25: 0 | K25: 0.244 | L25: 0 | M25: Cotação
C26: 11 | J26: 0 | K26: 0.244 | L26: 0 | M26: Cotação
C27: 12 | J27: 0 | K27: 0.244 | L27: 0 | M27: Cotação
C28: 13 | J28: 0 | K28: 0.244 | L28: 0 | M28: Cotação
C29: 14 | J29: 0 | K29: 0.244 | L29: 0 | M29: Cotação
C30: 15 | J30: 0 | K30: 0.244 | L30: 0 | M30: Cotação
C31: 16 | J31: 0 | K31: 0.244 | L31: 0 | M31: Cotação
C32: 17 | J32: 0 | K32: 0.244 | L32: 0 | M32: Cotação
C33: 18 | J33: 0 | K33: 0.244 | L33: 0 | M33: Cotação
C34: 19 | J34: 0 | K34: 0.244 | L34: 0 | M34: Cotação
C35: 20 | J35: 0 | K35: 0.244 | L35: 0 | M35: Cotação
C36: 21 | J36: 0 | K36: 0.244 | L36: 0 | M36: Cotação
C37: 22 | J37: 0 | K37: 0.244 | L37: 0 | M37: Cotação
C38: 23 | J38: 0 | K38: 0.244 | L38: 0 | M38: Cotação
C39: 24 | J39: 0 | K39: 0.244 | L39: 0 | M39: Cotação
C40: 25 | J40: 0 | K40: 0.244 | L40: 0 | M40: Cotação
C41: 26 | J41: 0 | K41: 0.244 | L41: =ROUND(J41*(1+K41),2) -> 0 | M41: Cotação
C42: 27 | J42: 0 | K42: 0.244 | L42: 0 | M42: Cotação
C43: 28 | J43: 0 | K43: 0.244 | L43: 0 | M43: Cotação
C44: 29 | J44: 0 | K44: 0.244 | L44: 0 | M44: Cotação
C45: 30 | J45: 0 | K45: 0.244 | L45: 0 | M45: Cotação
C46: 31 | J46: 0 | K46: 0.244 | L46: 0 | M46: Cotação
C47: 32 | J47: 0 | K47: 0.244 | L47: 0 | M47: Cotação
C48: 33 | J48: =I48*G48 -> 0 | K48: 0.244 | L48: 0 | M48: Cotação
C49: 34 | J49: =I49*G49 -> 0 | K49: 0.244 | L49: 0 | M49: Cotação
C50: 35 | J50: 0 | K50: 0.244 | L50: 0 | M50: Cotação
C51: 36 | J51: 0 | K51: 0.244 | L51: 0 | M51: Cotação
C52: 37 | J52: 0 | K52: 0.244 | L52: 0 | M52: Cotação
C53: 38 | J53: =I53*G53 -> 0 | K53: 0.244 | L53: 0 | M53: Cotação
C54: 39 | J54: 0 | K54: 0.244 | L54: 0 | M54: Cotação
K56: SOMATÓRIO TOTAL MENSAL | L56: =L57/12 -> 0
K57: SOMATÓRIO TOTAL ANUAL | L57: =SUM(L15:L55) -> 0

Sheet Não Rel - Mat Cons Durável (hidden)
C1: CÂMARA DOS DEPUTADOS
C2: DEPARTAMENTO TÉCNICO
C3: Coordenação de Planejamento e Gestão
C5: Data: | D5: ='Dados Gerais'!#REF! -> 
C6: Processo: | D6: ='Dados Gerais'!#REF! -> 
C7: Objeto: | D7: ='Dados Gerais'!#REF! -> 
B11: MATERIAIS DE CONSUMO PERMANENTE NÃO RELACIONADOS DIRETAMENTE A UM POSTO DE TRABALHO - AQUISIÇÃO SOB DEMANDA
C14: ITEM | D14: CÓDIGO | E14: DESCRIÇÃO | F14: ESTOQUE INICIAL | G14: QUANT ANUAL | H14: UNIDADE | I14: CUSTO UNITÁRIO | J14: CUSTO TOTAL | K14: BDI (%) | L14: PREÇO TOTAL | M14: FONTE | N14: REFERÊNCIA
C16: 1 | G16: 180 | H16: Unidade | J16: =I16*G16 -> 0 | K16: =BDI!E26 -> 0.244 | L16: =ROUND(J16*(1+K16),2) -> 0 | M16: Cotação
C17: 2 | G17: 85 | H17: Unidade | J17: =I17*G17 -> 0 | K17: =K16 -> 0.244 | L17: =ROUND(J17*(1+K17),2) -> 0 | M17: Cotação
C18: 3 | G18: 5 | H18: Unidade | J18: 0 | K18: =K17 -> 0.244 | L18: 0 | M18: Cotação
C19: 4 | G19: 200 | H19: Metro | J19: 0 | K19: 0.244 | L19: 0 | M19: Cotação
C20: 5 | G20: 80 | H20: Unidade | J20: 0 | K20: 0.244 | L20: 0 | M20: Cotação
C21: 6 | G21: 18 | H21: Unidade | J21: 0 | K21: 0.244 | L21: 0 | M21: Cotação
C22: 7 | G22: 30 | H22: Unidade | J22: 0 | K22: 0.244 | L22: 0 | M22: Cotação
C23: 8 | G23: 54 | H23: Unidade | J23: 0 | K23: 0.244 | L23: 0 | M23: Cotação
C24: 9 | G24: 15 | H24: Unidade | J24: 0 | K24: 0.244 | L24: 0 | M24: Cotação
C25: 10 | G25: 26 | H25: Unidade | J25: 0 | K25: 0.244 | L25: 0 | M25: Cotação
C26: 11 | G26: 16 | H26: Unidade | J26: 0 | K26: 0.244 | L26: 0 | M26: Cotação
C27: 12 | G27: 120 | H27: Unidade | J27: 0 | K27: 0.244 | L27: 0 | M27: Cotação
C28: 13 | G28: 80 | H28: Unidade | J28: 0 | K28: 0.244 | L28: 0 | M28: Cotação
C29: 14 | G29: 130 | H29: Unidade | J29: 0 | K29: 0.244 | L29: 0 | M29: Cotação
C30: 15 | G30: 54 | H30: Unidade | J30: 0 | K30: 0.244 | L30: 0 | M30: Cotação
C31: 16 | G31: 42 | H31: Unidade | J31: 0 | K31: 0.244 | L31: 0 | M31: Cotação
C32: 17 | G32: 5 | H32: Unidade | J32: 0 | K32: 0.244 | L32: 0 | M32: Cotação
C33: 18 | G33: 5 | H33: Unidade | J33: 0 | K33: 0.244 | L33: 0 | M33: Cotação
C34: 19 | G34: 519 | H34: Unidade | J34: 0 | K34: 0.244 | L34: 0 | M34: Cotação
C35: 20 | G35: 300 | H35: Unidade | J35: 0 | K35: 0.244 | L35: 0 | M35: Cotação
C36: 21 | G36: 337 | H36: Unidade | J36: 0 | K36: 0.244 | L36: 0 | M36: Cotação
C37: 22 | G37: 84 | H37: Unidade | J37: 0 | K37: 0.244 | L37: 0 | M37: Cotação
C38: 23 | G38: 63 | H38: Unidade | J38: 0 | K38: 0.244 | L38: 0 | M38: Cotação
C39: 24 | G39: 137 | H39: Unidade | J39: 0 | K39: 0.244 | L39: 0 | M39: Cotação
C40: 25 | G40: 105 | H40: Unidade | J40: 0 | K40: 0.244 | L40: 0 | M40: Cotação
K42: SOMATÓRIO TOTAL MENSAL | L42: =L43/12 -> 0
K43: SOMATÓRIO TOTAL ANUAL | L43: =SUM(L15:L41) -> 0

Sheet Não Rel - Serviços (hidden)
C1: CÂMARA DOS DEPUTADOS
C2: DEPARTAMENTO TÉCNICO
C3: Coordenação de Planejamento e Gestão
C5: Data: | D5: ='Dados Gerais'!#REF! -> 
C6: Processo: | D6: ='Dados Gerais'!#REF! -> 
C7: Objeto: | D7: ='Dados Gerais'!#REF! -> 
B11: SERVIÇOS NÃO RELACIONADOS DIRETAMENTE A UM POSTO DE TRABALHO - AQUISIÇÃO SOB DEMANDA
C14: ITEM | D14: CÓDIGO | E14: DESCRIÇÃO | F14: QUANT ANUAL | G14: UNIDADE | H14: CUSTO UNITÁRIO | I14: CUSTO TOTAL | J14: BDI (%) | K14: PREÇO TOTAL | L14: FONTE | M14: REFERÊNCIA
C16: 1 | E16: SERVIÇOS DE DESINSETIZAÇÃO E DESRATIZAÇÃO | G16: aplicações | I16: =H16*F16 -> 0 | J16: =BDI!E26 -> 0.244 | K16: =ROUND(I16*(1+J16),2) -> 0 | L16: Cotação
J18: SOMATÓRIO TOTAL MENSAL | K18: =K19/12 -> 0
J19: SOMATÓRIO TOTAL ANUAL | K19: =SUM(K15:K17) -> 0
